Workbook

Sheet Hoja1 (hidden)
J19: impuesto | K19: 0.3 | L19: 0
J20: costos | K20: 0.6 | L20: 0
J21: resultado positivo | K21: 0.1 | L21: 0
J22: resultado negativo | K22: 0 | L22: 0 | M22: =IF(K21=0,J22&":"&" "&TEXT(K22,"##%"),"Ganancia:"&" "&TEXT(K21,"##%")) -> Ganancia: 10%
K24: 3 | L24: 9800

Sheet Instrucciones
B1: Calculadora de Márgenes Agrícolas BCCBA
B3: Paso 1:
B5: Dirigirse a la calculadora haciendo click en la imagen de la derecha, o en el botón "Calcualdora"que se
B6: encuentra al final de las instrucciones.
B7: EVITAR AGREGAR/QUITAR FILAS Y COLUMNAS EN ESTE EXCEL PARA SU CORRECTO FUNCIONAMIENTO.
B10: Paso 2:
B20: Seleccionar el departamento en el cual se encuentra su campo, dando click en el recuadro que dice "¿En qué departamento se ubica su campo?".
B22: Esto abrirá una lista desplegable donde podrá seleccionar el departamento.
B24: Paso 3:
B26: Al seleccionar el departamento, el Excel se completará con los datos de
B27: costos y rendimientos de los distintos cultivos de nuestra base de datos.
B29: Si así lo desea, puede cambiar las celdas en amarillo con los datos de su
B30: campo para tener una estimación más certera de su rentabilidad.
B32: Al cambiar el nivel de derechos de exportación, estos se veran reflejados
B33: en el precio disponible que aparece en la tabla de resultados.
B35: El precio disponible resulta de descontarle al precio de exportación FOB
B36: los gastos portuarios, comerciales e impuestos (incluidos los derechos de
B37: exportación).
B39: * Tambien se puede cambiar el precio FOB y valor del dólar de cada cultivo,
B40: aunque no se recomienda porque se encuentan actualizados quincenalmente.
B44: Paso 4:
B46: Para más flexibilidad, se puede seleccionar la opción "Modificá tus propios costos"
B47: haciendo click en el botón señalado. Esto lo llevará a una hoja de cálculo donde
B48: podrá decidir la distancia al puerto, el costo de arrendamiento, los costos de
B49: labranzas, cosecha, fertilizantes y otros insumos, como se aprecia en la imagen.
B50: El botón "Guardar" guardará los cambios ingresados y lo llevará de nuevo a la
B51: calculadora. El botón "Restablecer" borrará los datos modificados y volverá a
B52: ingresar los valores originales para el departamento, desde nuestra base de datos.
B53: El botón "No Guardar" lo llevará de vuelta a la calculadora sin guardar ningún cambio.
B75: Paso 5:
B77: Los resultados se mostrarán en la tabla de resultados
B78: (imagen de la derecha), y en los gráficos debajo de ésta.
B80: La tabla de resultados muestra:
B81: Ingresos Totales
B82: Costos Directos
B83: Gastos Comerciales
B84: Margen Bruto
B85: Rendimiento de Indiferencia
B86: Costos Indirectos
B87: Resultado Operativo
B88: Impuestos
B89: Margen Neto
B90: Intereses sobre el capital invertido
B91: Resultado Económico
B92: Rentabilidad de la Actividad
B94: Se detallaran al final de las instrucciones.
B97: Paso 6:
B99: Para realizar el Análisis de Sensibilidad de la Rentabilidad
B100: se debe hacer click en el boton "Hacer Analisis".
B102: El Análisis de sensibilidad muestra la rentabilidad que se
B103: obtendría combinando distintos valores de rendimiento
B104: y precios disponibles. Las celdas con fondo naranja claro
B105: son las combinaciones más probables, ya que estos
B106: precios y rendimientos estan muy cerca de los colocados
B107: por el productor cuando se llenan los datos.
B113: Paso 7:
B115: Al finalizar, podrá guardar un resumen de lo que ha hecho.
B116: Para guardarlo como un PDF, seleccione el botón "Guardar
B117: en PDF". Para guardar en formato Excel seleccione el botón
B118: "Guardar en Excel".
B120: Tener en cuenta que la calculadora tiene fecha de expiración
B121: cada 15 días para poder actualizar la información de la misma,
B122: por lo que se sugiere guardar lo ya trabajado en otro archivo.
B125: Ingresos totales: Es el ingreso que resulta de vender la producción de una hectárea al precio disponible en el puerto de
B126: Rosario (precio que recibe el productor en mano). En la tabla, resulta de multiplicar el rendimiento por el precio.
B127: Costos directos: Son los costos que estan directamente relacionados con la cantidad de hectáreas sembradas y del nivel
B128: de producción. Ejemplo de estos costos son: agroquímicos y tareas de labranza.
B129: Gastos comerciales: Son los gastos incurridos en la comercialización del cultivo. Incluye el costo del flete para llevar la
B130: mercadería al puerto de rosario, comisiones del acopio, paritarias, zarandeo, secado, etc.
B131: Margen Bruto: Es el ingreso que le queda al productor luego de pagar los costos directos y gastos comerciales.
B132: Rendimiento de indiferencia: Con las condiciones descritas, indica cuál debería ser el rendimiento del cultivo para
B133: lograr un márgen bruto igual a cero.
B134: Costos indirectos: Son los costos que no se encuentran relacionados al nivel de producción, como el arrendamiento,
B135: gastos en personal, gastos en movilidad, gastos de oficina, etc. El gasto en personal incluye el salario de una persona
B136: encargada de la dirección del campo y un peón.
B137: Resultado Operativo: Es el dinero que le queda al productor luego de pagar todos los costos (costos directos e indirectos
B138: y gastos comerciales).
B139: Impuestos: Agrega el impuesto a las ganancias, impuesto a los sellos y el impuestos a los creditos y debitos bancarios.
B140: Margen Neto: Es el dinero que le queda al productor luego de pagar todos los costos e impuestos.
B141: Intereses: Es el ingreso que se deja de percibir para realizar la inversión en esta actividad (costo de inmovilizar el capital).
B142: En la tabla se calculó como el 0,25% anual de la inversión inicial en dolares.
B143: Inversión inicial: Se considero como la suma de los costos indirectos y directos, a excepción del costo de cosecha.
B144: Resultado Económico: Es la medida de rentabilidad final del cultivo. Resulta de restarle al margen neto los intereses.
B145: Este resultado incluye el costo de oportunidad tanto de la tierra (arrendamiento), como del trabajo propio (administración
B146: del campo) y del dinero invertido inicialmente.
B147: Costo de oportunidad: Cuando hablamos de costo de oportunidad hacemos referencia al dinero que se podría haber
B148: obtenido al destinar los recursos en una actividad alternativa. Por ejemplo, una persona que trabaje en su campo tiene el
B149: costo de su tiempo, ya que podría estar trabajando en otro sitio y percibir un salario. Si esta persona no administrase su
B150: campo, debería contratar a un encargado.
B151: Rentabilidad de la Actividad: Es la tasa de rentabilidad que se obtendría con el cultivo. Resulta de dividir el Resultado
B152: Economico por la inversión inicial.
B161: Nota: La calculadora dejará de funcionar el día 30/08/2021. Se deberá descargar nuevamente desde http://www.bccba.com.ar/calculadora-margenes-2020-8853.html

Sheet Calculadora BCCBA
B1: PROVINCIA | Q1: Analisis de Sensibilidad de la Rentabilidad
B3: Podés modificar los datos en amarillo | E3: Rentabilidad Campaña 2020/21 Der. de export. 12% maíz, 12% trigo y 33% soja. | R3: Nota: Antes de ver el análisis clickear en "Ejecutar".
E4: Rendimiento | F4: qq/ha | G4: =+C6 -> 35.53947816 | H4: =TEXT(C5,"0,#")&" || "&TEXT(C7,"0,#") -> 18,6 || 30, | I4: =+C8 -> 95.17311801 | J4: =+C9 -> 88.48496603 | R4: SOJA
B5: Rendimiento trigo | C5: =INDEX(Listas!$A$1:$G$19,MATCH('Calculadora BCCBA'!$B$1,Listas!$A$1:$A$19,0),MATCH('Calculadora BCCBA'!$B$5,Listas!$A$1:$G$1,0)) -> 18.58725877 | E5: Precio Disponible | F5: USD/tn | G5: =+HLOOKUP($B$1,'Soja 1ª'!$F$105:$AF$120,3,FALSE) -> 344.3692317 | H5: =TEXT('Trigo + Soja 2ª'!E143,"##")&" || "&TEXT('Trigo + Soja 2ª'!E144,"##") -> 222 || 344 | I5: =+HLOOKUP($B$1,'Maíz temprano'!$F$101:$AF$116,3,FALSE) -> 209.9404242 | J5: =+HLOOKUP($B$1,'Maíz tardío'!$F$101:$AF$116,3,FALSE) -> 188.91 | L5: Rendimiento trigo | M5: 18.58725877 | R5: =+"DER. DE EXPORTACIÓN "&TEXT(0.33,"##%")&" A LA SOJA." -> DER. DE EXPORTACIÓN 33% A LA SOJA.
B6: Rendimiento soja 1ª | C6: =INDEX(Listas!$A$1:$G$19,MATCH('Calculadora BCCBA'!$B$1,Listas!$A$1:$A$19,0),MATCH('Calculadora BCCBA'!$B$6,Listas!$A$1:$G$1,0)) -> 35.53947816 | E6: Ingresos Totales | F6: USD/ha | G6: =+HLOOKUP($B$1,'Soja 1ª'!$F$105:$AF$120,4,FALSE) -> 1096.914272 | H6: =+HLOOKUP($B$1,'Trigo + Soja 2ª'!$F$158:$AF$174,6,FALSE) -> 1395.516238 | I6: =+HLOOKUP($B$1,'Maíz temprano'!$F$101:$AF$116,4,FALSE) -> 1613.245691 | J6: =+HLOOKUP($B$1,'Maíz tardío'!$F$101:$AF$116,4,FALSE) -> 1459.877442 | L6: Rendimiento soja 1ª | M6: 31.8528536
B7: Rendimiento soja 2ª | C7: =INDEX(Listas!$A$1:$G$19,MATCH('Calculadora BCCBA'!$B$1,Listas!$A$1:$A$19,0),MATCH('Calculadora BCCBA'!$B$7,Listas!$A$1:$G$1,0)) -> 30.02392162 | E7: Costos Directos | F7: USD/ha | G7: =+HLOOKUP($B$1,'Soja 1ª'!$F$105:$AF$120,5,FALSE) -> 280.3299978 | H7: =+HLOOKUP($B$1,'Trigo + Soja 2ª'!$F$158:$AF$174,7,FALSE) -> 500.542541 | I7: =+HLOOKUP($B$1,'Maíz temprano'!$F$101:$AF$116,5,FALSE) -> 422.6331037 | J7: =+HLOOKUP($B$1,'Maíz tardío'!$F$101:$AF$116,5,FALSE) -> 431.1135336 | L7: Rendimiento soja 2ª | M7: 28.55978319 | S7: Rendimiento de soja (qq/ha)
B8: Rendimiento maíz temprano | C8: =INDEX(Listas!$A$1:$G$19,MATCH('Calculadora BCCBA'!$B$1,Listas!$A$1:$A$19,0),MATCH('Calculadora BCCBA'!$B$8,Listas!$A$1:$G$1,0)) -> 95.17311801 | E8: Gastos Comerciales | F8: USD/ha | G8: =+HLOOKUP($B$1,'Soja 1ª'!$F$105:$AF$120,6,FALSE) -> 135.1822427 | H8: =+HLOOKUP($B$1,'Trigo + Soja 2ª'!$F$158:$AF$174,8,FALSE) -> 162.5642707 | I8: =+HLOOKUP($B$1,'Maíz temprano'!$F$101:$AF$116,6,FALSE) -> 314.9842926 | J8: =+HLOOKUP($B$1,'Maíz tardío'!$F$101:$AF$116,6,FALSE) -> 326.6519093 | L8: Rendimiento maíz temprano | M8: 76.8430233 | Q8: Precio disp. (USD/Tn) | R8: =+G18 -> 0.2312893279 | S8: 29.45954816 | T8: 31.95954816 | U8: 34.45954816 | V8: 36.95954816 | W8: 39.45954816
B9: Rendimiento maíz tardío | C9: =INDEX(Listas!$A$1:$G$19,MATCH('Calculadora BCCBA'!$B$1,Listas!$A$1:$A$19,0),MATCH('Calculadora BCCBA'!$B$9,Listas!$A$1:$G$1,0)) -> 88.48496603 | E9: Margen Bruto | F9: USD/ha | G9: =+HLOOKUP($B$1,'Soja 1ª'!$F$105:$AF$120,7,FALSE) -> 681.4020318 | H9: =+HLOOKUP($B$1,'Trigo + Soja 2ª'!$F$158:$AF$174,9,FALSE) -> 732.4094258 | I9: =+HLOOKUP($B$1,'Maíz temprano'!$F$101:$AF$116,7,FALSE) -> 875.6282949 | J9: =+HLOOKUP($B$1,'Maíz tardío'!$F$101:$AF$116,7,FALSE) -> 702.111999 | L9: Rendimiento maíz tardío | M9: 77.27899222 | R9: 166 | S9: -0.3299042923 | T9: -0.2652704205 | U9: -0.2014240697 | V9: -0.1381894054 | W9: -0.07563630153
E10: Rendimiento de Indiferencia | F10: qq/ha | G10: =+HLOOKUP($B$1,'Soja 1ª'!$F$105:$AF$120,8,FALSE) -> 12.0658933 | H10: - | I10: =+HLOOKUP($B$1,'Maíz temprano'!$F$101:$AF$116,8,FALSE) -> 35.1346054 | J10: =+HLOOKUP($B$1,'Maíz tardío'!$F$101:$AF$116,8,FALSE) -> 40.11251088 | R10: 196 | S10: -0.187098172 | T10: -0.1111077469 | U10: -0.03589713996 | V10: 0.01424599325 | W10: 0.06174107984
B11: Precio DISPONIBLE trigo (USD/Tn.) | C11: 221.66 | E11: Costos Indirectos | F11: USD/ha | G11: =+HLOOKUP($B$1,'Soja 1ª'!$F$105:$AF$120,9,FALSE) -> 442.4594379 | H11: =+HLOOKUP($B$1,'Trigo + Soja 2ª'!$F$158:$AF$174,10,FALSE) -> 482.4034265 | I11: =+HLOOKUP($B$1,'Maíz temprano'!$F$101:$AF$116,9,FALSE) -> 454.2124887 | J11: =+HLOOKUP($B$1,'Maíz tardío'!$F$101:$AF$116,9,FALSE) -> 458.1621396 | R11: 226 | S11: -0.06219496042 | T11: 0.005071021673 | U11: 0.05980862753 | V11: 0.1141427427 | W11: 0.1680340023
B12: Precio DISPONIBLE soja 1ª (USD/Tn.) | C12: 344.3692317 | E12: Resultado Operativo | F12: USD/ha | G12: =+HLOOKUP($B$1,'Soja 1ª'!$F$105:$AF$120,10,FALSE) -> 238.942594 | H12: =+HLOOKUP($B$1,'Trigo + Soja 2ª'!$F$158:$AF$174,11,FALSE) -> 250.0059993 | I12: =+HLOOKUP($B$1,'Maíz temprano'!$F$101:$AF$116,10,FALSE) -> 421.4158062 | J12: =+HLOOKUP($B$1,'Maíz tardío'!$F$101:$AF$116,10,FALSE) -> 243.9498595 | R12: 256 | S12: 0.02100732039 | T12: 0.08188107489 | U12: 0.1422510666 | V12: 0.2022120391 | W12: 0.2617271537
B13: Precio DISPONIBLE maíz temprano (USD/Tn.) | C13: 209.9404242 | E13: Impuestos | F13: USD/ha | G13: =+HLOOKUP($B$1,'Soja 1ª'!$F$105:$AF$120,11,FALSE) -> 89.53747574 | H13: =+HLOOKUP($B$1,'Trigo + Soja 2ª'!$F$158:$AF$174,12,FALSE) -> 97.84645819 | I13: =+HLOOKUP($B$1,'Maíz temprano'!$F$101:$AF$116,11,FALSE) -> 152.5158715 | J13: =+HLOOKUP($B$1,'Maíz tardío'!$F$101:$AF$116,11,FALSE) -> 97.12541921 | R13: 286 | S13: 0.08425601094 | T13: 0.1501247685 | U13: 0.2154885405 | V13: 0.2804369843 | W13: 0.3449355123
B14: Precio DISPONIBLE maíz tardío (USD/Tn.) | C14: =+(187.18+190.64)/2 -> 188.91 | E14: Margen Neto | F14: USD/ha | G14: =+HLOOKUP($B$1,'Soja 1ª'!$F$105:$AF$120,12,FALSE) -> 149.4051182 | H14: =+HLOOKUP($B$1,'Trigo + Soja 2ª'!$F$158:$AF$174,13,FALSE) -> 152.1595411 | I14: =+HLOOKUP($B$1,'Maíz temprano'!$F$101:$AF$116,12,FALSE) -> 268.8999347 | J14: =+HLOOKUP($B$1,'Maíz tardío'!$F$101:$AF$116,12,FALSE) -> 146.8244403
E15: Intereses sobre el Capital Invertido | F15: USD/ha | G15: =+HLOOKUP($B$1,'Soja 1ª'!$F$105:$AF$120,13,FALSE) -> 0.8031174748 | H15: =+HLOOKUP($B$1,'Trigo + Soja 2ª'!$F$158:$AF$174,14,FALSE) -> 1.729164428 | I15: =+HLOOKUP($B$1,'Maíz temprano'!$F$101:$AF$116,13,FALSE) -> 1.111771338 | J15: =+HLOOKUP($B$1,'Maíz tardío'!$F$101:$AF$116,13,FALSE) -> 1.280603566
B16: Dólar a cosecha trigo (diciembre) | C16: 82.71 | E16: Resultado Económico | F16: USD/ha | G16: =+HLOOKUP($B$1,'Soja 1ª'!$F$105:$AF$120,14,FALSE) -> 148.6020007 | H16: =+HLOOKUP($B$1,'Trigo + Soja 2ª'!$F$158:$AF$174,15,FALSE) -> 150.4303767 | I16: =+HLOOKUP($B$1,'Maíz temprano'!$F$101:$AF$116,14,FALSE) -> 267.7881633 | J16: =+HLOOKUP($B$1,'Maíz tardío'!$F$101:$AF$116,14,FALSE) -> 145.5438367 | R16: TRIGO + SOJA
B17: Dólar a cosecha soja (mayo) | C17: 97.18 | E17: Inversión inicial | F17: USD/ha | G17: =+HLOOKUP($B$1,'Soja 1ª'!$F$105:$AF$120,15,FALSE) -> 642.4939798 | H17: =+HLOOKUP($B$1,'Trigo + Soja 2ª'!$F$158:$AF$174,16,FALSE) -> 691.6657713 | I17: =+HLOOKUP($B$1,'Maíz temprano'!$F$101:$AF$116,15,FALSE) -> 762.3574887 | J17: =+HLOOKUP($B$1,'Maíz tardío'!$F$101:$AF$116,15,FALSE) -> 768.3621396 | R17: =+"DER. DE EXPORTACIÓN "&TEXT(0.12,"##%")&" TRIGO, "&TEXT(0.3,"33%")&" SOJA." -> DER. DE EXPORTACIÓN 12% TRIGO, 33% SOJA.
B18: Dólar a cosecha maíz temp. (abril) | C18: 92.864 | E18: Rentabilidad de la Actividad | F18: % | G18: =+HLOOKUP($B$1,'Soja 1ª'!$F$105:$AF$120,16,FALSE) -> 0.2312893279 | H18: =+HLOOKUP($B$1,'Trigo + Soja 2ª'!$F$158:$AF$174,17,FALSE) -> 0.2174899828 | I18: =+HLOOKUP($B$1,'Maíz temprano'!$F$101:$AF$116,16,FALSE) -> 0.3512632424 | J18: =+HLOOKUP($B$1,'Maíz tardío'!$F$101:$AF$116,16,FALSE) -> 0.1894208853
B19: Dólar a cosecha maíz tardío (julio) | C19: 96.91 | S19: Rendimiento de soja (qq/ha)
Q20: Precio disp. (USD/Tn) | R20: =+H18 -> 0.2174899828 | S20: 18.55219705 | T20: 23.55219705 | U20: 28.55219705 | V20: 33.55219705 | W20: 38.55219705
B21: Links utiles para cambiar datos de las variables | R21: 166 | S21: -0.2969262795 | T21: -0.1784505671 | U21: -0.06216597226 | V21: 0.01714809355 | W21: 0.0884541056
B22: Rendimientos | R22: 196 | S22: -0.2333764451 | T22: -0.09378154972 | U22: 0.01282443886 | V22: 0.09935590266 | W22: 0.1843014835
B23: Precio FOB | R23: 226 | S23: -0.1769209183 | T23: -0.02670785407 | U23: 0.07369592907 | V23: 0.1723085145 | W23: 0.2693280049
B24: Dólar | R24: 256 | S24: -0.1264345547 | T24: 0.01691267838 | U24: 0.1280967325 | V24: 0.237485602 | W24: 0.3452682166
R25: 286 | S25: -0.08101819112 | T25: 0.05614148796 | U25: 0.177006537 | V25: 0.2960673804 | W25: 0.4135047465
R28: MAÍZ TEMPRANO
R29: ="DER. DE EXPORTACIÓN "&TEXT(0.12,"##%")&" MAÍZ, "&TEXT(0.3,"33%")&" SOJA." -> DER. DE EXPORTACIÓN 12% MAÍZ, 33% SOJA.
S31: Rendimiento de maíz (qq/ha)
Q32: Precio disp. (USD/Tn) | R32: =+I18 -> 0.3512632424 | S32: 76.91593326 | T32: 81.91593326 | U32: 86.91593326 | V32: 91.91593326 | W32: 96.91593326
R33: 132.5 | S33: 0.00173319493 | T33: 0.04632682446 | U33: 0.09326454651 | V33: 0.1371229936 | W33: 0.1805296587
R34: 139.5 | S34: 0.05838871195 | T34: 0.1065516508 | U34: 0.1570426989 | V34: 0.2044439796 | W34: 0.2513805802
R35: 146.5 | S35: 0.1149417278 | T35: 0.1666605782 | U35: 0.2206907822 | V35: 0.2716199512 | W35: 0.3220707786
R36: 153.5 | S36: 0.1713925205 | T36: 0.2266539407 | U36: 0.2842091941 | V36: 0.3386513766 | W36: 0.3926008004
R37: 160.5 | S37: 0.2277413669 | T37: 0.2865320714 | U37: 0.3475983303 | V37: 0.4055387217 | W37: 0.4629711892
R40: MAÍZ TARDÍO
R41: ="DER. DE EXPORTACIÓN "&TEXT(0.12,"##%")&" MAÍZ, "&TEXT(0.3,"33%")&" SOJA." -> DER. DE EXPORTACIÓN 12% MAÍZ, 33% SOJA.
S43: Rendimiento de maíz (qq/ha)
Q44: Precio disp. (USD/Tn) | R44: =+J18 -> 0.1894208853 | S44: 59.09101531 | T44: 67.09101531 | U44: 75.09101531 | V44: 83.09101531 | W44: 91.09101531
R45: 121 | S45: -0.3397956546 | T45: -0.2396796558 | U45: -0.1402956245 | V45: -0.04167668534 | W45: 0.02317221925
B46: Contacto: | R46: 128 | S46: -0.2723491241 | T46: -0.1633115708 | U46: -0.05505453946 | V46: 0.02137719599 | W46: 0.08949632959
B47: economia@bccba.org.ar | R47: 135 | S47: -0.2049959483 | T47: -0.0870632833 | U47: 0.007308268106 | V47: 0.08192271423 | W47: 0.1556799405
R48: 142 | S48: -0.1377359336 | T48: -0.01877026078 | U48: 0.06208730675 | V48: 0.1423511415 | W48: 0.221723498
B49: www.bccba.com.ar | R49: 149 | S49: -0.07056888669 | T49: 0.03024756819 | U49: 0.116770509 | V49: 0.2026628173 | W49: 0.2876274462
B50: Tel: 54 351 4229637. Int: 140
B51: Tel: 54 351 4253716. Int: 140

Sheet Listas (hidden)
A1: Deptos | B1: Rendimiento trigo | C1: Rendimiento soja 1ª | D1: Rendimiento soja 2ª | E1: Rendimiento maíz temprano | F1: Rendimiento maíz tardío | J1: Soja | L1: Maíz | N1: Trigo | S1: Calculador Soja 1ª | V1: Calculador Soja 2ª | Y1: Calculador Trigo | AB1: Calculador Maíz Temprano | AE1: Calculador Maíz Tardío | AJ1: Departamento | AK1: Arrendamiento | AO1: Opciones avanzadas (completado por el usuario) | AP1: Mes de actualiz. | AQ1: Cantidades | AR1: Calamuchita | AS1: Capital | AT1: Colón | AU1: Cruz del Eje | AV1: Gral. Roca | AW1: Gral. San Martín | AX1: Ischilin | AY1: Juárez Celman | AZ1: Marcos Juárez | BA1: Minas | BB1: Pocho | BC1: Pte. R. Sáenz Peña | BD1: Punilla | BE1: Río Cuarto | BF1: Río Primero | BG1: Río Seco | BH1: Río Segundo | BI1: San Alberto | BJ1: San Javier | BK1: San Justo | BL1: Santa María | BM1: Sobremonte | BN1: Tercero Arriba | BO1: Totoral | BP1: Tulumba | BQ1: Unión | BR1: PROVINCIA
A2: Calamuchita | B2: 11 | C2: 30.34482759 | D2: 24 | E2: 80 | F2: 100 | J2: Rendimiento | K2: Costos cosecha | L2: Rendimiento | M2: Costos cosecha | N2: Rendimiento | O2: Costos cosecha | S2: qq | T2: Depto | V2: qq | W2: Depto | Y2: qq | Z2: Depto | AB2: qq | AC2: Depto | AE2: qq | AF2: Depto | AJ2: Calamuchita | AK2: 10.2034162 | AO2: Servicios de Labranza | AP2: Estos datos son los ingresados en opciones avanzadas | AQ2: SOJA DE 1ª | AR2: =+'Soja 1ª'!F24+'Soja 1ª'!F25+'Soja 1ª'!F41 -> 65.5 | AS2: =+'Soja 1ª'!G24+'Soja 1ª'!G25+'Soja 1ª'!G41 -> 0 | AT2: =+'Soja 1ª'!H24+'Soja 1ª'!H25+'Soja 1ª'!H41 -> 65.5 | AU2: =+'Soja 1ª'!I24+'Soja 1ª'!I25+'Soja 1ª'!I41 -> 0 | AV2: =+'Soja 1ª'!J24+'Soja 1ª'!J25+'Soja 1ª'!J41 -> 65.5 | AW2: =+'Soja 1ª'!K24+'Soja 1ª'!K25+'Soja 1ª'!K41 -> 65.5 | AX2: =+'Soja 1ª'!L24+'Soja 1ª'!L25+'Soja 1ª'!L41 -> 0 | AY2: =+'Soja 1ª'!M24+'Soja 1ª'!M25+'Soja 1ª'!M41 -> 65.5 | AZ2: =+'Soja 1ª'!N24+'Soja 1ª'!N25+'Soja 1ª'!N41 -> 65.5 | BA2: =+'Soja 1ª'!O24+'Soja 1ª'!O25+'Soja 1ª'!O41 -> 0 | BB2: =+'Soja 1ª'!P24+'Soja 1ª'!P25+'Soja 1ª'!P41 -> 0 | BC2: =+'Soja 1ª'!Q24+'Soja 1ª'!Q25+'Soja 1ª'!Q41 -> 65.5 | BD2: =+'Soja 1ª'!R24+'Soja 1ª'!R25+'Soja 1ª'!R41 -> 0 | BE2: =+'Soja 1ª'!S24+'Soja 1ª'!S25+'Soja 1ª'!S41 -> 65.5 | BF2: =+'Soja 1ª'!T24+'Soja 1ª'!T25+'Soja 1ª'!T41 -> 65.5 | BG2: =+'Soja 1ª'!U24+'Soja 1ª'!U25+'Soja 1ª'!U41 -> 65.5 | BH2: =+'Soja 1ª'!V24+'Soja 1ª'!V25+'Soja 1ª'!V41 -> 65.5 | BI2: =+'Soja 1ª'!W24+'Soja 1ª'!W25+'Soja 1ª'!W41 -> 0 | BJ2: =+'Soja 1ª'!X24+'Soja 1ª'!X25+'Soja 1ª'!X41 -> 0 | BK2: =+'Soja 1ª'!Y24+'Soja 1ª'!Y25+'Soja 1ª'!Y41 -> 65.5 | BL2: =+'Soja 1ª'!Z24+'Soja 1ª'!Z25+'Soja 1ª'!Z41 -> 65.5 | BM2: =+'Soja 1ª'!AA24+'Soja 1ª'!AA25+'Soja 1ª'!AA41 -> 0 | BN2: =+'Soja 1ª'!AB24+'Soja 1ª'!AB25+'Soja 1ª'!AB41 -> 65.5 | BO2: =+'Soja 1ª'!AC24+'Soja 1ª'!AC25+'Soja 1ª'!AC41 -> 65.5 | BP2: =+'Soja 1ª'!AD24+'Soja 1ª'!AD25+'Soja 1ª'!AD41 -> 65.5 | BQ2: =+'Soja 1ª'!AE24+'Soja 1ª'!AE25+'Soja 1ª'!AE41 -> 65.5 | BR2: =+'Soja 1ª'!AF24+'Soja 1ª'!AF25+'Soja 1ª'!AF41 -> 65.3854802
A3: Colón | B3: 14.55827114 | C3: 38.79113924 | D3: 31 | E3: 85 | F3: 90 | J3: 8 | K3: =+K4-(K5-K4)+9 -> 5626 | L3: 44 | M3: =+M4 -> 8375 | N3: 6 | O3: 4480 | S3: Inicial | T3: =IF(ISBLANK(T5),"",INT(INT(T5)/2)*2) -> 30 | V3: Inicial | W3: =IF(ISBLANK(W5),"",INT(INT(W5)/2)*2) -> 28 | Y3: Inicial | Z3: =IF(ISBLANK(Z5),"",INT(INT(Z5)/2)*2) -> 18 | AB3: Inicial | AC3: =IF(ISBLANK(AC5),"",INT((INT(AC5)+2)/4)*4-2) -> 74 | AE3: Inicial | AF3: =IF(ISBLANK(AF5),"",INT((INT(AF5)+2)/4)*4-2) -> 74 | AJ3: Colón | AK3: 9.401207078 | AO3: Servicios de Cosecha | AR3: =+'Soja 1ª'!F43 -> 80.29545583 | AS3: =+'Soja 1ª'!G43 -> 0 | AT3: =+'Soja 1ª'!H43 -> 80.29545583 | AU3: =+'Soja 1ª'!I43 -> 0 | AV3: =+'Soja 1ª'!J43 -> 80.29545583 | AW3: =+'Soja 1ª'!K43 -> 80.29545583 | AX3: =+'Soja 1ª'!L43 -> 0 | AY3: =+'Soja 1ª'!M43 -> 80.29545583 | AZ3: =+'Soja 1ª'!N43 -> 80.29545583 | BA3: =+'Soja 1ª'!O43 -> 0 | BB3: =+'Soja 1ª'!P43 -> 0 | BC3: =+'Soja 1ª'!Q43 -> 80.29545583 | BD3: =+'Soja 1ª'!R43 -> 0 | BE3: =+'Soja 1ª'!S43 -> 80.29545583 | BF3: =+'Soja 1ª'!T43 -> 80.29545583 | BG3: =+'Soja 1ª'!U43 -> 80.29545583 | BH3: =+'Soja 1ª'!V43 -> 80.29545583 | BI3: =+'Soja 1ª'!W43 -> 0 | BJ3: =+'Soja 1ª'!X43 -> 0 | BK3: =+'Soja 1ª'!Y43 -> 80.29545583 | BL3: =+'Soja 1ª'!Z43 -> 80.29545583 | BM3: =+'Soja 1ª'!AA43 -> 0 | BN3: =+'Soja 1ª'!AB43 -> 80.29545583 | BO3: =+'Soja 1ª'!AC43 -> 80.29545583 | BP3: =+'Soja 1ª'!AD43 -> 80.29545583 | BQ3: =+'Soja 1ª'!AE43 -> 80.29545583 | BR3: =+'Soja 1ª'!AF43 -> 80.29545583
A4: Gral. Roca | B4: 21.5 | C4: 27.98449612 | D4: 20 | E4: 80 | F4: 70 | J4: =+J5-2 -> 10 | K4: 5599 | L4: 46 | M4: 8375 | N4: 8 | O4: 4480 | S4: Final | T4: =IF(ISBLANK(T5),"",T3+2) -> 32 | V4: Final | W4: =IF(ISBLANK(W5),"",W3+2) -> 30 | Y4: Final | Z4: =IF(ISBLANK(Z5),"",Z3+2) -> 20 | AB4: Final | AC4: =IF(ISBLANK(AC5),"",AC3+4) -> 78 | AE4: Final | AF4: =IF(ISBLANK(AF5),"",AF3+4) -> 78 | AJ4: Gral. Roca | AK4: 9.339359586 | AO4: Herbicida | AR4: =+'Soja 1ª'!F26+'Soja 1ª'!F27+'Soja 1ª'!F28+'Soja 1ª'!F29+'Soja 1ª'!F30+'Soja 1ª'!F35 -> 49.459 | AS4: =+'Soja 1ª'!G26+'Soja 1ª'!G27+'Soja 1ª'!G28+'Soja 1ª'!G29+'Soja 1ª'!G30+'Soja 1ª'!G35 -> 0 | AT4: =+'Soja 1ª'!H26+'Soja 1ª'!H27+'Soja 1ª'!H28+'Soja 1ª'!H29+'Soja 1ª'!H30+'Soja 1ª'!H35 -> 49.459 | AU4: =+'Soja 1ª'!I26+'Soja 1ª'!I27+'Soja 1ª'!I28+'Soja 1ª'!I29+'Soja 1ª'!I30+'Soja 1ª'!I35 -> 0 | AV4: =+'Soja 1ª'!J26+'Soja 1ª'!J27+'Soja 1ª'!J28+'Soja 1ª'!J29+'Soja 1ª'!J30+'Soja 1ª'!J35 -> 49.459 | AW4: =+'Soja 1ª'!K26+'Soja 1ª'!K27+'Soja 1ª'!K28+'Soja 1ª'!K29+'Soja 1ª'!K30+'Soja 1ª'!K35 -> 49.459 | AX4: =+'Soja 1ª'!L26+'Soja 1ª'!L27+'Soja 1ª'!L28+'Soja 1ª'!L29+'Soja 1ª'!L30+'Soja 1ª'!L35 -> 0 | AY4: =+'Soja 1ª'!M26+'Soja 1ª'!M27+'Soja 1ª'!M28+'Soja 1ª'!M29+'Soja 1ª'!M30+'Soja 1ª'!M35 -> 49.459 | AZ4: =+'Soja 1ª'!N26+'Soja 1ª'!N27+'Soja 1ª'!N28+'Soja 1ª'!N29+'Soja 1ª'!N30+'Soja 1ª'!N35 -> 49.459 | BA4: =+'Soja 1ª'!O26+'Soja 1ª'!O27+'Soja 1ª'!O28+'Soja 1ª'!O29+'Soja 1ª'!O30+'Soja 1ª'!O35 -> 0 | BB4: =+'Soja 1ª'!P26+'Soja 1ª'!P27+'Soja 1ª'!P28+'Soja 1ª'!P29+'Soja 1ª'!P30+'Soja 1ª'!P35 -> 0 | BC4: =+'Soja 1ª'!Q26+'Soja 1ª'!Q27+'Soja 1ª'!Q28+'Soja 1ª'!Q29+'Soja 1ª'!Q30+'Soja 1ª'!Q35 -> 49.459 | BD4: =+'Soja 1ª'!R26+'Soja 1ª'!R27+'Soja 1ª'!R28+'Soja 1ª'!R29+'Soja 1ª'!R30+'Soja 1ª'!R35 -> 0 | BE4: =+'Soja 1ª'!S26+'Soja 1ª'!S27+'Soja 1ª'!S28+'Soja 1ª'!S29+'Soja 1ª'!S30+'Soja 1ª'!S35 -> 49.459 | BF4: =+'Soja 1ª'!T26+'Soja 1ª'!T27+'Soja 1ª'!T28+'Soja 1ª'!T29+'Soja 1ª'!T30+'Soja 1ª'!T35 -> 49.459 | BG4: =+'Soja 1ª'!U26+'Soja 1ª'!U27+'Soja 1ª'!U28+'Soja 1ª'!U29+'Soja 1ª'!U30+'Soja 1ª'!U35 -> 49.459 | BH4: =+'Soja 1ª'!V26+'Soja 1ª'!V27+'Soja 1ª'!V28+'Soja 1ª'!V29+'Soja 1ª'!V30+'Soja 1ª'!V35 -> 49.459 | BI4: =+'Soja 1ª'!W26+'Soja 1ª'!W27+'Soja 1ª'!W28+'Soja 1ª'!W29+'Soja 1ª'!W30+'Soja 1ª'!W35 -> 0 | BJ4: =+'Soja 1ª'!X26+'Soja 1ª'!X27+'Soja 1ª'!X28+'Soja 1ª'!X29+'Soja 1ª'!X30+'Soja 1ª'!X35 -> 0 | BK4: =+'Soja 1ª'!Y26+'Soja 1ª'!Y27+'Soja 1ª'!Y28+'Soja 1ª'!Y29+'Soja 1ª'!Y30+'Soja 1ª'!Y35 -> 49.459 | BL4: =+'Soja 1ª'!Z26+'Soja 1ª'!Z27+'Soja 1ª'!Z28+'Soja 1ª'!Z29+'Soja 1ª'!Z30+'Soja 1ª'!Z35 -> 49.459 | BM4: =+'Soja 1ª'!AA26+'Soja 1ª'!AA27+'Soja 1ª'!AA28+'Soja 1ª'!AA29+'Soja 1ª'!AA30+'Soja 1ª'!AA35 -> 0 | BN4: =+'Soja 1ª'!AB26+'Soja 1ª'!AB27+'Soja 1ª'!AB28+'Soja 1ª'!AB29+'Soja 1ª'!AB30+'Soja 1ª'!AB35 -> 49.459 | BO4: =+'Soja 1ª'!AC26+'Soja 1ª'!AC27+'Soja 1ª'!AC28+'Soja 1ª'!AC29+'Soja 1ª'!AC30+'Soja 1ª'!AC35 -> 49.459 | BP4: =+'Soja 1ª'!AD26+'Soja 1ª'!AD27+'Soja 1ª'!AD28+'Soja 1ª'!AD29+'Soja 1ª'!AD30+'Soja 1ª'!AD35 -> 49.459 | BQ4: =+'Soja 1ª'!AE26+'Soja 1ª'!AE27+'Soja 1ª'!AE28+'Soja 1ª'!AE29+'Soja 1ª'!AE30+'Soja 1ª'!AE35 -> 49.459 | BR4: =+'Soja 1ª'!AF26+'Soja 1ª'!AF27+'Soja 1ª'!AF28+'Soja 1ª'!AF29+'Soja 1ª'!AF30+'Soja 1ª'!AF35 -> 49.38164891
A5: Gral. San Martín | B5: 15.49025716 | C5: 34.46296296 | D5: 30.8 | E5: 60 | F5: 85 | J5: =+J6-2 -> 12 | K5: 5581 | L5: 50 | M5: 8559 | N5: =+N6-2 -> 10 | O5: 4480 | S5: Depto | T5: =+'Calculadora BCCBA'!$M$6 -> 31.8528536 | V5: Depto | W5: =+'Calculadora BCCBA'!M7 -> 28.55978319 | Y5: Depto | Z5: =+'Calculadora BCCBA'!M5 -> 18.58725877 | AB5: Depto | AC5: =+'Calculadora BCCBA'!M8 -> 76.8430233 | AE5: Depto | AF5: =+'Calculadora BCCBA'!M9 -> 77.27899222 | AJ5: Gral. San Martín | AK5: 11.10484484 | AO5: Fertilizantes | AR5: =+'Soja 1ª'!F33+'Soja 1ª'!F34 -> 0 | AS5: =+'Soja 1ª'!G33+'Soja 1ª'!G34 -> 0 | AT5: =+'Soja 1ª'!H33+'Soja 1ª'!H34 -> 0 | AU5: =+'Soja 1ª'!I33+'Soja 1ª'!I34 -> 0 | AV5: =+'Soja 1ª'!J33+'Soja 1ª'!J34 -> 0 | AW5: =+'Soja 1ª'!K33+'Soja 1ª'!K34 -> 0 | AX5: =+'Soja 1ª'!L33+'Soja 1ª'!L34 -> 0 | AY5: =+'Soja 1ª'!M33+'Soja 1ª'!M34 -> 0 | AZ5: =+'Soja 1ª'!N33+'Soja 1ª'!N34 -> 0 | BA5: =+'Soja 1ª'!O33+'Soja 1ª'!O34 -> 0 | BB5: =+'Soja 1ª'!P33+'Soja 1ª'!P34 -> 0 | BC5: =+'Soja 1ª'!Q33+'Soja 1ª'!Q34 -> 0 | BD5: =+'Soja 1ª'!R33+'Soja 1ª'!R34 -> 0 | BE5: =+'Soja 1ª'!S33+'Soja 1ª'!S34 -> 0 | BF5: =+'Soja 1ª'!T33+'Soja 1ª'!T34 -> 0 | BG5: =+'Soja 1ª'!U33+'Soja 1ª'!U34 -> 0 | BH5: =+'Soja 1ª'!V33+'Soja 1ª'!V34 -> 0 | BI5: =+'Soja 1ª'!W33+'Soja 1ª'!W34 -> 0 | BJ5: =+'Soja 1ª'!X33+'Soja 1ª'!X34 -> 0 | BK5: =+'Soja 1ª'!Y33+'Soja 1ª'!Y34 -> 0 | BL5: =+'Soja 1ª'!Z33+'Soja 1ª'!Z34 -> 0 | BM5: =+'Soja 1ª'!AA33+'Soja 1ª'!AA34 -> 0 | BN5: =+'Soja 1ª'!AB33+'Soja 1ª'!AB34 -> 0 | BO5: =+'Soja 1ª'!AC33+'Soja 1ª'!AC34 -> 0 | BP5: =+'Soja 1ª'!AD33+'Soja 1ª'!AD34 -> 0 | BQ5: =+'Soja 1ª'!AE33+'Soja 1ª'!AE34 -> 0 | BR5: =+'Soja 1ª'!AF33+'Soja 1ª'!AF34 -> 0
A6: Juárez Celman | B6: 17.93406568 | C6: 36.30990099 | D6: 30.3 | E6: 80 | F6: 97 | J6: 14 | K6: 5572 | L6: 54 | M6: 8751 | N6: =+N7-2 -> 12 | O6: 4480 | AJ6: Juárez Celman | AK6: 10.55150346 | AO6: Insecticidas | AR6: =+'Soja 1ª'!F36+'Soja 1ª'!F37+'Soja 1ª'!F38 -> 17.9135 | AS6: =+'Soja 1ª'!G36+'Soja 1ª'!G37+'Soja 1ª'!G38 -> 0 | AT6: =+'Soja 1ª'!H36+'Soja 1ª'!H37+'Soja 1ª'!H38 -> 17.9135 | AU6: =+'Soja 1ª'!I36+'Soja 1ª'!I37+'Soja 1ª'!I38 -> 0 | AV6: =+'Soja 1ª'!J36+'Soja 1ª'!J37+'Soja 1ª'!J38 -> 17.9135 | AW6: =+'Soja 1ª'!K36+'Soja 1ª'!K37+'Soja 1ª'!K38 -> 17.9135 | AX6: =+'Soja 1ª'!L36+'Soja 1ª'!L37+'Soja 1ª'!L38 -> 0 | AY6: =+'Soja 1ª'!M36+'Soja 1ª'!M37+'Soja 1ª'!M38 -> 17.9135 | AZ6: =+'Soja 1ª'!N36+'Soja 1ª'!N37+'Soja 1ª'!N38 -> 17.9135 | BA6: =+'Soja 1ª'!O36+'Soja 1ª'!O37+'Soja 1ª'!O38 -> 0 | BB6: =+'Soja 1ª'!P36+'Soja 1ª'!P37+'Soja 1ª'!P38 -> 0 | BC6: =+'Soja 1ª'!Q36+'Soja 1ª'!Q37+'Soja 1ª'!Q38 -> 17.9135 | BD6: =+'Soja 1ª'!R36+'Soja 1ª'!R37+'Soja 1ª'!R38 -> 0 | BE6: =+'Soja 1ª'!S36+'Soja 1ª'!S37+'Soja 1ª'!S38 -> 17.9135 | BF6: =+'Soja 1ª'!T36+'Soja 1ª'!T37+'Soja 1ª'!T38 -> 17.9135 | BG6: =+'Soja 1ª'!U36+'Soja 1ª'!U37+'Soja 1ª'!U38 -> 17.9135 | BH6: =+'Soja 1ª'!V36+'Soja 1ª'!V37+'Soja 1ª'!V38 -> 17.9135 | BI6: =+'Soja 1ª'!W36+'Soja 1ª'!W37+'Soja 1ª'!W38 -> 0 | BJ6: =+'Soja 1ª'!X36+'Soja 1ª'!X37+'Soja 1ª'!X38 -> 0 | BK6: =+'Soja 1ª'!Y36+'Soja 1ª'!Y37+'Soja 1ª'!Y38 -> 17.9135 | BL6: =+'Soja 1ª'!Z36+'Soja 1ª'!Z37+'Soja 1ª'!Z38 -> 17.9135 | BM6: =+'Soja 1ª'!AA36+'Soja 1ª'!AA37+'Soja 1ª'!AA38 -> 0 | BN6: =+'Soja 1ª'!AB36+'Soja 1ª'!AB37+'Soja 1ª'!AB38 -> 17.9135 | BO6: =+'Soja 1ª'!AC36+'Soja 1ª'!AC37+'Soja 1ª'!AC38 -> 17.9135 | BP6: =+'Soja 1ª'!AD36+'Soja 1ª'!AD37+'Soja 1ª'!AD38 -> 17.9135 | BQ6: =+'Soja 1ª'!AE36+'Soja 1ª'!AE37+'Soja 1ª'!AE38 -> 17.9135 | BR6: =+'Soja 1ª'!AF36+'Soja 1ª'!AF37+'Soja 1ª'!AF38 -> 17.9135
A7: Marcos Juárez | B7: 27.69864448 | C7: 43.76865672 | D7: 35.3 | E7: 115 | F7: 105 | J7: 16 | K7: 5572 | L7: 58 | M7: 8952 | N7: =+N8-2 -> 14 | O7: 4480 | S7: Precios | T7: Depto | V7: Precios | W7: Depto | Y7: Precios | Z7: Depto | AB7: Precios | AC7: Depto | AE7: Precios | AF7: Depto | AJ7: Marcos Juárez | AK7: 16.4092239 | AO7: Fungicidas | AR7: =+'Soja 1ª'!F39 -> 12 | AS7: =+'Soja 1ª'!G39 -> 0 | AT7: =+'Soja 1ª'!H39 -> 12 | AU7: =+'Soja 1ª'!I39 -> 0 | AV7: =+'Soja 1ª'!J39 -> 12 | AW7: =+'Soja 1ª'!K39 -> 12 | AX7: =+'Soja 1ª'!L39 -> 0 | AY7: =+'Soja 1ª'!M39 -> 12 | AZ7: =+'Soja 1ª'!N39 -> 12 | BA7: =+'Soja 1ª'!O39 -> 0 | BB7: =+'Soja 1ª'!P39 -> 0 | BC7: =+'Soja 1ª'!Q39 -> 12 | BD7: =+'Soja 1ª'!R39 -> 0 | BE7: =+'Soja 1ª'!S39 -> 12 | BF7: =+'Soja 1ª'!T39 -> 12 | BG7: =+'Soja 1ª'!U39 -> 12 | BH7: =+'Soja 1ª'!V39 -> 12 | BI7: =+'Soja 1ª'!W39 -> 0 | BJ7: =+'Soja 1ª'!X39 -> 0 | BK7: =+'Soja 1ª'!Y39 -> 12 | BL7: =+'Soja 1ª'!Z39 -> 12 | BM7: =+'Soja 1ª'!AA39 -> 0 | BN7: =+'Soja 1ª'!AB39 -> 12 | BO7: =+'Soja 1ª'!AC39 -> 12 | BP7: =+'Soja 1ª'!AD39 -> 12 | BQ7: =+'Soja 1ª'!AE39 -> 12 | BR7: =+'Soja 1ª'!AF39 -> 12
A8: Pte. R. Sáenz Peña | B8: 24.33333333 | C8: 32.77027027 | D8: 27.5 | E8: 60 | F8: 75 | J8: 18 | K8: 5746 | L8: 62 | M8: 9163 | N8: 16 | O8: 4480 | S8: Inicial | T8: =IF(T3="","",VLOOKUP(T3,$J$3:$K$27,2,FALSE)) -> 6779 | V8: Inicial | W8: =IF(W3="","",VLOOKUP(W3,$J$3:$K$27,2,FALSE)) -> 6588 | Y8: Inicial | Z8: =IF(Z3="","",VLOOKUP(Z3,$N$3:$O$28,2,FALSE)) -> 4480 | AB8: Inicial | AC8: =IF(AC3="","",VLOOKUP(AC3,$L$3:$M$27,2,FALSE)) -> 9859 | AE8: Inicial | AF8: =IF(AF3="","",VLOOKUP(AF3,$L$3:$M$27,2,FALSE)) -> 9859 | AJ8: Pte. R. Sáenz Peña | AK8: 10.4719358 | AO8: Curasemilla + Inoculante | AR8: =+'Soja 1ª'!F32 -> 5.92 | AS8: =+'Soja 1ª'!G32 -> 0 | AT8: =+'Soja 1ª'!H32 -> 5.92 | AU8: =+'Soja 1ª'!I32 -> 0 | AV8: =+'Soja 1ª'!J32 -> 5.92 | AW8: =+'Soja 1ª'!K32 -> 5.92 | AX8: =+'Soja 1ª'!L32 -> 0 | AY8: =+'Soja 1ª'!M32 -> 5.92 | AZ8: =+'Soja 1ª'!N32 -> 5.92 | BA8: =+'Soja 1ª'!O32 -> 0 | BB8: =+'Soja 1ª'!P32 -> 0 | BC8: =+'Soja 1ª'!Q32 -> 5.92 | BD8: =+'Soja 1ª'!R32 -> 0 | BE8: =+'Soja 1ª'!S32 -> 5.92 | BF8: =+'Soja 1ª'!T32 -> 5.92 | BG8: =+'Soja 1ª'!U32 -> 5.92 | BH8: =+'Soja 1ª'!V32 -> 5.92 | BI8: =+'Soja 1ª'!W32 -> 0 | BJ8: =+'Soja 1ª'!X32 -> 0 | BK8: =+'Soja 1ª'!Y32 -> 5.92 | BL8: =+'Soja 1ª'!Z32 -> 5.92 | BM8: =+'Soja 1ª'!AA32 -> 0 | BN8: =+'Soja 1ª'!AB32 -> 5.92 | BO8: =+'Soja 1ª'!AC32 -> 5.92 | BP8: =+'Soja 1ª'!AD32 -> 5.92 | BQ8: =+'Soja 1ª'!AE32 -> 5.92 | BR8: =+'Soja 1ª'!AF32 -> 5.92
A9: Río Cuarto | B9: 16.57962431 | C9: 36.26728972 | D9: 28.4 | E9: 82.5 | F9: 93.75 | J9: 20 | K9: 5920 | L9: 66 | M9: 9384 | N9: 18 | O9: 4480 | S9: Final | T9: =IF(T4="","",VLOOKUP(T4,$J$3:$K$27,2,FALSE)) -> 6982 | V9: Final | W9: =IF(W4="","",VLOOKUP(W4,$J$3:$K$27,2,FALSE)) -> 6779 | Y9: Final | Z9: =IF(Z4="","",VLOOKUP(Z4,$N$3:$O$28,2,FALSE)) -> 4480 | AB9: Final | AC9: =IF(AC4="","",VLOOKUP(AC4,$L$3:$M$27,2,FALSE)) -> 10115 | AE9: Final | AF9: =IF(AF4="","",VLOOKUP(AF4,$L$3:$M$27,2,FALSE)) -> 10115 | AJ9: Río Cuarto | AK9: 9.081428088 | AO9: Semillas | AR9: =+'Soja 1ª'!F31 -> 49.6 | AS9: =+'Soja 1ª'!G31 -> 0 | AT9: =+'Soja 1ª'!H31 -> 49.6 | AU9: =+'Soja 1ª'!I31 -> 0 | AV9: =+'Soja 1ª'!J31 -> 49.6 | AW9: =+'Soja 1ª'!K31 -> 49.6 | AX9: =+'Soja 1ª'!L31 -> 0 | AY9: =+'Soja 1ª'!M31 -> 49.6 | AZ9: =+'Soja 1ª'!N31 -> 49.6 | BA9: =+'Soja 1ª'!O31 -> 0 | BB9: =+'Soja 1ª'!P31 -> 0 | BC9: =+'Soja 1ª'!Q31 -> 49.6 | BD9: =+'Soja 1ª'!R31 -> 0 | BE9: =+'Soja 1ª'!S31 -> 49.6 | BF9: =+'Soja 1ª'!T31 -> 49.6 | BG9: =+'Soja 1ª'!U31 -> 49.6 | BH9: =+'Soja 1ª'!V31 -> 49.6 | BI9: =+'Soja 1ª'!W31 -> 0 | BJ9: =+'Soja 1ª'!X31 -> 0 | BK9: =+'Soja 1ª'!Y31 -> 49.6 | BL9: =+'Soja 1ª'!Z31 -> 49.6 | BM9: =+'Soja 1ª'!AA31 -> 0 | BN9: =+'Soja 1ª'!AB31 -> 49.6 | BO9: =+'Soja 1ª'!AC31 -> 49.6 | BP9: =+'Soja 1ª'!AD31 -> 49.6 | BQ9: =+'Soja 1ª'!AE31 -> 49.6 | BR9: =+'Soja 1ª'!AF31 -> 49.43391281
A10: Río Primero | B10: 13.7191796 | C10: 33.25391032 | D10: 23.9 | E10: 58.75 | F10: 86 | J10: 22 | K10: 6094 | L10: 70 | M10: 9616 | N10: 20 | O10: 4480 | S10: Depto | T10: =IF(T3="","",(T9-T8)/2*(T5-T3)+T8) -> 6967.06464 | V10: Depto | W10: =IF(W3="","",(W9-W8)/2*(W5-W3)+W8) -> 6641.459295 | Y10: Depto | Z10: =IF(Z3="","",(Z9-Z8)/2*(Z5-Z3)+Z8) -> 4480 | AB10: Depto | AC10: =IF(AC3="","",(AC9-AC8)/2*(AC5-AC3)+AC8) -> 10222.90698 | AE10: Depto | AF10: =IF(AF3="","",(AF9-AF8)/2*(AF5-AF3)+AF8) -> 10278.711 | AJ10: Río Primero | AK10: 8.881141707 | AO10: Total | AR10: =+SUM(AR2:AR9) -> 280.6879558 | AS10: 0 | AT10: 280.6879558 | AU10: 0 | AV10: 280.6879558 | AW10: 280.6879558 | AX10: 0 | AY10: 280.6879558 | AZ10: 280.6879558 | BA10: 0 | BB10: 0 | BC10: 280.6879558 | BD10: 0 | BE10: 280.6879558 | BF10: 280.6879558 | BG10: 280.6879558 | BH10: 280.6879558 | BI10: 0 | BJ10: 0 | BK10: 280.6879558 | BL10: 280.6879558 | BM10: 0 | BN10: 280.6879558 | BO10: 280.6879558 | BP10: 280.6879558 | BQ10: 280.6879558 | BR10: 280.3299978
A11: Río Seco | B11: 16.06363073 | C11: 35 | D11: 25 | E11: 60 | F11: 80 | J11: 24 | K11: 6231 | L11: 74 | M11: 9859 | N11: 22 | O11: 4566 | AJ11: Río Seco | AK11: 7.443956761
A12: Río Segundo | B12: 11.74976799 | C12: 32.50392507 | D12: 32.7 | E12: 81.66666667 | F12: 92.85714286 | J12: 26 | K12: 6407 | L12: 78 | M12: 10115 | N12: 24 | O12: 4654 | AJ12: Río Segundo | AK12: 10.00980605 | AO12: Opciones avanzadas (completado por el usuario) | AP12: Mes de actualiz. | AQ12: Cantidades | AR12: Calamuchita | AS12: Capital | AT12: Colón | AU12: Cruz del Eje | AV12: Gral. Roca | AW12: Gral. San Martín | AX12: Ischilin | AY12: Juárez Celman | AZ12: Marcos Juárez | BA12: Minas | BB12: Pocho | BC12: Pte. R. Sáenz Peña | BD12: Punilla | BE12: Río Cuarto | BF12: Río Primero | BG12: Río Seco | BH12: Río Segundo | BI12: San Alberto | BJ12: San Javier | BK12: San Justo | BL12: Santa María | BM12: Sobremonte | BN12: Tercero Arriba | BO12: Totoral | BP12: Tulumba | BQ12: Unión | BR12: PROVINCIA
A13: San Justo | B13: 13.85157941 | C13: 36.42983193 | D13: 31.9 | E13: 63.42592593 | F13: 87.03703704 | J13: 28 | K13: 6588 | L13: 82 | M13: 10385 | N13: 26 | O13: 4746 | AJ13: San Justo | AK13: 10.64207832 | AO13: Servicios de Labranza | AP13: Estos datos son los ingresados en opciones avanzadas | AQ13: TRIGO | AR13: =+SUM('Trigo + Soja 2ª'!F22:F24,'Trigo + Soja 2ª'!F37) -> 51.36 | AS13: =+SUM('Trigo + Soja 2ª'!G22:G24,'Trigo + Soja 2ª'!G37) -> 0 | AT13: =+SUM('Trigo + Soja 2ª'!H22:H24,'Trigo + Soja 2ª'!H37) -> 51.36 | AU13: =+SUM('Trigo + Soja 2ª'!I22:I24,'Trigo + Soja 2ª'!I37) -> 0 | AV13: =+SUM('Trigo + Soja 2ª'!J22:J24,'Trigo + Soja 2ª'!J37) -> 51.36 | AW13: =+SUM('Trigo + Soja 2ª'!K22:K24,'Trigo + Soja 2ª'!K37) -> 51.36 | AX13: =+SUM('Trigo + Soja 2ª'!L22:L24,'Trigo + Soja 2ª'!L37) -> 0 | AY13: =+SUM('Trigo + Soja 2ª'!M22:M24,'Trigo + Soja 2ª'!M37) -> 51.36 | AZ13: =+SUM('Trigo + Soja 2ª'!N22:N24,'Trigo + Soja 2ª'!N37) -> 51.36 | BA13: =+SUM('Trigo + Soja 2ª'!O22:O24,'Trigo + Soja 2ª'!O37) -> 0 | BB13: =+SUM('Trigo + Soja 2ª'!P22:P24,'Trigo + Soja 2ª'!P37) -> 0 | BC13: =+SUM('Trigo + Soja 2ª'!Q22:Q24,'Trigo + Soja 2ª'!Q37) -> 51.36 | BD13: =+SUM('Trigo + Soja 2ª'!R22:R24,'Trigo + Soja 2ª'!R37) -> 0 | BE13: =+SUM('Trigo + Soja 2ª'!S22:S24,'Trigo + Soja 2ª'!S37) -> 51.36 | BF13: =+SUM('Trigo + Soja 2ª'!T22:T24,'Trigo + Soja 2ª'!T37) -> 51.36 | BG13: =+SUM('Trigo + Soja 2ª'!U22:U24,'Trigo + Soja 2ª'!U37) -> 51.36 | BH13: =+SUM('Trigo + Soja 2ª'!V22:V24,'Trigo + Soja 2ª'!V37) -> 51.36 | BI13: =+SUM('Trigo + Soja 2ª'!W22:W24,'Trigo + Soja 2ª'!W37) -> 0 | BJ13: =+SUM('Trigo + Soja 2ª'!X22:X24,'Trigo + Soja 2ª'!X37) -> 0 | BK13: =+SUM('Trigo + Soja 2ª'!Y22:Y24,'Trigo + Soja 2ª'!Y37) -> 51.36 | BL13: =+SUM('Trigo + Soja 2ª'!Z22:Z24,'Trigo + Soja 2ª'!Z37) -> 51.36 | BM13: =+SUM('Trigo + Soja 2ª'!AA22:AA24,'Trigo + Soja 2ª'!AA37) -> 0 | BN13: =+SUM('Trigo + Soja 2ª'!AB22:AB24,'Trigo + Soja 2ª'!AB37) -> 51.36 | BO13: =+SUM('Trigo + Soja 2ª'!AC22:AC24,'Trigo + Soja 2ª'!AC37) -> 51.36 | BP13: =+SUM('Trigo + Soja 2ª'!AD22:AD24,'Trigo + Soja 2ª'!AD37) -> 51.36 | BQ13: =+SUM('Trigo + Soja 2ª'!AE22:AE24,'Trigo + Soja 2ª'!AE37) -> 51.36 | BR13: =+SUM('Trigo + Soja 2ª'!AF22:AF24,'Trigo + Soja 2ª'!AF37) -> 51.26460961
A14: Santa María | B14: 15.84596841 | C14: 34.49152542 | D14: 35 | F14: 90 | J14: 30 | K14: 6779 | L14: 86 | M14: 10669 | N14: 28 | O14: 4842 | AJ14: Santa María | AK14: 10.38452498 | AO14: Servicios de Cosecha | AR14: =+'Trigo + Soja 2ª'!F39 -> 57.41506468 | AS14: =+'Trigo + Soja 2ª'!G39 -> 0 | AT14: =+'Trigo + Soja 2ª'!H39 -> 57.41506468 | AU14: =+'Trigo + Soja 2ª'!I39 -> 0 | AV14: =+'Trigo + Soja 2ª'!J39 -> 57.41506468 | AW14: =+'Trigo + Soja 2ª'!K39 -> 57.41506468 | AX14: =+'Trigo + Soja 2ª'!L39 -> 0 | AY14: =+'Trigo + Soja 2ª'!M39 -> 57.41506468 | AZ14: =+'Trigo + Soja 2ª'!N39 -> 57.41506468 | BA14: =+'Trigo + Soja 2ª'!O39 -> 0 | BB14: =+'Trigo + Soja 2ª'!P39 -> 0 | BC14: =+'Trigo + Soja 2ª'!Q39 -> 57.41506468 | BD14: =+'Trigo + Soja 2ª'!R39 -> 0 | BE14: =+'Trigo + Soja 2ª'!S39 -> 57.41506468 | BF14: =+'Trigo + Soja 2ª'!T39 -> 57.41506468 | BG14: =+'Trigo + Soja 2ª'!U39 -> 57.41506468 | BH14: =+'Trigo + Soja 2ª'!V39 -> 57.41506468 | BI14: =+'Trigo + Soja 2ª'!W39 -> 0 | BJ14: =+'Trigo + Soja 2ª'!X39 -> 0 | BK14: =+'Trigo + Soja 2ª'!Y39 -> 57.41506468 | BL14: =+'Trigo + Soja 2ª'!Z39 -> 57.41506468 | BM14: =+'Trigo + Soja 2ª'!AA39 -> 0 | BN14: =+'Trigo + Soja 2ª'!AB39 -> 57.41506468 | BO14: =+'Trigo + Soja 2ª'!AC39 -> 57.41506468 | BP14: =+'Trigo + Soja 2ª'!AD39 -> 57.41506468 | BQ14: =+'Trigo + Soja 2ª'!AE39 -> 57.41506468 | BR14: =+'Trigo + Soja 2ª'!AF39 -> 57.41506468
A15: Tercero Arriba | B15: 18.4640396 | C15: 34.73694553 | D15: 30 | E15: 83 | F15: 91 | J15: 32 | K15: 6982 | L15: 90 | M15: 10970 | N15: 30 | O15: 4942 | AJ15: Tercero Arriba | AK15: 10.14023114 | AO15: Herbicida | AR15: =+SUM('Trigo + Soja 2ª'!F25:F27,'Trigo + Soja 2ª'!F32:F33) -> 11.23 | AS15: =+SUM('Trigo + Soja 2ª'!G25:G27,'Trigo + Soja 2ª'!G32:G33) -> 0 | AT15: =+SUM('Trigo + Soja 2ª'!H25:H27,'Trigo + Soja 2ª'!H32:H33) -> 11.23 | AU15: =+SUM('Trigo + Soja 2ª'!I25:I27,'Trigo + Soja 2ª'!I32:I33) -> 0 | AV15: =+SUM('Trigo + Soja 2ª'!J25:J27,'Trigo + Soja 2ª'!J32:J33) -> 11.23 | AW15: =+SUM('Trigo + Soja 2ª'!K25:K27,'Trigo + Soja 2ª'!K32:K33) -> 11.23 | AX15: =+SUM('Trigo + Soja 2ª'!L25:L27,'Trigo + Soja 2ª'!L32:L33) -> 0 | AY15: =+SUM('Trigo + Soja 2ª'!M25:M27,'Trigo + Soja 2ª'!M32:M33) -> 11.23 | AZ15: =+SUM('Trigo + Soja 2ª'!N25:N27,'Trigo + Soja 2ª'!N32:N33) -> 11.23 | BA15: =+SUM('Trigo + Soja 2ª'!O25:O27,'Trigo + Soja 2ª'!O32:O33) -> 0 | BB15: =+SUM('Trigo + Soja 2ª'!P25:P27,'Trigo + Soja 2ª'!P32:P33) -> 0 | BC15: =+SUM('Trigo + Soja 2ª'!Q25:Q27,'Trigo + Soja 2ª'!Q32:Q33) -> 11.23 | BD15: =+SUM('Trigo + Soja 2ª'!R25:R27,'Trigo + Soja 2ª'!R32:R33) -> 0 | BE15: =+SUM('Trigo + Soja 2ª'!S25:S27,'Trigo + Soja 2ª'!S32:S33) -> 11.23 | BF15: =+SUM('Trigo + Soja 2ª'!T25:T27,'Trigo + Soja 2ª'!T32:T33) -> 11.23 | BG15: =+SUM('Trigo + Soja 2ª'!U25:U27,'Trigo + Soja 2ª'!U32:U33) -> 11.23 | BH15: =+SUM('Trigo + Soja 2ª'!V25:V27,'Trigo + Soja 2ª'!V32:V33) -> 11.23 | BI15: =+SUM('Trigo + Soja 2ª'!W25:W27,'Trigo + Soja 2ª'!W32:W33) -> 0 | BJ15: =+SUM('Trigo + Soja 2ª'!X25:X27,'Trigo + Soja 2ª'!X32:X33) -> 0 | BK15: =+SUM('Trigo + Soja 2ª'!Y25:Y27,'Trigo + Soja 2ª'!Y32:Y33) -> 11.23 | BL15: =+SUM('Trigo + Soja 2ª'!Z25:Z27,'Trigo + Soja 2ª'!Z32:Z33) -> 11.23 | BM15: =+SUM('Trigo + Soja 2ª'!AA25:AA27,'Trigo + Soja 2ª'!AA32:AA33) -> 0 | BN15: =+SUM('Trigo + Soja 2ª'!AB25:AB27,'Trigo + Soja 2ª'!AB32:AB33) -> 11.23 | BO15: =+SUM('Trigo + Soja 2ª'!AC25:AC27,'Trigo + Soja 2ª'!AC32:AC33) -> 11.23 | BP15: =+SUM('Trigo + Soja 2ª'!AD25:AD27,'Trigo + Soja 2ª'!AD32:AD33) -> 11.23 | BQ15: =+SUM('Trigo + Soja 2ª'!AE25:AE27,'Trigo + Soja 2ª'!AE32:AE33) -> 11.23 | BR15: =+SUM('Trigo + Soja 2ª'!AF25:AF27,'Trigo + Soja 2ª'!AF32:AF33) -> 11.23
A16: Totoral | B16: 27.43928901 | C16: 32.43410405 | D16: 29.7 | E16: 82.5 | F16: 90 | J16: 34 | K16: 7197 | L16: 94 | M16: 11288 | N16: 32 | O16: 5046 | AJ16: Totoral | AK16: 8.838245498 | AO16: Fertilizantes | AR16: =+SUM('Trigo + Soja 2ª'!F30:F31) -> 15.02727273 | AS16: =+SUM('Trigo + Soja 2ª'!G30:G31) -> 0 | AT16: =+SUM('Trigo + Soja 2ª'!H30:H31) -> 51.82727273 | AU16: =+SUM('Trigo + Soja 2ª'!I30:I31) -> 0 | AV16: =+SUM('Trigo + Soja 2ª'!J30:J31) -> 63.72 | AW16: =+SUM('Trigo + Soja 2ª'!K30:K31) -> 80.43636364 | AX16: =+SUM('Trigo + Soja 2ª'!L30:L31) -> 0 | AY16: =+SUM('Trigo + Soja 2ª'!M30:M31) -> 77.33636364 | AZ16: =+SUM('Trigo + Soja 2ª'!N30:N31) -> 91.5 | BA16: =+SUM('Trigo + Soja 2ª'!O30:O31) -> 0 | BB16: =+SUM('Trigo + Soja 2ª'!P30:P31) -> 0 | BC16: =+SUM('Trigo + Soja 2ª'!Q30:Q31) -> 55.72 | BD16: =+SUM('Trigo + Soja 2ª'!R30:R31) -> 0 | BE16: =+SUM('Trigo + Soja 2ª'!S30:S31) -> 65.59090909 | BF16: =+SUM('Trigo + Soja 2ª'!T30:T31) -> 50.80909091 | BG16: =+SUM('Trigo + Soja 2ª'!U30:U31) -> 56.14 | BH16: =+SUM('Trigo + Soja 2ª'!V30:V31) -> 54.66363636 | BI16: =+SUM('Trigo + Soja 2ª'!W30:W31) -> 0 | BJ16: =+SUM('Trigo + Soja 2ª'!X30:X31) -> 0 | BK16: =+SUM('Trigo + Soja 2ª'!Y30:Y31) -> 65.00909091 | BL16: =+SUM('Trigo + Soja 2ª'!Z30:Z31) -> 52 | BM16: =+SUM('Trigo + Soja 2ª'!AA30:AA31) -> 0 | BN16: =+SUM('Trigo + Soja 2ª'!AB30:AB31) -> 48.61818182 | BO16: =+SUM('Trigo + Soja 2ª'!AC30:AC31) -> 49.01818182 | BP16: =+SUM('Trigo + Soja 2ª'!AD30:AD31) -> 57.24 | BQ16: =+SUM('Trigo + Soja 2ª'!AE30:AE31) -> 82.3 | BR16: =+SUM('Trigo + Soja 2ª'!AF30:AF31) -> 68.28439223
A17: Tulumba | B17: 9.131830411 | C17: 30 | D17: 27 | F17: 77.5 | J17: 36 | K17: 7426 | L17: 98 | M17: 11625 | N17: 34 | O17: 5154 | AJ17: Tulumba | AK17: 8.337468915 | AO17: Insecticidas | AR17: =+SUM('Trigo + Soja 2ª'!F35) -> 1.14575 | AS17: =+SUM('Trigo + Soja 2ª'!G35) -> 0 | AT17: =+SUM('Trigo + Soja 2ª'!H35) -> 1.14575 | AU17: =+SUM('Trigo + Soja 2ª'!I35) -> 0 | AV17: =+SUM('Trigo + Soja 2ª'!J35) -> 1.14575 | AW17: =+SUM('Trigo + Soja 2ª'!K35) -> 1.14575 | AX17: =+SUM('Trigo + Soja 2ª'!L35) -> 0 | AY17: =+SUM('Trigo + Soja 2ª'!M35) -> 1.14575 | AZ17: =+SUM('Trigo + Soja 2ª'!N35) -> 1.14575 | BA17: =+SUM('Trigo + Soja 2ª'!O35) -> 0 | BB17: =+SUM('Trigo + Soja 2ª'!P35) -> 0 | BC17: =+SUM('Trigo + Soja 2ª'!Q35) -> 1.14575 | BD17: =+SUM('Trigo + Soja 2ª'!R35) -> 0 | BE17: =+SUM('Trigo + Soja 2ª'!S35) -> 1.14575 | BF17: =+SUM('Trigo + Soja 2ª'!T35) -> 1.14575 | BG17: =+SUM('Trigo + Soja 2ª'!U35) -> 1.14575 | BH17: =+SUM('Trigo + Soja 2ª'!V35) -> 1.14575 | BI17: =+SUM('Trigo + Soja 2ª'!W35) -> 0 | BJ17: =+SUM('Trigo + Soja 2ª'!X35) -> 0 | BK17: =+SUM('Trigo + Soja 2ª'!Y35) -> 1.14575 | BL17: =+SUM('Trigo + Soja 2ª'!Z35) -> 1.14575 | BM17: =+SUM('Trigo + Soja 2ª'!AA35) -> 0 | BN17: =+SUM('Trigo + Soja 2ª'!AB35) -> 1.14575 | BO17: =+SUM('Trigo + Soja 2ª'!AC35) -> 1.14575 | BP17: =+SUM('Trigo + Soja 2ª'!AD35) -> 1.14575 | BQ17: =+SUM('Trigo + Soja 2ª'!AE35) -> 1.14575 | BR17: =+SUM('Trigo + Soja 2ª'!AF35) -> 1.14575
A18: Unión | B18: 22.00909872 | C18: 39.36875 | D18: 34.6 | E18: 106.5 | F18: 103.125 | J18: 38 | K18: 7669 | L18: 102 | M18: 11982 | N18: 36 | O18: 5267 | AJ18: Unión | AK18: 13.44922408 | AO18: Fungicidas | AR18: =+SUM('Trigo + Soja 2ª'!F34) -> 15.072 | AS18: =+SUM('Trigo + Soja 2ª'!G34) -> 0 | AT18: =+SUM('Trigo + Soja 2ª'!H34) -> 15.072 | AU18: =+SUM('Trigo + Soja 2ª'!I34) -> 0 | AV18: =+SUM('Trigo + Soja 2ª'!J34) -> 15.072 | AW18: =+SUM('Trigo + Soja 2ª'!K34) -> 15.072 | AX18: =+SUM('Trigo + Soja 2ª'!L34) -> 0 | AY18: =+SUM('Trigo + Soja 2ª'!M34) -> 15.072 | AZ18: =+SUM('Trigo + Soja 2ª'!N34) -> 15.072 | BA18: =+SUM('Trigo + Soja 2ª'!O34) -> 0 | BB18: =+SUM('Trigo + Soja 2ª'!P34) -> 0 | BC18: =+SUM('Trigo + Soja 2ª'!Q34) -> 15.072 | BD18: =+SUM('Trigo + Soja 2ª'!R34) -> 0 | BE18: =+SUM('Trigo + Soja 2ª'!S34) -> 15.072 | BF18: =+SUM('Trigo + Soja 2ª'!T34) -> 15.072 | BG18: =+SUM('Trigo + Soja 2ª'!U34) -> 15.072 | BH18: =+SUM('Trigo + Soja 2ª'!V34) -> 15.072 | BI18: =+SUM('Trigo + Soja 2ª'!W34) -> 0 | BJ18: =+SUM('Trigo + Soja 2ª'!X34) -> 0 | BK18: =+SUM('Trigo + Soja 2ª'!Y34) -> 15.072 | BL18: =+SUM('Trigo + Soja 2ª'!Z34) -> 15.072 | BM18: =+SUM('Trigo + Soja 2ª'!AA34) -> 0 | BN18: =+SUM('Trigo + Soja 2ª'!AB34) -> 15.072 | BO18: =+SUM('Trigo + Soja 2ª'!AC34) -> 15.072 | BP18: =+SUM('Trigo + Soja 2ª'!AD34) -> 15.072 | BQ18: =+SUM('Trigo + Soja 2ª'!AE34) -> 15.072 | BR18: =+SUM('Trigo + Soja 2ª'!AF34) -> 15.072
A19: PROVINCIA | B19: 18.58725877 | C19: 35.53947816 | D19: 30.02392162 | E19: 95.17311801 | F19: 88.48496603 | J19: 40 | K19: 7930 | L19: 106 | M19: 12363 | N19: 38 | O19: 5385 | S19: Departamento | T19: Distancia al puerto (Km) | AB19: Distancia al puerto (Km) | AC19: Costo del flete ($) | AJ19: PROVINCIA | AK19: 10.78 | AO19: Curasemilla + Inoculante | AR19: =+SUM('Trigo + Soja 2ª'!F29) -> 18.6207 | AS19: =+SUM('Trigo + Soja 2ª'!G29) -> 0 | AT19: =+SUM('Trigo + Soja 2ª'!H29) -> 18.6207 | AU19: =+SUM('Trigo + Soja 2ª'!I29) -> 0 | AV19: =+SUM('Trigo + Soja 2ª'!J29) -> 18.6207 | AW19: =+SUM('Trigo + Soja 2ª'!K29) -> 18.6207 | AX19: =+SUM('Trigo + Soja 2ª'!L29) -> 0 | AY19: =+SUM('Trigo + Soja 2ª'!M29) -> 18.6207 | AZ19: =+SUM('Trigo + Soja 2ª'!N29) -> 18.6207 | BA19: =+SUM('Trigo + Soja 2ª'!O29) -> 0 | BB19: =+SUM('Trigo + Soja 2ª'!P29) -> 0 | BC19: =+SUM('Trigo + Soja 2ª'!Q29) -> 18.6207 | BD19: =+SUM('Trigo + Soja 2ª'!R29) -> 0 | BE19: =+SUM('Trigo + Soja 2ª'!S29) -> 18.6207 | BF19: =+SUM('Trigo + Soja 2ª'!T29) -> 18.6207 | BG19: =+SUM('Trigo + Soja 2ª'!U29) -> 18.6207 | BH19: =+SUM('Trigo + Soja 2ª'!V29) -> 18.6207 | BI19: =+SUM('Trigo + Soja 2ª'!W29) -> 0 | BJ19: =+SUM('Trigo + Soja 2ª'!X29) -> 0 | BK19: =+SUM('Trigo + Soja 2ª'!Y29) -> 18.6207 | BL19: =+SUM('Trigo + Soja 2ª'!Z29) -> 18.6207 | BM19: =+SUM('Trigo + Soja 2ª'!AA29) -> 0 | BN19: =+SUM('Trigo + Soja 2ª'!AB29) -> 18.6207 | BO19: =+SUM('Trigo + Soja 2ª'!AC29) -> 18.6207 | BP19: =+SUM('Trigo + Soja 2ª'!AD29) -> 18.6207 | BQ19: =+SUM('Trigo + Soja 2ª'!AE29) -> 18.6207 | BR19: =+SUM('Trigo + Soja 2ª'!AF29) -> 18.6207
J20: 42 | K20: 8209 | L20: 110 | M20: 12768 | N20: 40 | O20: 5509 | AO20: Semillas | AR20: =+'Trigo + Soja 2ª'!F28 -> 56 | AS20: =+'Trigo + Soja 2ª'!G28 -> 0 | AT20: =+'Trigo + Soja 2ª'!H28 -> 36 | AU20: =+'Trigo + Soja 2ª'!I28 -> 0 | AV20: =+'Trigo + Soja 2ª'!J28 -> 46 | AW20: =+'Trigo + Soja 2ª'!K28 -> 40 | AX20: =+'Trigo + Soja 2ª'!L28 -> 0 | AY20: =+'Trigo + Soja 2ª'!M28 -> 40 | AZ20: =+'Trigo + Soja 2ª'!N28 -> 44 | BA20: =+'Trigo + Soja 2ª'!O28 -> 0 | BB20: =+'Trigo + Soja 2ª'!P28 -> 0 | BC20: =+'Trigo + Soja 2ª'!Q28 -> 46 | BD20: =+'Trigo + Soja 2ª'!R28 -> 0 | BE20: =+'Trigo + Soja 2ª'!S28 -> 46 | BF20: =+'Trigo + Soja 2ª'!T28 -> 38.8 | BG20: =+'Trigo + Soja 2ª'!U28 -> 52 | BH20: =+'Trigo + Soja 2ª'!V28 -> 38.8 | BI20: =+'Trigo + Soja 2ª'!W28 -> 0 | BJ20: =+'Trigo + Soja 2ª'!X28 -> 0 | BK20: =+'Trigo + Soja 2ª'!Y28 -> 42 | BL20: =+'Trigo + Soja 2ª'!Z28 -> 56 | BM20: =+'Trigo + Soja 2ª'!AA28 -> 0 | BN20: =+'Trigo + Soja 2ª'!AB28 -> 54 | BO20: =+'Trigo + Soja 2ª'!AC28 -> 52 | BP20: =+'Trigo + Soja 2ª'!AD28 -> 50 | BQ20: =+'Trigo + Soja 2ª'!AE28 -> 48 | BR20: =+'Trigo + Soja 2ª'!AF28 -> 43.64489294
J21: 44 | K21: 8508 | L21: 114 | M21: 13201 | N21: 42 | O21: 5638 | S21: Calamuchita | T21: 429 | AB21: 30 | AC21: 454.95264 | AO21: Total | AR21: =+SUM(AR13:AR20) -> 225.8707874 | AS21: =+SUM(AS13:AS20) -> 0 | AT21: 242.6707874 | AU21: 0 | AV21: 264.5635147 | AW21: 275.2798783 | AX21: 0 | AY21: 272.1798783 | AZ21: 290.3435147 | BA21: 0 | BB21: 0 | BC21: 256.5635147 | BD21: 0 | BE21: 266.4344238 | BF21: 244.4526056 | BG21: 262.9835147 | BH21: 248.307151 | BI21: 0 | BJ21: 0 | BK21: 261.8526056 | BL21: 262.8435147 | BM21: 0 | BN21: 257.4616965 | BO21: 255.8616965 | BP21: 262.0835147 | BQ21: 285.1435147 | BR21: 266.6774095
J22: 46 | K22: 8830 | L22: 118 | M22: 13664 | N22: 44 | O22: 5774 | S22: Capital | T22: 398 | AB22: 35 | AC22: 482.78328
J23: 48 | K23: 9177 | L23: 122 | M23: 14161 | N23: 46 | O23: 5916 | S23: Colón | T23: 447 | AB23: =+AB22+5 -> 40 | AC23: 513.21984 | AO23: Opciones avanzadas (completado por el usuario) | AP23: Mes de actualiz. | AQ23: Cantidades | AR23: Calamuchita | AS23: Capital | AT23: Colón | AU23: Cruz del Eje | AV23: Gral. Roca | AW23: Gral. San Martín | AX23: Ischilin | AY23: Juárez Celman | AZ23: Marcos Juárez | BA23: Minas | BB23: Pocho | BC23: Pte. R. Sáenz Peña | BD23: Punilla | BE23: Río Cuarto | BF23: Río Primero | BG23: Río Seco | BH23: Río Segundo | BI23: San Alberto | BJ23: San Javier | BK23: San Justo | BL23: Santa María | BM23: Sobremonte | BN23: Tercero Arriba | BO23: Totoral | BP23: Tulumba | BQ23: Unión | BR23: PROVINCIA
J24: 50 | K24: 9552 | L24: 126 | M24: 14696 | N24: 48 | O24: 6066 | S24: Cruz del Eje | T24: 536 | AB24: =+AB23+5 -> 45 | AC24: 546.438 | AO24: Servicios de Labranza | AP24: Estos datos son los ingresados en opciones avanzadas | AQ24: SOJA DE 2ª | AR24: =+SUM('Trigo + Soja 2ª'!F77:F78,'Trigo + Soja 2ª'!F88) -> 56.9 | AS24: =+SUM('Trigo + Soja 2ª'!G77:G78,'Trigo + Soja 2ª'!G88) -> 0 | AT24: =+SUM('Trigo + Soja 2ª'!H77:H78,'Trigo + Soja 2ª'!H88) -> 56.9 | AU24: =+SUM('Trigo + Soja 2ª'!I77:I78,'Trigo + Soja 2ª'!I88) -> 0 | AV24: =+SUM('Trigo + Soja 2ª'!J77:J78,'Trigo + Soja 2ª'!J88) -> 56.9 | AW24: =+SUM('Trigo + Soja 2ª'!K77:K78,'Trigo + Soja 2ª'!K88) -> 56.9 | AX24: =+SUM('Trigo + Soja 2ª'!L77:L78,'Trigo + Soja 2ª'!L88) -> 0 | AY24: =+SUM('Trigo + Soja 2ª'!M77:M78,'Trigo + Soja 2ª'!M88) -> 56.9 | AZ24: =+SUM('Trigo + Soja 2ª'!N77:N78,'Trigo + Soja 2ª'!N88) -> 56.9 | BA24: =+SUM('Trigo + Soja 2ª'!O77:O78,'Trigo + Soja 2ª'!O88) -> 0 | BB24: =+SUM('Trigo + Soja 2ª'!P77:P78,'Trigo + Soja 2ª'!P88) -> 0 | BC24: =+SUM('Trigo + Soja 2ª'!Q77:Q78,'Trigo + Soja 2ª'!Q88) -> 56.9 | BD24: =+SUM('Trigo + Soja 2ª'!R77:R78,'Trigo + Soja 2ª'!R88) -> 0 | BE24: =+SUM('Trigo + Soja 2ª'!S77:S78,'Trigo + Soja 2ª'!S88) -> 56.9 | BF24: =+SUM('Trigo + Soja 2ª'!T77:T78,'Trigo + Soja 2ª'!T88) -> 56.9 | BG24: =+SUM('Trigo + Soja 2ª'!U77:U78,'Trigo + Soja 2ª'!U88) -> 56.9 | BH24: =+SUM('Trigo + Soja 2ª'!V77:V78,'Trigo + Soja 2ª'!V88) -> 56.9 | BI24: =+SUM('Trigo + Soja 2ª'!W77:W78,'Trigo + Soja 2ª'!W88) -> 0 | BJ24: =+SUM('Trigo + Soja 2ª'!X77:X78,'Trigo + Soja 2ª'!X88) -> 0 | BK24: =+SUM('Trigo + Soja 2ª'!Y77:Y78,'Trigo + Soja 2ª'!Y88) -> 56.9 | BL24: =+SUM('Trigo + Soja 2ª'!Z77:Z78,'Trigo + Soja 2ª'!Z88) -> 56.9 | BM24: =+SUM('Trigo + Soja 2ª'!AA77:AA78,'Trigo + Soja 2ª'!AA88) -> 0 | BN24: =+SUM('Trigo + Soja 2ª'!AB77:AB78,'Trigo + Soja 2ª'!AB88) -> 56.9 | BO24: =+SUM('Trigo + Soja 2ª'!AC77:AC78,'Trigo + Soja 2ª'!AC88) -> 56.9 | BP24: =+SUM('Trigo + Soja 2ª'!AD77:AD78,'Trigo + Soja 2ª'!AD88) -> 56.9 | BQ24: =+SUM('Trigo + Soja 2ª'!AE77:AE78,'Trigo + Soja 2ª'!AE88) -> 56.9 | BR24: =+SUM('Trigo + Soja 2ª'!AF77:AF78,'Trigo + Soja 2ª'!AF88) -> 56.81112215
J25: =+J24+2 -> 52 | K25: =+K24+K24-K23+20 -> 9947 | L25: 130 | M25: 15272 | N25: 50 | O25: 6223 | S25: Gral. Roca | T25: 435 | AB25: 50 | AC25: 580.75416 | AO25: Servicios de Cosecha | AR25: =+'Trigo + Soja 2ª'!F90 -> 51.63202305 | AS25: =+'Trigo + Soja 2ª'!G90 -> 0 | AT25: =+'Trigo + Soja 2ª'!H90 -> 76.54285254 | AU25: =+'Trigo + Soja 2ª'!I90 -> 0 | AV25: =+'Trigo + Soja 2ª'!J90 -> 76.54285254 | AW25: =+'Trigo + Soja 2ª'!K90 -> 76.54285254 | AX25: =+'Trigo + Soja 2ª'!L90 -> 0 | AY25: =+'Trigo + Soja 2ª'!M90 -> 76.54285254 | AZ25: =+'Trigo + Soja 2ª'!N90 -> 76.54285254 | BA25: =+'Trigo + Soja 2ª'!O90 -> 0 | BB25: =+'Trigo + Soja 2ª'!P90 -> 0 | BC25: =+'Trigo + Soja 2ª'!Q90 -> 76.54285254 | BD25: =+'Trigo + Soja 2ª'!R90 -> 0 | BE25: =+'Trigo + Soja 2ª'!S90 -> 76.54285254 | BF25: =+'Trigo + Soja 2ª'!T90 -> 76.54285254 | BG25: =+'Trigo + Soja 2ª'!U90 -> 76.54285254 | BH25: =+'Trigo + Soja 2ª'!V90 -> 76.54285254 | BI25: =+'Trigo + Soja 2ª'!W90 -> 0 | BJ25: =+'Trigo + Soja 2ª'!X90 -> 0 | BK25: =+'Trigo + Soja 2ª'!Y90 -> 76.54285254 | BL25: =+'Trigo + Soja 2ª'!Z90 -> 76.54285254 | BM25: =+'Trigo + Soja 2ª'!AA90 -> 0 | BN25: =+'Trigo + Soja 2ª'!AB90 -> 76.54285254 | BO25: =+'Trigo + Soja 2ª'!AC90 -> 76.54285254 | BP25: =+'Trigo + Soja 2ª'!AD90 -> 76.54285254 | BQ25: =+'Trigo + Soja 2ª'!AE90 -> 76.54285254 | BR25: =+'Trigo + Soja 2ª'!AF90 -> 76.54285254
J26: =+J25+2 -> 54 | K26: =+K25+K25-K24+20 -> 10362 | L26: =+L25+4 -> 134 | M26: =+M25+M25-M24+26 -> 15874 | N26: =+N25+2 -> 52 | O26: =+O25+O25-O24+6 -> 6386 | S26: Gral. San Martín | T26: 250 | AB26: 55 | AC26: 606.91584 | AO26: Herbicida | AR26: =+SUM('Trigo + Soja 2ª'!F79,'Trigo + Soja 2ª'!F82:F83) -> 15.664 | AS26: =+SUM('Trigo + Soja 2ª'!G79,'Trigo + Soja 2ª'!G82:G83) -> 0 | AT26: =+SUM('Trigo + Soja 2ª'!H79,'Trigo + Soja 2ª'!H82:H83) -> 15.664 | AU26: =+SUM('Trigo + Soja 2ª'!I79,'Trigo + Soja 2ª'!I82:I83) -> 0 | AV26: =+SUM('Trigo + Soja 2ª'!J79,'Trigo + Soja 2ª'!J82:J83) -> 15.664 | AW26: =+SUM('Trigo + Soja 2ª'!K79,'Trigo + Soja 2ª'!K82:K83) -> 15.664 | AX26: =+SUM('Trigo + Soja 2ª'!L79,'Trigo + Soja 2ª'!L82:L83) -> 0 | AY26: =+SUM('Trigo + Soja 2ª'!M79,'Trigo + Soja 2ª'!M82:M83) -> 15.664 | AZ26: =+SUM('Trigo + Soja 2ª'!N79,'Trigo + Soja 2ª'!N82:N83) -> 15.664 | BA26: =+SUM('Trigo + Soja 2ª'!O79,'Trigo + Soja 2ª'!O82:O83) -> 0 | BB26: =+SUM('Trigo + Soja 2ª'!P79,'Trigo + Soja 2ª'!P82:P83) -> 0 | BC26: =+SUM('Trigo + Soja 2ª'!Q79,'Trigo + Soja 2ª'!Q82:Q83) -> 15.664 | BD26: =+SUM('Trigo + Soja 2ª'!R79,'Trigo + Soja 2ª'!R82:R83) -> 0 | BE26: =+SUM('Trigo + Soja 2ª'!S79,'Trigo + Soja 2ª'!S82:S83) -> 15.664 | BF26: =+SUM('Trigo + Soja 2ª'!T79,'Trigo + Soja 2ª'!T82:T83) -> 15.664 | BG26: =+SUM('Trigo + Soja 2ª'!U79,'Trigo + Soja 2ª'!U82:U83) -> 15.664 | BH26: =+SUM('Trigo + Soja 2ª'!V79,'Trigo + Soja 2ª'!V82:V83) -> 15.664 | BI26: =+SUM('Trigo + Soja 2ª'!W79,'Trigo + Soja 2ª'!W82:W83) -> 0 | BJ26: =+SUM('Trigo + Soja 2ª'!X79,'Trigo + Soja 2ª'!X82:X83) -> 0 | BK26: =+SUM('Trigo + Soja 2ª'!Y79,'Trigo + Soja 2ª'!Y82:Y83) -> 15.664 | BL26: =+SUM('Trigo + Soja 2ª'!Z79,'Trigo + Soja 2ª'!Z82:Z83) -> 15.664 | BM26: =+SUM('Trigo + Soja 2ª'!AA79,'Trigo + Soja 2ª'!AA82:AA83) -> 0 | BN26: =+SUM('Trigo + Soja 2ª'!AB79,'Trigo + Soja 2ª'!AB82:AB83) -> 15.664 | BO26: =+SUM('Trigo + Soja 2ª'!AC79,'Trigo + Soja 2ª'!AC82:AC83) -> 15.664 | BP26: =+SUM('Trigo + Soja 2ª'!AD79,'Trigo + Soja 2ª'!AD82:AD83) -> 15.664 | BQ26: =+SUM('Trigo + Soja 2ª'!AE79,'Trigo + Soja 2ª'!AE82:AE83) -> 15.664 | BR26: =+SUM('Trigo + Soja 2ª'!AF79,'Trigo + Soja 2ª'!AF82:AF83) -> 15.63535772
J27: =+J26+2 -> 56 | K27: =+K26+K26-K25+20 -> 10797 | L27: =+L26+4 -> 138 | M27: =+M26+M26-M25+28 -> 16504 | N27: =+N26+2 -> 54 | O27: =+O26+O26-O25+6 -> 6555 | S27: Ischilín | T27: 517 | AB27: 60 | AC27: 634.36584 | AO27: Fertilizantes | AR27: 0 | AS27: 0 | AT27: 0 | AU27: 0 | AV27: 0 | AW27: 0 | AX27: 0 | AY27: 0 | AZ27: 0 | BA27: 0 | BB27: 0 | BC27: 0 | BD27: 0 | BE27: 0 | BF27: 0 | BG27: 0 | BH27: 0 | BI27: 0 | BJ27: 0 | BK27: 0 | BL27: 0 | BM27: 0 | BN27: 0 | BO27: 0 | BP27: 0 | BQ27: 0 | BR27: 0
A28: Estructura de Producción | B28: Soja 1ª | C28: Trigo | D28: Soja 2ª | E28: Maíz Temprano | F28: Maíz Tardío | N28: =+N27+2 -> 56 | O28: =+O27+O27-O26+7 -> 6731 | S28: Juárez Celman | T28: 269 | AB28: 65 | AC28: 664.49496 | AO28: Insecticidas | AR28: =+SUM('Trigo + Soja 2ª'!F84:F85) -> 17.528 | AS28: =+SUM('Trigo + Soja 2ª'!G84:G85) -> 0 | AT28: =+SUM('Trigo + Soja 2ª'!H84:H85) -> 17.528 | AU28: =+SUM('Trigo + Soja 2ª'!I84:I85) -> 0 | AV28: =+SUM('Trigo + Soja 2ª'!J84:J85) -> 17.528 | AW28: =+SUM('Trigo + Soja 2ª'!K84:K85) -> 17.528 | AX28: =+SUM('Trigo + Soja 2ª'!L84:L85) -> 0 | AY28: =+SUM('Trigo + Soja 2ª'!M84:M85) -> 17.528 | AZ28: =+SUM('Trigo + Soja 2ª'!N84:N85) -> 17.528 | BA28: =+SUM('Trigo + Soja 2ª'!O84:O85) -> 0 | BB28: =+SUM('Trigo + Soja 2ª'!P84:P85) -> 0 | BC28: =+SUM('Trigo + Soja 2ª'!Q84:Q85) -> 17.528 | BD28: =+SUM('Trigo + Soja 2ª'!R84:R85) -> 0 | BE28: =+SUM('Trigo + Soja 2ª'!S84:S85) -> 17.528 | BF28: =+SUM('Trigo + Soja 2ª'!T84:T85) -> 17.528 | BG28: =+SUM('Trigo + Soja 2ª'!U84:U85) -> 17.528 | BH28: =+SUM('Trigo + Soja 2ª'!V84:V85) -> 17.528 | BI28: =+SUM('Trigo + Soja 2ª'!W84:W85) -> 0 | BJ28: =+SUM('Trigo + Soja 2ª'!X84:X85) -> 0 | BK28: =+SUM('Trigo + Soja 2ª'!Y84:Y85) -> 17.528 | BL28: =+SUM('Trigo + Soja 2ª'!Z84:Z85) -> 17.528 | BM28: =+SUM('Trigo + Soja 2ª'!AA84:AA85) -> 0 | BN28: =+SUM('Trigo + Soja 2ª'!AB84:AB85) -> 17.528 | BO28: =+SUM('Trigo + Soja 2ª'!AC84:AC85) -> 17.528 | BP28: =+SUM('Trigo + Soja 2ª'!AD84:AD85) -> 17.528 | BQ28: =+SUM('Trigo + Soja 2ª'!AE84:AE85) -> 17.528 | BR28: =+SUM('Trigo + Soja 2ª'!AF84:AF85) -> 17.528
A29: Rendimiento | B29: =+'Calculadora BCCBA'!G4 -> 35.53947816 | C29: =+'Calculadora BCCBA'!M5 -> 18.58725877 | D29: =+'Calculadora BCCBA'!M7 -> 28.55978319 | E29: =+'Calculadora BCCBA'!I4 -> 95.17311801 | F29: =+'Calculadora BCCBA'!J4 -> 88.48496603 | S29: Marcos Juárez | T29: 135 | AB29: 70 | AC29: 695.28288 | AO29: Fungicidas | AR29: =+'Trigo + Soja 2ª'!F86 -> 12 | AS29: =+'Trigo + Soja 2ª'!G86 -> 0 | AT29: =+'Trigo + Soja 2ª'!H86 -> 12 | AU29: =+'Trigo + Soja 2ª'!I86 -> 0 | AV29: =+'Trigo + Soja 2ª'!J86 -> 12 | AW29: =+'Trigo + Soja 2ª'!K86 -> 12 | AX29: =+'Trigo + Soja 2ª'!L86 -> 0 | AY29: =+'Trigo + Soja 2ª'!M86 -> 12 | AZ29: =+'Trigo + Soja 2ª'!N86 -> 12 | BA29: =+'Trigo + Soja 2ª'!O86 -> 0 | BB29: =+'Trigo + Soja 2ª'!P86 -> 0 | BC29: =+'Trigo + Soja 2ª'!Q86 -> 12 | BD29: =+'Trigo + Soja 2ª'!R86 -> 0 | BE29: =+'Trigo + Soja 2ª'!S86 -> 12 | BF29: =+'Trigo + Soja 2ª'!T86 -> 12 | BG29: =+'Trigo + Soja 2ª'!U86 -> 12 | BH29: =+'Trigo + Soja 2ª'!V86 -> 12 | BI29: =+'Trigo + Soja 2ª'!W86 -> 0 | BJ29: =+'Trigo + Soja 2ª'!X86 -> 0 | BK29: =+'Trigo + Soja 2ª'!Y86 -> 12 | BL29: =+'Trigo + Soja 2ª'!Z86 -> 12 | BM29: =+'Trigo + Soja 2ª'!AA86 -> 0 | BN29: =+'Trigo + Soja 2ª'!AB86 -> 12 | BO29: =+'Trigo + Soja 2ª'!AC86 -> 12 | BP29: =+'Trigo + Soja 2ª'!AD86 -> 12 | BQ29: =+'Trigo + Soja 2ª'!AE86 -> 12 | BR29: =+'Trigo + Soja 2ª'!AF86 -> 12
A30: Gastos Portuarios | B30: 12.9 | C30: 10.8 | D30: =+B30 -> 12.9 | E30: 9.6 | F30: 9.6 | S30: Minas | T30: 588 | AB30: 75 | AC30: 729.54048 | AO30: Curasemilla + Inoculante | AR30: =+'Trigo + Soja 2ª'!F81 -> 5.92 | AS30: =+'Trigo + Soja 2ª'!G81 -> 0 | AT30: =+'Trigo + Soja 2ª'!H81 -> 5.92 | AU30: =+'Trigo + Soja 2ª'!I81 -> 0 | AV30: =+'Trigo + Soja 2ª'!J81 -> 5.92 | AW30: =+'Trigo + Soja 2ª'!K81 -> 5.92 | AX30: =+'Trigo + Soja 2ª'!L81 -> 0 | AY30: =+'Trigo + Soja 2ª'!M81 -> 5.92 | AZ30: =+'Trigo + Soja 2ª'!N81 -> 5.92 | BA30: =+'Trigo + Soja 2ª'!O81 -> 0 | BB30: =+'Trigo + Soja 2ª'!P81 -> 0 | BC30: =+'Trigo + Soja 2ª'!Q81 -> 5.92 | BD30: =+'Trigo + Soja 2ª'!R81 -> 0 | BE30: =+'Trigo + Soja 2ª'!S81 -> 5.92 | BF30: =+'Trigo + Soja 2ª'!T81 -> 5.92 | BG30: =+'Trigo + Soja 2ª'!U81 -> 5.92 | BH30: =+'Trigo + Soja 2ª'!V81 -> 5.92 | BI30: =+'Trigo + Soja 2ª'!W81 -> 0 | BJ30: =+'Trigo + Soja 2ª'!X81 -> 0 | BK30: =+'Trigo + Soja 2ª'!Y81 -> 5.92 | BL30: =+'Trigo + Soja 2ª'!Z81 -> 5.92 | BM30: =+'Trigo + Soja 2ª'!AA81 -> 0 | BN30: =+'Trigo + Soja 2ª'!AB81 -> 5.92 | BO30: =+'Trigo + Soja 2ª'!AC81 -> 5.92 | BP30: =+'Trigo + Soja 2ª'!AD81 -> 5.92 | BQ30: =+'Trigo + Soja 2ª'!AE81 -> 5.92 | BR30: =+'Trigo + Soja 2ª'!AF81 -> 5.92
A31: Precio FOB - Gastos Portuarios | B31: =+'Calculadora BCCBA'!C12-B30 -> 331.4692317 | C31: =+'Calculadora BCCBA'!C11-C30 -> 210.86 | D31: =+B31 -> 331.4692317 | E31: =+'Calculadora BCCBA'!C13-Listas!E30 -> 200.3404242 | F31: =+'Calculadora BCCBA'!C14-Listas!F30 -> 179.31 | S31: Pocho | T31: 571 | AB31: 80 | AC31: 752.21784 | AO31: Semillas | AR31: =+'Trigo + Soja 2ª'!F80 -> 49.6 | AS31: =+'Trigo + Soja 2ª'!G80 -> 0 | AT31: =+'Trigo + Soja 2ª'!H80 -> 49.6 | AU31: =+'Trigo + Soja 2ª'!I80 -> 0 | AV31: =+'Trigo + Soja 2ª'!J80 -> 49.6 | AW31: =+'Trigo + Soja 2ª'!K80 -> 49.6 | AX31: =+'Trigo + Soja 2ª'!L80 -> 0 | AY31: =+'Trigo + Soja 2ª'!M80 -> 49.6 | AZ31: =+'Trigo + Soja 2ª'!N80 -> 49.6 | BA31: =+'Trigo + Soja 2ª'!O80 -> 0 | BB31: =+'Trigo + Soja 2ª'!P80 -> 0 | BC31: =+'Trigo + Soja 2ª'!Q80 -> 49.6 | BD31: =+'Trigo + Soja 2ª'!R80 -> 0 | BE31: =+'Trigo + Soja 2ª'!S80 -> 49.6 | BF31: =+'Trigo + Soja 2ª'!T80 -> 49.6 | BG31: =+'Trigo + Soja 2ª'!U80 -> 49.6 | BH31: =+'Trigo + Soja 2ª'!V80 -> 49.6 | BI31: =+'Trigo + Soja 2ª'!W80 -> 0 | BJ31: =+'Trigo + Soja 2ª'!X80 -> 0 | BK31: =+'Trigo + Soja 2ª'!Y80 -> 49.6 | BL31: =+'Trigo + Soja 2ª'!Z80 -> 49.6 | BM31: =+'Trigo + Soja 2ª'!AA80 -> 0 | BN31: =+'Trigo + Soja 2ª'!AB80 -> 49.6 | BO31: =+'Trigo + Soja 2ª'!AC80 -> 49.6 | BP31: =+'Trigo + Soja 2ª'!AD80 -> 49.6 | BQ31: =+'Trigo + Soja 2ª'!AE80 -> 49.6 | BR31: =+'Trigo + Soja 2ª'!AF80 -> 49.42779916
A32: Precio FOB - Gastos Portuarios - Ret. | B32: =+'Calculadora BCCBA'!G5 -> 344.3692317 | C32: =+'Trigo + Soja 2ª'!E143 -> 221.66 | D32: =+'Trigo + Soja 2ª'!E144 -> 344.3692317 | E32: =+'Calculadora BCCBA'!I5 -> 209.9404242 | F32: =+'Calculadora BCCBA'!J5 -> 188.91 | S32: Pte. Roque Sáenz Peña | T32: 321 | AB32: 85 | AC32: 791.8044 | AO32: Total | AR32: =+SUM(AR24:AR31) -> 209.2440231 | AS32: =+SUM(AS24:AS31) -> 0 | AT32: 234.1548525 | AU32: 0 | AV32: 234.1548525 | AW32: 234.1548525 | AX32: 0 | AY32: 234.1548525 | AZ32: 234.1548525 | BA32: 0 | BB32: 0 | BC32: 234.1548525 | BD32: 0 | BE32: 234.1548525 | BF32: 234.1548525 | BG32: 234.1548525 | BH32: 234.1548525 | BI32: 0 | BJ32: 0 | BK32: 234.1548525 | BL32: 234.1548525 | BM32: 0 | BN32: 234.1548525 | BO32: 234.1548525 | BP32: 234.1548525 | BQ32: 234.1548525 | BR32: 233.8651316
A33: Impuesto arancelario | B33: ='Calculadora BCCBA'!#REF!*'Calculadora BCCBA'!C12*B29/10 ->  | C33: - | D33: ='Calculadora BCCBA'!C12*'Calculadora BCCBA'!#REF!*D29/10+'Calculadora BCCBA'!C11*'Calculadora BCCBA'!#REF!*C29/10 ->  | E33: ='Calculadora BCCBA'!C13*'Calculadora BCCBA'!#REF!*E29/10 ->  | F33: ='Calculadora BCCBA'!C14*'Calculadora BCCBA'!#REF!*F29/10 ->  | S33: Punilla | T33: 453 | AB33: 90 | AC33: 819.31296
A34: Costos Directos | B34: =+'Calculadora BCCBA'!G7 -> 280.3299978 | C34: - | D34: =+'Calculadora BCCBA'!H7 -> 500.542541 | E34: =+'Calculadora BCCBA'!I7 -> 422.6331037 | F34: =+'Calculadora BCCBA'!J7 -> 431.1135336 | S34: Río Cuarto | T34: 380 | AB34: 95 | AC34: 849.23712 | AO34: Opciones avanzadas (completado por el usuario) | AP34: Mes de actualiz. | AQ34: Cantidades | AR34: Calamuchita | AS34: Capital | AT34: Colón | AU34: Cruz del Eje | AV34: Gral. Roca | AW34: Gral. San Martín | AX34: Ischilin | AY34: Juárez Celman | AZ34: Marcos Juárez | BA34: Minas | BB34: Pocho | BC34: Pte. R. Sáenz Peña | BD34: Punilla | BE34: Río Cuarto | BF34: Río Primero | BG34: Río Seco | BH34: Río Segundo | BI34: San Alberto | BJ34: San Javier | BK34: San Justo | BL34: Santa María | BM34: Sobremonte | BN34: Tercero Arriba | BO34: Totoral | BP34: Tulumba | BQ34: Unión | BR34: PROVINCIA
A35: Gastos Comerciales | B35: =+'Calculadora BCCBA'!G8 -> 135.1822427 | C35: - | D35: =+'Calculadora BCCBA'!H8 -> 162.5642707 | E35: =+'Calculadora BCCBA'!I8 -> 314.9842926 | F35: =+'Calculadora BCCBA'!J8 -> 326.6519093 | S35: Río Primero | T35: 407 | AB35: 100 | AC35: 882.19176 | AO35: Servicios de Labranza | AP35: Estos datos son los ingresados en opciones avanzadas | AQ35: MAÍZ TEMPRANO | AR35: =+SUM('Maíz temprano'!F22:F23,'Maíz temprano'!F37) -> 46.2 | AS35: =+SUM('Maíz temprano'!G22:G23,'Maíz temprano'!G37) -> 0 | AT35: =+SUM('Maíz temprano'!H22:H23,'Maíz temprano'!H37) -> 46.2 | AU35: =+SUM('Maíz temprano'!I22:I23,'Maíz temprano'!I37) -> 0 | AV35: =+SUM('Maíz temprano'!J22:J23,'Maíz temprano'!J37) -> 46.2 | AW35: =+SUM('Maíz temprano'!K22:K23,'Maíz temprano'!K37) -> 46.2 | AX35: =+SUM('Maíz temprano'!L22:L23,'Maíz temprano'!L37) -> 0 | AY35: =+SUM('Maíz temprano'!M22:M23,'Maíz temprano'!M37) -> 46.2 | AZ35: =+SUM('Maíz temprano'!N22:N23,'Maíz temprano'!N37) -> 46.2 | BA35: =+SUM('Maíz temprano'!O22:O23,'Maíz temprano'!O37) -> 0 | BB35: =+SUM('Maíz temprano'!P22:P23,'Maíz temprano'!P37) -> 0 | BC35: =+SUM('Maíz temprano'!Q22:Q23,'Maíz temprano'!Q37) -> 46.2 | BD35: =+SUM('Maíz temprano'!R22:R23,'Maíz temprano'!R37) -> 0 | BE35: =+SUM('Maíz temprano'!S22:S23,'Maíz temprano'!S37) -> 46.2 | BF35: =+SUM('Maíz temprano'!T22:T23,'Maíz temprano'!T37) -> 46.2 | BG35: =+SUM('Maíz temprano'!U22:U23,'Maíz temprano'!U37) -> 46.2 | BH35: =+SUM('Maíz temprano'!V22:V23,'Maíz temprano'!V37) -> 46.2 | BI35: =+SUM('Maíz temprano'!W22:W23,'Maíz temprano'!W37) -> 0 | BJ35: =+SUM('Maíz temprano'!X22:X23,'Maíz temprano'!X37) -> 0 | BK35: =+SUM('Maíz temprano'!Y22:Y23,'Maíz temprano'!Y37) -> 46.2 | BL35: =+SUM('Maíz temprano'!Z22:Z23,'Maíz temprano'!Z37) -> 46.2 | BM35: =+SUM('Maíz temprano'!AA22:AA23,'Maíz temprano'!AA37) -> 0 | BN35: =+SUM('Maíz temprano'!AB22:AB23,'Maíz temprano'!AB37) -> 46.2 | BO35: =+SUM('Maíz temprano'!AC22:AC23,'Maíz temprano'!AC37) -> 46.2 | BP35: =+SUM('Maíz temprano'!AD22:AD23,'Maíz temprano'!AD37) -> 46.2 | BQ35: =+SUM('Maíz temprano'!AE22:AE23,'Maíz temprano'!AE37) -> 46.2 | BR35: =+SUM('Maíz temprano'!AF22:AF23,'Maíz temprano'!AF37) -> 46.2
A36: Costo de Arrendamiento | B36: =+HLOOKUP('Calculadora BCCBA'!$B$1,'Soja 1ª'!$F$67:$AF$69,3,FALSE) -> 371.2300318 | C36: - | D36: =+HLOOKUP('Calculadora BCCBA'!B1,'Trigo + Soja 2ª'!$F$114:$AF$116,3,FALSE) -> 371.2300318 | E36: =+HLOOKUP('Calculadora BCCBA'!B1,'Maíz temprano'!F62:AF64,3,FALSE) -> 371.2300318 | F36: =+HLOOKUP('Calculadora BCCBA'!B1,'Maíz tardío'!F62:AF64,3,FALSE) -> 371.2300318 | S36: Río Seco | T36: 575 | AB36: 105 | AC36: 902.89272 | AO36: Servicios de Cosecha | AR36: =+'Maíz temprano'!F39 -> 114.4881037 | AS36: =+'Maíz temprano'!G39 -> 0 | AT36: =+'Maíz temprano'!H39 -> 114.4881037 | AU36: =+'Maíz temprano'!I39 -> 0 | AV36: =+'Maíz temprano'!J39 -> 114.4881037 | AW36: =+'Maíz temprano'!K39 -> 114.4881037 | AX36: =+'Maíz temprano'!L39 -> 0 | AY36: =+'Maíz temprano'!M39 -> 114.4881037 | AZ36: =+'Maíz temprano'!N39 -> 114.4881037 | BA36: =+'Maíz temprano'!O39 -> 0 | BB36: =+'Maíz temprano'!P39 -> 0 | BC36: =+'Maíz temprano'!Q39 -> 114.4881037 | BD36: =+'Maíz temprano'!R39 -> 0 | BE36: =+'Maíz temprano'!S39 -> 114.4881037 | BF36: =+'Maíz temprano'!T39 -> 114.4881037 | BG36: =+'Maíz temprano'!U39 -> 114.4881037 | BH36: =+'Maíz temprano'!V39 -> 114.4881037 | BI36: =+'Maíz temprano'!W39 -> 0 | BJ36: =+'Maíz temprano'!X39 -> 0 | BK36: =+'Maíz temprano'!Y39 -> 114.4881037 | BL36: =+'Maíz temprano'!Z39 -> 114.4881037 | BM36: =+'Maíz temprano'!AA39 -> 0 | BN36: =+'Maíz temprano'!AB39 -> 114.4881037 | BO36: =+'Maíz temprano'!AC39 -> 114.4881037 | BP36: =+'Maíz temprano'!AD39 -> 114.4881037 | BQ36: =+'Maíz temprano'!AE39 -> 114.4881037 | BR36: =+'Maíz temprano'!AF39 -> 114.4881037
A37: Otros Costos Indirectos | B37: =+'Calculadora BCCBA'!G11-Listas!B36 -> 71.22940608 | C37: - | D37: =+'Calculadora BCCBA'!H11-Listas!D36 -> 111.1733947 | E37: =+'Calculadora BCCBA'!I11-Listas!E36 -> 82.98245691 | F37: =+'Calculadora BCCBA'!J11-Listas!F36 -> 86.93210775 | S37: Río Segundo | T37: 348 | AB37: 110 | AC37: 923.47656 | AO37: Herbicida | AR37: =+SUM('Maíz temprano'!F24:F27,'Maíz temprano'!F33,'Maíz temprano'!F35) -> 39.2 | AS37: =+SUM('Maíz temprano'!G24:G27,'Maíz temprano'!G33,'Maíz temprano'!G35) -> 0 | AT37: =+SUM('Maíz temprano'!H24:H27,'Maíz temprano'!H33,'Maíz temprano'!H35) -> 39.2 | AU37: =+SUM('Maíz temprano'!I24:I27,'Maíz temprano'!I33,'Maíz temprano'!I35) -> 0 | AV37: =+SUM('Maíz temprano'!J24:J27,'Maíz temprano'!J33,'Maíz temprano'!J35) -> 39.2 | AW37: =+SUM('Maíz temprano'!K24:K27,'Maíz temprano'!K33,'Maíz temprano'!K35) -> 39.2 | AX37: =+SUM('Maíz temprano'!L24:L27,'Maíz temprano'!L33,'Maíz temprano'!L35) -> 0 | AY37: =+SUM('Maíz temprano'!M24:M27,'Maíz temprano'!M33,'Maíz temprano'!M35) -> 39.2 | AZ37: =+SUM('Maíz temprano'!N24:N27,'Maíz temprano'!N33,'Maíz temprano'!N35) -> 39.2 | BA37: =+SUM('Maíz temprano'!O24:O27,'Maíz temprano'!O33,'Maíz temprano'!O35) -> 0 | BB37: =+SUM('Maíz temprano'!P24:P27,'Maíz temprano'!P33,'Maíz temprano'!P35) -> 0 | BC37: =+SUM('Maíz temprano'!Q24:Q27,'Maíz temprano'!Q33,'Maíz temprano'!Q35) -> 39.2 | BD37: =+SUM('Maíz temprano'!R24:R27,'Maíz temprano'!R33,'Maíz temprano'!R35) -> 0 | BE37: =+SUM('Maíz temprano'!S24:S27,'Maíz temprano'!S33,'Maíz temprano'!S35) -> 39.2 | BF37: =+SUM('Maíz temprano'!T24:T27,'Maíz temprano'!T33,'Maíz temprano'!T35) -> 39.2 | BG37: =+SUM('Maíz temprano'!U24:U27,'Maíz temprano'!U33,'Maíz temprano'!U35) -> 39.2 | BH37: =+SUM('Maíz temprano'!V24:V27,'Maíz temprano'!V33,'Maíz temprano'!V35) -> 39.2 | BI37: =+SUM('Maíz temprano'!W24:W27,'Maíz temprano'!W33,'Maíz temprano'!W35) -> 0 | BJ37: =+SUM('Maíz temprano'!X24:X27,'Maíz temprano'!X33,'Maíz temprano'!X35) -> 0 | BK37: =+SUM('Maíz temprano'!Y24:Y27,'Maíz temprano'!Y33,'Maíz temprano'!Y35) -> 39.2 | BL37: =+SUM('Maíz temprano'!Z24:Z27,'Maíz temprano'!Z33,'Maíz temprano'!Z35) -> 39.2 | BM37: =+SUM('Maíz temprano'!AA24:AA27,'Maíz temprano'!AA33,'Maíz temprano'!AA35) -> 0 | BN37: =+SUM('Maíz temprano'!AB24:AB27,'Maíz temprano'!AB33,'Maíz temprano'!AB35) -> 39.2 | BO37: =+SUM('Maíz temprano'!AC24:AC27,'Maíz temprano'!AC33,'Maíz temprano'!AC35) -> 39.2 | BP37: =+SUM('Maíz temprano'!AD24:AD27,'Maíz temprano'!AD33,'Maíz temprano'!AD35) -> 39.2 | BQ37: =+SUM('Maíz temprano'!AE24:AE27,'Maíz temprano'!AE33,'Maíz temprano'!AE35) -> 39.2 | BR37: =+SUM('Maíz temprano'!AF24:AF27,'Maíz temprano'!AF33,'Maíz temprano'!AF35) -> 39.2
A38: Impuesto ganancia + otros | B38: =+'Calculadora BCCBA'!G13 -> 89.53747574 | C38: - | D38: =+'Calculadora BCCBA'!H13 -> 97.84645819 | E38: =+'Calculadora BCCBA'!I13 -> 152.5158715 | F38: =+'Calculadora BCCBA'!J13 -> 97.12541921 | S38: San Alberto | T38: 519 | AB38: 115 | AC38: 944.11896 | AO38: Fertilizantes | AR38: =+SUM('Maíz temprano'!F30:F32) -> 100.1 | AS38: =+SUM('Maíz temprano'!G30:G32) -> 0 | AT38: =+SUM('Maíz temprano'!H30:H32) -> 100.1 | AU38: =+SUM('Maíz temprano'!I30:I32) -> 0 | AV38: =+SUM('Maíz temprano'!J30:J32) -> 100.1 | AW38: =+SUM('Maíz temprano'!K30:K32) -> 100.1 | AX38: =+SUM('Maíz temprano'!L30:L32) -> 0 | AY38: =+SUM('Maíz temprano'!M30:M32) -> 100.1 | AZ38: =+SUM('Maíz temprano'!N30:N32) -> 100.1 | BA38: =+SUM('Maíz temprano'!O30:O32) -> 0 | BB38: =+SUM('Maíz temprano'!P30:P32) -> 0 | BC38: =+SUM('Maíz temprano'!Q30:Q32) -> 100.1 | BD38: =+SUM('Maíz temprano'!R30:R32) -> 0 | BE38: =+SUM('Maíz temprano'!S30:S32) -> 100.1 | BF38: =+SUM('Maíz temprano'!T30:T32) -> 100.1 | BG38: =+SUM('Maíz temprano'!U30:U32) -> 100.1 | BH38: =+SUM('Maíz temprano'!V30:V32) -> 100.1 | BI38: =+SUM('Maíz temprano'!W30:W32) -> 0 | BJ38: =+SUM('Maíz temprano'!X30:X32) -> 0 | BK38: =+SUM('Maíz temprano'!Y30:Y32) -> 100.1 | BL38: =+SUM('Maíz temprano'!Z30:Z32) -> 100.1 | BM38: =+SUM('Maíz temprano'!AA30:AA32) -> 0 | BN38: =+SUM('Maíz temprano'!AB30:AB32) -> 100.1 | BO38: =+SUM('Maíz temprano'!AC30:AC32) -> 100.1 | BP38: =+SUM('Maíz temprano'!AD30:AD32) -> 100.1 | BQ38: =+SUM('Maíz temprano'!AE30:AE32) -> 100.1 | BR38: =+SUM('Maíz temprano'!AF30:AF32) -> 100.1
A39: Intereses sobre el Cap. Inv. | B39: =+'Calculadora BCCBA'!G15 -> 0.8031174748 | C39: - | D39: =+'Calculadora BCCBA'!H15 -> 1.729164428 | E39: =+'Calculadora BCCBA'!I15 -> 1.111771338 | F39: =+'Calculadora BCCBA'!J15 -> 1.280603566 | S39: San Javier | T39: 565 | AB39: 120 | AC39: 964.76136 | AO39: Insecticidas | AR39: =+'Maíz temprano'!F34 -> 1.145 | AS39: =+'Maíz temprano'!G34 -> 0 | AT39: =+'Maíz temprano'!H34 -> 1.145 | AU39: =+'Maíz temprano'!I34 -> 0 | AV39: =+'Maíz temprano'!J34 -> 1.145 | AW39: =+'Maíz temprano'!K34 -> 1.145 | AX39: =+'Maíz temprano'!L34 -> 0 | AY39: =+'Maíz temprano'!M34 -> 1.145 | AZ39: =+'Maíz temprano'!N34 -> 1.145 | BA39: =+'Maíz temprano'!O34 -> 0 | BB39: =+'Maíz temprano'!P34 -> 0 | BC39: =+'Maíz temprano'!Q34 -> 1.145 | BD39: =+'Maíz temprano'!R34 -> 0 | BE39: =+'Maíz temprano'!S34 -> 1.145 | BF39: =+'Maíz temprano'!T34 -> 1.145 | BG39: =+'Maíz temprano'!U34 -> 1.145 | BH39: =+'Maíz temprano'!V34 -> 1.145 | BI39: =+'Maíz temprano'!W34 -> 0 | BJ39: =+'Maíz temprano'!X34 -> 0 | BK39: =+'Maíz temprano'!Y34 -> 1.145 | BL39: =+'Maíz temprano'!Z34 -> 1.145 | BM39: =+'Maíz temprano'!AA34 -> 0 | BN39: =+'Maíz temprano'!AB34 -> 1.145 | BO39: =+'Maíz temprano'!AC34 -> 1.145 | BP39: =+'Maíz temprano'!AD34 -> 1.145 | BQ39: =+'Maíz temprano'!AE34 -> 1.145 | BR39: =+'Maíz temprano'!AF34 -> 1.145
A40: Resultado del productor | B40: =+'Calculadora BCCBA'!G16 -> 148.6020007 | C40: - | D40: =+'Calculadora BCCBA'!H16 -> 150.4303767 | E40: =+'Calculadora BCCBA'!I16 -> 267.7881633 | F40: =+'Calculadora BCCBA'!J16 -> 145.5438367 | S40: San Justo | T40: 252 | AB40: 125 | AC40: 985.40376 | AO40: Fungicidas | AR40: 0 | AS40: 0 | AT40: 0 | AU40: 0 | AV40: 0 | AW40: 0 | AX40: 0 | AY40: 0 | AZ40: 0 | BA40: 0 | BB40: 0 | BC40: 0 | BD40: 0 | BE40: 0 | BF40: 0 | BG40: 0 | BH40: 0 | BI40: 0 | BJ40: 0 | BK40: 0 | BL40: 0 | BM40: 0 | BN40: 0 | BO40: 0 | BP40: 0 | BQ40: 0 | BR40: 0
S41: Santa María | T41: 399 | AB41: 130 | AC41: 1007.232 | AO41: Curasemilla + Inoculante | AR41: 0 | AS41: 0 | AT41: 0 | AU41: 0 | AV41: 0 | AW41: 0 | AX41: 0 | AY41: 0 | AZ41: 0 | BA41: 0 | BB41: 0 | BC41: 0 | BD41: 0 | BE41: 0 | BF41: 0 | BG41: 0 | BH41: 0 | BI41: 0 | BJ41: 0 | BK41: 0 | BL41: 0 | BM41: 0 | BN41: 0 | BO41: 0 | BP41: 0 | BQ41: 0 | BR41: 0
A42: Estructura de Producción | B42: Soja 1ª | C42: Trigo + Soja 2ª | D42: Maíz Temprano | E42: Maíz Tardío | S42: Sobremonte | T42: 586 | AB42: 135 | AC42: 1030.89024 | AO42: Semillas | AR42: =+'Maíz temprano'!F28+'Maíz temprano'!F29 -> 121.5 | AS42: =+'Maíz temprano'!G28+'Maíz temprano'!G29 -> 0 | AT42: =+'Maíz temprano'!H28+'Maíz temprano'!H29 -> 121.5 | AU42: =+'Maíz temprano'!I28+'Maíz temprano'!I29 -> 0 | AV42: =+'Maíz temprano'!J28+'Maíz temprano'!J29 -> 121.5 | AW42: =+'Maíz temprano'!K28+'Maíz temprano'!K29 -> 121.5 | AX42: =+'Maíz temprano'!L28+'Maíz temprano'!L29 -> 0 | AY42: =+'Maíz temprano'!M28+'Maíz temprano'!M29 -> 121.5 | AZ42: =+'Maíz temprano'!N28+'Maíz temprano'!N29 -> 121.5 | BA42: =+'Maíz temprano'!O28+'Maíz temprano'!O29 -> 0 | BB42: =+'Maíz temprano'!P28+'Maíz temprano'!P29 -> 0 | BC42: =+'Maíz temprano'!Q28+'Maíz temprano'!Q29 -> 121.5 | BD42: =+'Maíz temprano'!R28+'Maíz temprano'!R29 -> 0 | BE42: =+'Maíz temprano'!S28+'Maíz temprano'!S29 -> 121.5 | BF42: =+'Maíz temprano'!T28+'Maíz temprano'!T29 -> 121.5 | BG42: =+'Maíz temprano'!U28+'Maíz temprano'!U29 -> 121.5 | BH42: =+'Maíz temprano'!V28+'Maíz temprano'!V29 -> 121.5 | BI42: =+'Maíz temprano'!W28+'Maíz temprano'!W29 -> 0 | BJ42: =+'Maíz temprano'!X28+'Maíz temprano'!X29 -> 0 | BK42: =+'Maíz temprano'!Y28+'Maíz temprano'!Y29 -> 121.5 | BL42: =+'Maíz temprano'!Z28+'Maíz temprano'!Z29 -> 121.5 | BM42: =+'Maíz temprano'!AA28+'Maíz temprano'!AA29 -> 0 | BN42: =+'Maíz temprano'!AB28+'Maíz temprano'!AB29 -> 121.5 | BO42: =+'Maíz temprano'!AC28+'Maíz temprano'!AC29 -> 121.5 | BP42: =+'Maíz temprano'!AD28+'Maíz temprano'!AD29 -> 121.5 | BQ42: =+'Maíz temprano'!AE28+'Maíz temprano'!AE29 -> 121.5 | BR42: =+'Maíz temprano'!AF28+'Maíz temprano'!AF29 -> 121.5
A43: Impuestos y retenciones | B43: =(B33+B38)/($B$31*$B$29/10) ->  | C43: =(D33+D38)/(C31*C29+D31*D29)*10 ->  | D43: =(E33+E38)/($E$31*$E$29/10) ->  | E43: =(F33+F38)/($F$31*$F$29/10) ->  | S43: Tercero Arriba | T43: 298 | AB43: 140 | AC43: 1054.60704 | AO43: Total | AR43: =+SUM(AR35:AR42) -> 422.6331037 | AS43: =+SUM(AS35:AS42) -> 0 | AT43: 422.6331037 | AU43: 0 | AV43: 422.6331037 | AW43: 422.6331037 | AX43: 0 | AY43: 422.6331037 | AZ43: 422.6331037 | BA43: 0 | BB43: 0 | BC43: 422.6331037 | BD43: 0 | BE43: 422.6331037 | BF43: 422.6331037 | BG43: 422.6331037 | BH43: 422.6331037 | BI43: 0 | BJ43: 0 | BK43: 422.6331037 | BL43: 422.6331037 | BM43: 0 | BN43: 422.6331037 | BO43: 422.6331037 | BP43: 422.6331037 | BQ43: 422.6331037 | BR43: 422.6331037
A44: Costos Directos | B44: =+B34/($B$31*$B$29/10) -> 0.2379662163 | C44: =+D34*10/($C$31*$C$29+$D$31*$D$29) -> 0.3739299169 | D44: =+E34/($E$31*$E$29/10) -> 0.2216565781 | E44: =+F34/($F$31*$F$29/10) -> 0.2717175297 | S44: Totoral | T44: 477 | AB44: 145 | AC44: 1078.85088
A45: Gastos Comerciales | B45: =+B35/($B$31*$B$29/10) -> 0.1147533516 | C45: =+D35*10/($C$31*$C$29+$D$31*$D$29) -> 0.1214435123 | D45: 0.1651984661 | E45: 0.205878598 | S45: Tulumba | T45: 481 | AB45: 150 | AC45: 1102.15776 | AO45: Opciones avanzadas (completado por el usuario) | AP45: Mes de actualiz. | AQ45: Cantidades | AR45: Calamuchita | AS45: Capital | AT45: Colón | AU45: Cruz del Eje | AV45: Gral. Roca | AW45: Gral. San Martín | AX45: Ischilin | AY45: Juárez Celman | AZ45: Marcos Juárez | BA45: Minas | BB45: Pocho | BC45: Pte. R. Sáenz Peña | BD45: Punilla | BE45: Río Cuarto | BF45: Río Primero | BG45: Río Seco | BH45: Río Segundo | BI45: San Alberto | BJ45: San Javier | BK45: San Justo | BL45: Santa María | BM45: Sobremonte | BN45: Tercero Arriba | BO45: Totoral | BP45: Tulumba | BQ45: Unión | BR45: PROVINCIA
A46: Costo de Arrendamiento | B46: =+B36/($B$31*$B$29/10) -> 0.3151293359 | C46: =+D36*10/($C$31*$C$29+$D$31*$D$29) -> 0.2773271072 | D46: 0.1946974286 | E46: 0.2339748101 | S46: Unión | T46: 191 | AB46: 155 | AC46: 1123.44432 | AO46: Servicios de Labranza | AP46: Estos datos son los ingresados en opciones avanzadas | AQ46: MAÍZ TARDÍO | AR46: =+SUM('Maíz tardío'!F22,'Maíz tardío'!F23,'Maíz tardío'!F37) -> 47 | AS46: =+SUM('Maíz tardío'!G22,'Maíz tardío'!G23,'Maíz tardío'!G37) -> 0 | AT46: =+SUM('Maíz tardío'!H22,'Maíz tardío'!H23,'Maíz tardío'!H37) -> 47 | AU46: =+SUM('Maíz tardío'!I22,'Maíz tardío'!I23,'Maíz tardío'!I37) -> 0 | AV46: =+SUM('Maíz tardío'!J22,'Maíz tardío'!J23,'Maíz tardío'!J37) -> 47 | AW46: =+SUM('Maíz tardío'!K22,'Maíz tardío'!K23,'Maíz tardío'!K37) -> 47 | AX46: =+SUM('Maíz tardío'!L22,'Maíz tardío'!L23,'Maíz tardío'!L37) -> 0 | AY46: =+SUM('Maíz tardío'!M22,'Maíz tardío'!M23,'Maíz tardío'!M37) -> 47 | AZ46: =+SUM('Maíz tardío'!N22,'Maíz tardío'!N23,'Maíz tardío'!N37) -> 47 | BA46: =+SUM('Maíz tardío'!O22,'Maíz tardío'!O23,'Maíz tardío'!O37) -> 0 | BB46: =+SUM('Maíz tardío'!P22,'Maíz tardío'!P23,'Maíz tardío'!P37) -> 0 | BC46: =+SUM('Maíz tardío'!Q22,'Maíz tardío'!Q23,'Maíz tardío'!Q37) -> 47 | BD46: =+SUM('Maíz tardío'!R22,'Maíz tardío'!R23,'Maíz tardío'!R37) -> 0 | BE46: =+SUM('Maíz tardío'!S22,'Maíz tardío'!S23,'Maíz tardío'!S37) -> 47 | BF46: =+SUM('Maíz tardío'!T22,'Maíz tardío'!T23,'Maíz tardío'!T37) -> 47 | BG46: =+SUM('Maíz tardío'!U22,'Maíz tardío'!U23,'Maíz tardío'!U37) -> 47 | BH46: =+SUM('Maíz tardío'!V22,'Maíz tardío'!V23,'Maíz tardío'!V37) -> 47 | BI46: =+SUM('Maíz tardío'!W22,'Maíz tardío'!W23,'Maíz tardío'!W37) -> 0 | BJ46: =+SUM('Maíz tardío'!X22,'Maíz tardío'!X23,'Maíz tardío'!X37) -> 0 | BK46: =+SUM('Maíz tardío'!Y22,'Maíz tardío'!Y23,'Maíz tardío'!Y37) -> 47 | BL46: =+SUM('Maíz tardío'!Z22,'Maíz tardío'!Z23,'Maíz tardío'!Z37) -> 47 | BM46: =+SUM('Maíz tardío'!AA22,'Maíz tardío'!AA23,'Maíz tardío'!AA37) -> 0 | BN46: =+SUM('Maíz tardío'!AB22,'Maíz tardío'!AB23,'Maíz tardío'!AB37) -> 47 | BO46: =+SUM('Maíz tardío'!AC22,'Maíz tardío'!AC23,'Maíz tardío'!AC37) -> 47 | BP46: =+SUM('Maíz tardío'!AD22,'Maíz tardío'!AD23,'Maíz tardío'!AD37) -> 47 | BQ46: =+SUM('Maíz tardío'!AE22,'Maíz tardío'!AE23,'Maíz tardío'!AE37) -> 47 | BR46: =+SUM('Maíz tardío'!AF22,'Maíz tardío'!AF23,'Maíz tardío'!AF37) -> 47
A47: Otros Costos Indirectos | B47: =+B37/($B$31*$B$29/10) -> 0.0604651389 | C47: =+D37*10/($C$31*$C$29+$D$31*$D$29) -> 0.08305199823 | D47: 0.04352145462 | E47: 0.05479061946 | S47: PROVINCIA | T47: 280 | AB47: 160 | AC47: 1144.86264 | AO47: Servicios de Cosecha | AR47: =+SUM('Maíz tardío'!F39) -> 120.9135336 | AS47: =+SUM('Maíz tardío'!G39) -> 0 | AT47: =+SUM('Maíz tardío'!H39) -> 120.9135336 | AU47: =+SUM('Maíz tardío'!I39) -> 0 | AV47: =+SUM('Maíz tardío'!J39) -> 120.9135336 | AW47: =+SUM('Maíz tardío'!K39) -> 120.9135336 | AX47: =+SUM('Maíz tardío'!L39) -> 0 | AY47: =+SUM('Maíz tardío'!M39) -> 120.9135336 | AZ47: =+SUM('Maíz tardío'!N39) -> 120.9135336 | BA47: =+SUM('Maíz tardío'!O39) -> 0 | BB47: =+SUM('Maíz tardío'!P39) -> 0 | BC47: =+SUM('Maíz tardío'!Q39) -> 120.9135336 | BD47: =+SUM('Maíz tardío'!R39) -> 0 | BE47: =+SUM('Maíz tardío'!S39) -> 120.9135336 | BF47: =+SUM('Maíz tardío'!T39) -> 120.9135336 | BG47: =+SUM('Maíz tardío'!U39) -> 120.9135336 | BH47: =+SUM('Maíz tardío'!V39) -> 120.9135336 | BI47: =+SUM('Maíz tardío'!W39) -> 0 | BJ47: =+SUM('Maíz tardío'!X39) -> 0 | BK47: =+SUM('Maíz tardío'!Y39) -> 120.9135336 | BL47: =+SUM('Maíz tardío'!Z39) -> 120.9135336 | BM47: =+SUM('Maíz tardío'!AA39) -> 0 | BN47: =+SUM('Maíz tardío'!AB39) -> 120.9135336 | BO47: =+SUM('Maíz tardío'!AC39) -> 120.9135336 | BP47: =+SUM('Maíz tardío'!AD39) -> 120.9135336 | BQ47: =+SUM('Maíz tardío'!AE39) -> 120.9135336 | BR47: =+SUM('Maíz tardío'!AF39) -> 120.9135336
A48: Resultado del productor | B48: =+B40/($B$31*$B$29/10) -> 0.1261451009 | C48: =+D40*10/($C$31*$C$29+$D$31*$D$29) -> 0.1123788962 | D48: =+E40/($E$31*$E$29/10) -> 0.1404457138 | E48: =+F40/($F$31*$F$29/10) -> 0.09173177987 | AB48: 165 | AC48: 1167.81816 | AO48: Herbicida | AR48: =+SUM('Maíz tardío'!F24,'Maíz tardío'!F25,'Maíz tardío'!F26,'Maíz tardío'!F27,'Maíz tardío'!F33,'Maíz tardío'!F35) -> 39.2 | AS48: =+SUM('Maíz tardío'!G24,'Maíz tardío'!G25,'Maíz tardío'!G26,'Maíz tardío'!G27,'Maíz tardío'!G33,'Maíz tardío'!G35) -> 0 | AT48: =+SUM('Maíz tardío'!H24,'Maíz tardío'!H25,'Maíz tardío'!H26,'Maíz tardío'!H27,'Maíz tardío'!H33,'Maíz tardío'!H35) -> 39.2 | AU48: =+SUM('Maíz tardío'!I24,'Maíz tardío'!I25,'Maíz tardío'!I26,'Maíz tardío'!I27,'Maíz tardío'!I33,'Maíz tardío'!I35) -> 0 | AV48: =+SUM('Maíz tardío'!J24,'Maíz tardío'!J25,'Maíz tardío'!J26,'Maíz tardío'!J27,'Maíz tardío'!J33,'Maíz tardío'!J35) -> 39.2 | AW48: =+SUM('Maíz tardío'!K24,'Maíz tardío'!K25,'Maíz tardío'!K26,'Maíz tardío'!K27,'Maíz tardío'!K33,'Maíz tardío'!K35) -> 39.2 | AX48: =+SUM('Maíz tardío'!L24,'Maíz tardío'!L25,'Maíz tardío'!L26,'Maíz tardío'!L27,'Maíz tardío'!L33,'Maíz tardío'!L35) -> 0 | AY48: =+SUM('Maíz tardío'!M24,'Maíz tardío'!M25,'Maíz tardío'!M26,'Maíz tardío'!M27,'Maíz tardío'!M33,'Maíz tardío'!M35) -> 39.2 | AZ48: =+SUM('Maíz tardío'!N24,'Maíz tardío'!N25,'Maíz tardío'!N26,'Maíz tardío'!N27,'Maíz tardío'!N33,'Maíz tardío'!N35) -> 39.2 | BA48: =+SUM('Maíz tardío'!O24,'Maíz tardío'!O25,'Maíz tardío'!O26,'Maíz tardío'!O27,'Maíz tardío'!O33,'Maíz tardío'!O35) -> 0 | BB48: =+SUM('Maíz tardío'!P24,'Maíz tardío'!P25,'Maíz tardío'!P26,'Maíz tardío'!P27,'Maíz tardío'!P33,'Maíz tardío'!P35) -> 0 | BC48: =+SUM('Maíz tardío'!Q24,'Maíz tardío'!Q25,'Maíz tardío'!Q26,'Maíz tardío'!Q27,'Maíz tardío'!Q33,'Maíz tardío'!Q35) -> 39.2 | BD48: =+SUM('Maíz tardío'!R24,'Maíz tardío'!R25,'Maíz tardío'!R26,'Maíz tardío'!R27,'Maíz tardío'!R33,'Maíz tardío'!R35) -> 0 | BE48: =+SUM('Maíz tardío'!S24,'Maíz tardío'!S25,'Maíz tardío'!S26,'Maíz tardío'!S27,'Maíz tardío'!S33,'Maíz tardío'!S35) -> 39.2 | BF48: =+SUM('Maíz tardío'!T24,'Maíz tardío'!T25,'Maíz tardío'!T26,'Maíz tardío'!T27,'Maíz tardío'!T33,'Maíz tardío'!T35) -> 39.2 | BG48: =+SUM('Maíz tardío'!U24,'Maíz tardío'!U25,'Maíz tardío'!U26,'Maíz tardío'!U27,'Maíz tardío'!U33,'Maíz tardío'!U35) -> 39.2 | BH48: =+SUM('Maíz tardío'!V24,'Maíz tardío'!V25,'Maíz tardío'!V26,'Maíz tardío'!V27,'Maíz tardío'!V33,'Maíz tardío'!V35) -> 39.2 | BI48: =+SUM('Maíz tardío'!W24,'Maíz tardío'!W25,'Maíz tardío'!W26,'Maíz tardío'!W27,'Maíz tardío'!W33,'Maíz tardío'!W35) -> 0 | BJ48: =+SUM('Maíz tardío'!X24,'Maíz tardío'!X25,'Maíz tardío'!X26,'Maíz tardío'!X27,'Maíz tardío'!X33,'Maíz tardío'!X35) -> 0 | BK48: =+SUM('Maíz tardío'!Y24,'Maíz tardío'!Y25,'Maíz tardío'!Y26,'Maíz tardío'!Y27,'Maíz tardío'!Y33,'Maíz tardío'!Y35) -> 39.2 | BL48: =+SUM('Maíz tardío'!Z24,'Maíz tardío'!Z25,'Maíz tardío'!Z26,'Maíz tardío'!Z27,'Maíz tardío'!Z33,'Maíz tardío'!Z35) -> 39.2 | BM48: =+SUM('Maíz tardío'!AA24,'Maíz tardío'!AA25,'Maíz tardío'!AA26,'Maíz tardío'!AA27,'Maíz tardío'!AA33,'Maíz tardío'!AA35) -> 0 | BN48: =+SUM('Maíz tardío'!AB24,'Maíz tardío'!AB25,'Maíz tardío'!AB26,'Maíz tardío'!AB27,'Maíz tardío'!AB33,'Maíz tardío'!AB35) -> 39.2 | BO48: =+SUM('Maíz tardío'!AC24,'Maíz tardío'!AC25,'Maíz tardío'!AC26,'Maíz tardío'!AC27,'Maíz tardío'!AC33,'Maíz tardío'!AC35) -> 39.2 | BP48: =+SUM('Maíz tardío'!AD24,'Maíz tardío'!AD25,'Maíz tardío'!AD26,'Maíz tardío'!AD27,'Maíz tardío'!AD33,'Maíz tardío'!AD35) -> 39.2 | BQ48: =+SUM('Maíz tardío'!AE24,'Maíz tardío'!AE25,'Maíz tardío'!AE26,'Maíz tardío'!AE27,'Maíz tardío'!AE33,'Maíz tardío'!AE35) -> 39.2 | BR48: =+SUM('Maíz tardío'!AF24,'Maíz tardío'!AF25,'Maíz tardío'!AF26,'Maíz tardío'!AF27,'Maíz tardío'!AF33,'Maíz tardío'!AF35) -> 39.2
AB49: 170 | AC49: 1190.70048 | AO49: Fertilizantes | AR49: =+SUM('Maíz tardío'!F30:F32) -> 101.3 | AS49: =+SUM('Maíz tardío'!G30:G32) -> 0 | AT49: =+SUM('Maíz tardío'!H30:H32) -> 101.3 | AU49: =+SUM('Maíz tardío'!I30:I32) -> 0 | AV49: =+SUM('Maíz tardío'!J30:J32) -> 101.3 | AW49: =+SUM('Maíz tardío'!K30:K32) -> 101.3 | AX49: =+SUM('Maíz tardío'!L30:L32) -> 0 | AY49: =+SUM('Maíz tardío'!M30:M32) -> 101.3 | AZ49: =+SUM('Maíz tardío'!N30:N32) -> 101.3 | BA49: =+SUM('Maíz tardío'!O30:O32) -> 0 | BB49: =+SUM('Maíz tardío'!P30:P32) -> 0 | BC49: =+SUM('Maíz tardío'!Q30:Q32) -> 101.3 | BD49: =+SUM('Maíz tardío'!R30:R32) -> 0 | BE49: =+SUM('Maíz tardío'!S30:S32) -> 101.3 | BF49: =+SUM('Maíz tardío'!T30:T32) -> 101.3 | BG49: =+SUM('Maíz tardío'!U30:U32) -> 101.3 | BH49: =+SUM('Maíz tardío'!V30:V32) -> 101.3 | BI49: =+SUM('Maíz tardío'!W30:W32) -> 0 | BJ49: =+SUM('Maíz tardío'!X30:X32) -> 0 | BK49: =+SUM('Maíz tardío'!Y30:Y32) -> 101.3 | BL49: =+SUM('Maíz tardío'!Z30:Z32) -> 101.3 | BM49: =+SUM('Maíz tardío'!AA30:AA32) -> 0 | BN49: =+SUM('Maíz tardío'!AB30:AB32) -> 101.3 | BO49: =+SUM('Maíz tardío'!AC30:AC32) -> 101.3 | BP49: =+SUM('Maíz tardío'!AD30:AD32) -> 101.3 | BQ49: =+SUM('Maíz tardío'!AE30:AE32) -> 101.3 | BR49: =+SUM('Maíz tardío'!AF30:AF32) -> 101.3
A50: Estructura de Producción | B50: Soja 1ª | C50: Trigo + Soja 2ª | D50: Maíz Temprano | E50: Maíz Tardío | AB50: 175 | AC50: 1214.12448 | AO50: Insecticidas | AR50: =+SUM('Maíz tardío'!F34) -> 1.2 | AS50: =+SUM('Maíz tardío'!G34) -> 0 | AT50: =+SUM('Maíz tardío'!H34) -> 1.2 | AU50: =+SUM('Maíz tardío'!I34) -> 0 | AV50: =+SUM('Maíz tardío'!J34) -> 1.2 | AW50: =+SUM('Maíz tardío'!K34) -> 1.2 | AX50: =+SUM('Maíz tardío'!L34) -> 0 | AY50: =+SUM('Maíz tardío'!M34) -> 1.2 | AZ50: =+SUM('Maíz tardío'!N34) -> 1.2 | BA50: =+SUM('Maíz tardío'!O34) -> 0 | BB50: =+SUM('Maíz tardío'!P34) -> 0 | BC50: =+SUM('Maíz tardío'!Q34) -> 1.2 | BD50: =+SUM('Maíz tardío'!R34) -> 0 | BE50: =+SUM('Maíz tardío'!S34) -> 1.2 | BF50: =+SUM('Maíz tardío'!T34) -> 1.2 | BG50: =+SUM('Maíz tardío'!U34) -> 1.2 | BH50: =+SUM('Maíz tardío'!V34) -> 1.2 | BI50: =+SUM('Maíz tardío'!W34) -> 0 | BJ50: =+SUM('Maíz tardío'!X34) -> 0 | BK50: =+SUM('Maíz tardío'!Y34) -> 1.2 | BL50: =+SUM('Maíz tardío'!Z34) -> 1.2 | BM50: =+SUM('Maíz tardío'!AA34) -> 0 | BN50: =+SUM('Maíz tardío'!AB34) -> 1.2 | BO50: =+SUM('Maíz tardío'!AC34) -> 1.2 | BP50: =+SUM('Maíz tardío'!AD34) -> 1.2 | BQ50: =+SUM('Maíz tardío'!AE34) -> 1.2 | BR50: =+SUM('Maíz tardío'!AF34) -> 1.2
A51: Impuestos | B51: =(B38)/SUM(B$34:B$38) -> 0.09449774216 | C51: =(D38)/SUM(D$34:D$38) -> 0.07869540452 | D51: =(E38)/SUM(E$34:E$38) -> 0.1134498851 | E51: =(F38)/SUM(F$34:F$38) -> 0.07396915363 | AB51: 180 | AC51: 1237.48992 | AO51: Fungicidas | AR51: 0 | AS51: 0 | AT51: 0 | AU51: 0 | AV51: 0 | AW51: 0 | AX51: 0 | AY51: 0 | AZ51: 0 | BA51: 0 | BB51: 0 | BC51: 0 | BD51: 0 | BE51: 0 | BF51: 0 | BG51: 0 | BH51: 0 | BI51: 0 | BJ51: 0 | BK51: 0 | BL51: 0 | BM51: 0 | BN51: 0 | BO51: 0 | BP51: 0 | BQ51: 0 | BR51: 0
A52: Costos Directos | B52: =B34/SUM(B$34:B$38) -> 0.2958599361 | C52: =D34/SUM(D$34:D$38) -> 0.4025735676 | D52: 0.3143782778 | E52: 0.3283291178 | AB52: 185 | AC52: 1261.49952 | AO52: Curasemilla + Inoculante | AR52: 0 | AS52: 0 | AT52: 0 | AU52: 0 | AV52: 0 | AW52: 0 | AX52: 0 | AY52: 0 | AZ52: 0 | BA52: 0 | BB52: 0 | BC52: 0 | BD52: 0 | BE52: 0 | BF52: 0 | BG52: 0 | BH52: 0 | BI52: 0 | BJ52: 0 | BK52: 0 | BL52: 0 | BM52: 0 | BN52: 0 | BO52: 0 | BP52: 0 | BQ52: 0 | BR52: 0
A53: Gastos Comerciales | B53: =B35/SUM(B$34:B$38) -> 0.1426711733 | C53: 0.1307462864 | D53: 0.2343030363 | E53: 0.2487728286 | AB53: 190 | AC53: 1285.15776 | AO53: Semillas | AR53: =+SUM('Maíz tardío'!F28:F29) -> 121.5 | AS53: =+SUM('Maíz tardío'!G28:G29) -> 0 | AT53: =+SUM('Maíz tardío'!H28:H29) -> 121.5 | AU53: =+SUM('Maíz tardío'!I28:I29) -> 0 | AV53: =+SUM('Maíz tardío'!J28:J29) -> 121.5 | AW53: =+SUM('Maíz tardío'!K28:K29) -> 121.5 | AX53: =+SUM('Maíz tardío'!L28:L29) -> 0 | AY53: =+SUM('Maíz tardío'!M28:M29) -> 121.5 | AZ53: =+SUM('Maíz tardío'!N28:N29) -> 121.5 | BA53: =+SUM('Maíz tardío'!O28:O29) -> 0 | BB53: =+SUM('Maíz tardío'!P28:P29) -> 0 | BC53: =+SUM('Maíz tardío'!Q28:Q29) -> 121.5 | BD53: =+SUM('Maíz tardío'!R28:R29) -> 0 | BE53: =+SUM('Maíz tardío'!S28:S29) -> 121.5 | BF53: =+SUM('Maíz tardío'!T28:T29) -> 121.5 | BG53: =+SUM('Maíz tardío'!U28:U29) -> 121.5 | BH53: =+SUM('Maíz tardío'!V28:V29) -> 121.5 | BI53: =+SUM('Maíz tardío'!W28:W29) -> 0 | BJ53: =+SUM('Maíz tardío'!X28:X29) -> 0 | BK53: =+SUM('Maíz tardío'!Y28:Y29) -> 121.5 | BL53: =+SUM('Maíz tardío'!Z28:Z29) -> 121.5 | BM53: =+SUM('Maíz tardío'!AA28:AA29) -> 0 | BN53: =+SUM('Maíz tardío'!AB28:AB29) -> 121.5 | BO53: =+SUM('Maíz tardío'!AC28:AC29) -> 121.5 | BP53: =+SUM('Maíz tardío'!AD28:AD29) -> 121.5 | BQ53: =+SUM('Maíz tardío'!AE28:AE29) -> 121.5 | BR53: =+SUM('Maíz tardío'!AF28:AF29) -> 121.5
A54: Costo de Arrendamiento | B54: =B36/SUM(B$34:B$38) -> 0.3917957206 | C54: 0.2985708227 | D54: 0.2761417812 | E54: 0.2827228081 | AB54: 195 | AC54: 1308.816 | AO54: Total | AR54: =+SUM(AR46:AR53) -> 431.1135336 | AS54: =+SUM(AS46:AS53) -> 0 | AT54: 431.1135336 | AU54: 0 | AV54: 431.1135336 | AW54: 431.1135336 | AX54: 0 | AY54: 431.1135336 | AZ54: 431.1135336 | BA54: 0 | BB54: 0 | BC54: 431.1135336 | BD54: 0 | BE54: 431.1135336 | BF54: 431.1135336 | BG54: 431.1135336 | BH54: 431.1135336 | BI54: 0 | BJ54: 0 | BK54: 431.1135336 | BL54: 431.1135336 | BM54: 0 | BN54: 431.1135336 | BO54: 431.1135336 | BP54: 431.1135336 | BQ54: 431.1135336 | BR54: 431.1135336
A55: Otros Costos Indirectos | B55: =B37/SUM(B$34:B$38) -> 0.07517542788 | C55: 0.08941391879 | D55: 0.06172701964 | E55: 0.06620609194 | AB55: 200 | AC55: 1332.5328
AB56: 205 | AC56: 1335.6072
AB57: 210 | AC57: 1354.82952
AB58: 215 | AC58: 1378.04856
AB59: 220 | AC59: 1401.28224
AB60: 225 | AC60: 1426.82904
AB61: 230 | AC61: 1452.33192
AB62: 235 | AC62: 1477.82016
AB63: 240 | AC63: 1503.32304
AB64: 245 | AC64: 1529.27976
AB65: 250 | AC65: 1555.3536
AB66: 255 | AC66: 1580.43192
AB67: 260 | AC67: 1605.17352
AB68: 265 | AC68: 1629.97368
AB69: 270 | AC69: 1653.77832
AB70: 275 | AC70: 1676.30928
AB71: 280 | AC71: 1698.78168
AB72: 285 | AC72: 1721.32728
AB73: 290 | AC73: 1743.79968
AB74: 295 | AC74: 1767.01872
AB75: 300 | AC75: 1790.36952
AB76: 305 | AC76: 1813.54464
AB77: 310 | AC77: 1836.82224
AB78: 315 | AC78: 1838.87184
AB79: 320 | AC79: 1850.73024
AB80: 325 | AC80: 1873.61256
AB81: 330 | AC81: 1896.43632
AB82: 335 | AC82: 1919.55288
AB83: 340 | AC83: 1943.46
AB84: 345 | AC84: 1967.42568
V85: =+MROUND(Y85,5) -> 345 | Y85: 345 | AB85: 350 | AC85: 1991.23032
V86: =+IF(Y85<=MROUND(Y85,5),VLOOKUP(MROUND(Y85-2.5,5),$AB$21:$AC$135,2,FALSE)+(VLOOKUP(MROUND(Y85,5),$AB$21:$AC$135,2,FALSE)-VLOOKUP(MROUND(Y85-2.5,5),$AB$21:$AC$135,2,FALSE))/5*(Y85-MROUND(Y85-2.5,5)),VLOOKUP(MROUND(Y85,5),$AB$21:$AC$135,2,FALSE)+(VLOOKUP(MROUND(Y85+2.5,5),$AB$21:$AC$135,2,FALSE)-VLOOKUP(MROUND(Y85,5),$AB$21:$AC$135,2,FALSE))/5*(Y85-MROUND(Y85,5))) -> 1967.42568 | AB86: 355 | AC86: 2012.634
V87: (buscarv(redond.mult(Y85;5);$AB$21:$AC$135;2;falso)-buscarv(redond.mult(Y85-2,5;5);$AB$21:$AC$135;2;falso))/5*(Y85-buscarv(redond.mult(Y85-2,5;5);$AB$21:$AC$135;2;falso))+buscarv(redond.mult(Y85-2,5;5);$AB$21:$AC$135;2;falso) | AB87: 360 | AC87: 2033.11536
V88: =+(VLOOKUP(V85,$AB$84:$AC$86,2,FALSE)-VLOOKUP(V85-5,$AB$84:$AC$86,2,FALSE)) ->  | AB88: 365 | AC88: 2052.29376
AB89: =+AB88+5 -> 370 | AC89: 2070.54984
V90: =+IF('Opciones Avanzadas'!$E$7<=MROUND('Opciones Avanzadas'!$E$7,5),VLOOKUP(MROUND('Opciones Avanzadas'!$E$7-2.5,5),$AB$21:$AC$135,2,FALSE)+(VLOOKUP(MROUND('Opciones Avanzadas'!$E$7,5),$AB$21:$AC$135,2,FALSE)-VLOOKUP(MROUND('Opciones Avanzadas'!$E$7-2.5,5),$AB$21:$AC$135,2,FALSE))/5*('Opciones Avanzadas'!$E$7-MROUND('Opciones Avanzadas'!$E$7-2.5,5)),VLOOKUP(MROUND('Opciones Avanzadas'!$E$7,5),$AB$21:$AC$135,2,FALSE)+(VLOOKUP(MROUND('Opciones Avanzadas'!$E$7+2.5,5),$AB$21:$AC$135,2,FALSE)-VLOOKUP(MROUND('Opciones Avanzadas'!$E$7,5),$AB$21:$AC$135,2,FALSE))/5*('Opciones Avanzadas'!$E$7-MROUND('Opciones Avanzadas'!$E$7,5))) -> 1698.78168 | AB90: 375 | AC90: 2086.7124
AB91: 380 | AC91: 2099.61024
AB92: 385 | AC92: 2112.66912
AB93: 390 | AC93: 2127.16272
AB94: 395 | AC94: 2143.3692
AB95: 400 | AC95: 2156.26704
AB96: 405 | AC96: 2156.51592
AB97: 410 | AC97: 2156.77944
AB98: 415 | AC98: 2157.02832
AB99: 420 | AC99: 2157.29184
AB100: 425 | AC100: 2157.54072
AB101: 430 | AC101: 2160.6444
AB102: 435 | AC102: 2167.818
AB103: 440 | AC103: 2175.16728
AB104: 445 | AC104: 2182.56048
AB105: 450 | AC105: 2188.05048
AB106: 455 | AC106: 2191.08096
AB107: 460 | AC107: 2195.67792
AB108: 465 | AC108: 2204.37408
AB109: 470 | AC109: 2213.17272
AB110: 475 | AC110: 2220.18528
AB111: 480 | AC111: 2229.3792
AB112: 485 | AC112: 2238.57312
AB113: 490 | AC113: 2247.70848
AB114: 495 | AC114: 2256.96096
AB115: 500 | AC115: 2266.66728
AB116: 505 | AC116: 2274.85104
AB117: 510 | AC117: 2283.09336
AB118: 515 | AC118: 2291.27712
AB119: 520 | AC119: 2299.46088
AB120: 525 | AC120: 2306.29776
AB121: 530 | AC121: 2313.13464
AB122: 535 | AC122: 2319.9276
AB123: 540 | AC123: 2326.76448
AB124: 545 | AC124: 2331.53712
AB125: 550 | AC125: 2336.35368
AB126: 555 | AC126: 2341.11168
AB127: 560 | AC127: 2345.88432
AB128: 565 | AC128: 2353.29216
AB129: 570 | AC129: 2360.68536
AB130: 575 | AC130: 2368.03464
AB131: 580 | AC131: 2375.42784
AB132: 585 | AC132: 2380.47864
AB133: 590 | AC133: 2385.47088
AB134: 595 | AC134: 2390.50704
AB135: 600 | AC135: 2395.49928

Sheet PDF (hidden)
B2: Rentabilidad Campaña 2020/21 Der. de export. 12% maíz, 12% trigo y 33% soja.
B3: Rendimiento | C3: qq/ha | D3: =+'Calculadora BCCBA'!G4 -> 35.53947816 | E3: =+'Calculadora BCCBA'!H4 -> 18,6 || 30, | F3: =+'Calculadora BCCBA'!I4 -> 95.17311801 | G3: =+'Calculadora BCCBA'!J4 -> 88.48496603
B4: Precio Disponible | C4: USD/qq | D4: =+'Calculadora BCCBA'!G5 -> 344.3692317 | E4: =+'Calculadora BCCBA'!H5 -> 222 || 344 | F4: =+'Calculadora BCCBA'!I5 -> 209.9404242 | G4: =+'Calculadora BCCBA'!J5 -> 188.91
B5: Ingresos Totales | C5: USD/ha | D5: =+'Calculadora BCCBA'!G6 -> 1096.914272 | E5: =+'Calculadora BCCBA'!H6 -> 1395.516238 | F5: =+'Calculadora BCCBA'!I6 -> 1613.245691 | G5: =+'Calculadora BCCBA'!J6 -> 1459.877442
B6: Costos Directos | C6: USD/ha | D6: =+'Calculadora BCCBA'!G7 -> 280.3299978 | E6: =+'Calculadora BCCBA'!H7 -> 500.542541 | F6: =+'Calculadora BCCBA'!I7 -> 422.6331037 | G6: =+'Calculadora BCCBA'!J7 -> 431.1135336
B7: Gastos Comerciales | C7: USD/ha | D7: =+'Calculadora BCCBA'!G8 -> 135.1822427 | E7: =+'Calculadora BCCBA'!H8 -> 162.5642707 | F7: =+'Calculadora BCCBA'!I8 -> 314.9842926 | G7: =+'Calculadora BCCBA'!J8 -> 326.6519093
B8: Margen Bruto | C8: USD/ha | D8: =+'Calculadora BCCBA'!G9 -> 681.4020318 | E8: =+'Calculadora BCCBA'!H9 -> 732.4094258 | F8: =+'Calculadora BCCBA'!I9 -> 875.6282949 | G8: =+'Calculadora BCCBA'!J9 -> 702.111999
B9: Rendimiento de Indiferencia | C9: USD/ha | D9: =+'Calculadora BCCBA'!G10 -> 12.0658933 | E9: =+'Calculadora BCCBA'!H10 -> - | F9: =+'Calculadora BCCBA'!I10 -> 35.1346054 | G9: =+'Calculadora BCCBA'!J10 -> 40.11251088
B10: Costos Indirectos | C10: USD/ha | D10: =+'Calculadora BCCBA'!G11 -> 442.4594379 | E10: =+'Calculadora BCCBA'!H11 -> 482.4034265 | F10: =+'Calculadora BCCBA'!I11 -> 454.2124887 | G10: =+'Calculadora BCCBA'!J11 -> 458.1621396
B11: Resultado Operativo | C11: USD/ha | D11: =+'Calculadora BCCBA'!G12 -> 238.942594 | E11: =+'Calculadora BCCBA'!H12 -> 250.0059993 | F11: =+'Calculadora BCCBA'!I12 -> 421.4158062 | G11: =+'Calculadora BCCBA'!J12 -> 243.9498595
B12: Impuestos | C12: USD/ha | D12: =+'Calculadora BCCBA'!G13 -> 89.53747574 | E12: =+'Calculadora BCCBA'!H13 -> 97.84645819 | F12: =+'Calculadora BCCBA'!I13 -> 152.5158715 | G12: =+'Calculadora BCCBA'!J13 -> 97.12541921
B13: Margen Neto | C13: USD/ha | D13: =+'Calculadora BCCBA'!G14 -> 149.4051182 | E13: =+'Calculadora BCCBA'!H14 -> 152.1595411 | F13: =+'Calculadora BCCBA'!I14 -> 268.8999347 | G13: =+'Calculadora BCCBA'!J14 -> 146.8244403
B14: Intereses sobre el Capital Invertido | C14: USD/ha | D14: =+'Calculadora BCCBA'!G15 -> 0.8031174748 | E14: =+'Calculadora BCCBA'!H15 -> 1.729164428 | F14: =+'Calculadora BCCBA'!I15 -> 1.111771338 | G14: =+'Calculadora BCCBA'!J15 -> 1.280603566
B15: Resultado Económico | C15: USD/ha | D15: =+'Calculadora BCCBA'!G16 -> 148.6020007 | E15: =+'Calculadora BCCBA'!H16 -> 150.4303767 | F15: =+'Calculadora BCCBA'!I16 -> 267.7881633 | G15: =+'Calculadora BCCBA'!J16 -> 145.5438367
B16: Inversión inicial | C16: USD/ha | D16: =+'Calculadora BCCBA'!G17 -> 642.4939798 | E16: =+'Calculadora BCCBA'!H17 -> 691.6657713 | F16: =+'Calculadora BCCBA'!I17 -> 762.3574887 | G16: =+'Calculadora BCCBA'!J17 -> 768.3621396
B17: Rentabilidad de la Actividad | C17: % | D17: =+'Calculadora BCCBA'!G18 -> 0.2312893279 | E17: =+'Calculadora BCCBA'!H18 -> 0.2174899828 | F17: =+'Calculadora BCCBA'!I18 -> 0.3512632424 | G17: =+'Calculadora BCCBA'!J18 -> 0.1894208853

Sheet Opciones Avanzadas
B7: Distancia al puerto (Km) | E7: =VLOOKUP('Calculadora BCCBA'!B1,Listas!$S$21:$T$47,2,FALSE) -> 280
B9: Arrendamiento (qq/ha) | E9: =VLOOKUP('Calculadora BCCBA'!B1,Listas!$AJ$2:$AK$19,2,FALSE) -> 10.78
B11: Planteo técnico (USD/ha)
C12: Soja de 1ª | D12: Soja de 2ª | E12: Trigo | F12: Maíz Temprano | G12: Maíz Tardío
B13: Servicios de labranza | C13: =HLOOKUP('Calculadora BCCBA'!B1,Listas!$AR$1:$BS$10,2,FALSE) -> 65.3854802 | D13: =HLOOKUP('Calculadora BCCBA'!B1,Listas!$AR$23:$BS$32,2,FALSE) -> 56.81112215 | E13: =HLOOKUP('Calculadora BCCBA'!B1,Listas!$AR$12:$BS$21,2,FALSE) -> 51.26460961 | F13: =HLOOKUP('Calculadora BCCBA'!B1,Listas!$AR$34:$BS$43,2,FALSE) -> 46.2 | G13: =HLOOKUP('Calculadora BCCBA'!B1,Listas!$AR$45:$BS$54,2,FALSE) -> 47
B14: Cosecha | C14: =HLOOKUP('Calculadora BCCBA'!B1,Listas!$AR$1:$BS$10,3,FALSE) -> 80.29545583 | D14: =HLOOKUP('Calculadora BCCBA'!B1,Listas!$AR$23:$BS$32,3,FALSE) -> 76.54285254 | E14: =HLOOKUP('Calculadora BCCBA'!B1,Listas!$AR$12:$BS$21,3,FALSE) -> 57.41506468 | F14: =HLOOKUP('Calculadora BCCBA'!B1,Listas!$AR$34:$BS$43,3,FALSE) -> 114.4881037 | G14: =HLOOKUP('Calculadora BCCBA'!B1,Listas!$AR$45:$BS$54,3,FALSE) -> 120.9135336
B15: Herbicida | C15: =HLOOKUP('Calculadora BCCBA'!B1,Listas!$AR$1:$BS$10,4,FALSE) -> 49.38164891 | D15: =HLOOKUP('Calculadora BCCBA'!B1,Listas!$AR$23:$BS$32,4,FALSE) -> 15.63535772 | E15: =HLOOKUP('Calculadora BCCBA'!B1,Listas!$AR$12:$BS$21,4,FALSE) -> 11.23 | F15: =HLOOKUP('Calculadora BCCBA'!B1,Listas!$AR$34:$BS$43,4,FALSE) -> 39.2 | G15: =HLOOKUP('Calculadora BCCBA'!B1,Listas!$AR$45:$BS$54,4,FALSE) -> 39.2
B16: Fertilizantes | C16: =HLOOKUP('Calculadora BCCBA'!B1,Listas!$AR$1:$BS$10,5,FALSE) -> 0 | D16: =HLOOKUP('Calculadora BCCBA'!B1,Listas!$AR$23:$BS$32,5,FALSE) -> 0 | E16: =HLOOKUP('Calculadora BCCBA'!B1,Listas!$AR$12:$BS$21,5,FALSE) -> 68.28439223 | F16: =HLOOKUP('Calculadora BCCBA'!B1,Listas!$AR$34:$BS$43,5,FALSE) -> 100.1 | G16: =HLOOKUP('Calculadora BCCBA'!B1,Listas!$AR$45:$BS$54,5,FALSE) -> 101.3
B17: Insecticidas | C17: =HLOOKUP('Calculadora BCCBA'!B1,Listas!$AR$1:$BS$10,6,FALSE) -> 17.9135 | D17: =HLOOKUP('Calculadora BCCBA'!B1,Listas!$AR$23:$BS$32,6,FALSE) -> 17.528 | E17: =HLOOKUP('Calculadora BCCBA'!B1,Listas!$AR$12:$BS$21,6,FALSE) -> 1.14575 | F17: =HLOOKUP('Calculadora BCCBA'!B1,Listas!$AR$34:$BS$43,6,FALSE) -> 1.145 | G17: =HLOOKUP('Calculadora BCCBA'!B1,Listas!$AR$45:$BS$54,6,FALSE) -> 1.2
B18: Fungicidas | C18: =HLOOKUP('Calculadora BCCBA'!B1,Listas!$AR$1:$BS$10,7,FALSE) -> 12 | D18: =HLOOKUP('Calculadora BCCBA'!B1,Listas!$AR$23:$BS$32,7,FALSE) -> 12 | E18: =HLOOKUP('Calculadora BCCBA'!B1,Listas!$AR$12:$BS$21,7,FALSE) -> 15.072 | F18: =HLOOKUP('Calculadora BCCBA'!B1,Listas!$AR$34:$BS$43,7,FALSE) -> 0 | G18: =HLOOKUP('Calculadora BCCBA'!B1,Listas!$AR$45:$BS$54,7,FALSE) -> 0
B19: Curasemillas | C19: =HLOOKUP('Calculadora BCCBA'!B1,Listas!$AR$1:$BS$10,8,FALSE) -> 5.92 | D19: =HLOOKUP('Calculadora BCCBA'!B1,Listas!$AR$23:$BS$32,8,FALSE) -> 5.92 | E19: =HLOOKUP('Calculadora BCCBA'!B1,Listas!$AR$12:$BS$21,8,FALSE) -> 18.6207 | F19: =HLOOKUP('Calculadora BCCBA'!B1,Listas!$AR$34:$BS$43,8,FALSE) -> 0 | G19: =HLOOKUP('Calculadora BCCBA'!B1,Listas!$AR$45:$BS$54,8,FALSE) -> 0
B20: Semillas | C20: =HLOOKUP('Calculadora BCCBA'!B1,Listas!$AR$1:$BS$10,9,FALSE) -> 49.43391281 | D20: =HLOOKUP('Calculadora BCCBA'!B1,Listas!$AR$23:$BS$32,9,FALSE) -> 49.42779916 | E20: =HLOOKUP('Calculadora BCCBA'!B1,Listas!$AR$12:$BS$21,9,FALSE) -> 43.64489294 | F20: =HLOOKUP('Calculadora BCCBA'!B1,Listas!$AR$34:$BS$43,9,FALSE) -> 121.5 | G20: =HLOOKUP('Calculadora BCCBA'!B1,Listas!$AR$45:$BS$54,9,FALSE) -> 121.5
B21: Total | C21: =SUM(C13:C20) -> 280.3299978 | D21: =SUM(D13:D20) -> 233.8651316 | E21: =SUM(E13:E20) -> 266.6774095 | F21: =SUM(F13:F20) -> 422.6331037 | G21: =SUM(G13:G20) -> 431.1135336

Sheet Soja 1ª (hidden)
B2: Planteo Tecnico (Por Ha) | C2: Unidad de medida | D2: Mes de actualiz. | E2: Cantidades | F2: Calamuchita | G2: Capital | H2: Colón | I2: Cruz del Eje | J2: Gral. Roca | K2: Gral. San Martín | L2: Ischilin | M2: Juárez Celman | N2: Marcos Juárez | O2: Minas | P2: Pocho | Q2: Pte. R. Sáenz Peña | R2: Punilla | S2: Río Cuarto | T2: Río Primero | U2: Río Seco | V2: Río Segundo | W2: San Alberto | X2: San Javier | Y2: San Justo | Z2: Santa María | AA2: Sobremonte | AB2: Tercero Arriba | AC2: Totoral | AD2: Tulumba | AE2: Unión | AF2: PROVINCIA
B3: Rendimiento | C3: qq/ha | D3: Junio | E3: - | F3: =+'Calculadora BCCBA'!$M$6 -> 31.8528536 | G3: =+'Calculadora BCCBA'!$M$6 -> 31.8528536 | H3: =+'Calculadora BCCBA'!$M$6 -> 31.8528536 | I3: =+'Calculadora BCCBA'!$M$6 -> 31.8528536 | J3: =+'Calculadora BCCBA'!$M$6 -> 31.8528536 | K3: =+'Calculadora BCCBA'!$M$6 -> 31.8528536 | L3: =+'Calculadora BCCBA'!$M$6 -> 31.8528536 | M3: =+'Calculadora BCCBA'!$M$6 -> 31.8528536 | N3: =+'Calculadora BCCBA'!$M$6 -> 31.8528536 | O3: =+'Calculadora BCCBA'!$M$6 -> 31.8528536 | P3: =+'Calculadora BCCBA'!$M$6 -> 31.8528536 | Q3: =+'Calculadora BCCBA'!$M$6 -> 31.8528536 | R3: =+'Calculadora BCCBA'!$M$6 -> 31.8528536 | S3: =+'Calculadora BCCBA'!$M$6 -> 31.8528536 | T3: =+'Calculadora BCCBA'!$M$6 -> 31.8528536 | U3: =+'Calculadora BCCBA'!$M$6 -> 31.8528536 | V3: =+'Calculadora BCCBA'!$M$6 -> 31.8528536 | W3: =+'Calculadora BCCBA'!$M$6 -> 31.8528536 | X3: =+'Calculadora BCCBA'!$M$6 -> 31.8528536 | Y3: =+'Calculadora BCCBA'!$M$6 -> 31.8528536 | Z3: =+'Calculadora BCCBA'!$M$6 -> 31.8528536 | AA3: =+'Calculadora BCCBA'!$M$6 -> 31.8528536 | AB3: =+'Calculadora BCCBA'!$M$6 -> 31.8528536 | AC3: =+'Calculadora BCCBA'!$M$6 -> 31.8528536 | AD3: =+'Calculadora BCCBA'!$M$6 -> 31.8528536 | AE3: =+'Calculadora BCCBA'!$M$6 -> 31.8528536 | AF3: =+'Calculadora BCCBA'!$M$6 -> 31.8528536
B4: Participación Provincial | C4: Porcentaje | D4: Enero | E4: - | F4: 0.009403263139 | H4: 0.01072484214 | J4: 0.09756373133 | K4: 0.0292496672 | M4: 0.06792260706 | N4: 0.09855282987 | Q4: 0.05253680466 | S4: 0.2187381167 | T4: 0.05499185454 | U4: 0.01096542371 | V4: 0.04914319853 | Y4: 0.06947046032 | Z4: 0.03198251471 | AB4: 0.05879158659 | AC4: 0.02059860975 | AD4: 0.01341261424 | AE4: 0.1026033435 | AF4: -
B5: Pulverización terrestre | C5: Cantidad | D5: Octubre | E5: 4 | F5: =$E5 -> 4 | H5: 4 | J5: 4 | K5: 4 | M5: 4 | N5: 4 | Q5: =$E5 -> 4 | S5: 4 | T5: 4 | U5: 4 | V5: 4 | Y5: 4 | Z5: 4 | AB5: 4 | AC5: 4 | AD5: 4 | AE5: 4 | AF5: =SUMPRODUCT(F5:AE5,$F$4:$AE$4) -> 3.986605872
B6: Pulverización aerea | C6: Cantidad | D6: =D5 -> Octubre | E6: 2 | F6: 2 | H6: 2 | J6: 2 | K6: 2 | M6: 2 | N6: 2 | Q6: 2 | S6: 2 | T6: 2 | U6: 2 | V6: 2 | Y6: 2 | Z6: 2 | AB6: 2 | AC6: 2 | AD6: 2 | AE6: 2 | AF6: =SUMPRODUCT(F6:AE6,$F$4:$AE$4) -> 1.993302936
B7: Glifosato | C7: lt/ha | D7: Octubre | E7: 7 | F7: 7 | H7: 7 | J7: 7 | K7: 7 | M7: 7 | N7: 7 | Q7: 7 | S7: 7 | T7: 7 | U7: 7 | V7: 7 | Y7: 7 | Z7: 7 | AB7: 7 | AC7: 7 | AD7: 7 | AE7: 7 | AF7: =SUMPRODUCT(F7:AE7,$F$4:$AE$4) -> 6.976560276
B8: Round Up Full II | C8: lt/ha | D8: Octubre | E8: 0 | F8: 0 | H8: 0 | J8: 0 | K8: 0 | M8: 0 | N8: 0 | Q8: 0 | S8: 0 | T8: 0 | U8: 0 | V8: 0 | Y8: 0 | Z8: 0 | AB8: 0 | AC8: 0 | AD8: 0 | AE8: 0 | AF8: =+AVERAGE(F8:AE8) -> 0
B9: Texaro | C9: kg/ha | D9: Octubre | E9: 0.043 | F9: 0.043 | H9: 0.043 | J9: 0.043 | K9: 0.043 | M9: 0.043 | N9: 0.043 | Q9: 0.043 | S9: 0.043 | T9: 0.043 | U9: 0.043 | V9: 0.043 | Y9: 0.043 | Z9: 0.043 | AB9: 0.043 | AC9: 0.043 | AD9: 0.043 | AE9: 0.043 | AF9: =+AVERAGE(F9:AE9) -> 0.043
B10: Metsulfurol Metil | C10: kg/ha | D10: Octubre | E10: 0.01 | F10: 0.01 | H10: 0.01 | J10: 0.01 | K10: 0.01 | M10: 0.01 | N10: 0.01 | Q10: 0.01 | S10: 0.01 | T10: 0.01 | U10: 0.01 | V10: 0.01 | Y10: 0.01 | Z10: 0.01 | AB10: 0.01 | AC10: 0.01 | AD10: 0.01 | AE10: 0.01 | AF10: =+AVERAGE(F10:AE10) -> 0.01
B11: 2,4 D 100% | C11: lt/ha | D11: Octubre | E11: 0.5 | F11: 0.5 | G11: 0.5 | H11: 0.5 | I11: 0.5 | J11: 0.5 | K11: 0.5 | L11: 0.5 | M11: 0.5 | N11: 0.5 | O11: 0.5 | P11: 0.5 | Q11: 0.5 | R11: 0.5 | S11: =$E11 -> 0.5 | T11: 0.5 | U11: 0.5 | V11: 0.5 | Y11: 0.5 | Z11: 0.5 | AB11: 0.5 | AC11: 0.5 | AD11: 0.5 | AE11: 0.5 | AF11: =+AVERAGE(F11:AE11) -> 0.5
B12: Semilla RR | C12: kg/ha | D12: Octubre | E12: 80 | F12: =+$E12 -> 80 | G12: =+$E12 -> 80 | H12: 80 | I12: 80 | J12: 80 | K12: 80 | L12: 80 | M12: 80 | N12: 80 | O12: 80 | P12: 80 | Q12: 80 | R12: 80 | S12: 80 | T12: 80 | U12: 80 | V12: 80 | Y12: 80 | Z12: 80 | AB12: 80 | AC12: 80 | AD12: 80 | AE12: 80 | AF12: =SUMPRODUCT(F12:AE12,$F$4:$AE$4) -> 79.73211744
B13: Inoculante + Fungicida | C13: b 200 gr | D13: Octubre | E13: 1.6 | F13: =+$E13 -> 1.6 | G13: 1.6 | H13: 1.6 | I13: 1.6 | J13: 1.6 | K13: 1.6 | L13: 1.6 | M13: 1.6 | N13: 1.6 | O13: 1.6 | P13: 1.6 | Q13: 1.6 | R13: 1.6 | S13: 1.6 | T13: 1.6 | U13: 1.6 | V13: 1.6 | Y13: 1.6 | Z13: 1.6 | AB13: 1.6 | AC13: 1.6 | AD13: 1.6 | AE13: 1.6 | AF13: =+AVERAGE(F13:AE13) -> 1.6
B14: Superfosfato triple | C14: kg/ha | D14: Octubre | E14: 0 | F14: 0 | G14: 0 | H14: 0 | I14: 0 | J14: 0 | K14: 0 | L14: 0 | M14: 0 | N14: 0 | O14: 0 | P14: 0 | Q14: 0 | R14: 0 | S14: 0 | T14: 0 | U14: 0 | V14: 0 | Y14: 0 | Z14: 0 | AB14: 0 | AC14: 0 | AD14: 0 | AE14: 0 | AF14: =SUMPRODUCT(F14:AE14,$F$4:$AE$4) -> 0
B15: Fosfato Monoamónico | C15: kg/ha | D15: Octubre | E15: 0 | F15: 0 | G15: 0 | H15: 0 | I15: 0 | J15: 0 | K15: 0 | L15: 0 | M15: 0 | N15: 0 | O15: 0 | P15: 0 | Q15: 0 | R15: 0 | S15: 0 | T15: 0 | U15: 0 | V15: 0 | Y15: 0 | Z15: 0 | AB15: 0 | AC15: 0 | AD15: 0 | AE15: 0 | AF15: 0
B16: Roundup control max | C16: kg/ha | D16: Octubre | E16: 1.1 | F16: 1.1 | G16: 1.1 | H16: 1.1 | I16: 1.1 | J16: 1.1 | K16: 1.1 | L16: 1.1 | M16: 1.1 | N16: 1.1 | O16: 1.1 | P16: 1.1 | Q16: 1.1 | R16: 1.1 | S16: 1.1 | T16: 1.1 | U16: 1.1 | V16: 1.1 | Y16: 1.1 | Z16: 1.1 | AB16: 1.1 | AC16: 1.1 | AD16: 1.1 | AE16: 1.1 | AF16: =+AVERAGE(F16:AE16) -> 1.1
B17: Karate zeon 25% | C17: lt/ha | D17: Octubre | E17: 0.025 | F17: 0.025 | G17: 0.025 | H17: 0.025 | I17: 0.025 | J17: 0.025 | K17: 0.025 | L17: 0.025 | M17: 0.025 | N17: 0.025 | O17: 0.025 | P17: 0.025 | Q17: 0.025 | R17: 0.025 | S17: 0.025 | T17: 0.025 | U17: 0.025 | V17: 0.025 | Y17: 0.025 | Z17: 0.025 | AB17: 0.025 | AC17: 0.025 | AD17: 0.025 | AE17: 0.025 | AF17: =+AVERAGE(F17:AE17) -> 0.025
B18: Coragen | C18: kg/ha | D18: Octubre | E18: 0.03 | F18: 0.03 | G18: 0.03 | H18: 0.03 | I18: 0.03 | J18: 0.03 | K18: 0.03 | L18: 0.03 | M18: 0.03 | N18: 0.03 | O18: 0.03 | P18: 0.03 | Q18: 0.03 | R18: 0.03 | S18: 0.03 | T18: 0.03 | U18: 0.03 | V18: 0.03 | Y18: 0.03 | Z18: 0.03 | AB18: 0.03 | AC18: 0.03 | AD18: 0.03 | AE18: 0.03 | AF18: =+AVERAGE(F18:AE18) -> 0.03
B19: Engeo | C19: lt/ha | D19: Octubre | E19: 0.2 | F19: 0.2 | G19: 0.2 | H19: 0.2 | I19: 0.2 | J19: 0.2 | K19: 0.2 | L19: 0.2 | M19: 0.2 | N19: 0.2 | O19: 0.2 | P19: 0.2 | Q19: 0.2 | R19: 0.2 | S19: 0.2 | T19: 0.2 | U19: 0.2 | V19: 0.2 | Y19: 0.2 | Z19: 0.2 | AB19: 0.2 | AC19: 0.2 | AD19: 0.2 | AE19: 0.2 | AF19: =+AVERAGE(F19:AE19) -> 0.2
B20: Opera | C20: lt/ha | D20: Octubre | E20: 0.5 | F20: 0.5 | G20: 0.5 | H20: 0.5 | I20: 0.5 | J20: 0.5 | K20: 0.5 | L20: 0.5 | M20: 0.5 | N20: 0.5 | O20: 0.5 | P20: 0.5 | Q20: 0.5 | R20: 0.5 | S20: 0.5 | T20: 0.5 | U20: 0.5 | V20: 0.5 | Y20: 0.5 | Z20: 0.5 | AB20: 0.5 | AC20: 0.5 | AD20: 0.5 | AE20: 0.5 | AF20: =+AVERAGE(F20:AE20) -> 0.5
B21: Riego | C21: mm/ha | D21: - | E21: - | AB21: =$F$21 -> 0 | AC21: 0 | AD21: 0 | AE21: 0 | AF21: 0
B23: Costos Directos (Por Ha) | C23: =C$2 -> Unidad de medida | D23: =D$2 -> Mes de actualiz. | E23: Precio | F23: =F$2 -> Calamuchita | G23: =G$2 -> Capital | H23: Colón | I23: Cruz del Eje | J23: Gral. Roca | K23: Gral. San Martín | L23: Ischilin | M23: Juárez Celman | N23: Marcos Juárez | O23: Minas | P23: Pocho | Q23: Pte. R. Sáenz Peña | R23: Punilla | S23: Río Cuarto | T23: Río Primero | U23: Río Seco | V23: Río Segundo | W23: San Alberto | X23: San Javier | Y23: San Justo | Z23: Santa María | AA23: Sobremonte | AB23: Tercero Arriba | AC23: Totoral | AD23: Tulumba | AE23: Unión | AF23: =AF$2 -> PROVINCIA
B24: Pulverización terrestre | C24: Cantidad | D24: Octubre | E24: 4.3 | F24: =$E24*F5 -> 17.2 | H24: 17.2 | J24: 17.2 | K24: 17.2 | M24: 17.2 | N24: 17.2 | Q24: 17.2 | S24: 17.2 | T24: 17.2 | U24: 17.2 | V24: 17.2 | Y24: 17.2 | Z24: 17.2 | AB24: 17.2 | AC24: 17.2 | AD24: 17.2 | AE24: 17.2 | AF24: 17.14240525
B25: Pulverización aerea | C25: Cantidad | D25: =D24 -> Octubre | E25: 8.5 | F25: 17 | H25: 17 | J25: 17 | K25: 17 | M25: 17 | N25: 17 | Q25: =$E25*Q6 -> 17 | S25: 17 | T25: 17 | U25: 17 | V25: 17 | Y25: 17 | Z25: 17 | AB25: 17 | AC25: 17 | AD25: 17 | AE25: 17 | AF25: 16.94307496
A26: H | B26: Glifosato | C26: lt/ha | D26: =D25 -> Octubre | E26: 3.3 | F26: 23.1 | H26: 23.1 | J26: 23.1 | K26: 23.1 | M26: 23.1 | N26: 23.1 | Q26: =$E26*Q7 -> 23.1 | S26: =$E26*S7 -> 23.1 | T26: =$E26*T7 -> 23.1 | U26: 23.1 | V26: 23.1 | Y26: 23.1 | Z26: 23.1 | AB26: 23.1 | AC26: 23.1 | AD26: 23.1 | AE26: 23.1 | AF26: 23.02264891
A27: H | B27: Round Up Full II | C27: lt/ha | D27: =D26 -> Octubre | E27: 5.05 | F27: 0 | H27: 0 | J27: 0 | K27: 0 | M27: 0 | N27: 0 | Q27: 0 | S27: 0 | T27: 0 | U27: 0 | V27: 0 | Y27: 0 | Z27: 0 | AB27: 0 | AC27: 0 | AD27: 0 | AE27: 0 | AF27: 0
A28: H | B28: Texaro | C28: kg/ha | D28: =D27 -> Octubre | E28: 365 | F28: 15.695 | H28: 15.695 | J28: 15.695 | K28: 15.695 | M28: 15.695 | N28: 15.695 | Q28: 15.695 | S28: 15.695 | T28: 15.695 | U28: 15.695 | V28: 15.695 | Y28: 15.695 | Z28: 15.695 | AB28: 15.695 | AC28: 15.695 | AD28: 15.695 | AE28: 15.695 | AF28: 15.695
A29: H | B29: Metsulfurol Metil | C29: kg/ha | D29: =D28 -> Octubre | E29: 30 | F29: 0.3 | H29: 0.3 | J29: 0.3 | K29: 0.3 | M29: 0.3 | N29: 0.3 | Q29: 0.3 | S29: 0.3 | T29: 0.3 | U29: 0.3 | V29: 0.3 | Y29: 0.3 | Z29: 0.3 | AB29: 0.3 | AC29: 0.3 | AD29: 0.3 | AE29: 0.3 | AF29: 0.3
A30: H | B30: 2,4 D 100% | C30: lt/ha | D30: Octubre | E30: 5.9 | F30: 2.95 | H30: 2.95 | J30: 2.95 | K30: 2.95 | M30: 2.95 | N30: 2.95 | Q30: 2.95 | S30: 2.95 | T30: 2.95 | U30: 2.95 | V30: 2.95 | Y30: 2.95 | Z30: 2.95 | AB30: 2.95 | AC30: 2.95 | AD30: 2.95 | AE30: 2.95 | AF30: 2.95
A31: S | B31: Semilla RR | C31: kg/ha | D31: Octubre | E31: 0.62 | F31: 49.6 | H31: 49.6 | J31: 49.6 | K31: 49.6 | M31: 49.6 | N31: 49.6 | Q31: 49.6 | S31: 49.6 | T31: 49.6 | U31: 49.6 | V31: 49.6 | Y31: 49.6 | Z31: 49.6 | AB31: 49.6 | AC31: 49.6 | AD31: 49.6 | AE31: 49.6 | AF31: 49.43391281
A32: Cu | B32: Inoculante + Fungicida | C32: b 200 gr | D32: Octubre | E32: 3.7 | F32: 5.92 | H32: 5.92 | J32: 5.92 | K32: 5.92 | M32: 5.92 | N32: 5.92 | Q32: 5.92 | S32: 5.92 | T32: 5.92 | U32: 5.92 | V32: 5.92 | Y32: 5.92 | Z32: 5.92 | AB32: 5.92 | AC32: 5.92 | AD32: 5.92 | AE32: 5.92 | AF32: 5.92
A33: Fe | B33: Superfosfato triple | C33: kg/ha | D33: Octubre | E33: 0.42 | F33: 0 | H33: 0 | J33: 0 | K33: 0 | M33: 0 | N33: 0 | Q33: 0 | S33: 0 | T33: 0 | U33: 0 | V33: 0 | Y33: 0 | Z33: 0 | AB33: 0 | AC33: 0 | AD33: 0 | AE33: 0 | AF33: 0
A34: Fe | B34: Fosfato Monoamónico | C34: kg/ha | D34: Octubre | E34: 0.49 | F34: 0 | H34: 0 | J34: 0 | K34: 0 | M34: 0 | N34: 0 | Q34: 0 | S34: 0 | T34: 0 | U34: 0 | V34: 0 | Y34: 0 | Z34: 0 | AB34: 0 | AC34: 0 | AD34: 0 | AE34: 0 | AF34: 0
A35: H | B35: Roundup control max | C35: kg/ha | D35: Octubre | E35: 6.74 | F35: 7.414 | H35: 7.414 | J35: 7.414 | K35: 7.414 | M35: 7.414 | N35: 7.414 | Q35: 7.414 | S35: 7.414 | T35: 7.414 | U35: 7.414 | V35: 7.414 | Y35: 7.414 | Z35: 7.414 | AB35: 7.414 | AC35: 7.414 | AD35: 7.414 | AE35: =$E35*AE16 -> 7.414 | AF35: 7.414
A36: Ins | B36: Karate zeon 25% | C36: lt/ha | D36: Octubre | E36: 48.54 | F36: 1.2135 | H36: 1.2135 | J36: 1.2135 | K36: 1.2135 | M36: 1.2135 | N36: 1.2135 | Q36: 1.2135 | S36: 1.2135 | T36: 1.2135 | U36: 1.2135 | V36: 1.2135 | Y36: 1.2135 | Z36: 1.2135 | AB36: 1.2135 | AC36: 1.2135 | AD36: 1.2135 | AE36: 1.2135 | AF36: 1.2135
A37: Ins | B37: Coragen | C37: kg/ha | D37: Octubre | E37: 280 | F37: 8.4 | H37: 8.4 | J37: 8.4 | K37: 8.4 | M37: 8.4 | N37: 8.4 | Q37: 8.4 | S37: 8.4 | T37: 8.4 | U37: 8.4 | V37: 8.4 | Y37: 8.4 | Z37: 8.4 | AB37: 8.4 | AC37: 8.4 | AD37: 8.4 | AE37: 8.4 | AF37: 8.4
A38: Ins | B38: Engeo | C38: lt/ha | D38: Octubre | E38: 41.5 | F38: 8.3 | H38: 8.3 | J38: 8.3 | K38: 8.3 | M38: 8.3 | N38: 8.3 | Q38: 8.3 | S38: 8.3 | T38: =$E38*T19 -> 8.3 | U38: 8.3 | V38: 8.3 | Y38: 8.3 | Z38: 8.3 | AB38: 8.3 | AC38: 8.3 | AD38: 8.3 | AE38: 8.3 | AF38: 8.3
A39: Fu | B39: Opera | C39: lt/ha | D39: Octubre | E39: 24 | F39: =$E39*F20 -> 12 | H39: 12 | J39: 12 | K39: 12 | M39: 12 | N39: 12 | Q39: 12 | S39: 12 | T39: 12 | U39: 12 | V39: 12 | Y39: 12 | Z39: 12 | AB39: 12 | AC39: 12 | AD39: 12 | AE39: 12 | AF39: 12
B40: Riego | C40: =+"USD/"&LEFT(C21,2) -> USD/mm | D40: Octubre | E40: 1 | F40: 0 | H40: 0 | J40: 0 | K40: 0 | M40: 0 | N40: 0 | Q40: 0 | S40: 0 | T40: 0 | U40: 0 | V40: 0 | Y40: 0 | Z40: 0 | AB40: 0 | AC40: 0 | AD40: 0 | AE40: 0 | AF40: 0
A41: L | B41: Siembra | C41: USD/Unidad | D41: Octubre | E41: 31.3 | F41: =$E$41 -> 31.3 | H41: =$E$41 -> 31.3 | J41: 31.3 | K41: 31.3 | M41: 31.3 | N41: 31.3 | Q41: 31.3 | S41: 31.3 | T41: 31.3 | U41: 31.3 | V41: 31.3 | Y41: 31.3 | Z41: 31.3 | AB41: 31.3 | AC41: 31.3 | AD41: 31.3 | AE41: 31.3 | AF41: =$E$41 -> 31.3
B42: Cosecha | C42: $/Unidad | E42: - | F42: =+Listas!$T$10 -> 6967.06464 | G42: =+Listas!$T$10 -> 6967.06464 | H42: =+Listas!$T$10 -> 6967.06464 | I42: =+Listas!$T$10 -> 6967.06464 | J42: =+Listas!$T$10 -> 6967.06464 | K42: =+Listas!$T$10 -> 6967.06464 | L42: =+Listas!$T$10 -> 6967.06464 | M42: =+Listas!$T$10 -> 6967.06464 | N42: =+Listas!$T$10 -> 6967.06464 | O42: =+Listas!$T$10 -> 6967.06464 | P42: =+Listas!$T$10 -> 6967.06464 | Q42: =+Listas!$T$10 -> 6967.06464 | R42: =+Listas!$T$10 -> 6967.06464 | S42: =+Listas!$T$10 -> 6967.06464 | T42: =+Listas!$T$10 -> 6967.06464 | U42: =+Listas!$T$10 -> 6967.06464 | V42: =+Listas!$T$10 -> 6967.06464 | W42: =+Listas!$T$10 -> 6967.06464 | X42: =+Listas!$T$10 -> 6967.06464 | Y42: =+Listas!$T$10 -> 6967.06464 | Z42: =+Listas!$T$10 -> 6967.06464 | AA42: =+Listas!$T$10 -> 6967.06464 | AB42: =+Listas!$T$10 -> 6967.06464 | AC42: =+Listas!$T$10 -> 6967.06464 | AD42: =+Listas!$T$10 -> 6967.06464 | AE42: =+Listas!$T$10 -> 6967.06464 | AF42: =+Listas!$T$10 -> 6967.06464
A43: Co | B43: Cosecha en USD | C43: USD/Unidad | E43: - | F43: =F42*(1+$E$100)/$E$98 -> 80.29545583 | H43: =H42*(1+$E$100)/$E$98 -> 80.29545583 | J43: =J42*(1+$E$100)/$E$98 -> 80.29545583 | K43: =K42*(1+$E$100)/$E$98 -> 80.29545583 | M43: =M42*(1+$E$100)/$E$98 -> 80.29545583 | N43: =N42*(1+$E$100)/$E$98 -> 80.29545583 | Q43: =Q42*(1+$E$100)/$E$98 -> 80.29545583 | S43: =S42*(1+$E$100)/$E$98 -> 80.29545583 | T43: =T42*(1+$E$100)/$E$98 -> 80.29545583 | U43: =U42*(1+$E$100)/$E$98 -> 80.29545583 | V43: =V42*(1+$E$100)/$E$98 -> 80.29545583 | Y43: =Y42*(1+$E$100)/$E$98 -> 80.29545583 | Z43: =Z42*(1+$E$100)/$E$98 -> 80.29545583 | AB43: =AB42*(1+$E$100)/$E$98 -> 80.29545583 | AC43: =AC42*(1+$E$100)/$E$98 -> 80.29545583 | AD43: =AD42*(1+$E$100)/$E$98 -> 80.29545583 | AE43: =AE42*(1+$E$100)/$E$98 -> 80.29545583 | AF43: =AF42*(1+$E$100)/$E$98 -> 80.29545583
B44: Costos directos | C44: USD/ha | F44: =SUM(F43,F24:F41) -> 280.6879558 | H44: 280.6879558 | J44: 280.6879558 | K44: 280.6879558 | M44: 280.6879558 | N44: 280.6879558 | Q44: 280.6879558 | S44: 280.6879558 | T44: 280.6879558 | U44: 280.6879558 | V44: 280.6879558 | Y44: 280.6879558 | Z44: 280.6879558 | AB44: 280.6879558 | AC44: 280.6879558 | AD44: 280.6879558 | AE44: 280.6879558 | AF44: =SUM(AF43,AF24:AF41) -> 280.3299978
B46: Opciones avanzadas (completado por el usuario) | C46: Unidad de medida | D46: Mes de actualiz. | E46: Cantidades | F46: Calamuchita | G46: Capital | H46: Colón | I46: Cruz del Eje | J46: Gral. Roca | K46: Gral. San Martín | L46: Ischilin | M46: Juárez Celman | N46: Marcos Juárez | O46: Minas | P46: Pocho | Q46: Pte. R. Sáenz Peña | R46: Punilla | S46: Río Cuarto | T46: Río Primero | U46: Río Seco | V46: Río Segundo | W46: San Alberto | X46: San Javier | Y46: San Justo | Z46: Santa María | AA46: Sobremonte | AB46: Tercero Arriba | AC46: Totoral | AD46: Tulumba | AE46: Unión | AF46: PROVINCIA
B47: Servicios de labranza | C47: USD/ha | D47: Estos datos son los ingresados en opciones avanzadas | E47: - | F47: =+'Opciones Avanzadas'!$C$13 -> 65.3854802 | G47: =+'Opciones Avanzadas'!$C$13 -> 65.3854802 | H47: =+'Opciones Avanzadas'!$C$13 -> 65.3854802 | I47: =+'Opciones Avanzadas'!$C$13 -> 65.3854802 | J47: =+'Opciones Avanzadas'!$C$13 -> 65.3854802 | K47: =+'Opciones Avanzadas'!$C$13 -> 65.3854802 | L47: =+'Opciones Avanzadas'!$C$13 -> 65.3854802 | M47: =+'Opciones Avanzadas'!$C$13 -> 65.3854802 | N47: =+'Opciones Avanzadas'!$C$13 -> 65.3854802 | O47: =+'Opciones Avanzadas'!$C$13 -> 65.3854802 | P47: =+'Opciones Avanzadas'!$C$13 -> 65.3854802 | Q47: =+'Opciones Avanzadas'!$C$13 -> 65.3854802 | R47: =+'Opciones Avanzadas'!$C$13 -> 65.3854802 | S47: =+'Opciones Avanzadas'!$C$13 -> 65.3854802 | T47: =+'Opciones Avanzadas'!$C$13 -> 65.3854802 | U47: =+'Opciones Avanzadas'!$C$13 -> 65.3854802 | V47: =+'Opciones Avanzadas'!$C$13 -> 65.3854802 | W47: =+'Opciones Avanzadas'!$C$13 -> 65.3854802 | X47: =+'Opciones Avanzadas'!$C$13 -> 65.3854802 | Y47: =+'Opciones Avanzadas'!$C$13 -> 65.3854802 | Z47: =+'Opciones Avanzadas'!$C$13 -> 65.3854802 | AA47: =+'Opciones Avanzadas'!$C$13 -> 65.3854802 | AB47: =+'Opciones Avanzadas'!$C$13 -> 65.3854802 | AC47: =+'Opciones Avanzadas'!$C$13 -> 65.3854802 | AD47: =+'Opciones Avanzadas'!$C$13 -> 65.3854802 | AE47: =+'Opciones Avanzadas'!$C$13 -> 65.3854802 | AF47: =+'Opciones Avanzadas'!$C$13 -> 65.3854802
B48: Cosecha | C48: USD/ha | E48: - | F48: =+'Opciones Avanzadas'!$C$14 -> 80.29545583 | G48: =+'Opciones Avanzadas'!$C$14 -> 80.29545583 | H48: =+'Opciones Avanzadas'!$C$14 -> 80.29545583 | I48: =+'Opciones Avanzadas'!$C$14 -> 80.29545583 | J48: =+'Opciones Avanzadas'!$C$14 -> 80.29545583 | K48: =+'Opciones Avanzadas'!$C$14 -> 80.29545583 | L48: =+'Opciones Avanzadas'!$C$14 -> 80.29545583 | M48: =+'Opciones Avanzadas'!$C$14 -> 80.29545583 | N48: =+'Opciones Avanzadas'!$C$14 -> 80.29545583 | O48: =+'Opciones Avanzadas'!$C$14 -> 80.29545583 | P48: =+'Opciones Avanzadas'!$C$14 -> 80.29545583 | Q48: =+'Opciones Avanzadas'!$C$14 -> 80.29545583 | R48: =+'Opciones Avanzadas'!$C$14 -> 80.29545583 | S48: =+'Opciones Avanzadas'!$C$14 -> 80.29545583 | T48: =+'Opciones Avanzadas'!$C$14 -> 80.29545583 | U48: =+'Opciones Avanzadas'!$C$14 -> 80.29545583 | V48: =+'Opciones Avanzadas'!$C$14 -> 80.29545583 | W48: =+'Opciones Avanzadas'!$C$14 -> 80.29545583 | X48: =+'Opciones Avanzadas'!$C$14 -> 80.29545583 | Y48: =+'Opciones Avanzadas'!$C$14 -> 80.29545583 | Z48: =+'Opciones Avanzadas'!$C$14 -> 80.29545583 | AA48: =+'Opciones Avanzadas'!$C$14 -> 80.29545583 | AB48: =+'Opciones Avanzadas'!$C$14 -> 80.29545583 | AC48: =+'Opciones Avanzadas'!$C$14 -> 80.29545583 | AD48: =+'Opciones Avanzadas'!$C$14 -> 80.29545583 | AE48: =+'Opciones Avanzadas'!$C$14 -> 80.29545583 | AF48: =+'Opciones Avanzadas'!$C$14 -> 80.29545583
B49: Herbicida | C49: USD/ha | E49: - | F49: =+'Opciones Avanzadas'!$C$15 -> 49.38164891 | G49: =+'Opciones Avanzadas'!$C$15 -> 49.38164891 | H49: =+'Opciones Avanzadas'!$C$15 -> 49.38164891 | I49: =+'Opciones Avanzadas'!$C$15 -> 49.38164891 | J49: =+'Opciones Avanzadas'!$C$15 -> 49.38164891 | K49: =+'Opciones Avanzadas'!$C$15 -> 49.38164891 | L49: =+'Opciones Avanzadas'!$C$15 -> 49.38164891 | M49: =+'Opciones Avanzadas'!$C$15 -> 49.38164891 | N49: =+'Opciones Avanzadas'!$C$15 -> 49.38164891 | O49: =+'Opciones Avanzadas'!$C$15 -> 49.38164891 | P49: =+'Opciones Avanzadas'!$C$15 -> 49.38164891 | Q49: =+'Opciones Avanzadas'!$C$15 -> 49.38164891 | R49: =+'Opciones Avanzadas'!$C$15 -> 49.38164891 | S49: =+'Opciones Avanzadas'!$C$15 -> 49.38164891 | T49: =+'Opciones Avanzadas'!$C$15 -> 49.38164891 | U49: =+'Opciones Avanzadas'!$C$15 -> 49.38164891 | V49: =+'Opciones Avanzadas'!$C$15 -> 49.38164891 | W49: =+'Opciones Avanzadas'!$C$15 -> 49.38164891 | X49: =+'Opciones Avanzadas'!$C$15 -> 49.38164891 | Y49: =+'Opciones Avanzadas'!$C$15 -> 49.38164891 | Z49: =+'Opciones Avanzadas'!$C$15 -> 49.38164891 | AA49: =+'Opciones Avanzadas'!$C$15 -> 49.38164891 | AB49: =+'Opciones Avanzadas'!$C$15 -> 49.38164891 | AC49: =+'Opciones Avanzadas'!$C$15 -> 49.38164891 | AD49: =+'Opciones Avanzadas'!$C$15 -> 49.38164891 | AE49: =+'Opciones Avanzadas'!$C$15 -> 49.38164891 | AF49: =+'Opciones Avanzadas'!$C$15 -> 49.38164891
B50: Fertilizantes | C50: USD/ha | E50: - | F50: =+'Opciones Avanzadas'!$C$16 -> 0 | G50: =+'Opciones Avanzadas'!$C$16 -> 0 | H50: =+'Opciones Avanzadas'!$C$16 -> 0 | I50: =+'Opciones Avanzadas'!$C$16 -> 0 | J50: =+'Opciones Avanzadas'!$C$16 -> 0 | K50: =+'Opciones Avanzadas'!$C$16 -> 0 | L50: =+'Opciones Avanzadas'!$C$16 -> 0 | M50: =+'Opciones Avanzadas'!$C$16 -> 0 | N50: =+'Opciones Avanzadas'!$C$16 -> 0 | O50: =+'Opciones Avanzadas'!$C$16 -> 0 | P50: =+'Opciones Avanzadas'!$C$16 -> 0 | Q50: =+'Opciones Avanzadas'!$C$16 -> 0 | R50: =+'Opciones Avanzadas'!$C$16 -> 0 | S50: =+'Opciones Avanzadas'!$C$16 -> 0 | T50: =+'Opciones Avanzadas'!$C$16 -> 0 | U50: =+'Opciones Avanzadas'!$C$16 -> 0 | V50: =+'Opciones Avanzadas'!$C$16 -> 0 | W50: =+'Opciones Avanzadas'!$C$16 -> 0 | X50: =+'Opciones Avanzadas'!$C$16 -> 0 | Y50: =+'Opciones Avanzadas'!$C$16 -> 0 | Z50: =+'Opciones Avanzadas'!$C$16 -> 0 | AA50: =+'Opciones Avanzadas'!$C$16 -> 0 | AB50: =+'Opciones Avanzadas'!$C$16 -> 0 | AC50: =+'Opciones Avanzadas'!$C$16 -> 0 | AD50: =+'Opciones Avanzadas'!$C$16 -> 0 | AE50: =+'Opciones Avanzadas'!$C$16 -> 0 | AF50: =+'Opciones Avanzadas'!$C$16 -> 0
B51: Insecticidas | C51: USD/ha | E51: - | F51: =+'Opciones Avanzadas'!$C$17 -> 17.9135 | G51: =+'Opciones Avanzadas'!$C$17 -> 17.9135 | H51: =+'Opciones Avanzadas'!$C$17 -> 17.9135 | I51: =+'Opciones Avanzadas'!$C$17 -> 17.9135 | J51: =+'Opciones Avanzadas'!$C$17 -> 17.9135 | K51: =+'Opciones Avanzadas'!$C$17 -> 17.9135 | L51: =+'Opciones Avanzadas'!$C$17 -> 17.9135 | M51: =+'Opciones Avanzadas'!$C$17 -> 17.9135 | N51: =+'Opciones Avanzadas'!$C$17 -> 17.9135 | O51: =+'Opciones Avanzadas'!$C$17 -> 17.9135 | P51: =+'Opciones Avanzadas'!$C$17 -> 17.9135 | Q51: =+'Opciones Avanzadas'!$C$17 -> 17.9135 | R51: =+'Opciones Avanzadas'!$C$17 -> 17.9135 | S51: =+'Opciones Avanzadas'!$C$17 -> 17.9135 | T51: =+'Opciones Avanzadas'!$C$17 -> 17.9135 | U51: =+'Opciones Avanzadas'!$C$17 -> 17.9135 | V51: =+'Opciones Avanzadas'!$C$17 -> 17.9135 | W51: =+'Opciones Avanzadas'!$C$17 -> 17.9135 | X51: =+'Opciones Avanzadas'!$C$17 -> 17.9135 | Y51: =+'Opciones Avanzadas'!$C$17 -> 17.9135 | Z51: =+'Opciones Avanzadas'!$C$17 -> 17.9135 | AA51: =+'Opciones Avanzadas'!$C$17 -> 17.9135 | AB51: =+'Opciones Avanzadas'!$C$17 -> 17.9135 | AC51: =+'Opciones Avanzadas'!$C$17 -> 17.9135 | AD51: =+'Opciones Avanzadas'!$C$17 -> 17.9135 | AE51: =+'Opciones Avanzadas'!$C$17 -> 17.9135 | AF51: =+'Opciones Avanzadas'!$C$17 -> 17.9135
B52: Fungicidas | C52: USD/ha | E52: - | F52: =+'Opciones Avanzadas'!$C$18 -> 12 | G52: =+'Opciones Avanzadas'!$C$18 -> 12 | H52: =+'Opciones Avanzadas'!$C$18 -> 12 | I52: =+'Opciones Avanzadas'!$C$18 -> 12 | J52: =+'Opciones Avanzadas'!$C$18 -> 12 | K52: =+'Opciones Avanzadas'!$C$18 -> 12 | L52: =+'Opciones Avanzadas'!$C$18 -> 12 | M52: =+'Opciones Avanzadas'!$C$18 -> 12 | N52: =+'Opciones Avanzadas'!$C$18 -> 12 | O52: =+'Opciones Avanzadas'!$C$18 -> 12 | P52: =+'Opciones Avanzadas'!$C$18 -> 12 | Q52: =+'Opciones Avanzadas'!$C$18 -> 12 | R52: =+'Opciones Avanzadas'!$C$18 -> 12 | S52: =+'Opciones Avanzadas'!$C$18 -> 12 | T52: =+'Opciones Avanzadas'!$C$18 -> 12 | U52: =+'Opciones Avanzadas'!$C$18 -> 12 | V52: =+'Opciones Avanzadas'!$C$18 -> 12 | W52: =+'Opciones Avanzadas'!$C$18 -> 12 | X52: =+'Opciones Avanzadas'!$C$18 -> 12 | Y52: =+'Opciones Avanzadas'!$C$18 -> 12 | Z52: =+'Opciones Avanzadas'!$C$18 -> 12 | AA52: =+'Opciones Avanzadas'!$C$18 -> 12 | AB52: =+'Opciones Avanzadas'!$C$18 -> 12 | AC52: =+'Opciones Avanzadas'!$C$18 -> 12 | AD52: =+'Opciones Avanzadas'!$C$18 -> 12 | AE52: =+'Opciones Avanzadas'!$C$18 -> 12 | AF52: =+'Opciones Avanzadas'!$C$18 -> 12
B53: Curasemillas | C53: USD/ha | F53: =+'Opciones Avanzadas'!$C$19 -> 5.92 | G53: =+'Opciones Avanzadas'!$C$19 -> 5.92 | H53: =+'Opciones Avanzadas'!$C$19 -> 5.92 | I53: =+'Opciones Avanzadas'!$C$19 -> 5.92 | J53: =+'Opciones Avanzadas'!$C$19 -> 5.92 | K53: =+'Opciones Avanzadas'!$C$19 -> 5.92 | L53: =+'Opciones Avanzadas'!$C$19 -> 5.92 | M53: =+'Opciones Avanzadas'!$C$19 -> 5.92 | N53: =+'Opciones Avanzadas'!$C$19 -> 5.92 | O53: =+'Opciones Avanzadas'!$C$19 -> 5.92 | P53: =+'Opciones Avanzadas'!$C$19 -> 5.92 | Q53: =+'Opciones Avanzadas'!$C$19 -> 5.92 | R53: =+'Opciones Avanzadas'!$C$19 -> 5.92 | S53: =+'Opciones Avanzadas'!$C$19 -> 5.92 | T53: =+'Opciones Avanzadas'!$C$19 -> 5.92 | U53: =+'Opciones Avanzadas'!$C$19 -> 5.92 | V53: =+'Opciones Avanzadas'!$C$19 -> 5.92 | W53: =+'Opciones Avanzadas'!$C$19 -> 5.92 | X53: =+'Opciones Avanzadas'!$C$19 -> 5.92 | Y53: =+'Opciones Avanzadas'!$C$19 -> 5.92 | Z53: =+'Opciones Avanzadas'!$C$19 -> 5.92 | AA53: =+'Opciones Avanzadas'!$C$19 -> 5.92 | AB53: =+'Opciones Avanzadas'!$C$19 -> 5.92 | AC53: =+'Opciones Avanzadas'!$C$19 -> 5.92 | AD53: =+'Opciones Avanzadas'!$C$19 -> 5.92 | AE53: =+'Opciones Avanzadas'!$C$19 -> 5.92 | AF53: =+'Opciones Avanzadas'!$C$19 -> 5.92
B54: Semillas | C54: USD/ha | E54: - | F54: =+'Opciones Avanzadas'!$C$20 -> 49.43391281 | G54: =+'Opciones Avanzadas'!$C$20 -> 49.43391281 | H54: =+'Opciones Avanzadas'!$C$20 -> 49.43391281 | I54: =+'Opciones Avanzadas'!$C$20 -> 49.43391281 | J54: =+'Opciones Avanzadas'!$C$20 -> 49.43391281 | K54: =+'Opciones Avanzadas'!$C$20 -> 49.43391281 | L54: =+'Opciones Avanzadas'!$C$20 -> 49.43391281 | M54: =+'Opciones Avanzadas'!$C$20 -> 49.43391281 | N54: =+'Opciones Avanzadas'!$C$20 -> 49.43391281 | O54: =+'Opciones Avanzadas'!$C$20 -> 49.43391281 | P54: =+'Opciones Avanzadas'!$C$20 -> 49.43391281 | Q54: =+'Opciones Avanzadas'!$C$20 -> 49.43391281 | R54: =+'Opciones Avanzadas'!$C$20 -> 49.43391281 | S54: =+'Opciones Avanzadas'!$C$20 -> 49.43391281 | T54: =+'Opciones Avanzadas'!$C$20 -> 49.43391281 | U54: =+'Opciones Avanzadas'!$C$20 -> 49.43391281 | V54: =+'Opciones Avanzadas'!$C$20 -> 49.43391281 | W54: =+'Opciones Avanzadas'!$C$20 -> 49.43391281 | X54: =+'Opciones Avanzadas'!$C$20 -> 49.43391281 | Y54: =+'Opciones Avanzadas'!$C$20 -> 49.43391281 | Z54: =+'Opciones Avanzadas'!$C$20 -> 49.43391281 | AA54: =+'Opciones Avanzadas'!$C$20 -> 49.43391281 | AB54: =+'Opciones Avanzadas'!$C$20 -> 49.43391281 | AC54: =+'Opciones Avanzadas'!$C$20 -> 49.43391281 | AD54: =+'Opciones Avanzadas'!$C$20 -> 49.43391281 | AE54: =+'Opciones Avanzadas'!$C$20 -> 49.43391281 | AF54: =+'Opciones Avanzadas'!$C$20 -> 49.43391281
B55: Total | C55: USD/ha | E55: - | F55: =+'Opciones Avanzadas'!$C$21 -> 280.3299978 | G55: =+'Opciones Avanzadas'!$C$21 -> 280.3299978 | H55: =+'Opciones Avanzadas'!$C$21 -> 280.3299978 | I55: =+'Opciones Avanzadas'!$C$21 -> 280.3299978 | J55: =+'Opciones Avanzadas'!$C$21 -> 280.3299978 | K55: =+'Opciones Avanzadas'!$C$21 -> 280.3299978 | L55: =+'Opciones Avanzadas'!$C$21 -> 280.3299978 | M55: =+'Opciones Avanzadas'!$C$21 -> 280.3299978 | N55: =+'Opciones Avanzadas'!$C$21 -> 280.3299978 | O55: =+'Opciones Avanzadas'!$C$21 -> 280.3299978 | P55: =+'Opciones Avanzadas'!$C$21 -> 280.3299978 | Q55: =+'Opciones Avanzadas'!$C$21 -> 280.3299978 | R55: =+'Opciones Avanzadas'!$C$21 -> 280.3299978 | S55: =+'Opciones Avanzadas'!$C$21 -> 280.3299978 | T55: =+'Opciones Avanzadas'!$C$21 -> 280.3299978 | U55: =+'Opciones Avanzadas'!$C$21 -> 280.3299978 | V55: =+'Opciones Avanzadas'!$C$21 -> 280.3299978 | W55: =+'Opciones Avanzadas'!$C$21 -> 280.3299978 | X55: =+'Opciones Avanzadas'!$C$21 -> 280.3299978 | Y55: =+'Opciones Avanzadas'!$C$21 -> 280.3299978 | Z55: =+'Opciones Avanzadas'!$C$21 -> 280.3299978 | AA55: =+'Opciones Avanzadas'!$C$21 -> 280.3299978 | AB55: =+'Opciones Avanzadas'!$C$21 -> 280.3299978 | AC55: =+'Opciones Avanzadas'!$C$21 -> 280.3299978 | AD55: =+'Opciones Avanzadas'!$C$21 -> 280.3299978 | AE55: =+'Opciones Avanzadas'!$C$21 -> 280.3299978 | AF55: =+'Opciones Avanzadas'!$C$21 -> 280.3299978
B57: Gastos Comerciales (Por Tn) | C57: =C$2 -> Unidad de medida | D57: =D$2 -> Mes de actualiz. | E57: Costo | F57: =F$2 -> Calamuchita | G57: =G$2 -> Capital | H57: Colón | I57: Cruz del Eje | J57: Gral. Roca | K57: Gral. San Martín | L57: Ischilin | M57: Juárez Celman | N57: Marcos Juárez | O57: Minas | P57: Pocho | Q57: Pte. R. Sáenz Peña | R57: Punilla | S57: Río Cuarto | T57: Río Primero | U57: Río Seco | V57: Río Segundo | W57: San Alberto | X57: San Javier | Y57: San Justo | Z57: Santa María | AA57: Sobremonte | AB57: Tercero Arriba | AC57: Totoral | AD57: Tulumba | AE57: Unión | AF57: PROVINCIA
B58: Flete Largo | C58: $/tn | D58: 2020-02-01 | E58: - | F58: =+IF('Opciones Avanzadas'!$E$7<=MROUND('Opciones Avanzadas'!$E$7,5),VLOOKUP(MROUND('Opciones Avanzadas'!$E$7-2.5,5),Listas!$AB$21:$AC$135,2,FALSE)+(VLOOKUP(MROUND('Opciones Avanzadas'!$E$7,5),Listas!$AB$21:$AC$135,2,FALSE)-VLOOKUP(MROUND('Opciones Avanzadas'!$E$7-2.5,5),Listas!$AB$21:$AC$135,2,FALSE))/5*('Opciones Avanzadas'!$E$7-MROUND('Opciones Avanzadas'!$E$7-2.5,5)),VLOOKUP(MROUND('Opciones Avanzadas'!$E$7,5),Listas!$AB$21:$AC$135,2,FALSE)+(VLOOKUP(MROUND('Opciones Avanzadas'!$E$7+2.5,5),Listas!$AB$21:$AC$135,2,FALSE)-VLOOKUP(MROUND('Opciones Avanzadas'!$E$7,5),Listas!$AB$21:$AC$135,2,FALSE))/5*('Opciones Avanzadas'!$E$7-MROUND('Opciones Avanzadas'!$E$7,5))) -> 1698.78168 | G58: =+IF('Opciones Avanzadas'!$E$7<=MROUND('Opciones Avanzadas'!$E$7,5),VLOOKUP(MROUND('Opciones Avanzadas'!$E$7-2.5,5),Listas!$AB$21:$AC$135,2,FALSE)+(VLOOKUP(MROUND('Opciones Avanzadas'!$E$7,5),Listas!$AB$21:$AC$135,2,FALSE)-VLOOKUP(MROUND('Opciones Avanzadas'!$E$7-2.5,5),Listas!$AB$21:$AC$135,2,FALSE))/5*('Opciones Avanzadas'!$E$7-MROUND('Opciones Avanzadas'!$E$7-2.5,5)),VLOOKUP(MROUND('Opciones Avanzadas'!$E$7,5),Listas!$AB$21:$AC$135,2,FALSE)+(VLOOKUP(MROUND('Opciones Avanzadas'!$E$7+2.5,5),Listas!$AB$21:$AC$135,2,FALSE)-VLOOKUP(MROUND('Opciones Avanzadas'!$E$7,5),Listas!$AB$21:$AC$135,2,FALSE))/5*('Opciones Avanzadas'!$E$7-MROUND('Opciones Avanzadas'!$E$7,5))) -> 1698.78168 | H58: =+IF('Opciones Avanzadas'!$E$7<=MROUND('Opciones Avanzadas'!$E$7,5),VLOOKUP(MROUND('Opciones Avanzadas'!$E$7-2.5,5),Listas!$AB$21:$AC$135,2,FALSE)+(VLOOKUP(MROUND('Opciones Avanzadas'!$E$7,5),Listas!$AB$21:$AC$135,2,FALSE)-VLOOKUP(MROUND('Opciones Avanzadas'!$E$7-2.5,5),Listas!$AB$21:$AC$135,2,FALSE))/5*('Opciones Avanzadas'!$E$7-MROUND('Opciones Avanzadas'!$E$7-2.5,5)),VLOOKUP(MROUND('Opciones Avanzadas'!$E$7,5),Listas!$AB$21:$AC$135,2,FALSE)+(VLOOKUP(MROUND('Opciones Avanzadas'!$E$7+2.5,5),Listas!$AB$21:$AC$135,2,FALSE)-VLOOKUP(MROUND('Opciones Avanzadas'!$E$7,5),Listas!$AB$21:$AC$135,2,FALSE))/5*('Opciones Avanzadas'!$E$7-MROUND('Opciones Avanzadas'!$E$7,5))) -> 1698.78168 | I58: =+IF('Opciones Avanzadas'!$E$7<=MROUND('Opciones Avanzadas'!$E$7,5),VLOOKUP(MROUND('Opciones Avanzadas'!$E$7-2.5,5),Listas!$AB$21:$AC$135,2,FALSE)+(VLOOKUP(MROUND('Opciones Avanzadas'!$E$7,5),Listas!$AB$21:$AC$135,2,FALSE)-VLOOKUP(MROUND('Opciones Avanzadas'!$E$7-2.5,5),Listas!$AB$21:$AC$135,2,FALSE))/5*('Opciones Avanzadas'!$E$7-MROUND('Opciones Avanzadas'!$E$7-2.5,5)),VLOOKUP(MROUND('Opciones Avanzadas'!$E$7,5),Listas!$AB$21:$AC$135,2,FALSE)+(VLOOKUP(MROUND('Opciones Avanzadas'!$E$7+2.5,5),Listas!$AB$21:$AC$135,2,FALSE)-VLOOKUP(MROUND('Opciones Avanzadas'!$E$7,5),Listas!$AB$21:$AC$135,2,FALSE))/5*('Opciones Avanzadas'!$E$7-MROUND('Opciones Avanzadas'!$E$7,5))) -> 1698.78168 | J58: =+IF('Opciones Avanzadas'!$E$7<=MROUND('Opciones Avanzadas'!$E$7,5),VLOOKUP(MROUND('Opciones Avanzadas'!$E$7-2.5,5),Listas!$AB$21:$AC$135,2,FALSE)+(VLOOKUP(MROUND('Opciones Avanzadas'!$E$7,5),Listas!$AB$21:$AC$135,2,FALSE)-VLOOKUP(MROUND('Opciones Avanzadas'!$E$7-2.5,5),Listas!$AB$21:$AC$135,2,FALSE))/5*('Opciones Avanzadas'!$E$7-MROUND('Opciones Avanzadas'!$E$7-2.5,5)),VLOOKUP(MROUND('Opciones Avanzadas'!$E$7,5),Listas!$AB$21:$AC$135,2,FALSE)+(VLOOKUP(MROUND('Opciones Avanzadas'!$E$7+2.5,5),Listas!$AB$21:$AC$135,2,FALSE)-VLOOKUP(MROUND('Opciones Avanzadas'!$E$7,5),Listas!$AB$21:$AC$135,2,FALSE))/5*('Opciones Avanzadas'!$E$7-MROUND('Opciones Avanzadas'!$E$7,5))) -> 1698.78168 | K58: =+IF('Opciones Avanzadas'!$E$7<=MROUND('Opciones Avanzadas'!$E$7,5),VLOOKUP(MROUND('Opciones Avanzadas'!$E$7-2.5,5),Listas!$AB$21:$AC$135,2,FALSE)+(VLOOKUP(MROUND('Opciones Avanzadas'!$E$7,5),Listas!$AB$21:$AC$135,2,FALSE)-VLOOKUP(MROUND('Opciones Avanzadas'!$E$7-2.5,5),Listas!$AB$21:$AC$135,2,FALSE))/5*('Opciones Avanzadas'!$E$7-MROUND('Opciones Avanzadas'!$E$7-2.5,5)),VLOOKUP(MROUND('Opciones Avanzadas'!$E$7,5),Listas!$AB$21:$AC$135,2,FALSE)+(VLOOKUP(MROUND('Opciones Avanzadas'!$E$7+2.5,5),Listas!$AB$21:$AC$135,2,FALSE)-VLOOKUP(MROUND('Opciones Avanzadas'!$E$7,5),Listas!$AB$21:$AC$135,2,FALSE))/5*('Opciones Avanzadas'!$E$7-MROUND('Opciones Avanzadas'!$E$7,5))) -> 1698.78168 | L58: =+IF('Opciones Avanzadas'!$E$7<=MROUND('Opciones Avanzadas'!$E$7,5),VLOOKUP(MROUND('Opciones Avanzadas'!$E$7-2.5,5),Listas!$AB$21:$AC$135,2,FALSE)+(VLOOKUP(MROUND('Opciones Avanzadas'!$E$7,5),Listas!$AB$21:$AC$135,2,FALSE)-VLOOKUP(MROUND('Opciones Avanzadas'!$E$7-2.5,5),Listas!$AB$21:$AC$135,2,FALSE))/5*('Opciones Avanzadas'!$E$7-MROUND('Opciones Avanzadas'!$E$7-2.5,5)),VLOOKUP(MROUND('Opciones Avanzadas'!$E$7,5),Listas!$AB$21:$AC$135,2,FALSE)+(VLOOKUP(MROUND('Opciones Avanzadas'!$E$7+2.5,5),Listas!$AB$21:$AC$135,2,FALSE)-VLOOKUP(MROUND('Opciones Avanzadas'!$E$7,5),Listas!$AB$21:$AC$135,2,FALSE))/5*('Opciones Avanzadas'!$E$7-MROUND('Opciones Avanzadas'!$E$7,5))) -> 1698.78168 | M58: =+IF('Opciones Avanzadas'!$E$7<=MROUND('Opciones Avanzadas'!$E$7,5),VLOOKUP(MROUND('Opciones Avanzadas'!$E$7-2.5,5),Listas!$AB$21:$AC$135,2,FALSE)+(VLOOKUP(MROUND('Opciones Avanzadas'!$E$7,5),Listas!$AB$21:$AC$135,2,FALSE)-VLOOKUP(MROUND('Opciones Avanzadas'!$E$7-2.5,5),Listas!$AB$21:$AC$135,2,FALSE))/5*('Opciones Avanzadas'!$E$7-MROUND('Opciones Avanzadas'!$E$7-2.5,5)),VLOOKUP(MROUND('Opciones Avanzadas'!$E$7,5),Listas!$AB$21:$AC$135,2,FALSE)+(VLOOKUP(MROUND('Opciones Avanzadas'!$E$7+2.5,5),Listas!$AB$21:$AC$135,2,FALSE)-VLOOKUP(MROUND('Opciones Avanzadas'!$E$7,5),Listas!$AB$21:$AC$135,2,FALSE))/5*('Opciones Avanzadas'!$E$7-MROUND('Opciones Avanzadas'!$E$7,5))) -> 1698.78168 | N58: =+IF('Opciones Avanzadas'!$E$7<=MROUND('Opciones Avanzadas'!$E$7,5),VLOOKUP(MROUND('Opciones Avanzadas'!$E$7-2.5,5),Listas!$AB$21:$AC$135,2,FALSE)+(VLOOKUP(MROUND('Opciones Avanzadas'!$E$7,5),Listas!$AB$21:$AC$135,2,FALSE)-VLOOKUP(MROUND('Opciones Avanzadas'!$E$7-2.5,5),Listas!$AB$21:$AC$135,2,FALSE))/5*('Opciones Avanzadas'!$E$7-MROUND('Opciones Avanzadas'!$E$7-2.5,5)),VLOOKUP(MROUND('Opciones Avanzadas'!$E$7,5),Listas!$AB$21:$AC$135,2,FALSE)+(VLOOKUP(MROUND('Opciones Avanzadas'!$E$7+2.5,5),Listas!$AB$21:$AC$135,2,FALSE)-VLOOKUP(MROUND('Opciones Avanzadas'!$E$7,5),Listas!$AB$21:$AC$135,2,FALSE))/5*('Opciones Avanzadas'!$E$7-MROUND('Opciones Avanzadas'!$E$7,5))) -> 1698.78168 | O58: =+IF('Opciones Avanzadas'!$E$7<=MROUND('Opciones Avanzadas'!$E$7,5),VLOOKUP(MROUND('Opciones Avanzadas'!$E$7-2.5,5),Listas!$AB$21:$AC$135,2,FALSE)+(VLOOKUP(MROUND('Opciones Avanzadas'!$E$7,5),Listas!$AB$21:$AC$135,2,FALSE)-VLOOKUP(MROUND('Opciones Avanzadas'!$E$7-2.5,5),Listas!$AB$21:$AC$135,2,FALSE))/5*('Opciones Avanzadas'!$E$7-MROUND('Opciones Avanzadas'!$E$7-2.5,5)),VLOOKUP(MROUND('Opciones Avanzadas'!$E$7,5),Listas!$AB$21:$AC$135,2,FALSE)+(VLOOKUP(MROUND('Opciones Avanzadas'!$E$7+2.5,5),Listas!$AB$21:$AC$135,2,FALSE)-VLOOKUP(MROUND('Opciones Avanzadas'!$E$7,5),Listas!$AB$21:$AC$135,2,FALSE))/5*('Opciones Avanzadas'!$E$7-MROUND('Opciones Avanzadas'!$E$7,5))) -> 1698.78168 | P58: =+IF('Opciones Avanzadas'!$E$7<=MROUND('Opciones Avanzadas'!$E$7,5),VLOOKUP(MROUND('Opciones Avanzadas'!$E$7-2.5,5),Listas!$AB$21:$AC$135,2,FALSE)+(VLOOKUP(MROUND('Opciones Avanzadas'!$E$7,5),Listas!$AB$21:$AC$135,2,FALSE)-VLOOKUP(MROUND('Opciones Avanzadas'!$E$7-2.5,5),Listas!$AB$21:$AC$135,2,FALSE))/5*('Opciones Avanzadas'!$E$7-MROUND('Opciones Avanzadas'!$E$7-2.5,5)),VLOOKUP(MROUND('Opciones Avanzadas'!$E$7,5),Listas!$AB$21:$AC$135,2,FALSE)+(VLOOKUP(MROUND('Opciones Avanzadas'!$E$7+2.5,5),Listas!$AB$21:$AC$135,2,FALSE)-VLOOKUP(MROUND('Opciones Avanzadas'!$E$7,5),Listas!$AB$21:$AC$135,2,FALSE))/5*('Opciones Avanzadas'!$E$7-MROUND('Opciones Avanzadas'!$E$7,5))) -> 1698.78168 | Q58: =+IF('Opciones Avanzadas'!$E$7<=MROUND('Opciones Avanzadas'!$E$7,5),VLOOKUP(MROUND('Opciones Avanzadas'!$E$7-2.5,5),Listas!$AB$21:$AC$135,2,FALSE)+(VLOOKUP(MROUND('Opciones Avanzadas'!$E$7,5),Listas!$AB$21:$AC$135,2,FALSE)-VLOOKUP(MROUND('Opciones Avanzadas'!$E$7-2.5,5),Listas!$AB$21:$AC$135,2,FALSE))/5*('Opciones Avanzadas'!$E$7-MROUND('Opciones Avanzadas'!$E$7-2.5,5)),VLOOKUP(MROUND('Opciones Avanzadas'!$E$7,5),Listas!$AB$21:$AC$135,2,FALSE)+(VLOOKUP(MROUND('Opciones Avanzadas'!$E$7+2.5,5),Listas!$AB$21:$AC$135,2,FALSE)-VLOOKUP(MROUND('Opciones Avanzadas'!$E$7,5),Listas!$AB$21:$AC$135,2,FALSE))/5*('Opciones Avanzadas'!$E$7-MROUND('Opciones Avanzadas'!$E$7,5))) -> 1698.78168 | R58: =+IF('Opciones Avanzadas'!$E$7<=MROUND('Opciones Avanzadas'!$E$7,5),VLOOKUP(MROUND('Opciones Avanzadas'!$E$7-2.5,5),Listas!$AB$21:$AC$135,2,FALSE)+(VLOOKUP(MROUND('Opciones Avanzadas'!$E$7,5),Listas!$AB$21:$AC$135,2,FALSE)-VLOOKUP(MROUND('Opciones Avanzadas'!$E$7-2.5,5),Listas!$AB$21:$AC$135,2,FALSE))/5*('Opciones Avanzadas'!$E$7-MROUND('Opciones Avanzadas'!$E$7-2.5,5)),VLOOKUP(MROUND('Opciones Avanzadas'!$E$7,5),Listas!$AB$21:$AC$135,2,FALSE)+(VLOOKUP(MROUND('Opciones Avanzadas'!$E$7+2.5,5),Listas!$AB$21:$AC$135,2,FALSE)-VLOOKUP(MROUND('Opciones Avanzadas'!$E$7,5),Listas!$AB$21:$AC$135,2,FALSE))/5*('Opciones Avanzadas'!$E$7-MROUND('Opciones Avanzadas'!$E$7,5))) -> 1698.78168 | S58: =+IF('Opciones Avanzadas'!$E$7<=MROUND('Opciones Avanzadas'!$E$7,5),VLOOKUP(MROUND('Opciones Avanzadas'!$E$7-2.5,5),Listas!$AB$21:$AC$135,2,FALSE)+(VLOOKUP(MROUND('Opciones Avanzadas'!$E$7,5),Listas!$AB$21:$AC$135,2,FALSE)-VLOOKUP(MROUND('Opciones Avanzadas'!$E$7-2.5,5),Listas!$AB$21:$AC$135,2,FALSE))/5*('Opciones Avanzadas'!$E$7-MROUND('Opciones Avanzadas'!$E$7-2.5,5)),VLOOKUP(MROUND('Opciones Avanzadas'!$E$7,5),Listas!$AB$21:$AC$135,2,FALSE)+(VLOOKUP(MROUND('Opciones Avanzadas'!$E$7+2.5,5),Listas!$AB$21:$AC$135,2,FALSE)-VLOOKUP(MROUND('Opciones Avanzadas'!$E$7,5),Listas!$AB$21:$AC$135,2,FALSE))/5*('Opciones Avanzadas'!$E$7-MROUND('Opciones Avanzadas'!$E$7,5))) -> 1698.78168 | T58: =+IF('Opciones Avanzadas'!$E$7<=MROUND('Opciones Avanzadas'!$E$7,5),VLOOKUP(MROUND('Opciones Avanzadas'!$E$7-2.5,5),Listas!$AB$21:$AC$135,2,FALSE)+(VLOOKUP(MROUND('Opciones Avanzadas'!$E$7,5),Listas!$AB$21:$AC$135,2,FALSE)-VLOOKUP(MROUND('Opciones Avanzadas'!$E$7-2.5,5),Listas!$AB$21:$AC$135,2,FALSE))/5*('Opciones Avanzadas'!$E$7-MROUND('Opciones Avanzadas'!$E$7-2.5,5)),VLOOKUP(MROUND('Opciones Avanzadas'!$E$7,5),Listas!$AB$21:$AC$135,2,FALSE)+(VLOOKUP(MROUND('Opciones Avanzadas'!$E$7+2.5,5),Listas!$AB$21:$AC$135,2,FALSE)-VLOOKUP(MROUND('Opciones Avanzadas'!$E$7,5),Listas!$AB$21:$AC$135,2,FALSE))/5*('Opciones Avanzadas'!$E$7-MROUND('Opciones Avanzadas'!$E$7,5))) -> 1698.78168 | U58: =+IF('Opciones Avanzadas'!$E$7<=MROUND('Opciones Avanzadas'!$E$7,5),VLOOKUP(MROUND('Opciones Avanzadas'!$E$7-2.5,5),Listas!$AB$21:$AC$135,2,FALSE)+(VLOOKUP(MROUND('Opciones Avanzadas'!$E$7,5),Listas!$AB$21:$AC$135,2,FALSE)-VLOOKUP(MROUND('Opciones Avanzadas'!$E$7-2.5,5),Listas!$AB$21:$AC$135,2,FALSE))/5*('Opciones Avanzadas'!$E$7-MROUND('Opciones Avanzadas'!$E$7-2.5,5)),VLOOKUP(MROUND('Opciones Avanzadas'!$E$7,5),Listas!$AB$21:$AC$135,2,FALSE)+(VLOOKUP(MROUND('Opciones Avanzadas'!$E$7+2.5,5),Listas!$AB$21:$AC$135,2,FALSE)-VLOOKUP(MROUND('Opciones Avanzadas'!$E$7,5),Listas!$AB$21:$AC$135,2,FALSE))/5*('Opciones Avanzadas'!$E$7-MROUND('Opciones Avanzadas'!$E$7,5))) -> 1698.78168 | V58: =+IF('Opciones Avanzadas'!$E$7<=MROUND('Opciones Avanzadas'!$E$7,5),VLOOKUP(MROUND('Opciones Avanzadas'!$E$7-2.5,5),Listas!$AB$21:$AC$135,2,FALSE)+(VLOOKUP(MROUND('Opciones Avanzadas'!$E$7,5),Listas!$AB$21:$AC$135,2,FALSE)-VLOOKUP(MROUND('Opciones Avanzadas'!$E$7-2.5,5),Listas!$AB$21:$AC$135,2,FALSE))/5*('Opciones Avanzadas'!$E$7-MROUND('Opciones Avanzadas'!$E$7-2.5,5)),VLOOKUP(MROUND('Opciones Avanzadas'!$E$7,5),Listas!$AB$21:$AC$135,2,FALSE)+(VLOOKUP(MROUND('Opciones Avanzadas'!$E$7+2.5,5),Listas!$AB$21:$AC$135,2,FALSE)-VLOOKUP(MROUND('Opciones Avanzadas'!$E$7,5),Listas!$AB$21:$AC$135,2,FALSE))/5*('Opciones Avanzadas'!$E$7-MROUND('Opciones Avanzadas'!$E$7,5))) -> 1698.78168 | W58: =+IF('Opciones Avanzadas'!$E$7<=MROUND('Opciones Avanzadas'!$E$7,5),VLOOKUP(MROUND('Opciones Avanzadas'!$E$7-2.5,5),Listas!$AB$21:$AC$135,2,FALSE)+(VLOOKUP(MROUND('Opciones Avanzadas'!$E$7,5),Listas!$AB$21:$AC$135,2,FALSE)-VLOOKUP(MROUND('Opciones Avanzadas'!$E$7-2.5,5),Listas!$AB$21:$AC$135,2,FALSE))/5*('Opciones Avanzadas'!$E$7-MROUND('Opciones Avanzadas'!$E$7-2.5,5)),VLOOKUP(MROUND('Opciones Avanzadas'!$E$7,5),Listas!$AB$21:$AC$135,2,FALSE)+(VLOOKUP(MROUND('Opciones Avanzadas'!$E$7+2.5,5),Listas!$AB$21:$AC$135,2,FALSE)-VLOOKUP(MROUND('Opciones Avanzadas'!$E$7,5),Listas!$AB$21:$AC$135,2,FALSE))/5*('Opciones Avanzadas'!$E$7-MROUND('Opciones Avanzadas'!$E$7,5))) -> 1698.78168 | X58: =+IF('Opciones Avanzadas'!$E$7<=MROUND('Opciones Avanzadas'!$E$7,5),VLOOKUP(MROUND('Opciones Avanzadas'!$E$7-2.5,5),Listas!$AB$21:$AC$135,2,FALSE)+(VLOOKUP(MROUND('Opciones Avanzadas'!$E$7,5),Listas!$AB$21:$AC$135,2,FALSE)-VLOOKUP(MROUND('Opciones Avanzadas'!$E$7-2.5,5),Listas!$AB$21:$AC$135,2,FALSE))/5*('Opciones Avanzadas'!$E$7-MROUND('Opciones Avanzadas'!$E$7-2.5,5)),VLOOKUP(MROUND('Opciones Avanzadas'!$E$7,5),Listas!$AB$21:$AC$135,2,FALSE)+(VLOOKUP(MROUND('Opciones Avanzadas'!$E$7+2.5,5),Listas!$AB$21:$AC$135,2,FALSE)-VLOOKUP(MROUND('Opciones Avanzadas'!$E$7,5),Listas!$AB$21:$AC$135,2,FALSE))/5*('Opciones Avanzadas'!$E$7-MROUND('Opciones Avanzadas'!$E$7,5))) -> 1698.78168 | Y58: =+IF('Opciones Avanzadas'!$E$7<=MROUND('Opciones Avanzadas'!$E$7,5),VLOOKUP(MROUND('Opciones Avanzadas'!$E$7-2.5,5),Listas!$AB$21:$AC$135,2,FALSE)+(VLOOKUP(MROUND('Opciones Avanzadas'!$E$7,5),Listas!$AB$21:$AC$135,2,FALSE)-VLOOKUP(MROUND('Opciones Avanzadas'!$E$7-2.5,5),Listas!$AB$21:$AC$135,2,FALSE))/5*('Opciones Avanzadas'!$E$7-MROUND('Opciones Avanzadas'!$E$7-2.5,5)),VLOOKUP(MROUND('Opciones Avanzadas'!$E$7,5),Listas!$AB$21:$AC$135,2,FALSE)+(VLOOKUP(MROUND('Opciones Avanzadas'!$E$7+2.5,5),Listas!$AB$21:$AC$135,2,FALSE)-VLOOKUP(MROUND('Opciones Avanzadas'!$E$7,5),Listas!$AB$21:$AC$135,2,FALSE))/5*('Opciones Avanzadas'!$E$7-MROUND('Opciones Avanzadas'!$E$7,5))) -> 1698.78168 | Z58: =+IF('Opciones Avanzadas'!$E$7<=MROUND('Opciones Avanzadas'!$E$7,5),VLOOKUP(MROUND('Opciones Avanzadas'!$E$7-2.5,5),Listas!$AB$21:$AC$135,2,FALSE)+(VLOOKUP(MROUND('Opciones Avanzadas'!$E$7,5),Listas!$AB$21:$AC$135,2,FALSE)-VLOOKUP(MROUND('Opciones Avanzadas'!$E$7-2.5,5),Listas!$AB$21:$AC$135,2,FALSE))/5*('Opciones Avanzadas'!$E$7-MROUND('Opciones Avanzadas'!$E$7-2.5,5)),VLOOKUP(MROUND('Opciones Avanzadas'!$E$7,5),Listas!$AB$21:$AC$135,2,FALSE)+(VLOOKUP(MROUND('Opciones Avanzadas'!$E$7+2.5,5),Listas!$AB$21:$AC$135,2,FALSE)-VLOOKUP(MROUND('Opciones Avanzadas'!$E$7,5),Listas!$AB$21:$AC$135,2,FALSE))/5*('Opciones Avanzadas'!$E$7-MROUND('Opciones Avanzadas'!$E$7,5))) -> 1698.78168 | AA58: =+IF('Opciones Avanzadas'!$E$7<=MROUND('Opciones Avanzadas'!$E$7,5),VLOOKUP(MROUND('Opciones Avanzadas'!$E$7-2.5,5),Listas!$AB$21:$AC$135,2,FALSE)+(VLOOKUP(MROUND('Opciones Avanzadas'!$E$7,5),Listas!$AB$21:$AC$135,2,FALSE)-VLOOKUP(MROUND('Opciones Avanzadas'!$E$7-2.5,5),Listas!$AB$21:$AC$135,2,FALSE))/5*('Opciones Avanzadas'!$E$7-MROUND('Opciones Avanzadas'!$E$7-2.5,5)),VLOOKUP(MROUND('Opciones Avanzadas'!$E$7,5),Listas!$AB$21:$AC$135,2,FALSE)+(VLOOKUP(MROUND('Opciones Avanzadas'!$E$7+2.5,5),Listas!$AB$21:$AC$135,2,FALSE)-VLOOKUP(MROUND('Opciones Avanzadas'!$E$7,5),Listas!$AB$21:$AC$135,2,FALSE))/5*('Opciones Avanzadas'!$E$7-MROUND('Opciones Avanzadas'!$E$7,5))) -> 1698.78168 | AB58: =+IF('Opciones Avanzadas'!$E$7<=MROUND('Opciones Avanzadas'!$E$7,5),VLOOKUP(MROUND('Opciones Avanzadas'!$E$7-2.5,5),Listas!$AB$21:$AC$135,2,FALSE)+(VLOOKUP(MROUND('Opciones Avanzadas'!$E$7,5),Listas!$AB$21:$AC$135,2,FALSE)-VLOOKUP(MROUND('Opciones Avanzadas'!$E$7-2.5,5),Listas!$AB$21:$AC$135,2,FALSE))/5*('Opciones Avanzadas'!$E$7-MROUND('Opciones Avanzadas'!$E$7-2.5,5)),VLOOKUP(MROUND('Opciones Avanzadas'!$E$7,5),Listas!$AB$21:$AC$135,2,FALSE)+(VLOOKUP(MROUND('Opciones Avanzadas'!$E$7+2.5,5),Listas!$AB$21:$AC$135,2,FALSE)-VLOOKUP(MROUND('Opciones Avanzadas'!$E$7,5),Listas!$AB$21:$AC$135,2,FALSE))/5*('Opciones Avanzadas'!$E$7-MROUND('Opciones Avanzadas'!$E$7,5))) -> 1698.78168 | AC58: =+IF('Opciones Avanzadas'!$E$7<=MROUND('Opciones Avanzadas'!$E$7,5),VLOOKUP(MROUND('Opciones Avanzadas'!$E$7-2.5,5),Listas!$AB$21:$AC$135,2,FALSE)+(VLOOKUP(MROUND('Opciones Avanzadas'!$E$7,5),Listas!$AB$21:$AC$135,2,FALSE)-VLOOKUP(MROUND('Opciones Avanzadas'!$E$7-2.5,5),Listas!$AB$21:$AC$135,2,FALSE))/5*('Opciones Avanzadas'!$E$7-MROUND('Opciones Avanzadas'!$E$7-2.5,5)),VLOOKUP(MROUND('Opciones Avanzadas'!$E$7,5),Listas!$AB$21:$AC$135,2,FALSE)+(VLOOKUP(MROUND('Opciones Avanzadas'!$E$7+2.5,5),Listas!$AB$21:$AC$135,2,FALSE)-VLOOKUP(MROUND('Opciones Avanzadas'!$E$7,5),Listas!$AB$21:$AC$135,2,FALSE))/5*('Opciones Avanzadas'!$E$7-MROUND('Opciones Avanzadas'!$E$7,5))) -> 1698.78168 | AD58: =+IF('Opciones Avanzadas'!$E$7<=MROUND('Opciones Avanzadas'!$E$7,5),VLOOKUP(MROUND('Opciones Avanzadas'!$E$7-2.5,5),Listas!$AB$21:$AC$135,2,FALSE)+(VLOOKUP(MROUND('Opciones Avanzadas'!$E$7,5),Listas!$AB$21:$AC$135,2,FALSE)-VLOOKUP(MROUND('Opciones Avanzadas'!$E$7-2.5,5),Listas!$AB$21:$AC$135,2,FALSE))/5*('Opciones Avanzadas'!$E$7-MROUND('Opciones Avanzadas'!$E$7-2.5,5)),VLOOKUP(MROUND('Opciones Avanzadas'!$E$7,5),Listas!$AB$21:$AC$135,2,FALSE)+(VLOOKUP(MROUND('Opciones Avanzadas'!$E$7+2.5,5),Listas!$AB$21:$AC$135,2,FALSE)-VLOOKUP(MROUND('Opciones Avanzadas'!$E$7,5),Listas!$AB$21:$AC$135,2,FALSE))/5*('Opciones Avanzadas'!$E$7-MROUND('Opciones Avanzadas'!$E$7,5))) -> 1698.78168 | AE58: =+IF('Opciones Avanzadas'!$E$7<=MROUND('Opciones Avanzadas'!$E$7,5),VLOOKUP(MROUND('Opciones Avanzadas'!$E$7-2.5,5),Listas!$AB$21:$AC$135,2,FALSE)+(VLOOKUP(MROUND('Opciones Avanzadas'!$E$7,5),Listas!$AB$21:$AC$135,2,FALSE)-VLOOKUP(MROUND('Opciones Avanzadas'!$E$7-2.5,5),Listas!$AB$21:$AC$135,2,FALSE))/5*('Opciones Avanzadas'!$E$7-MROUND('Opciones Avanzadas'!$E$7-2.5,5)),VLOOKUP(MROUND('Opciones Avanzadas'!$E$7,5),Listas!$AB$21:$AC$135,2,FALSE)+(VLOOKUP(MROUND('Opciones Avanzadas'!$E$7+2.5,5),Listas!$AB$21:$AC$135,2,FALSE)-VLOOKUP(MROUND('Opciones Avanzadas'!$E$7,5),Listas!$AB$21:$AC$135,2,FALSE))/5*('Opciones Avanzadas'!$E$7-MROUND('Opciones Avanzadas'!$E$7,5))) -> 1698.78168 | AF58: =+IF('Opciones Avanzadas'!$E$7<=MROUND('Opciones Avanzadas'!$E$7,5),VLOOKUP(MROUND('Opciones Avanzadas'!$E$7-2.5,5),Listas!$AB$21:$AC$135,2,FALSE)+(VLOOKUP(MROUND('Opciones Avanzadas'!$E$7,5),Listas!$AB$21:$AC$135,2,FALSE)-VLOOKUP(MROUND('Opciones Avanzadas'!$E$7-2.5,5),Listas!$AB$21:$AC$135,2,FALSE))/5*('Opciones Avanzadas'!$E$7-MROUND('Opciones Avanzadas'!$E$7-2.5,5)),VLOOKUP(MROUND('Opciones Avanzadas'!$E$7,5),Listas!$AB$21:$AC$135,2,FALSE)+(VLOOKUP(MROUND('Opciones Avanzadas'!$E$7+2.5,5),Listas!$AB$21:$AC$135,2,FALSE)-VLOOKUP(MROUND('Opciones Avanzadas'!$E$7,5),Listas!$AB$21:$AC$135,2,FALSE))/5*('Opciones Avanzadas'!$E$7-MROUND('Opciones Avanzadas'!$E$7,5))) -> 1698.78168
B59: Flete Corto (30Km) | C59: $/tn | D59: =D58 -> 2020-02-01 | E59: =+VLOOKUP(30,Listas!$AB$21:$AC$135,2,FALSE) -> 454.95264 | F59: =+E59 -> 454.95264 | G59: =+F59 -> 454.95264 | H59: 454.95264 | I59: 454.95264 | J59: 454.95264 | K59: 454.95264 | L59: 454.95264 | M59: 454.95264 | N59: 454.95264 | O59: 454.95264 | P59: 454.95264 | Q59: 454.95264 | R59: 454.95264 | S59: 454.95264 | T59: 454.95264 | U59: 454.95264 | V59: 454.95264 | W59: 454.95264 | X59: 454.95264 | Y59: 454.95264 | Z59: 454.95264 | AA59: 454.95264 | AB59: 454.95264 | AC59: 454.95264 | AD59: 454.95264 | AE59: 454.95264 | AF59: 454.95264
B60: Flete Conjunto | C60: USD/tn | D60: - | E60: - | F60: =0.95*(1+$E$101)*(F58+F59)/$E$98 -> 26.31775576 | H60: =0.95*(1+$E$101)*(H58+H59)/$E$98 -> 26.31775576 | J60: =0.95*(1+$E$101)*(J58+J59)/$E$98 -> 26.31775576 | K60: =0.95*(1+$E$101)*(K58+K59)/$E$98 -> 26.31775576 | M60: =0.95*(1+$E$101)*(M58+M59)/$E$98 -> 26.31775576 | N60: =0.95*(1+$E$101)*(N58+N59)/$E$98 -> 26.31775576 | Q60: =0.95*(1+$E$101)*(Q58+Q59)/$E$98 -> 26.31775576 | S60: =0.95*(1+$E$101)*(S58+S59)/$E$98 -> 26.31775576 | T60: =0.95*(1+$E$101)*(T58+T59)/$E$98 -> 26.31775576 | U60: =0.95*(1+$E$101)*(U58+U59)/$E$98 -> 26.31775576 | V60: =0.95*(1+$E$101)*(V58+V59)/$E$98 -> 26.31775576 | Y60: =0.95*(1+$E$101)*(Y58+Y59)/$E$98 -> 26.31775576 | Z60: =0.95*(1+$E$101)*(Z58+Z59)/$E$98 -> 26.31775576 | AB60: =0.95*(1+$E$101)*(AB58+AB59)/$E$98 -> 26.31775576 | AC60: =0.95*(1+$E$101)*(AC58+AC59)/$E$98 -> 26.31775576 | AD60: =0.95*(1+$E$101)*(AD58+AD59)/$E$98 -> 26.31775576 | AE60: =0.95*(1+$E$101)*(AE58+AE59)/$E$98 -> 26.31775576 | AF60: =0.95*(1+$E$101)*(AF58+AF59)/$E$98 -> 26.31775576
B61: Paritaria | C61: USD/tn | D61: Octubre | E61: 3.4 | F61: =$E$61 -> 3.4 | H61: =$E$61 -> 3.4 | J61: 3.4 | K61: 3.4 | M61: 3.4 | N61: 3.4 | Q61: 3.4 | S61: 3.4 | T61: 3.4 | U61: 3.4 | V61: 3.4 | Y61: 3.4 | Z61: 3.4 | AB61: 3.4 | AC61: 3.4 | AD61: 3.4 | AE61: 3.4 | AF61: 3.4
B62: Secado | C62: USD/tn | D62: =D61 -> Octubre | E62: 9 | F62: =+$E$62 -> 9 | H62: =+$E$62 -> 9 | J62: 9 | K62: 9 | M62: 9 | N62: 9 | Q62: 9 | S62: 9 | T62: 9 | U62: 9 | V62: 9 | Y62: 9 | Z62: 9 | AB62: 9 | AC62: 9 | AD62: 9 | AE62: 9 | AF62: 9
B63: Zarandeo | C63: USD/tn | D63: =D62 -> Octubre | E63: 2 | F63: =+$E$63 -> 2 | H63: =+$E$63 -> 2 | J63: 2 | K63: 2 | M63: 2 | N63: 2 | Q63: 2 | S63: 2 | T63: 2 | U63: 2 | V63: 2 | Y63: 2 | Z63: 2 | AB63: 2 | AC63: 2 | AD63: 2 | AE63: 2 | AF63: 2
B64: Comisión Acopio | C64: % s. Precio Cosecha | D64: - | E64: 0.005 | F64: =$E$96*$E64 -> 1.721846159 | H64: =$E$96*$E64 -> 1.721846159 | J64: 1.721846159 | K64: 1.721846159 | M64: 1.721846159 | N64: 1.721846159 | Q64: 1.721846159 | S64: 1.721846159 | T64: 1.721846159 | U64: 1.721846159 | V64: 1.721846159 | Y64: 1.721846159 | Z64: 1.721846159 | AB64: 1.721846159 | AC64: 1.721846159 | AD64: 1.721846159 | AE64: 1.721846159 | AF64: 1.721846159
B65: Total Gastos Comerciales | C65: USD/tn | F65: =SUM(F60:F64) -> 42.43960192 | H65: =SUM(H60:H64) -> 42.43960192 | J65: =SUM(J60:J64) -> 42.43960192 | K65: =SUM(K60:K64) -> 42.43960192 | M65: =SUM(M60:M64) -> 42.43960192 | N65: =SUM(N60:N64) -> 42.43960192 | Q65: =SUM(Q60:Q64) -> 42.43960192 | S65: =SUM(S60:S64) -> 42.43960192 | T65: =SUM(T60:T64) -> 42.43960192 | U65: =SUM(U60:U64) -> 42.43960192 | V65: =SUM(V60:V64) -> 42.43960192 | Y65: =SUM(Y60:Y64) -> 42.43960192 | Z65: =SUM(Z60:Z64) -> 42.43960192 | AB65: =SUM(AB60:AB64) -> 42.43960192 | AC65: =SUM(AC60:AC64) -> 42.43960192 | AD65: =SUM(AD60:AD64) -> 42.43960192 | AE65: =SUM(AE60:AE64) -> 42.43960192 | AF65: =SUM(AF60:AF64) -> 42.43960192
B67: Costos Indirectos (Por Ha) | C67: =C$2 -> Unidad de medida | D67: Mes de actualiz. | E67: Costo | F67: =F$2 -> Calamuchita | G67: Capital | H67: Colón | I67: Cruz del Eje | J67: Gral. Roca | K67: Gral. San Martín | L67: Ischilin | M67: Juárez Celman | N67: Marcos Juárez | O67: Minas | P67: Pocho | Q67: Pte. R. Sáenz Peña | R67: Punilla | S67: Río Cuarto | T67: Río Primero | U67: Río Seco | V67: Río Segundo | W67: San Alberto | X67: San Javier | Y67: San Justo | Z67: Santa María | AA67: Sobremonte | AB67: Tercero Arriba | AC67: Totoral | AD67: Tulumba | AE67: Unión | AF67: PROVINCIA
B68: Arrendamiento en qq | C68: qq/ha | D68: Agosto | E68: - | F68: =+'Opciones Avanzadas'!$E$9 -> 10.78 | H68: =+'Opciones Avanzadas'!$E$9 -> 10.78 | J68: =+'Opciones Avanzadas'!$E$9 -> 10.78 | K68: =+'Opciones Avanzadas'!$E$9 -> 10.78 | M68: =+'Opciones Avanzadas'!$E$9 -> 10.78 | N68: =+'Opciones Avanzadas'!$E$9 -> 10.78 | Q68: =+'Opciones Avanzadas'!$E$9 -> 10.78 | S68: =+'Opciones Avanzadas'!$E$9 -> 10.78 | T68: =+'Opciones Avanzadas'!$E$9 -> 10.78 | U68: =+'Opciones Avanzadas'!$E$9 -> 10.78 | V68: =+'Opciones Avanzadas'!$E$9 -> 10.78 | Y68: =+'Opciones Avanzadas'!$E$9 -> 10.78 | Z68: =+'Opciones Avanzadas'!$E$9 -> 10.78 | AB68: =+'Opciones Avanzadas'!$E$9 -> 10.78 | AC68: =+'Opciones Avanzadas'!$E$9 -> 10.78 | AD68: =+'Opciones Avanzadas'!$E$9 -> 10.78 | AE68: =+'Opciones Avanzadas'!$E$9 -> 10.78 | AF68: =+'Opciones Avanzadas'!$E$9 -> 10.78
B69: Arrendamiento en USD | C69: USD/ha | D69: =D68 -> Agosto | E69: =$E$96 -> 344.3692317 | F69: =$E$69*F68/10 -> 371.2300318 | H69: =$E$69*H68/10 -> 371.2300318 | J69: =$E$69*J68/10 -> 371.2300318 | K69: 371.2300318 | M69: 371.2300318 | N69: 371.2300318 | Q69: =$E$69*Q68/10 -> 371.2300318 | S69: 371.2300318 | T69: 371.2300318 | U69: 371.2300318 | V69: 371.2300318 | Y69: 371.2300318 | Z69: 371.2300318 | AB69: 371.2300318 | AC69: 371.2300318 | AD69: 371.2300318 | AE69: =$E$69*AE68/10 -> 371.2300318 | AF69: =$E$69*AF68/10 -> 371.2300318
B70: Movilidad Campo (Campo + Adm) | C70: USD/ha | E70: 12.3 | F70: =$E70 -> 12.3 | H70: =$E70 -> 12.3 | J70: 12.3 | K70: 12.3 | M70: 12.3 | N70: 12.3 | Q70: 12.3 | S70: 12.3 | T70: 12.3 | U70: 12.3 | V70: 12.3 | Y70: 12.3 | Z70: 12.3 | AB70: 12.3 | AC70: 12.3 | AD70: 12.3 | AE70: =$E70 -> 12.3 | AF70: =$E70 -> 12.3
B71: Personal (Salarios) | C71: USD/ha | D71: Noviembre | E71: 35.06026335 | F71: =$E71 -> 35.06026335 | H71: 35.06026335 | J71: 35.06026335 | K71: 35.06026335 | M71: 35.06026335 | N71: 35.06026335 | Q71: 35.06026335 | S71: 35.06026335 | T71: 35.06026335 | U71: 35.06026335 | V71: 35.06026335 | Y71: 35.06026335 | Z71: 35.06026335 | AB71: 35.06026335 | AC71: 35.06026335 | AD71: 35.06026335 | AE71: =$E71 -> 35.06026335 | AF71: =$E71 -> 35.06026335
B72: Asesoramiento Técnico | C72: USD/ha | E72: 0.01 | F72: =$E72*F108 -> 10.96914272 | H72: =$E72*H108 -> 10.96914272 | J72: =$E72*J108 -> 10.96914272 | K72: =$E72*K108 -> 10.96914272 | M72: =$E72*M108 -> 10.96914272 | N72: =$E72*N108 -> 10.96914272 | Q72: =$E72*Q108 -> 10.96914272 | S72: =$E72*S108 -> 10.96914272 | T72: =$E72*T108 -> 10.96914272 | U72: =$E72*U108 -> 10.96914272 | V72: =$E72*V108 -> 10.96914272 | Y72: =$E72*Y108 -> 10.96914272 | Z72: =$E72*Z108 -> 10.96914272 | AB72: =$E72*AB108 -> 10.96914272 | AC72: =$E72*AC108 -> 10.96914272 | AD72: =$E72*AD108 -> 10.96914272 | AE72: =$E72*AE108 -> 10.96914272 | AF72: =$E72*AF108 -> 10.96914272
B73: Asesoramiento Contable | C73: USD/ha | E73: 6 | F73: =$E73 -> 6 | H73: =$E73 -> 6 | J73: 6 | K73: 6 | M73: 6 | N73: 6 | Q73: 6 | S73: 6 | T73: 6 | U73: 6 | V73: 6 | Y73: 6 | Z73: 6 | AB73: 6 | AC73: 6 | AD73: 6 | AE73: =$E73 -> 6 | AF73: 6
B74: Gastos de oficina/comunicaciones | C74: USD/ha | E74: 3.9 | F74: 3.9 | H74: 3.9 | J74: 3.9 | K74: 3.9 | M74: 3.9 | N74: 3.9 | Q74: 3.9 | S74: 3.9 | T74: 3.9 | U74: 3.9 | V74: 3.9 | Y74: 3.9 | Z74: 3.9 | AB74: 3.9 | AC74: 3.9 | AD74: 3.9 | AE74: 3.9 | AF74: 3.9
B75: Receta Fitosanitaria | C75: USD/ha | E75: 0 | F75: 0 | H75: 0 | J75: 0 | K75: 0 | M75: 0 | N75: 0 | Q75: 0 | S75: 0 | T75: 0 | U75: 0 | V75: 0 | Y75: 0 | Z75: 0 | AB75: 0 | AC75: 0 | AD75: 0 | AE75: 0 | AF75: 0
B76: Asesor Financiero | C76: USD/ha | E76: 0 | F76: 0 | H76: 0 | J76: 0 | K76: 0 | M76: 0 | N76: 0 | Q76: 0 | S76: 0 | T76: 0 | U76: 0 | V76: 0 | Y76: 0 | Z76: 0 | AB76: 0 | AC76: 0 | AD76: 0 | AE76: 0 | AF76: 0
B77: Seguro Climatico | C77: USD/ha | E77: 0 | F77: 0 | H77: 0 | J77: 0 | K77: 0 | M77: 0 | N77: 0 | Q77: 0 | S77: 0 | T77: 0 | U77: 0 | V77: 0 | Y77: 0 | Z77: 0 | AB77: 0 | AC77: 0 | AD77: 0 | AE77: 0 | AF77: 0
B78: Conservaciones y Mejoras | C78: USD/ha | E78: 3 | F78: 3 | H78: 3 | J78: 3 | K78: 3 | M78: 3 | N78: 3 | Q78: 3 | S78: 3 | T78: 3 | U78: 3 | V78: 3 | Y78: 3 | Z78: 3 | AB78: 3 | AC78: 3 | AD78: 3 | AE78: 3 | AF78: 3
B79: Gastos imprevistos/Otros | C79: USD/ha | E79: 0 | F79: 0 | H79: 0 | J79: 0 | K79: 0 | M79: 0 | N79: 0 | Q79: 0 | S79: 0 | T79: 0 | U79: 0 | V79: 0 | Y79: 0 | Z79: 0 | AB79: 0 | AC79: 0 | AD79: 0 | AE79: 0 | AF79: 0
B80: Total Costos Indirectos | F80: =SUM(F69:F79) -> 442.4594379 | H80: =SUM(H69:H79) -> 442.4594379 | J80: 442.4594379 | K80: 442.4594379 | M80: 442.4594379 | N80: 442.4594379 | Q80: 442.4594379 | S80: 442.4594379 | T80: 442.4594379 | U80: 442.4594379 | V80: 442.4594379 | Y80: 442.4594379 | Z80: 442.4594379 | AB80: 442.4594379 | AC80: 442.4594379 | AD80: 442.4594379 | AE80: 442.4594379 | AF80: =SUM(AF69:AF79) -> 442.4594379
B82: Impuestos (Por Ha) | C82: =C$2 -> Unidad de medida | D82: =D$2 -> Mes de actualiz. | E82: Porcentaje | F82: =F$2 -> Calamuchita | G82: Capital | H82: Colón | I82: Cruz del Eje | J82: Gral. Roca | K82: Gral. San Martín | L82: Ischilin | M82: Juárez Celman | N82: Marcos Juárez | O82: Minas | P82: Pocho | Q82: Pte. R. Sáenz Peña | R82: Punilla | S82: Río Cuarto | T82: Río Primero | U82: Río Seco | V82: Río Segundo | W82: San Alberto | X82: San Javier | Y82: San Justo | Z82: Santa María | AA82: Sobremonte | AB82: Tercero Arriba | AC82: Totoral | AD82: Tulumba | AE82: Unión | AF82: PROVINCIA
B83: Impuesto a las ganancias | C83: % s. Resultado Positivo | D83: - | E83: 0.3 | F83: =IF(F114<0,0,$E$83*F114) -> 71.68277819 | H83: =IF(H114<0,0,$E$83*H114) -> 71.68277819 | J83: 71.68277819 | K83: 71.68277819 | M83: 71.68277819 | N83: 71.68277819 | Q83: 71.68277819 | S83: 71.68277819 | T83: 71.68277819 | U83: 71.68277819 | V83: 71.68277819 | Y83: 71.68277819 | Z83: 71.68277819 | AB83: 71.68277819 | AC83: 71.68277819 | AD83: 71.68277819 | AE83: 71.68277819 | AF83: 71.68277819
B84: Impuesto a la ganancia mínima presunta | C84: - | D84: - | E84: -
B85: Impuestos a los combustibles | C85: - | D85: - | E85: -
B86: Impuesto al cheque | C86: % s. Ingresos Totales | D86: - | E86: 0.012 | F86: =$E$86/2*(F108+F109+F110+F113)*0.4 -> 4.691726281 | H86: =$E$86/2*(H108+H109+H110+H113)*0.4 -> 4.691726281 | J86: =$E$86/2*(J108+J109+J110+J113)*0.4 -> 4.691726281 | K86: =$E$86/2*(K108+K109+K110+K113)*0.4 -> 4.691726281 | M86: =$E$86/2*(M108+M109+M110+M113)*0.4 -> 4.691726281 | N86: =$E$86/2*(N108+N109+N110+N113)*0.4 -> 4.691726281 | Q86: =$E$86/2*(Q108+Q109+Q110+Q113)*0.4 -> 4.691726281 | S86: =$E$86/2*(S108+S109+S110+S113)*0.4 -> 4.691726281 | T86: =$E$86/2*(T108+T109+T110+T113)*0.4 -> 4.691726281 | U86: =$E$86/2*(U108+U109+U110+U113)*0.4 -> 4.691726281 | V86: =$E$86/2*(V108+V109+V110+V113)*0.4 -> 4.691726281 | Y86: =$E$86/2*(Y108+Y109+Y110+Y113)*0.4 -> 4.691726281 | Z86: =$E$86/2*(Z108+Z109+Z110+Z113)*0.4 -> 4.691726281 | AB86: =$E$86/2*(AB108+AB109+AB110+AB113)*0.4 -> 4.691726281 | AC86: =$E$86/2*(AC108+AC109+AC110+AC113)*0.4 -> 4.691726281 | AD86: =$E$86/2*(AD108+AD109+AD110+AD113)*0.4 -> 4.691726281 | AE86: =$E$86/2*(AE108+AE109+AE110+AE113)*0.4 -> 4.691726281 | AF86: =$E$86/2*(AF108+AF109+AF110+AF113)*0.4 -> 4.691726281
B87: Impuesto a los sellos | C87: % s. Ingresos Totales | D87: - | E87: 0.012 | F87: =$E$87*F108 -> 13.16297127 | H87: =$E$87*H108 -> 13.16297127 | J87: =$E$87*J108 -> 13.16297127 | K87: =$E$87*K108 -> 13.16297127 | M87: =$E$87*M108 -> 13.16297127 | N87: =$E$87*N108 -> 13.16297127 | Q87: =$E$87*Q108 -> 13.16297127 | S87: =$E$87*S108 -> 13.16297127 | T87: =$E$87*T108 -> 13.16297127 | U87: =$E$87*U108 -> 13.16297127 | V87: =$E$87*V108 -> 13.16297127 | Y87: =$E$87*Y108 -> 13.16297127 | Z87: =$E$87*Z108 -> 13.16297127 | AB87: =$E$87*AB108 -> 13.16297127 | AC87: =$E$87*AC108 -> 13.16297127 | AD87: =$E$87*AD108 -> 13.16297127 | AE87: =$E$87*AE108 -> 13.16297127 | AF87: =$E$87*AF108 -> 13.16297127
B88: Impuesto inmobiliario | C88: - | D88: - | E88: -
B89: Impuesto a los automotores (rentas) | C89: - | D89: - | E89: -
B90: Impuesto a la renta financiera | C90: - | D90: - | E90: -
B91: Impuesto a utilidades y dividendos | C91: - | D91: - | E91: -
B92: IVA crédito | C92: - | D92: - | E92: -
B93: IVA Débito | C93: - | D93: - | E93: -
B94: Total impuestos | F94: =+SUM(F83:F93) -> 89.53747574 | H94: =+SUM(H83:H93) -> 89.53747574 | J94: 89.53747574 | K94: 89.53747574 | M94: 89.53747574 | N94: 89.53747574 | Q94: 89.53747574 | S94: 89.53747574 | T94: 89.53747574 | U94: 89.53747574 | V94: 89.53747574 | Y94: 89.53747574 | Z94: 89.53747574 | AB94: 89.53747574 | AC94: 89.53747574 | AD94: 89.53747574 | AE94: 89.53747574 | AF94: =+SUM(AF83:AF93) -> 89.53747574
B96: Precio soja cosecha USD/tn | D96: Noviembre | E96: =+'Calculadora BCCBA'!C12 -> 344.3692317
B97: Dólar siembra | D97: Octubre | E97: 78.72
B98: Dólar Cosecha | D98: Noviembre | E98: =+'Calculadora BCCBA'!C17 -> 97.18
B99: Dólar Promedio | D99: - | E99: =+(E98+E97)/2 -> 87.95
B100: Inflación esperada hasta dato FACMA de esta campaña | D100: Febrero | E100: 0.12
B101: Inflación esp. desde FECOTAC hasta mayo | D101: Noviembre | E101: 0.25
B102: Tasa de interes del costo de oportunidad | D102: Febrero | E102: 0.0025
B103: Precio combustible | D103: - | E103: -
B105: RENTABILIDAD EN DÓLARES | F105: =F$2 -> Calamuchita | G105: Capital | H105: Colón | I105: Cruz del Eje | J105: Gral. Roca | K105: Gral. San Martín | L105: Ischilin | M105: Juárez Celman | N105: Marcos Juárez | O105: Minas | P105: Pocho | Q105: Pte. R. Sáenz Peña | R105: Punilla | S105: Río Cuarto | T105: Río Primero | U105: Río Seco | V105: Río Segundo | W105: San Alberto | X105: San Javier | Y105: San Justo | Z105: Santa María | AA105: Sobremonte | AB105: Tercero Arriba | AC105: Totoral | AD105: Tulumba | AE105: Unión | AF105: PROVINCIA
B106: Rendimientos Soja | D106: qq/ha | F106: =F3 -> 31.8528536 | H106: 31.8528536 | J106: 31.8528536 | K106: 31.8528536 | M106: 31.8528536 | N106: 31.8528536 | Q106: 31.8528536 | S106: 31.8528536 | T106: 31.8528536 | U106: 31.8528536 | V106: 31.8528536 | Y106: 31.8528536 | Z106: 31.8528536 | AB106: 31.8528536 | AC106: 31.8528536 | AD106: 31.8528536 | AE106: 31.8528536 | AF106: 31.8528536
B107: Precio Soja | D107: USD/qq | F107: =IF(F106=0,"",$E$96) -> 344.3692317 | H107: 344.3692317 | J107: 344.3692317 | K107: 344.3692317 | M107: 344.3692317 | N107: 344.3692317 | Q107: 344.3692317 | S107: 344.3692317 | T107: 344.3692317 | U107: 344.3692317 | V107: 344.3692317 | Y107: 344.3692317 | Z107: 344.3692317 | AB107: 344.3692317 | AC107: 344.3692317 | AD107: 344.3692317 | AE107: 344.3692317 | AF107: =IF(AF106=0,"",$E$96) -> 344.3692317
B108: Ingresos Totales | D108: USD/ha | F108: =IF(F106=0,"",F107*F106/10) -> 1096.914272 | H108: =IF(H106=0,"",H107*H106/10) -> 1096.914272 | J108: 1096.914272 | K108: 1096.914272 | M108: 1096.914272 | N108: 1096.914272 | Q108: 1096.914272 | S108: 1096.914272 | T108: 1096.914272 | U108: 1096.914272 | V108: 1096.914272 | Y108: 1096.914272 | Z108: 1096.914272 | AB108: 1096.914272 | AC108: 1096.914272 | AD108: 1096.914272 | AE108: 1096.914272 | AF108: =IF(AF106=0,"",AF107*AF106/10) -> 1096.914272
B109: Costos Directos | D109: USD/ha | F109: =IF(F106=0,"",F55) -> 280.3299978 | H109: =IF(H106=0,"",H55) -> 280.3299978 | J109: 280.3299978 | K109: 280.3299978 | M109: 280.3299978 | N109: 280.3299978 | Q109: 280.3299978 | S109: 280.3299978 | T109: 280.3299978 | U109: 280.3299978 | V109: 280.3299978 | Y109: 280.3299978 | Z109: 280.3299978 | AB109: 280.3299978 | AC109: 280.3299978 | AD109: 280.3299978 | AE109: 280.3299978 | AF109: 280.3299978
B110: Gastos Comerciales | D110: USD/ha | F110: =IF(F106=0,"",F65*F106/10) -> 135.1822427 | H110: 135.1822427 | J110: 135.1822427 | K110: 135.1822427 | M110: 135.1822427 | N110: 135.1822427 | Q110: 135.1822427 | S110: 135.1822427 | T110: 135.1822427 | U110: 135.1822427 | V110: 135.1822427 | Y110: 135.1822427 | Z110: 135.1822427 | AB110: 135.1822427 | AC110: 135.1822427 | AD110: 135.1822427 | AE110: 135.1822427 | AF110: =IF(AF106=0,"",AF65*AF106/10) -> 135.1822427
B111: Margen Bruto | D111: USD/ha | F111: =IF(F106=0,"",F108-F109-F110) -> 681.4020318 | H111: 681.4020318 | J111: 681.4020318 | K111: 681.4020318 | M111: 681.4020318 | N111: 681.4020318 | Q111: 681.4020318 | S111: 681.4020318 | T111: 681.4020318 | U111: 681.4020318 | V111: 681.4020318 | Y111: 681.4020318 | Z111: 681.4020318 | AB111: 681.4020318 | AC111: 681.4020318 | AD111: 681.4020318 | AE111: 681.4020318 | AF111: =IF(AF106=0,"",AF108-AF109-AF110) -> 681.4020318
B112: Rendimiento de Indiferencia | D112: USD/ha | F112: =IF(F106=0,"",(F109+F110)*10/F107) -> 12.0658933 | H112: 12.0658933 | J112: 12.0658933 | K112: 12.0658933 | M112: 12.0658933 | N112: 12.0658933 | Q112: 12.0658933 | S112: 12.0658933 | T112: 12.0658933 | U112: 12.0658933 | V112: 12.0658933 | Y112: 12.0658933 | Z112: 12.0658933 | AB112: 12.0658933 | AC112: 12.0658933 | AD112: 12.0658933 | AE112: 12.0658933 | AF112: =IF(AF106=0,"",(AF109+AF110)*10/AF107) -> 12.0658933
B113: Costos Indirectos | D113: USD/ha | F113: =IF(F106=0,"",F80) -> 442.4594379 | H113: 442.4594379 | J113: 442.4594379 | K113: 442.4594379 | M113: 442.4594379 | N113: 442.4594379 | Q113: 442.4594379 | S113: 442.4594379 | T113: 442.4594379 | U113: 442.4594379 | V113: 442.4594379 | Y113: 442.4594379 | Z113: 442.4594379 | AB113: 442.4594379 | AC113: 442.4594379 | AD113: 442.4594379 | AE113: 442.4594379 | AF113: =IF(AF106=0,"",AF80) -> 442.4594379
B114: Resultado Operativo | D114: USD/ha | F114: =IF(F106=0,"",F111-F113) -> 238.942594 | H114: =IF(H106=0,"",H111-H113) -> 238.942594 | J114: 238.942594 | K114: 238.942594 | M114: 238.942594 | N114: 238.942594 | Q114: 238.942594 | S114: 238.942594 | T114: 238.942594 | U114: 238.942594 | V114: 238.942594 | Y114: 238.942594 | Z114: 238.942594 | AB114: 238.942594 | AC114: 238.942594 | AD114: 238.942594 | AE114: 238.942594 | AF114: =IF(AF106=0,"",AF111-AF113) -> 238.942594
B115: Impuesto a las Ganancias | D115: USD/ha | F115: =IF(F106=0,"",F94) -> 89.53747574 | H115: 89.53747574 | J115: 89.53747574 | K115: 89.53747574 | M115: 89.53747574 | N115: 89.53747574 | Q115: 89.53747574 | S115: 89.53747574 | T115: 89.53747574 | U115: 89.53747574 | V115: 89.53747574 | Y115: 89.53747574 | Z115: 89.53747574 | AB115: 89.53747574 | AC115: 89.53747574 | AD115: 89.53747574 | AE115: 89.53747574 | AF115: =IF(AF106=0,"",AF94) -> 89.53747574
B116: Margen Neto | D116: USD/ha | F116: =IF(F106=0,"",F114-F115) -> 149.4051182 | H116: =IF(H106=0,"",H114-H115) -> 149.4051182 | J116: 149.4051182 | K116: 149.4051182 | M116: 149.4051182 | N116: 149.4051182 | Q116: 149.4051182 | S116: 149.4051182 | T116: 149.4051182 | U116: 149.4051182 | V116: 149.4051182 | Y116: 149.4051182 | Z116: 149.4051182 | AB116: 149.4051182 | AC116: 149.4051182 | AD116: 149.4051182 | AE116: 149.4051182 | AF116: =IF(AF106=0,"",AF114-AF115) -> 149.4051182
B117: Intereses sobre el Capital Invertido | D117: USD/ha | F117: =IF(F106=0,"",F119*$E$102*6/12) -> 0.8031174748 | H117: 0.8031174748 | J117: 0.8031174748 | K117: 0.8031174748 | M117: 0.8031174748 | N117: 0.8031174748 | Q117: 0.8031174748 | S117: 0.8031174748 | T117: 0.8031174748 | U117: 0.8031174748 | V117: 0.8031174748 | Y117: 0.8031174748 | Z117: 0.8031174748 | AB117: 0.8031174748 | AC117: 0.8031174748 | AD117: 0.8031174748 | AE117: 0.8031174748 | AF117: =IF(AF106=0,"",AF119*$E$102*6/12) -> 0.8031174748
B118: Resultado Económico | D118: USD/ha | F118: =IF(F106=0,"",F116-F117) -> 148.6020007 | H118: 148.6020007 | J118: 148.6020007 | K118: 148.6020007 | M118: 148.6020007 | N118: 148.6020007 | Q118: 148.6020007 | S118: 148.6020007 | T118: 148.6020007 | U118: 148.6020007 | V118: 148.6020007 | Y118: 148.6020007 | Z118: 148.6020007 | AB118: 148.6020007 | AC118: 148.6020007 | AD118: 148.6020007 | AE118: 148.6020007 | AF118: =IF(AF106=0,"",AF116-AF117) -> 148.6020007
B119: Inversión Inicial | D119: USD/ha | F119: =IF(F106=0,"",F55-F48+F80) -> 642.4939798 | G119: =IF(G106=0,"",G55-G48+G80) ->  | H119: 642.4939798 | J119: 642.4939798 | K119: 642.4939798 | M119: 642.4939798 | N119: 642.4939798 | Q119: 642.4939798 | S119: 642.4939798 | T119: 642.4939798 | U119: 642.4939798 | V119: 642.4939798 | Y119: 642.4939798 | Z119: 642.4939798 | AB119: 642.4939798 | AC119: 642.4939798 | AD119: 642.4939798 | AE119: 642.4939798 | AF119: 642.4939798
B120: Rentabilidad de la Actividad | D120: % | F120: =IF(F106=0,"",F118/F119) -> 0.2312893279 | H120: 0.2312893279 | J120: 0.2312893279 | K120: 0.2312893279 | M120: 0.2312893279 | N120: 0.2312893279 | Q120: 0.2312893279 | S120: 0.2312893279 | T120: 0.2312893279 | U120: 0.2312893279 | V120: 0.2312893279 | Y120: 0.2312893279 | Z120: 0.2312893279 | AB120: 0.2312893279 | AC120: 0.2312893279 | AD120: 0.2312893279 | AE120: 0.2312893279 | AF120: =IF(AF106=0,"",AF118/AF119) -> 0.2312893279

Sheet Trigo + Soja 2ª (hidden)
B2: Planteo Tecnico (Por Ha) | C2: Unidad de medida | D2: Mes de actualiz. | E2: Cantidades | F2: Calamuchita | G2: Capital | H2: Colón | I2: Cruz del Eje | J2: Gral. Roca | K2: Gral. San Martín | L2: Ischilin | M2: Juárez Celman | N2: Marcos Juárez | O2: Minas | P2: Pocho | Q2: Pte. R. Sáenz Peña | R2: Punilla | S2: Río Cuarto | T2: Río Primero | U2: Río Seco | V2: Río Segundo | W2: San Alberto | X2: San Javier | Y2: San Justo | Z2: Santa María | AA2: Sobremonte | AB2: Tercero Arriba | AC2: Totoral | AD2: Tulumba | AE2: Unión | AF2: PROVINCIA
B3: Rendimiento | C3: qq/ha | D3: Enero | E3: - | F3: =+'Calculadora BCCBA'!$M$5 -> 18.58725877 | G3: =+'Calculadora BCCBA'!$M$5 -> 18.58725877 | H3: =+'Calculadora BCCBA'!$M$5 -> 18.58725877 | I3: =+'Calculadora BCCBA'!$M$5 -> 18.58725877 | J3: =+'Calculadora BCCBA'!$M$5 -> 18.58725877 | K3: =+'Calculadora BCCBA'!$M$5 -> 18.58725877 | L3: =+'Calculadora BCCBA'!$M$5 -> 18.58725877 | M3: =+'Calculadora BCCBA'!$M$5 -> 18.58725877 | N3: =+'Calculadora BCCBA'!$M$5 -> 18.58725877 | O3: =+'Calculadora BCCBA'!$M$5 -> 18.58725877 | P3: =+'Calculadora BCCBA'!$M$5 -> 18.58725877 | Q3: =+'Calculadora BCCBA'!$M$5 -> 18.58725877 | R3: =+'Calculadora BCCBA'!$M$5 -> 18.58725877 | S3: =+'Calculadora BCCBA'!$M$5 -> 18.58725877 | T3: =+'Calculadora BCCBA'!$M$5 -> 18.58725877 | U3: =+'Calculadora BCCBA'!$M$5 -> 18.58725877 | V3: =+'Calculadora BCCBA'!$M$5 -> 18.58725877 | W3: =+'Calculadora BCCBA'!$M$5 -> 18.58725877 | X3: =+'Calculadora BCCBA'!$M$5 -> 18.58725877 | Y3: =+'Calculadora BCCBA'!$M$5 -> 18.58725877 | Z3: =+'Calculadora BCCBA'!$M$5 -> 18.58725877 | AA3: =+'Calculadora BCCBA'!$M$5 -> 18.58725877 | AB3: =+'Calculadora BCCBA'!$M$5 -> 18.58725877 | AC3: =+'Calculadora BCCBA'!$M$5 -> 18.58725877 | AD3: =+'Calculadora BCCBA'!$M$5 -> 18.58725877 | AE3: =+'Calculadora BCCBA'!$M$5 -> 18.58725877 | AF3: =+'Calculadora BCCBA'!$M$5 -> 18.58725877
B4: Participación Provincial | C4: Porcentaje | E4: - | F4: 0.003132032298 | H4: 0.01831422969 | J4: 0.05263505989 | K4: 0.05830215585 | M4: 0.05869099803 | N4: 0.1134604296 | Q4: 0.0396488583 | S4: 0.02962846193 | T4: 0.07304470662 | U4: 0.01395643132 | V4: 0.06522615367 | Y4: 0.2378293171 | Z4: 0.006012801751 | AB4: 0.0250706033 | AC4: 0.02855414232 | AD4: 0.01649975008 | AE4: 0.1552171836 | AF4: -
B5: Pulverización terrestre | C5: Cantidad | D5: Mayo | E5: 3 | F5: =$E5 -> 3 | H5: =$E5 -> 3 | J5: =$E5 -> 3 | K5: 3 | M5: =$E5 -> 3 | N5: 3 | Q5: =$E5 -> 3 | S5: =$E5 -> 3 | T5: 3 | U5: 3 | V5: 3 | Y5: =$E5 -> 3 | Z5: 3 | AB5: =$E5 -> 3 | AC5: 3 | AD5: 3 | AE5: 3 | AF5: =SUMPRODUCT(F5:AE5,$F$4:$AE$4) -> 2.985669946
B6: Fertilización | C6: Cantidad | D6: =D5 -> Mayo | E6: 1 | F6: 1 | H6: 1 | J6: 1 | K6: 1 | M6: 1 | N6: 1 | Q6: 1 | S6: 1 | T6: 1 | U6: 1 | V6: 1 | Y6: 1 | Z6: 1 | AB6: 1 | AC6: 1 | AD6: 1 | AE6: 1 | AF6: =SUMPRODUCT(F6:AE6,$F$4:$AE$4) -> 0.9952233153
B7: Pulverización aerea | C7: Cantidad | D7: =D6 -> Mayo | E7: 0 | F7: 0 | H7: 0 | J7: 0 | K7: 0 | M7: 0 | N7: 0 | Q7: 0 | S7: 0 | T7: 0 | U7: 0 | V7: 0 | Y7: 0 | Z7: 0 | AB7: 0 | AC7: 0 | AD7: 0 | AE7: 0 | AF7: =+AVERAGE(F7:AE7) -> 0
B8: Metsulfuron Metil | C8: kg/ha | D8: =D7 -> Mayo | E8: 0.006 | F8: 0.006 | H8: 0.006 | J8: 0.006 | K8: 0.006 | M8: 0.006 | N8: 0.006 | Q8: 0.006 | S8: 0.006 | T8: 0.006 | U8: 0.006 | V8: 0.006 | Y8: 0.006 | Z8: 0.006 | AB8: 0.006 | AC8: 0.006 | AD8: 0.006 | AE8: 0.006 | AF8: =+AVERAGE(F8:AE8) -> 0.006
B9: 2 4 D Ester 100% | C9: lt/ha | D9: =D8 -> Mayo | E9: 0.5 | F9: 0.5 | H9: 0.5 | J9: 0.5 | K9: 0.5 | M9: 0.5 | N9: 0.5 | Q9: 0.5 | S9: 0.5 | T9: 0.5 | U9: 0.5 | V9: 0.5 | Y9: 0.5 | Z9: 0.5 | AB9: 0.5 | AC9: 0.5 | AD9: 0.5 | AE9: 0.5 | AF9: =+AVERAGE(F9:AE9) -> 0.5
B10: Glifosato | C10: lt/ha | D10: =D9 -> Mayo | E10: 2.5 | F10: 2.5 | H10: 2.5 | J10: 2.5 | K10: 2.5 | M10: 2.5 | N10: 2.5 | Q10: 2.5 | S10: 2.5 | T10: 2.5 | U10: 2.5 | V10: 2.5 | Y10: 2.5 | Z10: 2.5 | AB10: 2.5 | AC10: 2.5 | AD10: 2.5 | AE10: 2.5 | AF10: =+AVERAGE(F10:AE10) -> 2.5
B11: Semilla | C11: kg/ha | D11: Mayo | E11: - | F11: 140 | H11: 90 | J11: 115 | K11: 100 | M11: 100 | N11: 110 | Q11: 115 | S11: 115 | T11: 97 | U11: 130 | V11: 97 | Y11: 105 | Z11: 140 | AB11: 135 | AC11: 130 | AD11: 125 | AE11: 120 | AF11: =SUMPRODUCT(F11:AE11,$F$4:$AE$4) -> 109.1122323
B12: Curasem. Chucaro | C12: kg/ha | D12: Mayo | E12: 0.21 | F12: =$E12 -> 0.21 | H12: =$E12 -> 0.21 | J12: =$E12 -> 0.21 | K12: =$E12 -> 0.21 | M12: =$E12 -> 0.21 | N12: =$E12 -> 0.21 | Q12: =$E12 -> 0.21 | S12: =$E12 -> 0.21 | T12: =$E12 -> 0.21 | U12: =$E12 -> 0.21 | V12: =$E12 -> 0.21 | Y12: =$E12 -> 0.21 | Z12: =$E12 -> 0.21 | AB12: =$E12 -> 0.21 | AC12: =$E12 -> 0.21 | AD12: =$E12 -> 0.21 | AE12: =$E12 -> 0.21 | AF12: =+AVERAGE(F12:AE12) -> 0.21
B13: Urea | C13: kg/ha | D13: Mayo | E13: - | F13: 39.54545455 | H13: 39.54545455 | J13: 89 | K13: 102.7272727 | M13: 112.7272727 | N13: 150 | Q13: 74 | S13: 81.81818182 | T13: 73.18181818 | U13: 63 | V13: 77.27272727 | Y13: 68.18181818 | Z13: 40 | AB13: 61.36363636 | AC13: 56.36363636 | AD13: 78 | AE13: 150 | AF13: =SUMPRODUCT(F13:AE13,$F$4:$AE$4) -> 95.95369339
B14: Fosfato diamónico | C14: kg/ha | D14: Mayo | E14: - | F14: 0 | H14: 80 | J14: 65 | K14: 90 | M14: 75 | N14: 75 | Q14: 60 | S14: 75 | T14: 50 | U14: 70 | V14: 55 | Y14: 85 | Z14: 80 | AB14: 55 | AC14: 60 | AD14: 60 | AE14: 55 | AF14: =SUMPRODUCT(F14:AE14,$F$4:$AE$4) -> 69.1782364
B15: Banvel | C15: lt/ha | D15: Mayo | E15: 0 | F15: =$E15 -> 0 | H15: =$E15 -> 0 | J15: =$E15 -> 0 | K15: 0 | M15: =$E15 -> 0 | N15: 0 | Q15: =$E15 -> 0 | S15: =$E15 -> 0 | T15: 0 | U15: 0 | V15: 0 | Y15: =$E15 -> 0 | Z15: 0 | AB15: =$E15 -> 0 | AC15: 0 | AD15: 0 | AE15: 0 | AF15: =+AVERAGE(F15:AE15) -> 0
B16: Tordon 24k | C16: lt/ha | D16: Mayo | E16: 0 | F16: =$E16 -> 0 | H16: =$E16 -> 0 | J16: 0 | K16: 0 | M16: 0 | N16: 0 | Q16: =$E16 -> 0 | S16: 0 | T16: 0 | U16: 0 | V16: 0 | Y16: 0 | Z16: 0 | AB16: 0 | AC16: 0 | AD16: 0 | AE16: 0 | AF16: =+AVERAGE(F16:AE16) -> 0
B17: Amistar Extra Gold | C17: lt/ha | D17: Mayo | E17: 0.4 | F17: =$E17 -> 0.4 | H17: =$E17 -> 0.4 | J17: 0.4 | K17: 0.4 | M17: 0.4 | N17: 0.4 | Q17: =$E17 -> 0.4 | S17: 0.4 | T17: 0.4 | U17: 0.4 | V17: 0.4 | Y17: 0.4 | Z17: 0.4 | AB17: 0.4 | AC17: 0.4 | AD17: 0.4 | AE17: 0.4 | AF17: =+AVERAGE(F17:AE17) -> 0.4
B18: Karate Zeon 25% | C18: lt/ha | D18: Mayo | E18: 0.025 | F18: =$E18 -> 0.025 | H18: =$E18 -> 0.025 | J18: 0.025 | K18: 0.025 | M18: 0.025 | N18: 0.025 | Q18: =$E18 -> 0.025 | S18: 0.025 | T18: 0.025 | U18: 0.025 | V18: 0.025 | Y18: 0.025 | Z18: 0.025 | AB18: 0.025 | AC18: 0.025 | AD18: 0.025 | AE18: 0.025 | AF18: =+AVERAGE(F18:AE18) -> 0.025
B19: Riego | C19: mm/ha | D19: - | E19: - | F19: 0 | H19: =+$F$19 -> 0 | J19: =+$F$19 -> 0 | K19: 0 | M19: 0 | N19: 0 | Q19: 0 | S19: 0 | T19: 0 | U19: 0 | V19: =+$F$19 -> 0 | Y19: =+$F$19 -> 0 | Z19: 0 | AB19: 0 | AC19: =+$F$19 -> 0 | AD19: =+$F$19 -> 0 | AE19: =+$F$19 -> 0 | AF19: 0
B21: Costos Directos (Por Ha) | C21: =C$2 -> Unidad de medida | D21: =D$2 -> Mes de actualiz. | E21: Precio | F21: Calamuchita | G21: Capital | H21: Colón | I21: Cruz del Eje | J21: Gral. Roca | K21: Gral. San Martín | L21: Ischilin | M21: Juárez Celman | N21: Marcos Juárez | O21: Minas | P21: Pocho | Q21: Pte. R. Sáenz Peña | R21: Punilla | S21: Río Cuarto | T21: Río Primero | U21: Río Seco | V21: Río Segundo | W21: San Alberto | X21: San Javier | Y21: San Justo | Z21: Santa María | AA21: Sobremonte | AB21: Tercero Arriba | AC21: Totoral | AD21: Tulumba | AE21: Unión | AF21: PROVINCIA
A22: L | B22: Pulverización terrestre | C22: USD/Unidad | D22: Mayo | E22: 4.28 | F22: =$E22*F5 -> 12.84 | H22: =$E22*H5 -> 12.84 | J22: =$E22*J5 -> 12.84 | K22: 12.84 | M22: =$E22*M5 -> 12.84 | N22: 12.84 | Q22: =$E22*Q5 -> 12.84 | S22: =$E22*S5 -> 12.84 | T22: 12.84 | U22: 12.84 | V22: 12.84 | Y22: =$E22*Y5 -> 12.84 | Z22: 12.84 | AB22: =$E22*AB5 -> 12.84 | AC22: 12.84 | AD22: 12.84 | AE22: 12.84 | AF22: 12.77866737
A23: L | B23: Fertilización | C23: USD/Unidad | D23: =D22 -> Mayo | E23: 7.13 | F23: 7.13 | H23: 7.13 | J23: 7.13 | K23: 7.13 | M23: 7.13 | N23: 7.13 | Q23: 7.13 | S23: 7.13 | T23: 7.13 | U23: 7.13 | V23: 7.13 | Y23: 7.13 | Z23: 7.13 | AB23: 7.13 | AC23: 7.13 | AD23: 7.13 | AE23: 7.13 | AF23: 7.095942238
A24: L | B24: Pulverización aerea | C24: USD/Unidad | D24: =D23 -> Mayo | E24: 8.56 | F24: 0 | H24: 0 | J24: 0 | K24: 0 | M24: 0 | N24: 0 | Q24: 0 | S24: 0 | T24: 0 | U24: 0 | V24: 0 | Y24: 0 | Z24: 0 | AB24: 0 | AC24: 0 | AD24: 0 | AE24: 0 | AF24: 0
A25: H | B25: Metsulfuron Metil | C25: =+"USD/"&LEFT(C8,2) -> USD/kg | D25: =D24 -> Mayo | E25: 30 | F25: 0.18 | H25: 0.18 | J25: 0.18 | K25: 0.18 | M25: 0.18 | N25: 0.18 | Q25: 0.18 | S25: 0.18 | T25: 0.18 | U25: 0.18 | V25: 0.18 | Y25: 0.18 | Z25: 0.18 | AB25: 0.18 | AC25: 0.18 | AD25: 0.18 | AE25: 0.18 | AF25: 0.18
A26: H | B26: 2 4 D Ester 100% | C26: USD/lt | D26: =D25 -> Mayo | E26: 5.6 | F26: 2.8 | H26: 2.8 | J26: 2.8 | K26: 2.8 | M26: 2.8 | N26: 2.8 | Q26: 2.8 | S26: 2.8 | T26: 2.8 | U26: 2.8 | V26: 2.8 | Y26: 2.8 | Z26: 2.8 | AB26: 2.8 | AC26: 2.8 | AD26: 2.8 | AE26: 2.8 | AF26: 2.8
A27: H | B27: Glifosato | C27: USD/lt | D27: =D26 -> Mayo | E27: 3.3 | F27: 8.25 | H27: 8.25 | J27: 8.25 | K27: 8.25 | M27: 8.25 | N27: 8.25 | Q27: 8.25 | S27: 8.25 | T27: 8.25 | U27: 8.25 | V27: 8.25 | Y27: 8.25 | Z27: 8.25 | AB27: 8.25 | AC27: 8.25 | AD27: 8.25 | AE27: 8.25 | AF27: 8.25
A28: S | B28: Semilla | C28: USD/kg | D28: =D27 -> Mayo | E28: 0.4 | F28: 56 | H28: 36 | J28: 46 | K28: 40 | M28: 40 | N28: 44 | Q28: 46 | S28: 46 | T28: 38.8 | U28: 52 | V28: 38.8 | Y28: 42 | Z28: 56 | AB28: 54 | AC28: 52 | AD28: 50 | AE28: 48 | AF28: 43.64489294
A29: Cu | B29: Curasem. Chucaro | C29: USD/kg | D29: Mayo | E29: 88.67 | F29: 18.6207 | H29: 18.6207 | J29: 18.6207 | K29: 18.6207 | M29: 18.6207 | N29: 18.6207 | Q29: 18.6207 | S29: 18.6207 | T29: 18.6207 | U29: 18.6207 | V29: 18.6207 | Y29: 18.6207 | Z29: 18.6207 | AB29: 18.6207 | AC29: 18.6207 | AD29: 18.6207 | AE29: 18.6207 | AF29: 18.6207
A30: Fe | B30: Urea | C30: USD/kg | D30: Mayo | E30: 0.38 | F30: 15.02727273 | H30: 15.02727273 | J30: 33.82 | K30: 39.03636364 | M30: 42.83636364 | N30: 57 | Q30: 28.12 | S30: 31.09090909 | T30: 27.80909091 | U30: 23.94 | V30: 29.36363636 | Y30: 25.90909091 | Z30: 15.2 | AB30: 23.31818182 | AC30: 21.41818182 | AD30: 29.64 | AE30: 57 | AF30: 36.46240349
A31: Fe | B31: Fosfato diamónico | C31: USD/kg | D31: Mayo | E31: 0.46 | F31: 0 | H31: 36.8 | J31: 29.9 | K31: 41.4 | M31: 34.5 | N31: 34.5 | Q31: 27.6 | S31: 34.5 | T31: 23 | U31: 32.2 | V31: 25.3 | Y31: 39.1 | Z31: 36.8 | AB31: 25.3 | AC31: 27.6 | AD31: 27.6 | AE31: 25.3 | AF31: 31.82198874
A32: He | B32: Banvel | C32: USD/lt | D32: Mayo | E32: 11.7 | F32: 0 | H32: 0 | J32: 0 | K32: 0 | M32: 0 | N32: 0 | Q32: 0 | S32: 0 | T32: 0 | U32: 0 | V32: 0 | Y32: 0 | Z32: 0 | AB32: 0 | AC32: 0 | AD32: 0 | AE32: 0 | AF32: 0
A33: He | B33: Tordon 24k | C33: USD/lt | D33: Mayo | E33: 14.5 | F33: 0 | H33: 0 | J33: 0 | K33: 0 | M33: 0 | N33: 0 | Q33: 0 | S33: 0 | T33: 0 | U33: 0 | V33: 0 | Y33: 0 | Z33: 0 | AB33: 0 | AC33: 0 | AD33: 0 | AE33: 0 | AF33: 0
A34: Fu | B34: Amistar Extra Gold | C34: USD/lt | D34: Mayo | E34: 37.68 | F34: 15.072 | H34: 15.072 | J34: 15.072 | K34: 15.072 | M34: 15.072 | N34: 15.072 | Q34: 15.072 | S34: 15.072 | T34: 15.072 | U34: 15.072 | V34: 15.072 | Y34: 15.072 | Z34: 15.072 | AB34: 15.072 | AC34: 15.072 | AD34: 15.072 | AE34: 15.072 | AF34: 15.072
A35: Ins | B35: Karate Zeon 5% | C35: USD/lt | D35: Mayo | E35: 45.83 | F35: 1.14575 | H35: 1.14575 | J35: 1.14575 | K35: 1.14575 | M35: 1.14575 | N35: 1.14575 | Q35: 1.14575 | S35: 1.14575 | T35: 1.14575 | U35: 1.14575 | V35: 1.14575 | Y35: 1.14575 | Z35: 1.14575 | AB35: 1.14575 | AC35: 1.14575 | AD35: 1.14575 | AE35: 1.14575 | AF35: 1.14575
B36: Riego | C36: =+"USD/"&LEFT(C19,2) -> USD/mm | D36: =D35 -> Mayo | E36: 1 | F36: 0 | H36: 0 | J36: 0 | K36: 0 | M36: 0 | N36: 0 | Q36: 0 | S36: 0 | T36: 0 | U36: 0 | V36: 0 | Y36: 0 | Z36: 0 | AB36: 0 | AC36: 0 | AD36: 0 | AE36: 0 | AF36: 0
A37: L | B37: Siembra | C37: USD/Unidad | D37: Mayo | E37: 31.39 | F37: =$E$37 -> 31.39 | H37: =$E$37 -> 31.39 | J37: =$E$37 -> 31.39 | K37: =$E$37 -> 31.39 | M37: =$E$37 -> 31.39 | N37: =$E$37 -> 31.39 | Q37: =$E$37 -> 31.39 | S37: =$E$37 -> 31.39 | T37: =$E$37 -> 31.39 | U37: =$E$37 -> 31.39 | V37: =$E$37 -> 31.39 | Y37: =$E$37 -> 31.39 | Z37: =$E$37 -> 31.39 | AB37: =$E$37 -> 31.39 | AC37: =$E$37 -> 31.39 | AD37: =$E$37 -> 31.39 | AE37: =$E$37 -> 31.39 | AF37: =$E$37 -> 31.39
B38: Cosecha | C38: $/Unidad | E38: - | F38: =+Listas!$Z$10 -> 4480 | G38: =+Listas!$Z$10 -> 4480 | H38: =+Listas!$Z$10 -> 4480 | I38: =+Listas!$Z$10 -> 4480 | J38: =+Listas!$Z$10 -> 4480 | K38: =+Listas!$Z$10 -> 4480 | L38: =+Listas!$Z$10 -> 4480 | M38: =+Listas!$Z$10 -> 4480 | N38: =+Listas!$Z$10 -> 4480 | O38: =+Listas!$Z$10 -> 4480 | P38: =+Listas!$Z$10 -> 4480 | Q38: =+Listas!$Z$10 -> 4480 | R38: =+Listas!$Z$10 -> 4480 | S38: =+Listas!$Z$10 -> 4480 | T38: =+Listas!$Z$10 -> 4480 | U38: =+Listas!$Z$10 -> 4480 | V38: =+Listas!$Z$10 -> 4480 | W38: =+Listas!$Z$10 -> 4480 | X38: =+Listas!$Z$10 -> 4480 | Y38: =+Listas!$Z$10 -> 4480 | Z38: =+Listas!$Z$10 -> 4480 | AA38: =+Listas!$Z$10 -> 4480 | AB38: =+Listas!$Z$10 -> 4480 | AC38: =+Listas!$Z$10 -> 4480 | AD38: =+Listas!$Z$10 -> 4480 | AE38: =+Listas!$Z$10 -> 4480 | AF38: =+Listas!$Z$10 -> 4480
A39: Co | B39: Cosecha en USD | C39: USD/Unidad | E39: - | F39: =F38*(1+$E$151)/$E$146 -> 57.41506468 | H39: =H38*(1+$E$151)/$E$146 -> 57.41506468 | J39: =J38*(1+$E$151)/$E$146 -> 57.41506468 | K39: =K38*(1+$E$151)/$E$146 -> 57.41506468 | M39: =M38*(1+$E$151)/$E$146 -> 57.41506468 | N39: =N38*(1+$E$151)/$E$146 -> 57.41506468 | Q39: =Q38*(1+$E$151)/$E$146 -> 57.41506468 | S39: =S38*(1+$E$151)/$E$146 -> 57.41506468 | T39: =T38*(1+$E$151)/$E$146 -> 57.41506468 | U39: =U38*(1+$E$151)/$E$146 -> 57.41506468 | V39: =V38*(1+$E$151)/$E$146 -> 57.41506468 | Y39: =Y38*(1+$E$151)/$E$146 -> 57.41506468 | Z39: =Z38*(1+$E$151)/$E$146 -> 57.41506468 | AB39: =AB38*(1+$E$151)/$E$146 -> 57.41506468 | AC39: =AC38*(1+$E$151)/$E$146 -> 57.41506468 | AD39: =AD38*(1+$E$151)/$E$146 -> 57.41506468 | AE39: =AE38*(1+$E$151)/$E$146 -> 57.41506468 | AF39: =AF38*(1+$E$151)/$E$146 -> 57.41506468
B40: Costos directos | C40: USD/ha | F40: =SUM(F39,F22:F37) -> 225.8707874 | H40: =SUM(H39,H22:H37) -> 242.6707874 | J40: =SUM(J39,J22:J37) -> 264.5635147 | K40: =SUM(K39,K22:K37) -> 275.2798783 | M40: =SUM(M39,M22:M37) -> 272.1798783 | N40: =SUM(N39,N22:N37) -> 290.3435147 | Q40: =SUM(Q39,Q22:Q37) -> 256.5635147 | S40: =SUM(S39,S22:S37) -> 266.4344238 | T40: =SUM(T39,T22:T37) -> 244.4526056 | U40: =SUM(U39,U22:U37) -> 262.9835147 | V40: =SUM(V39,V22:V37) -> 248.307151 | Y40: =SUM(Y39,Y22:Y37) -> 261.8526056 | Z40: =SUM(Z39,Z22:Z37) -> 262.8435147 | AB40: =SUM(AB39,AB22:AB37) -> 257.4616965 | AC40: =SUM(AC39,AC22:AC37) -> 255.8616965 | AD40: =SUM(AD39,AD22:AD37) -> 262.0835147 | AE40: =SUM(AE39,AE22:AE37) -> 285.1435147 | AF40: =SUM(AF39,AF22:AF37) -> 266.6774095
B42: Opciones avanzadas SOJA 2ª (completado por el usuario) | C42: =C$2 -> Unidad de medida | D42: =D$2 -> Mes de actualiz. | E42: Precio | F42: Calamuchita | G42: Capital | H42: Colón | I42: Cruz del Eje | J42: Gral. Roca | K42: Gral. San Martín | L42: Ischilin | M42: Juárez Celman | N42: Marcos Juárez | O42: Minas | P42: Pocho | Q42: Pte. R. Sáenz Peña | R42: Punilla | S42: Río Cuarto | T42: Río Primero | U42: Río Seco | V42: Río Segundo | W42: San Alberto | X42: San Javier | Y42: San Justo | Z42: Santa María | AA42: Sobremonte | AB42: Tercero Arriba | AC42: Totoral | AD42: Tulumba | AE42: Unión | AF42: PROVINCIA
B43: Servicios de labranza | C43: USD/ha | D43: Estos datos son los ingresados en opciones avanzadas | E43: - | F43: =+'Opciones Avanzadas'!$E13 -> 51.26460961 | G43: =+'Opciones Avanzadas'!$E13 -> 51.26460961 | H43: =+'Opciones Avanzadas'!$E13 -> 51.26460961 | I43: =+'Opciones Avanzadas'!$E13 -> 51.26460961 | J43: =+'Opciones Avanzadas'!$E13 -> 51.26460961 | K43: =+'Opciones Avanzadas'!$E13 -> 51.26460961 | L43: =+'Opciones Avanzadas'!$E13 -> 51.26460961 | M43: =+'Opciones Avanzadas'!$E13 -> 51.26460961 | N43: =+'Opciones Avanzadas'!$E13 -> 51.26460961 | O43: =+'Opciones Avanzadas'!$E13 -> 51.26460961 | P43: =+'Opciones Avanzadas'!$E13 -> 51.26460961 | Q43: =+'Opciones Avanzadas'!$E13 -> 51.26460961 | R43: =+'Opciones Avanzadas'!$E13 -> 51.26460961 | S43: =+'Opciones Avanzadas'!$E13 -> 51.26460961 | T43: =+'Opciones Avanzadas'!$E13 -> 51.26460961 | U43: =+'Opciones Avanzadas'!$E13 -> 51.26460961 | V43: =+'Opciones Avanzadas'!$E13 -> 51.26460961 | W43: =+'Opciones Avanzadas'!$E13 -> 51.26460961 | X43: =+'Opciones Avanzadas'!$E13 -> 51.26460961 | Y43: =+'Opciones Avanzadas'!$E13 -> 51.26460961 | Z43: =+'Opciones Avanzadas'!$E13 -> 51.26460961 | AA43: =+'Opciones Avanzadas'!$E13 -> 51.26460961 | AB43: =+'Opciones Avanzadas'!$E13 -> 51.26460961 | AC43: =+'Opciones Avanzadas'!$E13 -> 51.26460961 | AD43: =+'Opciones Avanzadas'!$E13 -> 51.26460961 | AE43: =+'Opciones Avanzadas'!$E13 -> 51.26460961 | AF43: =+'Opciones Avanzadas'!$E13 -> 51.26460961
B44: Cosecha | C44: USD/ha | E44: - | F44: =+'Opciones Avanzadas'!$E14 -> 57.41506468 | G44: =+'Opciones Avanzadas'!$E14 -> 57.41506468 | H44: =+'Opciones Avanzadas'!$E14 -> 57.41506468 | I44: =+'Opciones Avanzadas'!$E14 -> 57.41506468 | J44: =+'Opciones Avanzadas'!$E14 -> 57.41506468 | K44: =+'Opciones Avanzadas'!$E14 -> 57.41506468 | L44: =+'Opciones Avanzadas'!$E14 -> 57.41506468 | M44: =+'Opciones Avanzadas'!$E14 -> 57.41506468 | N44: =+'Opciones Avanzadas'!$E14 -> 57.41506468 | O44: =+'Opciones Avanzadas'!$E14 -> 57.41506468 | P44: =+'Opciones Avanzadas'!$E14 -> 57.41506468 | Q44: =+'Opciones Avanzadas'!$E14 -> 57.41506468 | R44: =+'Opciones Avanzadas'!$E14 -> 57.41506468 | S44: =+'Opciones Avanzadas'!$E14 -> 57.41506468 | T44: =+'Opciones Avanzadas'!$E14 -> 57.41506468 | U44: =+'Opciones Avanzadas'!$E14 -> 57.41506468 | V44: =+'Opciones Avanzadas'!$E14 -> 57.41506468 | W44: =+'Opciones Avanzadas'!$E14 -> 57.41506468 | X44: =+'Opciones Avanzadas'!$E14 -> 57.41506468 | Y44: =+'Opciones Avanzadas'!$E14 -> 57.41506468 | Z44: =+'Opciones Avanzadas'!$E14 -> 57.41506468 | AA44: =+'Opciones Avanzadas'!$E14 -> 57.41506468 | AB44: =+'Opciones Avanzadas'!$E14 -> 57.41506468 | AC44: =+'Opciones Avanzadas'!$E14 -> 57.41506468 | AD44: =+'Opciones Avanzadas'!$E14 -> 57.41506468 | AE44: =+'Opciones Avanzadas'!$E14 -> 57.41506468 | AF44: =+'Opciones Avanzadas'!$E14 -> 57.41506468
B45: Herbicida | C45: USD/ha | E45: - | F45: =+'Opciones Avanzadas'!$E15 -> 11.23 | G45: =+'Opciones Avanzadas'!$E15 -> 11.23 | H45: =+'Opciones Avanzadas'!$E15 -> 11.23 | I45: =+'Opciones Avanzadas'!$E15 -> 11.23 | J45: =+'Opciones Avanzadas'!$E15 -> 11.23 | K45: =+'Opciones Avanzadas'!$E15 -> 11.23 | L45: =+'Opciones Avanzadas'!$E15 -> 11.23 | M45: =+'Opciones Avanzadas'!$E15 -> 11.23 | N45: =+'Opciones Avanzadas'!$E15 -> 11.23 | O45: =+'Opciones Avanzadas'!$E15 -> 11.23 | P45: =+'Opciones Avanzadas'!$E15 -> 11.23 | Q45: =+'Opciones Avanzadas'!$E15 -> 11.23 | R45: =+'Opciones Avanzadas'!$E15 -> 11.23 | S45: =+'Opciones Avanzadas'!$E15 -> 11.23 | T45: =+'Opciones Avanzadas'!$E15 -> 11.23 | U45: =+'Opciones Avanzadas'!$E15 -> 11.23 | V45: =+'Opciones Avanzadas'!$E15 -> 11.23 | W45: =+'Opciones Avanzadas'!$E15 -> 11.23 | X45: =+'Opciones Avanzadas'!$E15 -> 11.23 | Y45: =+'Opciones Avanzadas'!$E15 -> 11.23 | Z45: =+'Opciones Avanzadas'!$E15 -> 11.23 | AA45: =+'Opciones Avanzadas'!$E15 -> 11.23 | AB45: =+'Opciones Avanzadas'!$E15 -> 11.23 | AC45: =+'Opciones Avanzadas'!$E15 -> 11.23 | AD45: =+'Opciones Avanzadas'!$E15 -> 11.23 | AE45: =+'Opciones Avanzadas'!$E15 -> 11.23 | AF45: =+'Opciones Avanzadas'!$E15 -> 11.23
B46: Fertilizantes | C46: USD/ha | E46: - | F46: =+'Opciones Avanzadas'!$E16 -> 68.28439223 | G46: =+'Opciones Avanzadas'!$E16 -> 68.28439223 | H46: =+'Opciones Avanzadas'!$E16 -> 68.28439223 | I46: =+'Opciones Avanzadas'!$E16 -> 68.28439223 | J46: =+'Opciones Avanzadas'!$E16 -> 68.28439223 | K46: =+'Opciones Avanzadas'!$E16 -> 68.28439223 | L46: =+'Opciones Avanzadas'!$E16 -> 68.28439223 | M46: =+'Opciones Avanzadas'!$E16 -> 68.28439223 | N46: =+'Opciones Avanzadas'!$E16 -> 68.28439223 | O46: =+'Opciones Avanzadas'!$E16 -> 68.28439223 | P46: =+'Opciones Avanzadas'!$E16 -> 68.28439223 | Q46: =+'Opciones Avanzadas'!$E16 -> 68.28439223 | R46: =+'Opciones Avanzadas'!$E16 -> 68.28439223 | S46: =+'Opciones Avanzadas'!$E16 -> 68.28439223 | T46: =+'Opciones Avanzadas'!$E16 -> 68.28439223 | U46: =+'Opciones Avanzadas'!$E16 -> 68.28439223 | V46: =+'Opciones Avanzadas'!$E16 -> 68.28439223 | W46: =+'Opciones Avanzadas'!$E16 -> 68.28439223 | X46: =+'Opciones Avanzadas'!$E16 -> 68.28439223 | Y46: =+'Opciones Avanzadas'!$E16 -> 68.28439223 | Z46: =+'Opciones Avanzadas'!$E16 -> 68.28439223 | AA46: =+'Opciones Avanzadas'!$E16 -> 68.28439223 | AB46: =+'Opciones Avanzadas'!$E16 -> 68.28439223 | AC46: =+'Opciones Avanzadas'!$E16 -> 68.28439223 | AD46: =+'Opciones Avanzadas'!$E16 -> 68.28439223 | AE46: =+'Opciones Avanzadas'!$E16 -> 68.28439223 | AF46: =+'Opciones Avanzadas'!$E16 -> 68.28439223
B47: Insecticidas | C47: USD/ha | E47: - | F47: =+'Opciones Avanzadas'!$E17 -> 1.14575 | G47: =+'Opciones Avanzadas'!$E17 -> 1.14575 | H47: =+'Opciones Avanzadas'!$E17 -> 1.14575 | I47: =+'Opciones Avanzadas'!$E17 -> 1.14575 | J47: =+'Opciones Avanzadas'!$E17 -> 1.14575 | K47: =+'Opciones Avanzadas'!$E17 -> 1.14575 | L47: =+'Opciones Avanzadas'!$E17 -> 1.14575 | M47: =+'Opciones Avanzadas'!$E17 -> 1.14575 | N47: =+'Opciones Avanzadas'!$E17 -> 1.14575 | O47: =+'Opciones Avanzadas'!$E17 -> 1.14575 | P47: =+'Opciones Avanzadas'!$E17 -> 1.14575 | Q47: =+'Opciones Avanzadas'!$E17 -> 1.14575 | R47: =+'Opciones Avanzadas'!$E17 -> 1.14575 | S47: =+'Opciones Avanzadas'!$E17 -> 1.14575 | T47: =+'Opciones Avanzadas'!$E17 -> 1.14575 | U47: =+'Opciones Avanzadas'!$E17 -> 1.14575 | V47: =+'Opciones Avanzadas'!$E17 -> 1.14575 | W47: =+'Opciones Avanzadas'!$E17 -> 1.14575 | X47: =+'Opciones Avanzadas'!$E17 -> 1.14575 | Y47: =+'Opciones Avanzadas'!$E17 -> 1.14575 | Z47: =+'Opciones Avanzadas'!$E17 -> 1.14575 | AA47: =+'Opciones Avanzadas'!$E17 -> 1.14575 | AB47: =+'Opciones Avanzadas'!$E17 -> 1.14575 | AC47: =+'Opciones Avanzadas'!$E17 -> 1.14575 | AD47: =+'Opciones Avanzadas'!$E17 -> 1.14575 | AE47: =+'Opciones Avanzadas'!$E17 -> 1.14575 | AF47: =+'Opciones Avanzadas'!$E17 -> 1.14575
B48: Fungicidas | C48: USD/ha | E48: - | F48: =+'Opciones Avanzadas'!$E18 -> 15.072 | G48: =+'Opciones Avanzadas'!$E18 -> 15.072 | H48: =+'Opciones Avanzadas'!$E18 -> 15.072 | I48: =+'Opciones Avanzadas'!$E18 -> 15.072 | J48: =+'Opciones Avanzadas'!$E18 -> 15.072 | K48: =+'Opciones Avanzadas'!$E18 -> 15.072 | L48: =+'Opciones Avanzadas'!$E18 -> 15.072 | M48: =+'Opciones Avanzadas'!$E18 -> 15.072 | N48: =+'Opciones Avanzadas'!$E18 -> 15.072 | O48: =+'Opciones Avanzadas'!$E18 -> 15.072 | P48: =+'Opciones Avanzadas'!$E18 -> 15.072 | Q48: =+'Opciones Avanzadas'!$E18 -> 15.072 | R48: =+'Opciones Avanzadas'!$E18 -> 15.072 | S48: =+'Opciones Avanzadas'!$E18 -> 15.072 | T48: =+'Opciones Avanzadas'!$E18 -> 15.072 | U48: =+'Opciones Avanzadas'!$E18 -> 15.072 | V48: =+'Opciones Avanzadas'!$E18 -> 15.072 | W48: =+'Opciones Avanzadas'!$E18 -> 15.072 | X48: =+'Opciones Avanzadas'!$E18 -> 15.072 | Y48: =+'Opciones Avanzadas'!$E18 -> 15.072 | Z48: =+'Opciones Avanzadas'!$E18 -> 15.072 | AA48: =+'Opciones Avanzadas'!$E18 -> 15.072 | AB48: =+'Opciones Avanzadas'!$E18 -> 15.072 | AC48: =+'Opciones Avanzadas'!$E18 -> 15.072 | AD48: =+'Opciones Avanzadas'!$E18 -> 15.072 | AE48: =+'Opciones Avanzadas'!$E18 -> 15.072 | AF48: =+'Opciones Avanzadas'!$E18 -> 15.072
B49: Curasemillas | C49: USD/ha | E49: - | F49: =+'Opciones Avanzadas'!$E19 -> 18.6207 | G49: =+'Opciones Avanzadas'!$E19 -> 18.6207 | H49: =+'Opciones Avanzadas'!$E19 -> 18.6207 | I49: =+'Opciones Avanzadas'!$E19 -> 18.6207 | J49: =+'Opciones Avanzadas'!$E19 -> 18.6207 | K49: =+'Opciones Avanzadas'!$E19 -> 18.6207 | L49: =+'Opciones Avanzadas'!$E19 -> 18.6207 | M49: =+'Opciones Avanzadas'!$E19 -> 18.6207 | N49: =+'Opciones Avanzadas'!$E19 -> 18.6207 | O49: =+'Opciones Avanzadas'!$E19 -> 18.6207 | P49: =+'Opciones Avanzadas'!$E19 -> 18.6207 | Q49: =+'Opciones Avanzadas'!$E19 -> 18.6207 | R49: =+'Opciones Avanzadas'!$E19 -> 18.6207 | S49: =+'Opciones Avanzadas'!$E19 -> 18.6207 | T49: =+'Opciones Avanzadas'!$E19 -> 18.6207 | U49: =+'Opciones Avanzadas'!$E19 -> 18.6207 | V49: =+'Opciones Avanzadas'!$E19 -> 18.6207 | W49: =+'Opciones Avanzadas'!$E19 -> 18.6207 | X49: =+'Opciones Avanzadas'!$E19 -> 18.6207 | Y49: =+'Opciones Avanzadas'!$E19 -> 18.6207 | Z49: =+'Opciones Avanzadas'!$E19 -> 18.6207 | AA49: =+'Opciones Avanzadas'!$E19 -> 18.6207 | AB49: =+'Opciones Avanzadas'!$E19 -> 18.6207 | AC49: =+'Opciones Avanzadas'!$E19 -> 18.6207 | AD49: =+'Opciones Avanzadas'!$E19 -> 18.6207 | AE49: =+'Opciones Avanzadas'!$E19 -> 18.6207 | AF49: =+'Opciones Avanzadas'!$E19 -> 18.6207
B50: Semillas | C50: USD/ha | E50: - | F50: =+'Opciones Avanzadas'!$E20 -> 43.64489294 | G50: =+'Opciones Avanzadas'!$E20 -> 43.64489294 | H50: =+'Opciones Avanzadas'!$E20 -> 43.64489294 | I50: =+'Opciones Avanzadas'!$E20 -> 43.64489294 | J50: =+'Opciones Avanzadas'!$E20 -> 43.64489294 | K50: =+'Opciones Avanzadas'!$E20 -> 43.64489294 | L50: =+'Opciones Avanzadas'!$E20 -> 43.64489294 | M50: =+'Opciones Avanzadas'!$E20 -> 43.64489294 | N50: =+'Opciones Avanzadas'!$E20 -> 43.64489294 | O50: =+'Opciones Avanzadas'!$E20 -> 43.64489294 | P50: =+'Opciones Avanzadas'!$E20 -> 43.64489294 | Q50: =+'Opciones Avanzadas'!$E20 -> 43.64489294 | R50: =+'Opciones Avanzadas'!$E20 -> 43.64489294 | S50: =+'Opciones Avanzadas'!$E20 -> 43.64489294 | T50: =+'Opciones Avanzadas'!$E20 -> 43.64489294 | U50: =+'Opciones Avanzadas'!$E20 -> 43.64489294 | V50: =+'Opciones Avanzadas'!$E20 -> 43.64489294 | W50: =+'Opciones Avanzadas'!$E20 -> 43.64489294 | X50: =+'Opciones Avanzadas'!$E20 -> 43.64489294 | Y50: =+'Opciones Avanzadas'!$E20 -> 43.64489294 | Z50: =+'Opciones Avanzadas'!$E20 -> 43.64489294 | AA50: =+'Opciones Avanzadas'!$E20 -> 43.64489294 | AB50: =+'Opciones Avanzadas'!$E20 -> 43.64489294 | AC50: =+'Opciones Avanzadas'!$E20 -> 43.64489294 | AD50: =+'Opciones Avanzadas'!$E20 -> 43.64489294 | AE50: =+'Opciones Avanzadas'!$E20 -> 43.64489294 | AF50: =+'Opciones Avanzadas'!$E20 -> 43.64489294
B51: Total | C51: USD/ha | E51: - | F51: =+'Opciones Avanzadas'!$E21 -> 266.6774095 | G51: =+'Opciones Avanzadas'!$E21 -> 266.6774095 | H51: =+'Opciones Avanzadas'!$E21 -> 266.6774095 | I51: =+'Opciones Avanzadas'!$E21 -> 266.6774095 | J51: =+'Opciones Avanzadas'!$E21 -> 266.6774095 | K51: =+'Opciones Avanzadas'!$E21 -> 266.6774095 | L51: =+'Opciones Avanzadas'!$E21 -> 266.6774095 | M51: =+'Opciones Avanzadas'!$E21 -> 266.6774095 | N51: =+'Opciones Avanzadas'!$E21 -> 266.6774095 | O51: =+'Opciones Avanzadas'!$E21 -> 266.6774095 | P51: =+'Opciones Avanzadas'!$E21 -> 266.6774095 | Q51: =+'Opciones Avanzadas'!$E21 -> 266.6774095 | R51: =+'Opciones Avanzadas'!$E21 -> 266.6774095 | S51: =+'Opciones Avanzadas'!$E21 -> 266.6774095 | T51: =+'Opciones Avanzadas'!$E21 -> 266.6774095 | U51: =+'Opciones Avanzadas'!$E21 -> 266.6774095 | V51: =+'Opciones Avanzadas'!$E21 -> 266.6774095 | W51: =+'Opciones Avanzadas'!$E21 -> 266.6774095 | X51: =+'Opciones Avanzadas'!$E21 -> 266.6774095 | Y51: =+'Opciones Avanzadas'!$E21 -> 266.6774095 | Z51: =+'Opciones Avanzadas'!$E21 -> 266.6774095 | AA51: =+'Opciones Avanzadas'!$E21 -> 266.6774095 | AB51: =+'Opciones Avanzadas'!$E21 -> 266.6774095 | AC51: =+'Opciones Avanzadas'!$E21 -> 266.6774095 | AD51: =+'Opciones Avanzadas'!$E21 -> 266.6774095 | AE51: =+'Opciones Avanzadas'!$E21 -> 266.6774095 | AF51: =+'Opciones Avanzadas'!$E21 -> 266.6774095
B53: Gastos comerciales (Por tonelada) | C53: =C$2 -> Unidad de medida | D53: =D$2 -> Mes de actualiz. | E53: Costo | F53: Calamuchita | G53: Capital | H53: Colón | I53: Cruz del Eje | J53: Gral. Roca | K53: Gral. San Martín | L53: Ischilin | M53: Juárez Celman | N53: Marcos Juárez | O53: Minas | P53: Pocho | Q53: Pte. R. Sáenz Peña | R53: Punilla | S53: Río Cuarto | T53: Río Primero | U53: Río Seco | V53: Río Segundo | W53: San Alberto | X53: San Javier | Y53: San Justo | Z53: Santa María | AA53: Sobremonte | AB53: Tercero Arriba | AC53: Totoral | AD53: Tulumba | AE53: Unión | AF53: PROVINCIA
B54: Flete Largo | C54: $/tn | D54: 2020-11-01 | E54: - | F54: 1474.884 | G54: 1470.72 | H54: 1492.848 | I54: 1585.608 | J54: 1480.752 | K54: 1062.396 | L54: 1567.296 | M54: 1126.584 | N54: 704.16 | O54: 1626.66 | P54: 1613.484 | Q54: 1263.72 | R54: 1495.608 | S54: 1434.156 | T54: 1474.308 | U54: 1617.504 | V54: 1353.696 | W54: 1569.564 | X54: 1607.436 | Y54: 1069.26 | Z54: 1472.82 | AA54: 1626.66 | AB54: 1216.548 | AC54: 1519.044 | AD54: 1524.06 | AE54: 881.076 | AF54: 1160.376
B55: Flete Corto (30Km) | C55: $/tn | D55: =D54 -> 2020-11-01 | E55: 310.764 | F55: 310.764 | H55: 310.764 | I55: 310.764 | J55: 310.764 | K55: 310.764 | L55: 310.764 | M55: 310.764 | N55: 310.764 | O55: 310.764 | P55: 310.764 | Q55: 310.764 | R55: 310.764 | S55: 310.764 | T55: 310.764 | U55: 310.764 | V55: 310.764 | W55: 310.764 | X55: 310.764 | Y55: 310.764 | Z55: 310.764 | AA55: 310.764 | AB55: 310.764 | AC55: 310.764 | AD55: 310.764 | AE55: 310.764 | AF55: 310.764
B56: Flete Conjunto | C56: USD/tn | D56: - | E56: - | F56: =0.95*(1+$E$153)*(F54+F55)/$E$146 -> 21.53529053 | H56: =0.95*(1+$E$153)*(H54+H55)/$E$146 -> 21.75194015 | I56: 22.87064527 | J56: 21.60605985 | K56: 16.56059848 | L56: 22.64979869 | M56: 17.33471926 | N56: 12.24019695 | O56: 23.36574102 | P56: 23.20683569 | Q56: 18.98860827 | R56: 21.78522633 | S56: 21.04410229 | T56: 21.52834385 | U56: 23.25531774 | V56: 20.07373776 | W56: 22.67715125 | X56: 23.13389554 | Y56: 16.64337976 | Z56: 21.51039826 | AA56: 23.36574102 | AB56: 18.41970403 | AC56: 22.06786942 | AD56: 22.12836344 | AE56: 14.37384113 | AF56: =0.95*(1+$E$153)*(AF54+AF55)/$E$146 -> 17.74225789
B57: Paritaria | C57: USD/tn | D57: Octubre | E57: 3.4 | F57: =$E$57 -> 3.4 | H57: =$E$57 -> 3.4 | I57: 3.4 | J57: 3.4 | K57: 3.4 | L57: 3.4 | M57: 3.4 | N57: 3.4 | O57: 3.4 | P57: 3.4 | Q57: 3.4 | R57: 3.4 | S57: 3.4 | T57: 3.4 | U57: 3.4 | V57: 3.4 | W57: 3.4 | X57: 3.4 | Y57: 3.4 | Z57: 3.4 | AA57: 3.4 | AB57: 3.4 | AC57: 3.4 | AD57: 3.4 | AE57: 3.4 | AF57: 3.4
B58: Comisión Acopio | C58: % s. Precio Cosecha | D58: - | E58: 0.005 | F58: =$E$143*$E58 -> 1.1083 | H58: =$E$143*$E58 -> 1.1083 | I58: 1.1083 | J58: 1.1083 | K58: 1.1083 | L58: 1.1083 | M58: 1.1083 | N58: 1.1083 | O58: 1.1083 | P58: 1.1083 | Q58: 1.1083 | R58: 1.1083 | S58: 1.1083 | T58: 1.1083 | U58: 1.1083 | V58: 1.1083 | W58: 1.1083 | X58: 1.1083 | Y58: 1.1083 | Z58: 1.1083 | AA58: 1.1083 | AB58: 1.1083 | AC58: 1.1083 | AD58: 1.1083 | AE58: 1.1083 | AF58: 1.1083
B59: Total Gastos Comerciales | C59: USD/tn | F59: =SUM(F56:F58) -> 26.04359053 | H59: =SUM(H56:H58) -> 26.26024015 | I59: 27.37894527 | J59: 26.11435985 | K59: 21.06889848 | L59: 27.15809869 | M59: 21.84301926 | N59: 16.74849695 | O59: 27.87404102 | P59: 27.71513569 | Q59: 23.49690827 | R59: 26.29352633 | S59: 25.55240229 | T59: 26.03664385 | U59: 27.76361774 | V59: 24.58203776 | W59: 27.18545125 | X59: 27.64219554 | Y59: 21.15167976 | Z59: 26.01869826 | AA59: 27.87404102 | AB59: 22.92800403 | AC59: 26.57616942 | AD59: 26.63666344 | AE59: 18.88214113 | AF59: =SUM(AF56:AF58) -> 22.25055789
B61: Planteo Tecnico (Por Ha) | C61: =C$2 -> Unidad de medida | D61: Mes de actualiz. | E61: Cantidades | F61: Calamuchita | G61: Capital | H61: Colón | I61: Cruz del Eje | J61: Gral. Roca | K61: Gral. San Martín | L61: Ischilin | M61: Juárez Celman | N61: Marcos Juárez | O61: Minas | P61: Pocho | Q61: Pte. R. Sáenz Peña | R61: Punilla | S61: Río Cuarto | T61: Río Primero | U61: Río Seco | V61: Río Segundo | W61: San Alberto | X61: San Javier | Y61: San Justo | Z61: Santa María | AA61: Sobremonte | AB61: Tercero Arriba | AC61: Totoral | AD61: Tulumba | AE61: Unión | AF61: =AF$2 -> PROVINCIA
B62: Rendimiento | C62: qq/ha | E62: - | F62: =+'Calculadora BCCBA'!$M$7 -> 28.55978319 | G62: =+'Calculadora BCCBA'!$M$7 -> 28.55978319 | H62: =+'Calculadora BCCBA'!$M$7 -> 28.55978319 | I62: =+'Calculadora BCCBA'!$M$7 -> 28.55978319 | J62: =+'Calculadora BCCBA'!$M$7 -> 28.55978319 | K62: =+'Calculadora BCCBA'!$M$7 -> 28.55978319 | L62: =+'Calculadora BCCBA'!$M$7 -> 28.55978319 | M62: =+'Calculadora BCCBA'!$M$7 -> 28.55978319 | N62: =+'Calculadora BCCBA'!$M$7 -> 28.55978319 | O62: =+'Calculadora BCCBA'!$M$7 -> 28.55978319 | P62: =+'Calculadora BCCBA'!$M$7 -> 28.55978319 | Q62: =+'Calculadora BCCBA'!$M$7 -> 28.55978319 | R62: =+'Calculadora BCCBA'!$M$7 -> 28.55978319 | S62: =+'Calculadora BCCBA'!$M$7 -> 28.55978319 | T62: =+'Calculadora BCCBA'!$M$7 -> 28.55978319 | U62: =+'Calculadora BCCBA'!$M$7 -> 28.55978319 | V62: =+'Calculadora BCCBA'!$M$7 -> 28.55978319 | W62: =+'Calculadora BCCBA'!$M$7 -> 28.55978319 | X62: =+'Calculadora BCCBA'!$M$7 -> 28.55978319 | Y62: =+'Calculadora BCCBA'!$M$7 -> 28.55978319 | Z62: =+'Calculadora BCCBA'!$M$7 -> 28.55978319 | AA62: =+'Calculadora BCCBA'!$M$7 -> 28.55978319 | AB62: =+'Calculadora BCCBA'!$M$7 -> 28.55978319 | AC62: =+'Calculadora BCCBA'!$M$7 -> 28.55978319 | AD62: =+'Calculadora BCCBA'!$M$7 -> 28.55978319 | AE62: =+'Calculadora BCCBA'!$M$7 -> 28.55978319 | AF62: =+'Calculadora BCCBA'!$M$7 -> 28.55978319
B63: Participación Provincial | C63: Porcentaje | E63: - | F63: 0.001742049361 | H63: 0.01186196578 | J63: 0.03350425799 | K63: 0.05303851776 | M63: 0.04699934324 | N63: 0.2012491081 | Q63: 0.05259377195 | S63: 0.1388426156 | T63: 0.0578190491 | U63: 0.007351933704 | V63: 0.08116932004 | Y63: 0.1310691353 | Z63: 0.0034817501 | AB63: 0.04969430625 | AC63: 0.02062094546 | AD63: 0.01236140206 | AE63: 0.09312873711 | AF63: -
B64: Pulverización terrestre | C64: Cantidad | D64: Noviembre | E64: 2 | F64: =$E64 -> 2 | H64: =$E64 -> 2 | J64: =$E64 -> 2 | K64: 2 | M64: =$E64 -> 2 | N64: 2 | Q64: =$E64 -> 2 | S64: =$E64 -> 2 | T64: 2 | U64: 2 | V64: 2 | Y64: =$E64 -> 2 | Z64: 2 | AB64: =$E64 -> 2 | AC64: 2 | AD64: 2 | AE64: 2 | AF64: =SUMPRODUCT(F64:AE64,$F$63:$AE$63) -> 1.993056418
B65: Pulverización aerea | C65: Cantidad | D65: =D64 -> Noviembre | E65: 2 | F65: 2 | H65: 2 | J65: 2 | K65: 2 | M65: 2 | N65: 2 | Q65: 2 | S65: 2 | T65: 2 | U65: 2 | V65: 2 | Y65: 2 | Z65: 2 | AB65: 2 | AC65: 2 | AD65: 2 | AE65: 2 | AF65: =SUMPRODUCT(F65:AE65,$F$63:$AE$63) -> 1.993056418
B66: Glifosato | C66: lt/ha | D66: =D65 -> Noviembre | E66: 2.5 | F66: 2.5 | H66: 2.5 | J66: 2.5 | K66: 2.5 | M66: 2.5 | N66: 2.5 | Q66: 2.5 | S66: 2.5 | T66: 2.5 | U66: 2.5 | V66: 2.5 | Y66: 2.5 | Z66: 2.5 | AB66: 2.5 | AC66: 2.5 | AD66: 2.5 | AE66: 2.5 | AF66: =SUMPRODUCT(F66:AE66,$F$63:$AE$63) -> 2.491320522
B67: Semilla RR | C67: kg/ha | D67: =D66 -> Noviembre | E67: 80 | F67: 80 | H67: 80 | J67: 80 | K67: 80 | M67: 80 | N67: 80 | Q67: 80 | S67: 80 | T67: 80 | U67: 80 | V67: 80 | Y67: 80 | Z67: 80 | AB67: 80 | AC67: 80 | AD67: 80 | AE67: 80 | AF67: =SUMPRODUCT(F67:AE67,$F$63:$AE$63) -> 79.72225672
B68: Inoculante + Fungicida | C68: c/50 kg | D68: =D67 -> Noviembre | E68: 1.6 | F68: 1.6 | H68: 1.6 | J68: 1.6 | K68: 1.6 | M68: 1.6 | N68: 1.6 | Q68: 1.6 | S68: 1.6 | T68: 1.6 | U68: 1.6 | V68: 1.6 | Y68: 1.6 | Z68: 1.6 | AB68: 1.6 | AC68: 1.6 | AD68: 1.6 | AE68: 1.6 | AF68: 1.6
B69: Pivot H | C69: lt/ha | D69: =D68 -> Noviembre | E69: 0 | F69: 0 | H69: 0 | J69: 0 | K69: 0 | M69: 0 | N69: 0 | Q69: 0 | S69: 0 | T69: 0 | U69: 0 | V69: 0 | Y69: 0 | Z69: 0 | AB69: 0 | AC69: 0 | AD69: 0 | AE69: 0 | AF69: 0
B70: Roundup control max | C70: kg/ha | D70: Noviembre | E70: 1.1 | F70: 1.1 | H70: 1.1 | J70: 1.1 | K70: 1.1 | M70: 1.1 | N70: 1.1 | Q70: 1.1 | S70: 1.1 | T70: 1.1 | U70: 1.1 | V70: 1.1 | Y70: 1.1 | Z70: 1.1 | AB70: 1.1 | AC70: 1.1 | AD70: 1.1 | AE70: 1.1 | AF70: 1.1
B71: Coragen | C71: kg/ha | D71: Noviembre | E71: 0.03 | F71: 0.03 | H71: 0.03 | J71: 0.03 | K71: 0.03 | M71: 0.03 | N71: 0.03 | Q71: 0.03 | S71: 0.03 | T71: 0.03 | U71: 0.03 | V71: 0.03 | Y71: 0.03 | Z71: 0.03 | AB71: 0.03 | AC71: 0.03 | AD71: 0.03 | AE71: 0.03 | AF71: 0.03
B72: Engeo | C72: lt/ha | D72: Noviembre | E72: 0.2 | F72: 0.2 | H72: 0.2 | J72: 0.2 | K72: 0.2 | M72: 0.2 | N72: 0.2 | Q72: 0.2 | S72: 0.2 | T72: 0.2 | U72: 0.2 | V72: 0.2 | Y72: 0.2 | Z72: 0.2 | AB72: 0.2 | AC72: 0.2 | AD72: 0.2 | AE72: 0.2 | AF72: 0.2
B73: Opera | C73: lt/ha | D73: Noviembre | E73: 0.5 | F73: 0.5 | H73: 0.5 | J73: 0.5 | K73: 0.5 | M73: 0.5 | N73: 0.5 | Q73: 0.5 | S73: 0.5 | T73: 0.5 | U73: 0.5 | V73: 0.5 | Y73: 0.5 | Z73: 0.5 | AB73: 0.5 | AC73: 0.5 | AD73: 0.5 | AE73: 0.5 | AF73: 0.5
B74: Riego | C74: mm/ha | D74: - | E74: - | F74: 0 | H74: 0 | J74: 0 | K74: 0 | M74: 0 | N74: 0 | Q74: 0 | S74: 0 | T74: 0 | U74: 0 | V74: 0 | Y74: 0 | Z74: 0 | AB74: 0 | AC74: 0 | AD74: 0 | AE74: 0 | AF74: 0
B76: Costos Directos (Por Ha) | C76: =C$2 -> Unidad de medida | D76: Mes de actualiz. | E76: Precio | F76: Calamuchita | G76: Capital | H76: Colón | I76: Cruz del Eje | J76: Gral. Roca | K76: Gral. San Martín | L76: Ischilin | M76: Juárez Celman | N76: Marcos Juárez | O76: Minas | P76: Pocho | Q76: Pte. R. Sáenz Peña | R76: Punilla | S76: Río Cuarto | T76: Río Primero | U76: Río Seco | V76: Río Segundo | W76: San Alberto | X76: San Javier | Y76: San Justo | Z76: Santa María | AA76: Sobremonte | AB76: Tercero Arriba | AC76: Totoral | AD76: Tulumba | AE76: Unión | AF76: =AF$2 -> PROVINCIA
A77: L | B77: Pulverización terrestre | C77: Cantidad | D77: Noviembre | E77: 4.3 | F77: =$E77*F64 -> 8.6 | H77: =$E77*H64 -> 8.6 | J77: =$E77*J64 -> 8.6 | K77: 8.6 | M77: =$E77*M64 -> 8.6 | N77: 8.6 | Q77: =$E77*Q64 -> 8.6 | S77: =$E77*S64 -> 8.6 | T77: 8.6 | U77: 8.6 | V77: 8.6 | Y77: =$E77*Y64 -> 8.6 | Z77: 8.6 | AB77: =$E77*AB64 -> 8.6 | AC77: 8.6 | AD77: 8.6 | AE77: 8.6 | AF77: 8.570142597
A78: L | B78: Pulverización aerea | C78: Cantidad | D78: =D77 -> Noviembre | E78: 8.5 | F78: 17 | H78: 17 | J78: 17 | K78: 17 | M78: 17 | N78: 17 | Q78: 17 | S78: 17 | T78: 17 | U78: 17 | V78: 17 | Y78: 17 | Z78: 17 | AB78: 17 | AC78: 17 | AD78: 17 | AE78: 17 | AF78: 16.94097955
A79: He | B79: Glifosato | C79: lt/ha | D79: =D78 -> Noviembre | E79: 3.3 | F79: 8.25 | H79: 8.25 | J79: 8.25 | K79: 8.25 | M79: 8.25 | N79: 8.25 | Q79: 8.25 | S79: 8.25 | T79: 8.25 | U79: 8.25 | V79: 8.25 | Y79: 8.25 | Z79: 8.25 | AB79: 8.25 | AC79: 8.25 | AD79: 8.25 | AE79: 8.25 | AF79: 8.221357724
A80: Se | B80: Semilla RR | C80: lt/ha | D80: =D79 -> Noviembre | E80: 0.62 | F80: 49.6 | H80: 49.6 | J80: 49.6 | K80: 49.6 | M80: 49.6 | N80: 49.6 | Q80: 49.6 | S80: 49.6 | T80: 49.6 | U80: 49.6 | V80: 49.6 | Y80: 49.6 | Z80: 49.6 | AB80: 49.6 | AC80: 49.6 | AD80: 49.6 | AE80: 49.6 | AF80: 49.42779916
A81: Cu | B81: Inoculante + Fungicida | C81: kg/ha | D81: =D80 -> Noviembre | E81: 3.7 | F81: 5.92 | H81: 5.92 | J81: 5.92 | K81: 5.92 | M81: 5.92 | N81: 5.92 | Q81: 5.92 | S81: 5.92 | T81: 5.92 | U81: 5.92 | V81: 5.92 | Y81: 5.92 | Z81: 5.92 | AB81: 5.92 | AC81: 5.92 | AD81: 5.92 | AE81: 5.92 | AF81: 5.92
A82: He | B82: Pivot H | C82: kg/ha | D82: =D81 -> Noviembre | E82: 5.2 | F82: 0 | H82: 0 | J82: 0 | K82: 0 | M82: 0 | N82: 0 | Q82: 0 | S82: 0 | T82: 0 | U82: 0 | V82: 0 | Y82: 0 | Z82: 0 | AB82: 0 | AC82: 0 | AD82: 0 | AE82: 0 | AF82: 0
A83: He | B83: Roundup control max | C83: lt/ha | D83: Noviembre | E83: 6.74 | F83: 7.414 | H83: 7.414 | J83: 7.414 | K83: 7.414 | M83: 7.414 | N83: 7.414 | Q83: 7.414 | S83: 7.414 | T83: 7.414 | U83: 7.414 | V83: 7.414 | Y83: 7.414 | Z83: 7.414 | AB83: 7.414 | AC83: 7.414 | AD83: 7.414 | AE83: 7.414 | AF83: 7.414
A84: Ins | B84: Coragen | C84: kg/ha | D84: Noviembre | E84: 280 | F84: 8.4 | H84: 8.4 | J84: 8.4 | K84: 8.4 | M84: 8.4 | N84: 8.4 | Q84: 8.4 | S84: 8.4 | T84: 8.4 | U84: 8.4 | V84: 8.4 | Y84: 8.4 | Z84: 8.4 | AB84: 8.4 | AC84: 8.4 | AD84: 8.4 | AE84: 8.4 | AF84: 8.4
A85: Ins | B85: Engeo | C85: b 200 gr | D85: =D84 -> Noviembre | E85: 45.64 | F85: 9.128 | H85: 9.128 | J85: 9.128 | K85: 9.128 | M85: 9.128 | N85: 9.128 | Q85: 9.128 | S85: 9.128 | T85: 9.128 | U85: 9.128 | V85: 9.128 | Y85: 9.128 | Z85: 9.128 | AB85: 9.128 | AC85: 9.128 | AD85: 9.128 | AE85: 9.128 | AF85: 9.128
A86: Fu | B86: Opera | C86: kg/ha | D86: =D85 -> Noviembre | E86: 24 | F86: 12 | H86: 12 | J86: 12 | K86: 12 | M86: 12 | N86: 12 | Q86: 12 | S86: 12 | T86: 12 | U86: 12 | V86: 12 | Y86: 12 | Z86: 12 | AB86: 12 | AC86: 12 | AD86: 12 | AE86: 12 | AF86: 12
B87: Riego | C87: =+"USD/"&LEFT(C74,2) -> USD/mm | D87: Noviembre | E87: 1 | F87: 0 | H87: 0 | J87: 0 | K87: 0 | M87: 0 | N87: 0 | Q87: 0 | S87: 0 | T87: 0 | U87: 0 | V87: 0 | Y87: 0 | Z87: 0 | AB87: 0 | AC87: 0 | AD87: 0 | AE87: 0 | AF87: 0
A88: L | B88: Siembra | C88: USD/Unidad | D88: Noviembre | E88: 31.3 | F88: =$E88 -> 31.3 | H88: =$E88 -> 31.3 | J88: =$E88 -> 31.3 | K88: =$E88 -> 31.3 | M88: =$E88 -> 31.3 | N88: =$E88 -> 31.3 | Q88: =$E88 -> 31.3 | S88: =$E88 -> 31.3 | T88: =$E88 -> 31.3 | U88: =$E88 -> 31.3 | V88: =$E88 -> 31.3 | Y88: =$E88 -> 31.3 | Z88: =$E88 -> 31.3 | AB88: =$E88 -> 31.3 | AC88: =$E88 -> 31.3 | AD88: =$E88 -> 31.3 | AE88: =$E88 -> 31.3 | AF88: =$E88 -> 31.3
B89: Cosecha | C89: $/Unidad | E89: - | F89: =+Listas!$Z$10 -> 4480 | G89: =+Listas!$W$10 -> 6641.459295 | H89: =+Listas!$W$10 -> 6641.459295 | I89: =+Listas!$W$10 -> 6641.459295 | J89: =+Listas!$W$10 -> 6641.459295 | K89: =+Listas!$W$10 -> 6641.459295 | L89: =+Listas!$W$10 -> 6641.459295 | M89: =+Listas!$W$10 -> 6641.459295 | N89: =+Listas!$W$10 -> 6641.459295 | O89: =+Listas!$W$10 -> 6641.459295 | P89: =+Listas!$W$10 -> 6641.459295 | Q89: =+Listas!$W$10 -> 6641.459295 | R89: =+Listas!$W$10 -> 6641.459295 | S89: =+Listas!$W$10 -> 6641.459295 | T89: =+Listas!$W$10 -> 6641.459295 | U89: =+Listas!$W$10 -> 6641.459295 | V89: =+Listas!$W$10 -> 6641.459295 | W89: =+Listas!$W$10 -> 6641.459295 | X89: =+Listas!$W$10 -> 6641.459295 | Y89: =+Listas!$W$10 -> 6641.459295 | Z89: =+Listas!$W$10 -> 6641.459295 | AA89: =+Listas!$W$10 -> 6641.459295 | AB89: =+Listas!$W$10 -> 6641.459295 | AC89: =+Listas!$W$10 -> 6641.459295 | AD89: =+Listas!$W$10 -> 6641.459295 | AE89: =+Listas!$W$10 -> 6641.459295 | AF89: =+Listas!$W$10 -> 6641.459295
A90: Co | B90: Cosecha en USD | C90: USD/Unidad | E90: - | F90: =F89*(1+$E$152)/$E$149 -> 51.63202305 | H90: =H89*(1+$E$152)/$E$149 -> 76.54285254 | J90: =J89*(1+$E$152)/$E$149 -> 76.54285254 | K90: =K89*(1+$E$152)/$E$149 -> 76.54285254 | M90: =M89*(1+$E$152)/$E$149 -> 76.54285254 | N90: =N89*(1+$E$152)/$E$149 -> 76.54285254 | Q90: =Q89*(1+$E$152)/$E$149 -> 76.54285254 | S90: =S89*(1+$E$152)/$E$149 -> 76.54285254 | T90: =T89*(1+$E$152)/$E$149 -> 76.54285254 | U90: =U89*(1+$E$152)/$E$149 -> 76.54285254 | V90: =V89*(1+$E$152)/$E$149 -> 76.54285254 | Y90: =Y89*(1+$E$152)/$E$149 -> 76.54285254 | Z90: =Z89*(1+$E$152)/$E$149 -> 76.54285254 | AB90: =AB89*(1+$E$152)/$E$149 -> 76.54285254 | AC90: =AC89*(1+$E$152)/$E$149 -> 76.54285254 | AD90: =AD89*(1+$E$152)/$E$149 -> 76.54285254 | AE90: =AE89*(1+$E$152)/$E$149 -> 76.54285254 | AF90: =AF89*(1+$E$152)/$E$149 -> 76.54285254
B91: Costos directos | C91: USD/ha | F91: =SUM(F90,F77:F88) -> 209.2440231 | H91: =SUM(H90,H77:H88) -> 234.1548525 | J91: 234.1548525 | K91: 234.1548525 | M91: 234.1548525 | N91: 234.1548525 | Q91: 234.1548525 | S91: 234.1548525 | T91: 234.1548525 | U91: 234.1548525 | V91: 234.1548525 | Y91: 234.1548525 | Z91: 234.1548525 | AB91: 234.1548525 | AC91: 234.1548525 | AD91: 234.1548525 | AE91: 234.1548525 | AF91: 233.8651316
A92: =30*12 -> 360 | B92: =+A92*A93 -> 289440 | AF92: a
A93: 804 | B93: Opciones avanzadas SOJA 2ª (completado por el usuario) | C93: =C$2 -> Unidad de medida | D93: Mes de actualiz. | E93: - | F93: Calamuchita | G93: Capital | H93: Colón | I93: Cruz del Eje | J93: Gral. Roca | K93: Gral. San Martín | L93: Ischilin | M93: Juárez Celman | N93: Marcos Juárez | O93: Minas | P93: Pocho | Q93: Pte. R. Sáenz Peña | R93: Punilla | S93: Río Cuarto | T93: Río Primero | U93: Río Seco | V93: Río Segundo | W93: San Alberto | X93: San Javier | Y93: San Justo | Z93: Santa María | AA93: Sobremonte | AB93: Tercero Arriba | AC93: Totoral | AD93: Tulumba | AE93: Unión | AF93: =AF$2 -> PROVINCIA
B94: Servicios de labranza | C94: USD/ha | D94: Estos datos son los ingresados en opciones avanzadas | E94: - | F94: =+'Opciones Avanzadas'!$D13 -> 56.81112215 | G94: =+'Opciones Avanzadas'!$D13 -> 56.81112215 | H94: =+'Opciones Avanzadas'!$D13 -> 56.81112215 | I94: =+'Opciones Avanzadas'!$D13 -> 56.81112215 | J94: =+'Opciones Avanzadas'!$D13 -> 56.81112215 | K94: =+'Opciones Avanzadas'!$D13 -> 56.81112215 | L94: =+'Opciones Avanzadas'!$D13 -> 56.81112215 | M94: =+'Opciones Avanzadas'!$D13 -> 56.81112215 | N94: =+'Opciones Avanzadas'!$D13 -> 56.81112215 | O94: =+'Opciones Avanzadas'!$D13 -> 56.81112215 | P94: =+'Opciones Avanzadas'!$D13 -> 56.81112215 | Q94: =+'Opciones Avanzadas'!$D13 -> 56.81112215 | R94: =+'Opciones Avanzadas'!$D13 -> 56.81112215 | S94: =+'Opciones Avanzadas'!$D13 -> 56.81112215 | T94: =+'Opciones Avanzadas'!$D13 -> 56.81112215 | U94: =+'Opciones Avanzadas'!$D13 -> 56.81112215 | V94: =+'Opciones Avanzadas'!$D13 -> 56.81112215 | W94: =+'Opciones Avanzadas'!$D13 -> 56.81112215 | X94: =+'Opciones Avanzadas'!$D13 -> 56.81112215 | Y94: =+'Opciones Avanzadas'!$D13 -> 56.81112215 | Z94: =+'Opciones Avanzadas'!$D13 -> 56.81112215 | AA94: =+'Opciones Avanzadas'!$D13 -> 56.81112215 | AB94: =+'Opciones Avanzadas'!$D13 -> 56.81112215 | AC94: =+'Opciones Avanzadas'!$D13 -> 56.81112215 | AD94: =+'Opciones Avanzadas'!$D13 -> 56.81112215 | AE94: =+'Opciones Avanzadas'!$D13 -> 56.81112215 | AF94: =+'Opciones Avanzadas'!$D13 -> 56.81112215
B95: Cosecha | C95: USD/ha | E95: - | F95: =+'Opciones Avanzadas'!$D14 -> 76.54285254 | G95: =+'Opciones Avanzadas'!$D14 -> 76.54285254 | H95: =+'Opciones Avanzadas'!$D14 -> 76.54285254 | I95: =+'Opciones Avanzadas'!$D14 -> 76.54285254 | J95: =+'Opciones Avanzadas'!$D14 -> 76.54285254 | K95: =+'Opciones Avanzadas'!$D14 -> 76.54285254 | L95: =+'Opciones Avanzadas'!$D14 -> 76.54285254 | M95: =+'Opciones Avanzadas'!$D14 -> 76.54285254 | N95: =+'Opciones Avanzadas'!$D14 -> 76.54285254 | O95: =+'Opciones Avanzadas'!$D14 -> 76.54285254 | P95: =+'Opciones Avanzadas'!$D14 -> 76.54285254 | Q95: =+'Opciones Avanzadas'!$D14 -> 76.54285254 | R95: =+'Opciones Avanzadas'!$D14 -> 76.54285254 | S95: =+'Opciones Avanzadas'!$D14 -> 76.54285254 | T95: =+'Opciones Avanzadas'!$D14 -> 76.54285254 | U95: =+'Opciones Avanzadas'!$D14 -> 76.54285254 | V95: =+'Opciones Avanzadas'!$D14 -> 76.54285254 | W95: =+'Opciones Avanzadas'!$D14 -> 76.54285254 | X95: =+'Opciones Avanzadas'!$D14 -> 76.54285254 | Y95: =+'Opciones Avanzadas'!$D14 -> 76.54285254 | Z95: =+'Opciones Avanzadas'!$D14 -> 76.54285254 | AA95: =+'Opciones Avanzadas'!$D14 -> 76.54285254 | AB95: =+'Opciones Avanzadas'!$D14 -> 76.54285254 | AC95: =+'Opciones Avanzadas'!$D14 -> 76.54285254 | AD95: =+'Opciones Avanzadas'!$D14 -> 76.54285254 | AE95: =+'Opciones Avanzadas'!$D14 -> 76.54285254 | AF95: =+'Opciones Avanzadas'!$D14 -> 76.54285254
B96: Herbicida | C96: USD/ha | E96: - | F96: =+'Opciones Avanzadas'!$D15 -> 15.63535772 | G96: =+'Opciones Avanzadas'!$D15 -> 15.63535772 | H96: =+'Opciones Avanzadas'!$D15 -> 15.63535772 | I96: =+'Opciones Avanzadas'!$D15 -> 15.63535772 | J96: =+'Opciones Avanzadas'!$D15 -> 15.63535772 | K96: =+'Opciones Avanzadas'!$D15 -> 15.63535772 | L96: =+'Opciones Avanzadas'!$D15 -> 15.63535772 | M96: =+'Opciones Avanzadas'!$D15 -> 15.63535772 | N96: =+'Opciones Avanzadas'!$D15 -> 15.63535772 | O96: =+'Opciones Avanzadas'!$D15 -> 15.63535772 | P96: =+'Opciones Avanzadas'!$D15 -> 15.63535772 | Q96: =+'Opciones Avanzadas'!$D15 -> 15.63535772 | R96: =+'Opciones Avanzadas'!$D15 -> 15.63535772 | S96: =+'Opciones Avanzadas'!$D15 -> 15.63535772 | T96: =+'Opciones Avanzadas'!$D15 -> 15.63535772 | U96: =+'Opciones Avanzadas'!$D15 -> 15.63535772 | V96: =+'Opciones Avanzadas'!$D15 -> 15.63535772 | W96: =+'Opciones Avanzadas'!$D15 -> 15.63535772 | X96: =+'Opciones Avanzadas'!$D15 -> 15.63535772 | Y96: =+'Opciones Avanzadas'!$D15 -> 15.63535772 | Z96: =+'Opciones Avanzadas'!$D15 -> 15.63535772 | AA96: =+'Opciones Avanzadas'!$D15 -> 15.63535772 | AB96: =+'Opciones Avanzadas'!$D15 -> 15.63535772 | AC96: =+'Opciones Avanzadas'!$D15 -> 15.63535772 | AD96: =+'Opciones Avanzadas'!$D15 -> 15.63535772 | AE96: =+'Opciones Avanzadas'!$D15 -> 15.63535772 | AF96: =+'Opciones Avanzadas'!$D15 -> 15.63535772
B97: Fertilizantes | C97: USD/ha | E97: - | F97: =+'Opciones Avanzadas'!$D16 -> 0 | G97: =+'Opciones Avanzadas'!$D16 -> 0 | H97: =+'Opciones Avanzadas'!$D16 -> 0 | I97: =+'Opciones Avanzadas'!$D16 -> 0 | J97: =+'Opciones Avanzadas'!$D16 -> 0 | K97: =+'Opciones Avanzadas'!$D16 -> 0 | L97: =+'Opciones Avanzadas'!$D16 -> 0 | M97: =+'Opciones Avanzadas'!$D16 -> 0 | N97: =+'Opciones Avanzadas'!$D16 -> 0 | O97: =+'Opciones Avanzadas'!$D16 -> 0 | P97: =+'Opciones Avanzadas'!$D16 -> 0 | Q97: =+'Opciones Avanzadas'!$D16 -> 0 | R97: =+'Opciones Avanzadas'!$D16 -> 0 | S97: =+'Opciones Avanzadas'!$D16 -> 0 | T97: =+'Opciones Avanzadas'!$D16 -> 0 | U97: =+'Opciones Avanzadas'!$D16 -> 0 | V97: =+'Opciones Avanzadas'!$D16 -> 0 | W97: =+'Opciones Avanzadas'!$D16 -> 0 | X97: =+'Opciones Avanzadas'!$D16 -> 0 | Y97: =+'Opciones Avanzadas'!$D16 -> 0 | Z97: =+'Opciones Avanzadas'!$D16 -> 0 | AA97: =+'Opciones Avanzadas'!$D16 -> 0 | AB97: =+'Opciones Avanzadas'!$D16 -> 0 | AC97: =+'Opciones Avanzadas'!$D16 -> 0 | AD97: =+'Opciones Avanzadas'!$D16 -> 0 | AE97: =+'Opciones Avanzadas'!$D16 -> 0 | AF97: =+'Opciones Avanzadas'!$D16 -> 0
B98: Insecticidas | C98: USD/ha | E98: - | F98: =+'Opciones Avanzadas'!$D17 -> 17.528 | G98: =+'Opciones Avanzadas'!$D17 -> 17.528 | H98: =+'Opciones Avanzadas'!$D17 -> 17.528 | I98: =+'Opciones Avanzadas'!$D17 -> 17.528 | J98: =+'Opciones Avanzadas'!$D17 -> 17.528 | K98: =+'Opciones Avanzadas'!$D17 -> 17.528 | L98: =+'Opciones Avanzadas'!$D17 -> 17.528 | M98: =+'Opciones Avanzadas'!$D17 -> 17.528 | N98: =+'Opciones Avanzadas'!$D17 -> 17.528 | O98: =+'Opciones Avanzadas'!$D17 -> 17.528 | P98: =+'Opciones Avanzadas'!$D17 -> 17.528 | Q98: =+'Opciones Avanzadas'!$D17 -> 17.528 | R98: =+'Opciones Avanzadas'!$D17 -> 17.528 | S98: =+'Opciones Avanzadas'!$D17 -> 17.528 | T98: =+'Opciones Avanzadas'!$D17 -> 17.528 | U98: =+'Opciones Avanzadas'!$D17 -> 17.528 | V98: =+'Opciones Avanzadas'!$D17 -> 17.528 | W98: =+'Opciones Avanzadas'!$D17 -> 17.528 | X98: =+'Opciones Avanzadas'!$D17 -> 17.528 | Y98: =+'Opciones Avanzadas'!$D17 -> 17.528 | Z98: =+'Opciones Avanzadas'!$D17 -> 17.528 | AA98: =+'Opciones Avanzadas'!$D17 -> 17.528 | AB98: =+'Opciones Avanzadas'!$D17 -> 17.528 | AC98: =+'Opciones Avanzadas'!$D17 -> 17.528 | AD98: =+'Opciones Avanzadas'!$D17 -> 17.528 | AE98: =+'Opciones Avanzadas'!$D17 -> 17.528 | AF98: =+'Opciones Avanzadas'!$D17 -> 17.528
B99: Fungicidas | C99: USD/ha | E99: - | F99: =+'Opciones Avanzadas'!$D18 -> 12 | G99: =+'Opciones Avanzadas'!$D18 -> 12 | H99: =+'Opciones Avanzadas'!$D18 -> 12 | I99: =+'Opciones Avanzadas'!$D18 -> 12 | J99: =+'Opciones Avanzadas'!$D18 -> 12 | K99: =+'Opciones Avanzadas'!$D18 -> 12 | L99: =+'Opciones Avanzadas'!$D18 -> 12 | M99: =+'Opciones Avanzadas'!$D18 -> 12 | N99: =+'Opciones Avanzadas'!$D18 -> 12 | O99: =+'Opciones Avanzadas'!$D18 -> 12 | P99: =+'Opciones Avanzadas'!$D18 -> 12 | Q99: =+'Opciones Avanzadas'!$D18 -> 12 | R99: =+'Opciones Avanzadas'!$D18 -> 12 | S99: =+'Opciones Avanzadas'!$D18 -> 12 | T99: =+'Opciones Avanzadas'!$D18 -> 12 | U99: =+'Opciones Avanzadas'!$D18 -> 12 | V99: =+'Opciones Avanzadas'!$D18 -> 12 | W99: =+'Opciones Avanzadas'!$D18 -> 12 | X99: =+'Opciones Avanzadas'!$D18 -> 12 | Y99: =+'Opciones Avanzadas'!$D18 -> 12 | Z99: =+'Opciones Avanzadas'!$D18 -> 12 | AA99: =+'Opciones Avanzadas'!$D18 -> 12 | AB99: =+'Opciones Avanzadas'!$D18 -> 12 | AC99: =+'Opciones Avanzadas'!$D18 -> 12 | AD99: =+'Opciones Avanzadas'!$D18 -> 12 | AE99: =+'Opciones Avanzadas'!$D18 -> 12 | AF99: =+'Opciones Avanzadas'!$D18 -> 12
B100: Curasemillas | C100: USD/ha | E100: - | F100: =+'Opciones Avanzadas'!$D19 -> 5.92 | G100: =+'Opciones Avanzadas'!$D19 -> 5.92 | H100: =+'Opciones Avanzadas'!$D19 -> 5.92 | I100: =+'Opciones Avanzadas'!$D19 -> 5.92 | J100: =+'Opciones Avanzadas'!$D19 -> 5.92 | K100: =+'Opciones Avanzadas'!$D19 -> 5.92 | L100: =+'Opciones Avanzadas'!$D19 -> 5.92 | M100: =+'Opciones Avanzadas'!$D19 -> 5.92 | N100: =+'Opciones Avanzadas'!$D19 -> 5.92 | O100: =+'Opciones Avanzadas'!$D19 -> 5.92 | P100: =+'Opciones Avanzadas'!$D19 -> 5.92 | Q100: =+'Opciones Avanzadas'!$D19 -> 5.92 | R100: =+'Opciones Avanzadas'!$D19 -> 5.92 | S100: =+'Opciones Avanzadas'!$D19 -> 5.92 | T100: =+'Opciones Avanzadas'!$D19 -> 5.92 | U100: =+'Opciones Avanzadas'!$D19 -> 5.92 | V100: =+'Opciones Avanzadas'!$D19 -> 5.92 | W100: =+'Opciones Avanzadas'!$D19 -> 5.92 | X100: =+'Opciones Avanzadas'!$D19 -> 5.92 | Y100: =+'Opciones Avanzadas'!$D19 -> 5.92 | Z100: =+'Opciones Avanzadas'!$D19 -> 5.92 | AA100: =+'Opciones Avanzadas'!$D19 -> 5.92 | AB100: =+'Opciones Avanzadas'!$D19 -> 5.92 | AC100: =+'Opciones Avanzadas'!$D19 -> 5.92 | AD100: =+'Opciones Avanzadas'!$D19 -> 5.92 | AE100: =+'Opciones Avanzadas'!$D19 -> 5.92 | AF100: =+'Opciones Avanzadas'!$D19 -> 5.92
B101: Semillas | C101: USD/ha | E101: - | F101: =+'Opciones Avanzadas'!$D20 -> 49.42779916 | G101: =+'Opciones Avanzadas'!$D20 -> 49.42779916 | H101: =+'Opciones Avanzadas'!$D20 -> 49.42779916 | I101: =+'Opciones Avanzadas'!$D20 -> 49.42779916 | J101: =+'Opciones Avanzadas'!$D20 -> 49.42779916 | K101: =+'Opciones Avanzadas'!$D20 -> 49.42779916 | L101: =+'Opciones Avanzadas'!$D20 -> 49.42779916 | M101: =+'Opciones Avanzadas'!$D20 -> 49.42779916 | N101: =+'Opciones Avanzadas'!$D20 -> 49.42779916 | O101: =+'Opciones Avanzadas'!$D20 -> 49.42779916 | P101: =+'Opciones Avanzadas'!$D20 -> 49.42779916 | Q101: =+'Opciones Avanzadas'!$D20 -> 49.42779916 | R101: =+'Opciones Avanzadas'!$D20 -> 49.42779916 | S101: =+'Opciones Avanzadas'!$D20 -> 49.42779916 | T101: =+'Opciones Avanzadas'!$D20 -> 49.42779916 | U101: =+'Opciones Avanzadas'!$D20 -> 49.42779916 | V101: =+'Opciones Avanzadas'!$D20 -> 49.42779916 | W101: =+'Opciones Avanzadas'!$D20 -> 49.42779916 | X101: =+'Opciones Avanzadas'!$D20 -> 49.42779916 | Y101: =+'Opciones Avanzadas'!$D20 -> 49.42779916 | Z101: =+'Opciones Avanzadas'!$D20 -> 49.42779916 | AA101: =+'Opciones Avanzadas'!$D20 -> 49.42779916 | AB101: =+'Opciones Avanzadas'!$D20 -> 49.42779916 | AC101: =+'Opciones Avanzadas'!$D20 -> 49.42779916 | AD101: =+'Opciones Avanzadas'!$D20 -> 49.42779916 | AE101: =+'Opciones Avanzadas'!$D20 -> 49.42779916 | AF101: =+'Opciones Avanzadas'!$D20 -> 49.42779916
B102: Total | C102: USD/ha | E102: - | F102: =+'Opciones Avanzadas'!$D21 -> 233.8651316 | G102: =+'Opciones Avanzadas'!$D21 -> 233.8651316 | H102: =+'Opciones Avanzadas'!$D21 -> 233.8651316 | I102: =+'Opciones Avanzadas'!$D21 -> 233.8651316 | J102: =+'Opciones Avanzadas'!$D21 -> 233.8651316 | K102: =+'Opciones Avanzadas'!$D21 -> 233.8651316 | L102: =+'Opciones Avanzadas'!$D21 -> 233.8651316 | M102: =+'Opciones Avanzadas'!$D21 -> 233.8651316 | N102: =+'Opciones Avanzadas'!$D21 -> 233.8651316 | O102: =+'Opciones Avanzadas'!$D21 -> 233.8651316 | P102: =+'Opciones Avanzadas'!$D21 -> 233.8651316 | Q102: =+'Opciones Avanzadas'!$D21 -> 233.8651316 | R102: =+'Opciones Avanzadas'!$D21 -> 233.8651316 | S102: =+'Opciones Avanzadas'!$D21 -> 233.8651316 | T102: =+'Opciones Avanzadas'!$D21 -> 233.8651316 | U102: =+'Opciones Avanzadas'!$D21 -> 233.8651316 | V102: =+'Opciones Avanzadas'!$D21 -> 233.8651316 | W102: =+'Opciones Avanzadas'!$D21 -> 233.8651316 | X102: =+'Opciones Avanzadas'!$D21 -> 233.8651316 | Y102: =+'Opciones Avanzadas'!$D21 -> 233.8651316 | Z102: =+'Opciones Avanzadas'!$D21 -> 233.8651316 | AA102: =+'Opciones Avanzadas'!$D21 -> 233.8651316 | AB102: =+'Opciones Avanzadas'!$D21 -> 233.8651316 | AC102: =+'Opciones Avanzadas'!$D21 -> 233.8651316 | AD102: =+'Opciones Avanzadas'!$D21 -> 233.8651316 | AE102: =+'Opciones Avanzadas'!$D21 -> 233.8651316 | AF102: =+'Opciones Avanzadas'!$D21 -> 233.8651316
B104: Gastos Comerciales (Por Tn) | C104: =C$2 -> Unidad de medida | D104: Mes de actualiz. | E104: Costo | F104: Calamuchita | G104: Capital | H104: Colón | I104: Cruz del Eje | J104: Gral. Roca | K104: Gral. San Martín | L104: Ischilin | M104: Juárez Celman | N104: Marcos Juárez | O104: Minas | P104: Pocho | Q104: Pte. R. Sáenz Peña | R104: Punilla | S104: Río Cuarto | T104: Río Primero | U104: Río Seco | V104: Río Segundo | W104: San Alberto | X104: San Javier | Y104: San Justo | Z104: Santa María | AA104: Sobremonte | AB104: Tercero Arriba | AC104: Totoral | AD104: Tulumba | AE104: Unión | AF104: PROVINCIA
B105: Flete Largo | C105: $/tn | D105: 2020-02-01 | E105: - | F105: =+IF('Opciones Avanzadas'!$E$7<=MROUND('Opciones Avanzadas'!$E$7,5),VLOOKUP(MROUND('Opciones Avanzadas'!$E$7-2.5,5),Listas!$AB$21:$AC$135,2,FALSE)+(VLOOKUP(MROUND('Opciones Avanzadas'!$E$7,5),Listas!$AB$21:$AC$135,2,FALSE)-VLOOKUP(MROUND('Opciones Avanzadas'!$E$7-2.5,5),Listas!$AB$21:$AC$135,2,FALSE))/5*('Opciones Avanzadas'!$E$7-MROUND('Opciones Avanzadas'!$E$7-2.5,5)),VLOOKUP(MROUND('Opciones Avanzadas'!$E$7,5),Listas!$AB$21:$AC$135,2,FALSE)+(VLOOKUP(MROUND('Opciones Avanzadas'!$E$7+2.5,5),Listas!$AB$21:$AC$135,2,FALSE)-VLOOKUP(MROUND('Opciones Avanzadas'!$E$7,5),Listas!$AB$21:$AC$135,2,FALSE))/5*('Opciones Avanzadas'!$E$7-MROUND('Opciones Avanzadas'!$E$7,5))) -> 1698.78168 | G105: =+IF('Opciones Avanzadas'!$E$7<=MROUND('Opciones Avanzadas'!$E$7,5),VLOOKUP(MROUND('Opciones Avanzadas'!$E$7-2.5,5),Listas!$AB$21:$AC$135,2,FALSE)+(VLOOKUP(MROUND('Opciones Avanzadas'!$E$7,5),Listas!$AB$21:$AC$135,2,FALSE)-VLOOKUP(MROUND('Opciones Avanzadas'!$E$7-2.5,5),Listas!$AB$21:$AC$135,2,FALSE))/5*('Opciones Avanzadas'!$E$7-MROUND('Opciones Avanzadas'!$E$7-2.5,5)),VLOOKUP(MROUND('Opciones Avanzadas'!$E$7,5),Listas!$AB$21:$AC$135,2,FALSE)+(VLOOKUP(MROUND('Opciones Avanzadas'!$E$7+2.5,5),Listas!$AB$21:$AC$135,2,FALSE)-VLOOKUP(MROUND('Opciones Avanzadas'!$E$7,5),Listas!$AB$21:$AC$135,2,FALSE))/5*('Opciones Avanzadas'!$E$7-MROUND('Opciones Avanzadas'!$E$7,5))) -> 1698.78168 | H105: =+IF('Opciones Avanzadas'!$E$7<=MROUND('Opciones Avanzadas'!$E$7,5),VLOOKUP(MROUND('Opciones Avanzadas'!$E$7-2.5,5),Listas!$AB$21:$AC$135,2,FALSE)+(VLOOKUP(MROUND('Opciones Avanzadas'!$E$7,5),Listas!$AB$21:$AC$135,2,FALSE)-VLOOKUP(MROUND('Opciones Avanzadas'!$E$7-2.5,5),Listas!$AB$21:$AC$135,2,FALSE))/5*('Opciones Avanzadas'!$E$7-MROUND('Opciones Avanzadas'!$E$7-2.5,5)),VLOOKUP(MROUND('Opciones Avanzadas'!$E$7,5),Listas!$AB$21:$AC$135,2,FALSE)+(VLOOKUP(MROUND('Opciones Avanzadas'!$E$7+2.5,5),Listas!$AB$21:$AC$135,2,FALSE)-VLOOKUP(MROUND('Opciones Avanzadas'!$E$7,5),Listas!$AB$21:$AC$135,2,FALSE))/5*('Opciones Avanzadas'!$E$7-MROUND('Opciones Avanzadas'!$E$7,5))) -> 1698.78168 | I105: =+IF('Opciones Avanzadas'!$E$7<=MROUND('Opciones Avanzadas'!$E$7,5),VLOOKUP(MROUND('Opciones Avanzadas'!$E$7-2.5,5),Listas!$AB$21:$AC$135,2,FALSE)+(VLOOKUP(MROUND('Opciones Avanzadas'!$E$7,5),Listas!$AB$21:$AC$135,2,FALSE)-VLOOKUP(MROUND('Opciones Avanzadas'!$E$7-2.5,5),Listas!$AB$21:$AC$135,2,FALSE))/5*('Opciones Avanzadas'!$E$7-MROUND('Opciones Avanzadas'!$E$7-2.5,5)),VLOOKUP(MROUND('Opciones Avanzadas'!$E$7,5),Listas!$AB$21:$AC$135,2,FALSE)+(VLOOKUP(MROUND('Opciones Avanzadas'!$E$7+2.5,5),Listas!$AB$21:$AC$135,2,FALSE)-VLOOKUP(MROUND('Opciones Avanzadas'!$E$7,5),Listas!$AB$21:$AC$135,2,FALSE))/5*('Opciones Avanzadas'!$E$7-MROUND('Opciones Avanzadas'!$E$7,5))) -> 1698.78168 | J105: =+IF('Opciones Avanzadas'!$E$7<=MROUND('Opciones Avanzadas'!$E$7,5),VLOOKUP(MROUND('Opciones Avanzadas'!$E$7-2.5,5),Listas!$AB$21:$AC$135,2,FALSE)+(VLOOKUP(MROUND('Opciones Avanzadas'!$E$7,5),Listas!$AB$21:$AC$135,2,FALSE)-VLOOKUP(MROUND('Opciones Avanzadas'!$E$7-2.5,5),Listas!$AB$21:$AC$135,2,FALSE))/5*('Opciones Avanzadas'!$E$7-MROUND('Opciones Avanzadas'!$E$7-2.5,5)),VLOOKUP(MROUND('Opciones Avanzadas'!$E$7,5),Listas!$AB$21:$AC$135,2,FALSE)+(VLOOKUP(MROUND('Opciones Avanzadas'!$E$7+2.5,5),Listas!$AB$21:$AC$135,2,FALSE)-VLOOKUP(MROUND('Opciones Avanzadas'!$E$7,5),Listas!$AB$21:$AC$135,2,FALSE))/5*('Opciones Avanzadas'!$E$7-MROUND('Opciones Avanzadas'!$E$7,5))) -> 1698.78168 | K105: =+IF('Opciones Avanzadas'!$E$7<=MROUND('Opciones Avanzadas'!$E$7,5),VLOOKUP(MROUND('Opciones Avanzadas'!$E$7-2.5,5),Listas!$AB$21:$AC$135,2,FALSE)+(VLOOKUP(MROUND('Opciones Avanzadas'!$E$7,5),Listas!$AB$21:$AC$135,2,FALSE)-VLOOKUP(MROUND('Opciones Avanzadas'!$E$7-2.5,5),Listas!$AB$21:$AC$135,2,FALSE))/5*('Opciones Avanzadas'!$E$7-MROUND('Opciones Avanzadas'!$E$7-2.5,5)),VLOOKUP(MROUND('Opciones Avanzadas'!$E$7,5),Listas!$AB$21:$AC$135,2,FALSE)+(VLOOKUP(MROUND('Opciones Avanzadas'!$E$7+2.5,5),Listas!$AB$21:$AC$135,2,FALSE)-VLOOKUP(MROUND('Opciones Avanzadas'!$E$7,5),Listas!$AB$21:$AC$135,2,FALSE))/5*('Opciones Avanzadas'!$E$7-MROUND('Opciones Avanzadas'!$E$7,5))) -> 1698.78168 | L105: =+IF('Opciones Avanzadas'!$E$7<=MROUND('Opciones Avanzadas'!$E$7,5),VLOOKUP(MROUND('Opciones Avanzadas'!$E$7-2.5,5),Listas!$AB$21:$AC$135,2,FALSE)+(VLOOKUP(MROUND('Opciones Avanzadas'!$E$7,5),Listas!$AB$21:$AC$135,2,FALSE)-VLOOKUP(MROUND('Opciones Avanzadas'!$E$7-2.5,5),Listas!$AB$21:$AC$135,2,FALSE))/5*('Opciones Avanzadas'!$E$7-MROUND('Opciones Avanzadas'!$E$7-2.5,5)),VLOOKUP(MROUND('Opciones Avanzadas'!$E$7,5),Listas!$AB$21:$AC$135,2,FALSE)+(VLOOKUP(MROUND('Opciones Avanzadas'!$E$7+2.5,5),Listas!$AB$21:$AC$135,2,FALSE)-VLOOKUP(MROUND('Opciones Avanzadas'!$E$7,5),Listas!$AB$21:$AC$135,2,FALSE))/5*('Opciones Avanzadas'!$E$7-MROUND('Opciones Avanzadas'!$E$7,5))) -> 1698.78168 | M105: =+IF('Opciones Avanzadas'!$E$7<=MROUND('Opciones Avanzadas'!$E$7,5),VLOOKUP(MROUND('Opciones Avanzadas'!$E$7-2.5,5),Listas!$AB$21:$AC$135,2,FALSE)+(VLOOKUP(MROUND('Opciones Avanzadas'!$E$7,5),Listas!$AB$21:$AC$135,2,FALSE)-VLOOKUP(MROUND('Opciones Avanzadas'!$E$7-2.5,5),Listas!$AB$21:$AC$135,2,FALSE))/5*('Opciones Avanzadas'!$E$7-MROUND('Opciones Avanzadas'!$E$7-2.5,5)),VLOOKUP(MROUND('Opciones Avanzadas'!$E$7,5),Listas!$AB$21:$AC$135,2,FALSE)+(VLOOKUP(MROUND('Opciones Avanzadas'!$E$7+2.5,5),Listas!$AB$21:$AC$135,2,FALSE)-VLOOKUP(MROUND('Opciones Avanzadas'!$E$7,5),Listas!$AB$21:$AC$135,2,FALSE))/5*('Opciones Avanzadas'!$E$7-MROUND('Opciones Avanzadas'!$E$7,5))) -> 1698.78168 | N105: =+IF('Opciones Avanzadas'!$E$7<=MROUND('Opciones Avanzadas'!$E$7,5),VLOOKUP(MROUND('Opciones Avanzadas'!$E$7-2.5,5),Listas!$AB$21:$AC$135,2,FALSE)+(VLOOKUP(MROUND('Opciones Avanzadas'!$E$7,5),Listas!$AB$21:$AC$135,2,FALSE)-VLOOKUP(MROUND('Opciones Avanzadas'!$E$7-2.5,5),Listas!$AB$21:$AC$135,2,FALSE))/5*('Opciones Avanzadas'!$E$7-MROUND('Opciones Avanzadas'!$E$7-2.5,5)),VLOOKUP(MROUND('Opciones Avanzadas'!$E$7,5),Listas!$AB$21:$AC$135,2,FALSE)+(VLOOKUP(MROUND('Opciones Avanzadas'!$E$7+2.5,5),Listas!$AB$21:$AC$135,2,FALSE)-VLOOKUP(MROUND('Opciones Avanzadas'!$E$7,5),Listas!$AB$21:$AC$135,2,FALSE))/5*('Opciones Avanzadas'!$E$7-MROUND('Opciones Avanzadas'!$E$7,5))) -> 1698.78168 | O105: =+IF('Opciones Avanzadas'!$E$7<=MROUND('Opciones Avanzadas'!$E$7,5),VLOOKUP(MROUND('Opciones Avanzadas'!$E$7-2.5,5),Listas!$AB$21:$AC$135,2,FALSE)+(VLOOKUP(MROUND('Opciones Avanzadas'!$E$7,5),Listas!$AB$21:$AC$135,2,FALSE)-VLOOKUP(MROUND('Opciones Avanzadas'!$E$7-2.5,5),Listas!$AB$21:$AC$135,2,FALSE))/5*('Opciones Avanzadas'!$E$7-MROUND('Opciones Avanzadas'!$E$7-2.5,5)),VLOOKUP(MROUND('Opciones Avanzadas'!$E$7,5),Listas!$AB$21:$AC$135,2,FALSE)+(VLOOKUP(MROUND('Opciones Avanzadas'!$E$7+2.5,5),Listas!$AB$21:$AC$135,2,FALSE)-VLOOKUP(MROUND('Opciones Avanzadas'!$E$7,5),Listas!$AB$21:$AC$135,2,FALSE))/5*('Opciones Avanzadas'!$E$7-MROUND('Opciones Avanzadas'!$E$7,5))) -> 1698.78168 | P105: =+IF('Opciones Avanzadas'!$E$7<=MROUND('Opciones Avanzadas'!$E$7,5),VLOOKUP(MROUND('Opciones Avanzadas'!$E$7-2.5,5),Listas!$AB$21:$AC$135,2,FALSE)+(VLOOKUP(MROUND('Opciones Avanzadas'!$E$7,5),Listas!$AB$21:$AC$135,2,FALSE)-VLOOKUP(MROUND('Opciones Avanzadas'!$E$7-2.5,5),Listas!$AB$21:$AC$135,2,FALSE))/5*('Opciones Avanzadas'!$E$7-MROUND('Opciones Avanzadas'!$E$7-2.5,5)),VLOOKUP(MROUND('Opciones Avanzadas'!$E$7,5),Listas!$AB$21:$AC$135,2,FALSE)+(VLOOKUP(MROUND('Opciones Avanzadas'!$E$7+2.5,5),Listas!$AB$21:$AC$135,2,FALSE)-VLOOKUP(MROUND('Opciones Avanzadas'!$E$7,5),Listas!$AB$21:$AC$135,2,FALSE))/5*('Opciones Avanzadas'!$E$7-MROUND('Opciones Avanzadas'!$E$7,5))) -> 1698.78168 | Q105: =+IF('Opciones Avanzadas'!$E$7<=MROUND('Opciones Avanzadas'!$E$7,5),VLOOKUP(MROUND('Opciones Avanzadas'!$E$7-2.5,5),Listas!$AB$21:$AC$135,2,FALSE)+(VLOOKUP(MROUND('Opciones Avanzadas'!$E$7,5),Listas!$AB$21:$AC$135,2,FALSE)-VLOOKUP(MROUND('Opciones Avanzadas'!$E$7-2.5,5),Listas!$AB$21:$AC$135,2,FALSE))/5*('Opciones Avanzadas'!$E$7-MROUND('Opciones Avanzadas'!$E$7-2.5,5)),VLOOKUP(MROUND('Opciones Avanzadas'!$E$7,5),Listas!$AB$21:$AC$135,2,FALSE)+(VLOOKUP(MROUND('Opciones Avanzadas'!$E$7+2.5,5),Listas!$AB$21:$AC$135,2,FALSE)-VLOOKUP(MROUND('Opciones Avanzadas'!$E$7,5),Listas!$AB$21:$AC$135,2,FALSE))/5*('Opciones Avanzadas'!$E$7-MROUND('Opciones Avanzadas'!$E$7,5))) -> 1698.78168 | R105: =+IF('Opciones Avanzadas'!$E$7<=MROUND('Opciones Avanzadas'!$E$7,5),VLOOKUP(MROUND('Opciones Avanzadas'!$E$7-2.5,5),Listas!$AB$21:$AC$135,2,FALSE)+(VLOOKUP(MROUND('Opciones Avanzadas'!$E$7,5),Listas!$AB$21:$AC$135,2,FALSE)-VLOOKUP(MROUND('Opciones Avanzadas'!$E$7-2.5,5),Listas!$AB$21:$AC$135,2,FALSE))/5*('Opciones Avanzadas'!$E$7-MROUND('Opciones Avanzadas'!$E$7-2.5,5)),VLOOKUP(MROUND('Opciones Avanzadas'!$E$7,5),Listas!$AB$21:$AC$135,2,FALSE)+(VLOOKUP(MROUND('Opciones Avanzadas'!$E$7+2.5,5),Listas!$AB$21:$AC$135,2,FALSE)-VLOOKUP(MROUND('Opciones Avanzadas'!$E$7,5),Listas!$AB$21:$AC$135,2,FALSE))/5*('Opciones Avanzadas'!$E$7-MROUND('Opciones Avanzadas'!$E$7,5))) -> 1698.78168 | S105: =+IF('Opciones Avanzadas'!$E$7<=MROUND('Opciones Avanzadas'!$E$7,5),VLOOKUP(MROUND('Opciones Avanzadas'!$E$7-2.5,5),Listas!$AB$21:$AC$135,2,FALSE)+(VLOOKUP(MROUND('Opciones Avanzadas'!$E$7,5),Listas!$AB$21:$AC$135,2,FALSE)-VLOOKUP(MROUND('Opciones Avanzadas'!$E$7-2.5,5),Listas!$AB$21:$AC$135,2,FALSE))/5*('Opciones Avanzadas'!$E$7-MROUND('Opciones Avanzadas'!$E$7-2.5,5)),VLOOKUP(MROUND('Opciones Avanzadas'!$E$7,5),Listas!$AB$21:$AC$135,2,FALSE)+(VLOOKUP(MROUND('Opciones Avanzadas'!$E$7+2.5,5),Listas!$AB$21:$AC$135,2,FALSE)-VLOOKUP(MROUND('Opciones Avanzadas'!$E$7,5),Listas!$AB$21:$AC$135,2,FALSE))/5*('Opciones Avanzadas'!$E$7-MROUND('Opciones Avanzadas'!$E$7,5))) -> 1698.78168 | T105: =+IF('Opciones Avanzadas'!$E$7<=MROUND('Opciones Avanzadas'!$E$7,5),VLOOKUP(MROUND('Opciones Avanzadas'!$E$7-2.5,5),Listas!$AB$21:$AC$135,2,FALSE)+(VLOOKUP(MROUND('Opciones Avanzadas'!$E$7,5),Listas!$AB$21:$AC$135,2,FALSE)-VLOOKUP(MROUND('Opciones Avanzadas'!$E$7-2.5,5),Listas!$AB$21:$AC$135,2,FALSE))/5*('Opciones Avanzadas'!$E$7-MROUND('Opciones Avanzadas'!$E$7-2.5,5)),VLOOKUP(MROUND('Opciones Avanzadas'!$E$7,5),Listas!$AB$21:$AC$135,2,FALSE)+(VLOOKUP(MROUND('Opciones Avanzadas'!$E$7+2.5,5),Listas!$AB$21:$AC$135,2,FALSE)-VLOOKUP(MROUND('Opciones Avanzadas'!$E$7,5),Listas!$AB$21:$AC$135,2,FALSE))/5*('Opciones Avanzadas'!$E$7-MROUND('Opciones Avanzadas'!$E$7,5))) -> 1698.78168 | U105: =+IF('Opciones Avanzadas'!$E$7<=MROUND('Opciones Avanzadas'!$E$7,5),VLOOKUP(MROUND('Opciones Avanzadas'!$E$7-2.5,5),Listas!$AB$21:$AC$135,2,FALSE)+(VLOOKUP(MROUND('Opciones Avanzadas'!$E$7,5),Listas!$AB$21:$AC$135,2,FALSE)-VLOOKUP(MROUND('Opciones Avanzadas'!$E$7-2.5,5),Listas!$AB$21:$AC$135,2,FALSE))/5*('Opciones Avanzadas'!$E$7-MROUND('Opciones Avanzadas'!$E$7-2.5,5)),VLOOKUP(MROUND('Opciones Avanzadas'!$E$7,5),Listas!$AB$21:$AC$135,2,FALSE)+(VLOOKUP(MROUND('Opciones Avanzadas'!$E$7+2.5,5),Listas!$AB$21:$AC$135,2,FALSE)-VLOOKUP(MROUND('Opciones Avanzadas'!$E$7,5),Listas!$AB$21:$AC$135,2,FALSE))/5*('Opciones Avanzadas'!$E$7-MROUND('Opciones Avanzadas'!$E$7,5))) -> 1698.78168 | V105: =+IF('Opciones Avanzadas'!$E$7<=MROUND('Opciones Avanzadas'!$E$7,5),VLOOKUP(MROUND('Opciones Avanzadas'!$E$7-2.5,5),Listas!$AB$21:$AC$135,2,FALSE)+(VLOOKUP(MROUND('Opciones Avanzadas'!$E$7,5),Listas!$AB$21:$AC$135,2,FALSE)-VLOOKUP(MROUND('Opciones Avanzadas'!$E$7-2.5,5),Listas!$AB$21:$AC$135,2,FALSE))/5*('Opciones Avanzadas'!$E$7-MROUND('Opciones Avanzadas'!$E$7-2.5,5)),VLOOKUP(MROUND('Opciones Avanzadas'!$E$7,5),Listas!$AB$21:$AC$135,2,FALSE)+(VLOOKUP(MROUND('Opciones Avanzadas'!$E$7+2.5,5),Listas!$AB$21:$AC$135,2,FALSE)-VLOOKUP(MROUND('Opciones Avanzadas'!$E$7,5),Listas!$AB$21:$AC$135,2,FALSE))/5*('Opciones Avanzadas'!$E$7-MROUND('Opciones Avanzadas'!$E$7,5))) -> 1698.78168 | W105: =+IF('Opciones Avanzadas'!$E$7<=MROUND('Opciones Avanzadas'!$E$7,5),VLOOKUP(MROUND('Opciones Avanzadas'!$E$7-2.5,5),Listas!$AB$21:$AC$135,2,FALSE)+(VLOOKUP(MROUND('Opciones Avanzadas'!$E$7,5),Listas!$AB$21:$AC$135,2,FALSE)-VLOOKUP(MROUND('Opciones Avanzadas'!$E$7-2.5,5),Listas!$AB$21:$AC$135,2,FALSE))/5*('Opciones Avanzadas'!$E$7-MROUND('Opciones Avanzadas'!$E$7-2.5,5)),VLOOKUP(MROUND('Opciones Avanzadas'!$E$7,5),Listas!$AB$21:$AC$135,2,FALSE)+(VLOOKUP(MROUND('Opciones Avanzadas'!$E$7+2.5,5),Listas!$AB$21:$AC$135,2,FALSE)-VLOOKUP(MROUND('Opciones Avanzadas'!$E$7,5),Listas!$AB$21:$AC$135,2,FALSE))/5*('Opciones Avanzadas'!$E$7-MROUND('Opciones Avanzadas'!$E$7,5))) -> 1698.78168 | X105: =+IF('Opciones Avanzadas'!$E$7<=MROUND('Opciones Avanzadas'!$E$7,5),VLOOKUP(MROUND('Opciones Avanzadas'!$E$7-2.5,5),Listas!$AB$21:$AC$135,2,FALSE)+(VLOOKUP(MROUND('Opciones Avanzadas'!$E$7,5),Listas!$AB$21:$AC$135,2,FALSE)-VLOOKUP(MROUND('Opciones Avanzadas'!$E$7-2.5,5),Listas!$AB$21:$AC$135,2,FALSE))/5*('Opciones Avanzadas'!$E$7-MROUND('Opciones Avanzadas'!$E$7-2.5,5)),VLOOKUP(MROUND('Opciones Avanzadas'!$E$7,5),Listas!$AB$21:$AC$135,2,FALSE)+(VLOOKUP(MROUND('Opciones Avanzadas'!$E$7+2.5,5),Listas!$AB$21:$AC$135,2,FALSE)-VLOOKUP(MROUND('Opciones Avanzadas'!$E$7,5),Listas!$AB$21:$AC$135,2,FALSE))/5*('Opciones Avanzadas'!$E$7-MROUND('Opciones Avanzadas'!$E$7,5))) -> 1698.78168 | Y105: =+IF('Opciones Avanzadas'!$E$7<=MROUND('Opciones Avanzadas'!$E$7,5),VLOOKUP(MROUND('Opciones Avanzadas'!$E$7-2.5,5),Listas!$AB$21:$AC$135,2,FALSE)+(VLOOKUP(MROUND('Opciones Avanzadas'!$E$7,5),Listas!$AB$21:$AC$135,2,FALSE)-VLOOKUP(MROUND('Opciones Avanzadas'!$E$7-2.5,5),Listas!$AB$21:$AC$135,2,FALSE))/5*('Opciones Avanzadas'!$E$7-MROUND('Opciones Avanzadas'!$E$7-2.5,5)),VLOOKUP(MROUND('Opciones Avanzadas'!$E$7,5),Listas!$AB$21:$AC$135,2,FALSE)+(VLOOKUP(MROUND('Opciones Avanzadas'!$E$7+2.5,5),Listas!$AB$21:$AC$135,2,FALSE)-VLOOKUP(MROUND('Opciones Avanzadas'!$E$7,5),Listas!$AB$21:$AC$135,2,FALSE))/5*('Opciones Avanzadas'!$E$7-MROUND('Opciones Avanzadas'!$E$7,5))) -> 1698.78168 | Z105: =+IF('Opciones Avanzadas'!$E$7<=MROUND('Opciones Avanzadas'!$E$7,5),VLOOKUP(MROUND('Opciones Avanzadas'!$E$7-2.5,5),Listas!$AB$21:$AC$135,2,FALSE)+(VLOOKUP(MROUND('Opciones Avanzadas'!$E$7,5),Listas!$AB$21:$AC$135,2,FALSE)-VLOOKUP(MROUND('Opciones Avanzadas'!$E$7-2.5,5),Listas!$AB$21:$AC$135,2,FALSE))/5*('Opciones Avanzadas'!$E$7-MROUND('Opciones Avanzadas'!$E$7-2.5,5)),VLOOKUP(MROUND('Opciones Avanzadas'!$E$7,5),Listas!$AB$21:$AC$135,2,FALSE)+(VLOOKUP(MROUND('Opciones Avanzadas'!$E$7+2.5,5),Listas!$AB$21:$AC$135,2,FALSE)-VLOOKUP(MROUND('Opciones Avanzadas'!$E$7,5),Listas!$AB$21:$AC$135,2,FALSE))/5*('Opciones Avanzadas'!$E$7-MROUND('Opciones Avanzadas'!$E$7,5))) -> 1698.78168 | AA105: =+IF('Opciones Avanzadas'!$E$7<=MROUND('Opciones Avanzadas'!$E$7,5),VLOOKUP(MROUND('Opciones Avanzadas'!$E$7-2.5,5),Listas!$AB$21:$AC$135,2,FALSE)+(VLOOKUP(MROUND('Opciones Avanzadas'!$E$7,5),Listas!$AB$21:$AC$135,2,FALSE)-VLOOKUP(MROUND('Opciones Avanzadas'!$E$7-2.5,5),Listas!$AB$21:$AC$135,2,FALSE))/5*('Opciones Avanzadas'!$E$7-MROUND('Opciones Avanzadas'!$E$7-2.5,5)),VLOOKUP(MROUND('Opciones Avanzadas'!$E$7,5),Listas!$AB$21:$AC$135,2,FALSE)+(VLOOKUP(MROUND('Opciones Avanzadas'!$E$7+2.5,5),Listas!$AB$21:$AC$135,2,FALSE)-VLOOKUP(MROUND('Opciones Avanzadas'!$E$7,5),Listas!$AB$21:$AC$135,2,FALSE))/5*('Opciones Avanzadas'!$E$7-MROUND('Opciones Avanzadas'!$E$7,5))) -> 1698.78168 | AB105: =+IF('Opciones Avanzadas'!$E$7<=MROUND('Opciones Avanzadas'!$E$7,5),VLOOKUP(MROUND('Opciones Avanzadas'!$E$7-2.5,5),Listas!$AB$21:$AC$135,2,FALSE)+(VLOOKUP(MROUND('Opciones Avanzadas'!$E$7,5),Listas!$AB$21:$AC$135,2,FALSE)-VLOOKUP(MROUND('Opciones Avanzadas'!$E$7-2.5,5),Listas!$AB$21:$AC$135,2,FALSE))/5*('Opciones Avanzadas'!$E$7-MROUND('Opciones Avanzadas'!$E$7-2.5,5)),VLOOKUP(MROUND('Opciones Avanzadas'!$E$7,5),Listas!$AB$21:$AC$135,2,FALSE)+(VLOOKUP(MROUND('Opciones Avanzadas'!$E$7+2.5,5),Listas!$AB$21:$AC$135,2,FALSE)-VLOOKUP(MROUND('Opciones Avanzadas'!$E$7,5),Listas!$AB$21:$AC$135,2,FALSE))/5*('Opciones Avanzadas'!$E$7-MROUND('Opciones Avanzadas'!$E$7,5))) -> 1698.78168 | AC105: =+IF('Opciones Avanzadas'!$E$7<=MROUND('Opciones Avanzadas'!$E$7,5),VLOOKUP(MROUND('Opciones Avanzadas'!$E$7-2.5,5),Listas!$AB$21:$AC$135,2,FALSE)+(VLOOKUP(MROUND('Opciones Avanzadas'!$E$7,5),Listas!$AB$21:$AC$135,2,FALSE)-VLOOKUP(MROUND('Opciones Avanzadas'!$E$7-2.5,5),Listas!$AB$21:$AC$135,2,FALSE))/5*('Opciones Avanzadas'!$E$7-MROUND('Opciones Avanzadas'!$E$7-2.5,5)),VLOOKUP(MROUND('Opciones Avanzadas'!$E$7,5),Listas!$AB$21:$AC$135,2,FALSE)+(VLOOKUP(MROUND('Opciones Avanzadas'!$E$7+2.5,5),Listas!$AB$21:$AC$135,2,FALSE)-VLOOKUP(MROUND('Opciones Avanzadas'!$E$7,5),Listas!$AB$21:$AC$135,2,FALSE))/5*('Opciones Avanzadas'!$E$7-MROUND('Opciones Avanzadas'!$E$7,5))) -> 1698.78168 | AD105: =+IF('Opciones Avanzadas'!$E$7<=MROUND('Opciones Avanzadas'!$E$7,5),VLOOKUP(MROUND('Opciones Avanzadas'!$E$7-2.5,5),Listas!$AB$21:$AC$135,2,FALSE)+(VLOOKUP(MROUND('Opciones Avanzadas'!$E$7,5),Listas!$AB$21:$AC$135,2,FALSE)-VLOOKUP(MROUND('Opciones Avanzadas'!$E$7-2.5,5),Listas!$AB$21:$AC$135,2,FALSE))/5*('Opciones Avanzadas'!$E$7-MROUND('Opciones Avanzadas'!$E$7-2.5,5)),VLOOKUP(MROUND('Opciones Avanzadas'!$E$7,5),Listas!$AB$21:$AC$135,2,FALSE)+(VLOOKUP(MROUND('Opciones Avanzadas'!$E$7+2.5,5),Listas!$AB$21:$AC$135,2,FALSE)-VLOOKUP(MROUND('Opciones Avanzadas'!$E$7,5),Listas!$AB$21:$AC$135,2,FALSE))/5*('Opciones Avanzadas'!$E$7-MROUND('Opciones Avanzadas'!$E$7,5))) -> 1698.78168 | AE105: =+IF('Opciones Avanzadas'!$E$7<=MROUND('Opciones Avanzadas'!$E$7,5),VLOOKUP(MROUND('Opciones Avanzadas'!$E$7-2.5,5),Listas!$AB$21:$AC$135,2,FALSE)+(VLOOKUP(MROUND('Opciones Avanzadas'!$E$7,5),Listas!$AB$21:$AC$135,2,FALSE)-VLOOKUP(MROUND('Opciones Avanzadas'!$E$7-2.5,5),Listas!$AB$21:$AC$135,2,FALSE))/5*('Opciones Avanzadas'!$E$7-MROUND('Opciones Avanzadas'!$E$7-2.5,5)),VLOOKUP(MROUND('Opciones Avanzadas'!$E$7,5),Listas!$AB$21:$AC$135,2,FALSE)+(VLOOKUP(MROUND('Opciones Avanzadas'!$E$7+2.5,5),Listas!$AB$21:$AC$135,2,FALSE)-VLOOKUP(MROUND('Opciones Avanzadas'!$E$7,5),Listas!$AB$21:$AC$135,2,FALSE))/5*('Opciones Avanzadas'!$E$7-MROUND('Opciones Avanzadas'!$E$7,5))) -> 1698.78168 | AF105: =+IF('Opciones Avanzadas'!$E$7<=MROUND('Opciones Avanzadas'!$E$7,5),VLOOKUP(MROUND('Opciones Avanzadas'!$E$7-2.5,5),Listas!$AB$21:$AC$135,2,FALSE)+(VLOOKUP(MROUND('Opciones Avanzadas'!$E$7,5),Listas!$AB$21:$AC$135,2,FALSE)-VLOOKUP(MROUND('Opciones Avanzadas'!$E$7-2.5,5),Listas!$AB$21:$AC$135,2,FALSE))/5*('Opciones Avanzadas'!$E$7-MROUND('Opciones Avanzadas'!$E$7-2.5,5)),VLOOKUP(MROUND('Opciones Avanzadas'!$E$7,5),Listas!$AB$21:$AC$135,2,FALSE)+(VLOOKUP(MROUND('Opciones Avanzadas'!$E$7+2.5,5),Listas!$AB$21:$AC$135,2,FALSE)-VLOOKUP(MROUND('Opciones Avanzadas'!$E$7,5),Listas!$AB$21:$AC$135,2,FALSE))/5*('Opciones Avanzadas'!$E$7-MROUND('Opciones Avanzadas'!$E$7,5))) -> 1698.78168 | AG105: =+AF105/E149 -> 17.48077464
B106: Flete Corto (30Km) | C106: $/tn | D106: =D105 -> 2020-02-01 | E106: =+VLOOKUP(30,Listas!$AB$21:$AC$135,2,FALSE) -> 454.95264 | F106: =+E106 -> 454.95264 | G106: =+F106 -> 454.95264 | H106: 454.95264 | I106: 454.95264 | J106: 454.95264 | K106: 454.95264 | L106: 454.95264 | M106: 454.95264 | N106: 454.95264 | O106: 454.95264 | P106: 454.95264 | Q106: 454.95264 | R106: 454.95264 | S106: 454.95264 | T106: 454.95264 | U106: 454.95264 | V106: 454.95264 | W106: 454.95264 | X106: 454.95264 | Y106: 454.95264 | Z106: 454.95264 | AA106: 454.95264 | AB106: 454.95264 | AC106: 454.95264 | AD106: 454.95264 | AE106: 454.95264 | AF106: 454.95264
B107: Flete Conjunto | C107: USD/tn | D107: - | E107: - | F107: =0.95*(1+$E$154)*(F105+F106)/$E$149 -> 26.31775576 | H107: =0.95*(1+$E$154)*(H105+H106)/$E$149 -> 26.31775576 | J107: =0.95*(1+$E$154)*(J105+J106)/$E$149 -> 26.31775576 | K107: =0.95*(1+$E$154)*(K105+K106)/$E$149 -> 26.31775576 | M107: =0.95*(1+$E$154)*(M105+M106)/$E$149 -> 26.31775576 | N107: =0.95*(1+$E$154)*(N105+N106)/$E$149 -> 26.31775576 | Q107: =0.95*(1+$E$154)*(Q105+Q106)/$E$149 -> 26.31775576 | S107: =0.95*(1+$E$154)*(S105+S106)/$E$149 -> 26.31775576 | T107: =0.95*(1+$E$154)*(T105+T106)/$E$149 -> 26.31775576 | U107: =0.95*(1+$E$154)*(U105+U106)/$E$149 -> 26.31775576 | V107: =0.95*(1+$E$154)*(V105+V106)/$E$149 -> 26.31775576 | Y107: =0.95*(1+$E$154)*(Y105+Y106)/$E$149 -> 26.31775576 | Z107: =0.95*(1+$E$154)*(Z105+Z106)/$E$149 -> 26.31775576 | AB107: =0.95*(1+$E$154)*(AB105+AB106)/$E$149 -> 26.31775576 | AC107: =0.95*(1+$E$154)*(AC105+AC106)/$E$149 -> 26.31775576 | AD107: =0.95*(1+$E$154)*(AD105+AD106)/$E$149 -> 26.31775576 | AE107: =0.95*(1+$E$154)*(AE105+AE106)/$E$149 -> 26.31775576 | AF107: =0.95*(1+$E$154)*(AF105+AF106)/$E$149 -> 26.31775576
B108: Paritaria | C108: USD/tn | D108: Noviembre | E108: 3.4 | F108: =$E108 -> 3.4 | H108: =$E108 -> 3.4 | J108: =$E108 -> 3.4 | K108: 3.4 | M108: =$E108 -> 3.4 | N108: 3.4 | Q108: =$E108 -> 3.4 | S108: =$E108 -> 3.4 | T108: 3.4 | U108: 3.4 | V108: 3.4 | Y108: =$E108 -> 3.4 | Z108: 3.4 | AB108: =$E108 -> 3.4 | AC108: 3.4 | AD108: 3.4 | AE108: 3.4 | AF108: 3.4
B109: Secado | C109: USD/tn | D109: =D108 -> Noviembre | E109: 9 | F109: =$E109 -> 9 | H109: =$E109 -> 9 | J109: 9 | K109: 9 | M109: 9 | N109: 9 | Q109: =$E109 -> 9 | S109: 9 | T109: 9 | U109: 9 | V109: 9 | Y109: 9 | Z109: 9 | AB109: 9 | AC109: 9 | AD109: 9 | AE109: 9 | AF109: 9
B110: Zarandeo | C110: USD/tn | D110: =D109 -> Noviembre | E110: 2 | F110: =$E110 -> 2 | H110: =$E110 -> 2 | J110: 2 | K110: 2 | M110: 2 | N110: 2 | Q110: =$E110 -> 2 | S110: 2 | T110: 2 | U110: 2 | V110: 2 | Y110: 2 | Z110: 2 | AB110: 2 | AC110: 2 | AD110: 2 | AE110: 2 | AF110: 2
B111: Comisión Acopio | C111: % s. Precio Cosecha | D111: - | E111: 0.005 | F111: =$E111*$E$144 -> 1.721846159 | H111: =$E111*$E$144 -> 1.721846159 | J111: =$E111*$E$144 -> 1.721846159 | K111: =$E111*$E$144 -> 1.721846159 | M111: =$E111*$E$144 -> 1.721846159 | N111: =$E111*$E$144 -> 1.721846159 | Q111: =$E111*$E$144 -> 1.721846159 | S111: =$E111*$E$144 -> 1.721846159 | T111: =$E111*$E$144 -> 1.721846159 | U111: =$E111*$E$144 -> 1.721846159 | V111: =$E111*$E$144 -> 1.721846159 | Y111: =$E111*$E$144 -> 1.721846159 | Z111: =$E111*$E$144 -> 1.721846159 | AB111: =$E111*$E$144 -> 1.721846159 | AC111: =$E111*$E$144 -> 1.721846159 | AD111: =$E111*$E$144 -> 1.721846159 | AE111: =$E111*$E$144 -> 1.721846159 | AF111: =$E111*$E$144 -> 1.721846159
B112: Total Gastos Comerciales | C112: USD/tn | F112: =SUM(F107:F111) -> 42.43960192 | H112: =SUM(H107:H111) -> 42.43960192 | J112: =SUM(J107:J111) -> 42.43960192 | K112: 42.43960192 | M112: 42.43960192 | N112: 42.43960192 | Q112: 42.43960192 | S112: 42.43960192 | T112: 42.43960192 | U112: 42.43960192 | V112: 42.43960192 | Y112: 42.43960192 | Z112: 42.43960192 | AB112: 42.43960192 | AC112: 42.43960192 | AD112: 42.43960192 | AE112: 42.43960192 | AF112: =SUM(AF107:AF111) -> 42.43960192
B114: Costos Indirectos (Por Ha) | C114: =C$2 -> Unidad de medida | D114: Mes de actualiz. | E114: Costo | F114: =F$2 -> Calamuchita | G114: Capital | H114: Colón | I114: Cruz del Eje | J114: Gral. Roca | K114: Gral. San Martín | L114: Ischilin | M114: Juárez Celman | N114: Marcos Juárez | O114: Minas | P114: Pocho | Q114: Pte. R. Sáenz Peña | R114: Punilla | S114: Río Cuarto | T114: Río Primero | U114: Río Seco | V114: Río Segundo | W114: San Alberto | X114: San Javier | Y114: San Justo | Z114: Santa María | AA114: Sobremonte | AB114: Tercero Arriba | AC114: Totoral | AD114: Tulumba | AE114: Unión | AF114: =AF$2 -> PROVINCIA
B115: Arrendamiento en qq | C115: qq/ha | D115: Agosto | E115: - | F115: =+'Opciones Avanzadas'!$E$9 -> 10.78 | G115: =+'Opciones Avanzadas'!$E$9 -> 10.78 | H115: =+'Opciones Avanzadas'!$E$9 -> 10.78 | I115: =+'Opciones Avanzadas'!$E$9 -> 10.78 | J115: =+'Opciones Avanzadas'!$E$9 -> 10.78 | K115: =+'Opciones Avanzadas'!$E$9 -> 10.78 | L115: =+'Opciones Avanzadas'!$E$9 -> 10.78 | M115: =+'Opciones Avanzadas'!$E$9 -> 10.78 | N115: =+'Opciones Avanzadas'!$E$9 -> 10.78 | O115: =+'Opciones Avanzadas'!$E$9 -> 10.78 | P115: =+'Opciones Avanzadas'!$E$9 -> 10.78 | Q115: =+'Opciones Avanzadas'!$E$9 -> 10.78 | R115: =+'Opciones Avanzadas'!$E$9 -> 10.78 | S115: =+'Opciones Avanzadas'!$E$9 -> 10.78 | T115: =+'Opciones Avanzadas'!$E$9 -> 10.78 | U115: =+'Opciones Avanzadas'!$E$9 -> 10.78 | V115: =+'Opciones Avanzadas'!$E$9 -> 10.78 | W115: =+'Opciones Avanzadas'!$E$9 -> 10.78 | X115: =+'Opciones Avanzadas'!$E$9 -> 10.78 | Y115: =+'Opciones Avanzadas'!$E$9 -> 10.78 | Z115: =+'Opciones Avanzadas'!$E$9 -> 10.78 | AA115: =+'Opciones Avanzadas'!$E$9 -> 10.78 | AB115: =+'Opciones Avanzadas'!$E$9 -> 10.78 | AC115: =+'Opciones Avanzadas'!$E$9 -> 10.78 | AD115: =+'Opciones Avanzadas'!$E$9 -> 10.78 | AE115: =+'Opciones Avanzadas'!$E$9 -> 10.78 | AF115: =+'Opciones Avanzadas'!$E$9 -> 10.78
B116: Arrendamiento en USD | C116: USD/ha | D116: =D115 -> Agosto | E116: =$E$144 -> 344.3692317 | F116: =$E$116*F115/10 -> 371.2300318 | H116: =$E$116*H115/10 -> 371.2300318 | J116: =$E$116*J115/10 -> 371.2300318 | K116: =$E$116*K115/10 -> 371.2300318 | M116: =$E$116*M115/10 -> 371.2300318 | N116: =$E$116*N115/10 -> 371.2300318 | Q116: =$E$116*Q115/10 -> 371.2300318 | S116: =$E$116*S115/10 -> 371.2300318 | T116: =$E$116*T115/10 -> 371.2300318 | U116: =$E$116*U115/10 -> 371.2300318 | V116: =$E$116*V115/10 -> 371.2300318 | Y116: =$E$116*Y115/10 -> 371.2300318 | Z116: =$E$116*Z115/10 -> 371.2300318 | AB116: =$E$116*AB115/10 -> 371.2300318 | AC116: =$E$116*AC115/10 -> 371.2300318 | AD116: =$E$116*AD115/10 -> 371.2300318 | AE116: =$E$116*AE115/10 -> 371.2300318 | AF116: =$E$116*AF115/10 -> 371.2300318
B117: Movilidad Campo (Campo + Adm) | C117: USD/ha | E117: ='Soja 1ª'!E70*1.3 -> 15.99 | F117: =$E117 -> 15.99 | H117: =$E117 -> 15.99 | J117: =$E117 -> 15.99 | K117: =$E117 -> 15.99 | M117: =$E117 -> 15.99 | N117: =$E117 -> 15.99 | Q117: =$E117 -> 15.99 | S117: =$E117 -> 15.99 | T117: 15.99 | U117: 15.99 | V117: 15.99 | Y117: =$E117 -> 15.99 | Z117: =$E117 -> 15.99 | AB117: =$E117 -> 15.99 | AC117: 15.99 | AD117: 15.99 | AE117: 15.99 | AF117: 15.99
B118: Personal (Salarios) | C118: USD/ha | D118: Noviembre | E118: 64.45823231 | F118: =$E118 -> 64.45823231 | H118: =$E118 -> 64.45823231 | J118: =$E118 -> 64.45823231 | K118: =$E118 -> 64.45823231 | M118: =$E118 -> 64.45823231 | N118: =$E118 -> 64.45823231 | Q118: =$E118 -> 64.45823231 | S118: 64.45823231 | T118: 64.45823231 | U118: 64.45823231 | V118: 64.45823231 | Y118: =$E118 -> 64.45823231 | Z118: =$E118 -> 64.45823231 | AB118: 64.45823231 | AC118: 64.45823231 | AD118: 64.45823231 | AE118: 64.45823231 | AF118: 64.45823231
B119: Asesoramiento Técnico | C119: USD/ha | E119: 0.01 | F119: =$E$119*F163 -> 13.95516238 | H119: =$E$119*H163 -> 13.95516238 | J119: =$E$119*J163 -> 13.95516238 | K119: =$E$119*K163 -> 13.95516238 | M119: =$E$119*M163 -> 13.95516238 | N119: =$E$119*N163 -> 13.95516238 | Q119: =$E$119*Q163 -> 13.95516238 | S119: =$E$119*S163 -> 13.95516238 | T119: =$E$119*T163 -> 13.95516238 | U119: =$E$119*U163 -> 13.95516238 | V119: =$E$119*V163 -> 13.95516238 | Y119: =$E$119*Y163 -> 13.95516238 | Z119: =$E$119*Z163 -> 13.95516238 | AB119: =$E$119*AB163 -> 13.95516238 | AC119: =$E$119*AC163 -> 13.95516238 | AD119: =$E$119*AD163 -> 13.95516238 | AE119: =$E$119*AE163 -> 13.95516238 | AF119: =$E$119*AF163 -> 13.95516238
B120: Asesoramiento Contable | C120: USD/ha | E120: ='Soja 1ª'!E73*1.3 -> 7.8 | F120: =$E120 -> 7.8 | H120: =$E120 -> 7.8 | J120: =$E120 -> 7.8 | K120: 7.8 | M120: =$E120 -> 7.8 | N120: 7.8 | Q120: =$E120 -> 7.8 | S120: =$E120 -> 7.8 | T120: 7.8 | U120: 7.8 | V120: 7.8 | Y120: =$E120 -> 7.8 | Z120: 7.8 | AB120: =$E120 -> 7.8 | AC120: 7.8 | AD120: 7.8 | AE120: 7.8 | AF120: 7.8
B121: Gastos de oficina/comunicaciones | C121: USD/ha | E121: ='Soja 1ª'!E74*1.3 -> 5.07 | F121: 5.07 | H121: 5.07 | J121: 5.07 | K121: 5.07 | M121: 5.07 | N121: 5.07 | Q121: 5.07 | S121: 5.07 | T121: 5.07 | U121: 5.07 | V121: 5.07 | Y121: 5.07 | Z121: 5.07 | AB121: 5.07 | AC121: 5.07 | AD121: 5.07 | AE121: 5.07 | AF121: 5.07
B122: Receta Fitosanitaria | C122: USD/ha | E122: 0 | F122: 0 | H122: 0 | J122: 0 | K122: 0 | M122: 0 | N122: 0 | Q122: 0 | S122: 0 | T122: 0 | U122: 0 | V122: 0 | Y122: 0 | Z122: 0 | AB122: 0 | AC122: 0 | AD122: 0 | AE122: 0 | AF122: 0
B123: Asesor Financiero | C123: USD/ha | E123: 0 | F123: 0 | H123: 0 | J123: 0 | K123: 0 | M123: 0 | N123: 0 | Q123: 0 | S123: 0 | T123: 0 | U123: 0 | V123: 0 | Y123: 0 | Z123: 0 | AB123: 0 | AC123: 0 | AD123: 0 | AE123: 0 | AF123: 0
B124: Seguro Climatico | C124: USD/ha | E124: 0 | F124: 0 | H124: 0 | J124: 0 | K124: 0 | M124: 0 | N124: 0 | Q124: 0 | S124: 0 | T124: 0 | U124: 0 | V124: 0 | Y124: 0 | Z124: 0 | AB124: 0 | AC124: 0 | AD124: 0 | AE124: 0 | AF124: 0
B125: Conservaciones y Mejoras | C125: USD/ha | E125: ='Soja 1ª'!E78*1.3 -> 3.9 | F125: 3.9 | H125: 3.9 | J125: 3.9 | K125: 3.9 | M125: 3.9 | N125: 3.9 | Q125: 3.9 | S125: 3.9 | T125: 3.9 | U125: 3.9 | V125: 3.9 | Y125: 3.9 | Z125: 3.9 | AB125: 3.9 | AC125: 3.9 | AD125: 3.9 | AE125: 3.9 | AF125: 3.9
B126: Gastos imprevistos/Otros | C126: USD/ha | E126: 0 | F126: 0 | H126: 0 | J126: 0 | K126: 0 | M126: 0 | N126: 0 | Q126: 0 | S126: 0 | T126: 0 | U126: 0 | V126: 0 | Y126: 0 | Z126: 0 | AB126: 0 | AC126: 0 | AD126: 0 | AE126: 0 | AF126: 0
B127: Total Costos Indirectos | F127: =+SUM(F116:F126) -> 482.4034265 | H127: =+SUM(H116:H126) -> 482.4034265 | J127: 482.4034265 | K127: 482.4034265 | M127: 482.4034265 | N127: 482.4034265 | Q127: 482.4034265 | S127: 482.4034265 | T127: 482.4034265 | U127: 482.4034265 | V127: 482.4034265 | Y127: 482.4034265 | Z127: 482.4034265 | AB127: 482.4034265 | AC127: 482.4034265 | AD127: 482.4034265 | AE127: 482.4034265 | AF127: 482.4034265
B129: Impuestos (Por Ha) | C129: =C$2 -> Unidad de medida | D129: =D$2 -> Mes de actualiz. | E129: Porcentaje | F129: =F$2 -> Calamuchita | G129: Capital | H129: Colón | I129: Cruz del Eje | J129: Gral. Roca | K129: Gral. San Martín | L129: Ischilin | M129: Juárez Celman | N129: Marcos Juárez | O129: Minas | P129: Pocho | Q129: Pte. R. Sáenz Peña | R129: Punilla | S129: Río Cuarto | T129: Río Primero | U129: Río Seco | V129: Río Segundo | W129: San Alberto | X129: San Javier | Y129: San Justo | Z129: Santa María | AA129: Sobremonte | AB129: Tercero Arriba | AC129: Totoral | AD129: Tulumba | AE129: Unión | AF129: =AF$2 -> PROVINCIA
B130: Impuesto a las ganancias | C130: % s. Resultado Positivo | D130: - | E130: 0.3 | F130: =IF(F168<0,0,$E$130*F168) -> 72.88673742 | H130: =IF(H168<0,0,$E$130*H168) -> 72.76592974 | J130: 72.84727519 | K130: 75.66071407 | M130: 75.22905057 | N130: 78.06984671 | Q130: 74.30681268 | S130: 73.16063271 | T130: 72.89061101 | U130: 71.9276197 | V130: 73.70172521 | Y130: 75.61455376 | Z130: 72.90061779 | AB130: 74.6240438 | AC130: 72.58976197 | AD130: 72.55602943 | AE130: 76.88008881 | AF130: 75.0017998
B131: Impuesto a la ganancia mínima presunta | C131: - | D131: - | E131: -
B132: Impuestos a los combustibles | C132: - | D132: - | E132: -
B133: Impuesto al cheque | C133: % s. Ingresos Totales | D133: - | E133: 0.012 | F133: =$E$133/2*(F163+F164+F165+F167)*0.4 -> 6.115384041 | H133: =$E$133/2*(H163+H164+H165+H167)*0.4 -> 6.116350502 | J133: =$E$133/2*(J163+J164+J165+J167)*0.4 -> 6.115699739 | K133: =$E$133/2*(K163+K164+K165+K167)*0.4 -> 6.093192228 | M133: =$E$133/2*(M163+M164+M165+M167)*0.4 -> 6.096645536 | N133: =$E$133/2*(N163+N164+N165+N167)*0.4 -> 6.073919167 | Q133: =$E$133/2*(Q163+Q164+Q165+Q167)*0.4 -> 6.104023439 | S133: =$E$133/2*(S163+S164+S165+S167)*0.4 -> 6.113192879 | T133: =$E$133/2*(T163+T164+T165+T167)*0.4 -> 6.115353052 | U133: =$E$133/2*(U163+U164+U165+U167)*0.4 -> 6.123056983 | V133: =$E$133/2*(V163+V164+V165+V167)*0.4 -> 6.108864139 | Y133: =$E$133/2*(Y163+Y164+Y165+Y167)*0.4 -> 6.09356151 | Z133: =$E$133/2*(Z163+Z164+Z165+Z167)*0.4 -> 6.115272998 | AB133: =$E$133/2*(AB163+AB164+AB165+AB167)*0.4 -> 6.10148559 | AC133: =$E$133/2*(AC163+AC164+AC165+AC167)*0.4 -> 6.117759844 | AD133: =$E$133/2*(AD163+AD164+AD165+AD167)*0.4 -> 6.118029705 | AE133: =$E$133/2*(AE163+AE164+AE165+AE167)*0.4 -> 6.08343723 | AF133: =$E$133/2*(AF163+AF164+AF165+AF167)*0.4 -> 6.098463542
B134: Impuesto a los sellos | C134: % s. Ingresos Totales | D134: - | E134: 0.012 | F134: =$E$134*F163 -> 16.74619485 | H134: =$E$134*H163 -> 16.74619485 | J134: =$E$134*J163 -> 16.74619485 | K134: =$E$134*K163 -> 16.74619485 | M134: =$E$134*M163 -> 16.74619485 | N134: =$E$134*N163 -> 16.74619485 | Q134: =$E$134*Q163 -> 16.74619485 | S134: =$E$134*S163 -> 16.74619485 | T134: =$E$134*T163 -> 16.74619485 | U134: =$E$134*U163 -> 16.74619485 | V134: =$E$134*V163 -> 16.74619485 | Y134: =$E$134*Y163 -> 16.74619485 | Z134: =$E$134*Z163 -> 16.74619485 | AB134: =$E$134*AB163 -> 16.74619485 | AC134: =$E$134*AC163 -> 16.74619485 | AD134: =$E$134*AD163 -> 16.74619485 | AE134: =$E$134*AE163 -> 16.74619485 | AF134: =$E$134*AF163 -> 16.74619485
B135: Impuesto inmobiliario | C135: - | D135: - | E135: -
B136: Impuesto a los automotores (rentas) | C136: - | D136: - | E136: -
B137: Impuesto a la renta financiera | C137: - | D137: - | E137: -
B138: Impuesto a utilidades y dividendos | C138: - | D138: - | E138: -
B139: IVA crédito | C139: - | D139: - | E139: -
B140: IVA Débito | C140: - | D140: - | E140: -
B141: Total impuestos | F141: =+SUM(F130:F140) -> 95.74831631 | H141: =+SUM(H130:H140) -> 95.62847509 | J141: 95.70916978 | K141: 98.50010115 | M141: 98.07189096 | N141: 100.8899607 | Q141: 97.15703097 | S141: 96.02002044 | T141: 95.75215891 | U141: 94.79687153 | V141: 96.5567842 | Y141: 98.45431012 | Z141: 95.76208564 | AB141: 97.47172424 | AC141: 95.45371666 | AD141: 95.42025399 | AE141: 99.70972089 | AF141: =+SUM(AF130:AF140) -> 97.84645819
B143: Precio trigo cosecha USD/tn | E143: =+'Calculadora BCCBA'!C11 -> 221.66
B144: Precio cosecha Soja USD/tn | E144: =+'Soja 1ª'!E96 -> 344.3692317
B145: Dólar siembra Trigo | D145: Junio | E145: 70.42
B146: Dólar Cosecha Trigo | E146: =+'Calculadora BCCBA'!C16 -> 82.71
B147: Dólar Promedio Trigo | E147: =AVERAGE(E145:E146) -> 76.565
B148: Dólar siembra Soja | D148: Octubre | E148: =+E146 -> 82.71
B149: Dólar Cosecha Soja | E149: =+'Calculadora BCCBA'!C17 -> 97.18
B150: Dólar Promedio Soja | D150: - | E150: =+AVERAGE(E148:E149) -> 89.945
B151: Inflación esperada hasta dato FACMA trigo de esta campaña | D151: Abril | E151: 0.06
B152: Inflación esperada hasta dato FACMA soja de esta campaña | D152: Abril | E152: 0.12
B153: Inflación esp. desde FECOTAC hasta diciembre | D153: Noviembre | E153: 0.05
B154: Inflación esp. desde FECOTAC hasta mayo | D154: Abril | E154: 0.25
B155: Tasa de interes del costo de oportunidad | D155: Abril | E155: 0.0025
B156: Precio combustible | D156: - | E156: -
B158: RENTABILIDAD EN DÓLARES | F158: =F$2 -> Calamuchita | G158: Capital | H158: Colón | I158: Cruz del Eje | J158: Gral. Roca | K158: Gral. San Martín | L158: Ischilin | M158: Juárez Celman | N158: Marcos Juárez | O158: Minas | P158: Pocho | Q158: Pte. R. Sáenz Peña | R158: Punilla | S158: Río Cuarto | T158: Río Primero | U158: Río Seco | V158: Río Segundo | W158: San Alberto | X158: San Javier | Y158: San Justo | Z158: Santa María | AA158: Sobremonte | AB158: Tercero Arriba | AC158: Totoral | AD158: Tulumba | AE158: Unión | AF158: PROVINCIA
B159: Rendimiento Trigo | D159: qq/ha | F159: =F3 -> 18.58725877 | H159: 18.58725877 | J159: 18.58725877 | K159: 18.58725877 | M159: 18.58725877 | N159: 18.58725877 | Q159: 18.58725877 | S159: 18.58725877 | T159: 18.58725877 | U159: 18.58725877 | V159: 18.58725877 | Y159: 18.58725877 | Z159: 18.58725877 | AB159: 18.58725877 | AC159: 18.58725877 | AD159: 18.58725877 | AE159: 18.58725877 | AF159: =AF3 -> 18.58725877
B160: Rendimiento Soja | D160: qq/ha | F160: =F62 -> 28.55978319 | H160: 28.55978319 | J160: 28.55978319 | K160: 28.55978319 | M160: 28.55978319 | N160: 28.55978319 | Q160: 28.55978319 | S160: 28.55978319 | T160: 28.55978319 | U160: 28.55978319 | V160: 28.55978319 | Y160: 28.55978319 | Z160: 28.55978319 | AB160: 28.55978319 | AC160: 28.55978319 | AD160: 28.55978319 | AE160: 28.55978319 | AF160: =AF62 -> 28.55978319
B161: Precio Trigo | D161: USD/qq | F161: =IF(F159=0,"",$E$143) -> 221.66 | H161: 221.66 | J161: 221.66 | K161: 221.66 | M161: 221.66 | N161: 221.66 | Q161: 221.66 | S161: 221.66 | T161: 221.66 | U161: 221.66 | V161: 221.66 | Y161: 221.66 | Z161: 221.66 | AB161: 221.66 | AC161: 221.66 | AD161: 221.66 | AE161: 221.66 | AF161: 221.66
B162: Precio Soja | D162: USD/qq | F162: =IF(F159=0,"",$E$144) -> 344.3692317 | H162: 344.3692317 | J162: 344.3692317 | K162: 344.3692317 | M162: 344.3692317 | N162: 344.3692317 | Q162: 344.3692317 | S162: 344.3692317 | T162: 344.3692317 | U162: 344.3692317 | V162: 344.3692317 | Y162: 344.3692317 | Z162: 344.3692317 | AB162: 344.3692317 | AC162: 344.3692317 | AD162: 344.3692317 | AE162: 344.3692317 | AF162: 344.3692317
B163: Ingresos Totales | D163: USD/ha | F163: =IF(F159=0,"",(F161*F159+F160*F162)/10) -> 1395.516238 | G163: =IF(G159=0,"",(G161*G159+G160*G162)/10) ->  | H163: 1395.516238 | J163: 1395.516238 | K163: 1395.516238 | M163: 1395.516238 | N163: 1395.516238 | Q163: 1395.516238 | S163: 1395.516238 | T163: 1395.516238 | U163: 1395.516238 | V163: 1395.516238 | Y163: 1395.516238 | Z163: 1395.516238 | AB163: 1395.516238 | AC163: 1395.516238 | AD163: 1395.516238 | AE163: 1395.516238 | AF163: =IF(AF159=0,"",(AF161*AF159+AF160*AF162)/10) -> 1395.516238
B164: Costos Directos | D164: USD/ha | F164: =IF(F159=0,"",F102+F51) -> 500.542541 | G164: =IF(G159=0,"",G102+G51) ->  | H164: 500.542541 | J164: 500.542541 | K164: 500.542541 | M164: 500.542541 | N164: 500.542541 | Q164: 500.542541 | S164: 500.542541 | T164: 500.542541 | U164: 500.542541 | V164: 500.542541 | Y164: 500.542541 | Z164: 500.542541 | AB164: 500.542541 | AC164: 500.542541 | AD164: 500.542541 | AE164: 500.542541 | AF164: 500.542541
B165: Gastos Comerciales | D165: USD/ha | F165: =IF(F159=0,"",(F159*F59+F112*F160)/10) -> 169.6144786 | H165: 170.0171709 | J165: 169.7460194 | K165: 160.3678898 | M165: 161.8067681 | N165: 152.3374476 | Q165: 164.8808944 | S165: 168.7014943 | T165: 169.6015666 | U165: 172.8115377 | V165: 166.8978527 | Y165: 160.5217575 | Z165: 169.5682107 | AB165: 163.8234574 | AC165: 170.6043968 | AD165: 170.7168386 | AE165: 156.3033073 | AF165: =IF(AF159=0,"",(AF159*AF59+AF112*AF160)/10) -> 162.5642707
B166: Margen Bruto | D166: USD/ha | F166: =IF(F159=0,"",F163-F164-F165) -> 725.3592179 | H166: 724.9565256 | J166: 725.2276771 | K166: 734.6058067 | M166: 733.1669284 | N166: 742.6362489 | Q166: 730.0928021 | S166: 726.2722022 | T166: 725.3721299 | U166: 722.1621588 | V166: 728.0758438 | Y166: 734.451939 | Z166: 725.4054858 | AB166: 731.1502391 | AC166: 724.3692997 | AD166: 724.2568579 | AE166: 738.6703892 | AF166: =IF(AF159=0,"",AF163-AF164-AF165) -> 732.4094258
B167: Costos Indirectos | D167: USD/ha | F167: =IF(F159=0,"",F127) -> 482.4034265 | H167: 482.4034265 | J167: 482.4034265 | K167: 482.4034265 | M167: 482.4034265 | N167: 482.4034265 | Q167: 482.4034265 | S167: 482.4034265 | T167: 482.4034265 | U167: 482.4034265 | V167: 482.4034265 | Y167: 482.4034265 | Z167: 482.4034265 | AB167: 482.4034265 | AC167: 482.4034265 | AD167: 482.4034265 | AE167: 482.4034265 | AF167: =IF(AF159=0,"",AF127) -> 482.4034265
B168: Resultado Operativo | D168: USD/ha | F168: =IF(F159=0,"",F166-F167) -> 242.9557914 | H168: 242.5530991 | J168: 242.8242506 | K168: 252.2023802 | M168: 250.7635019 | N168: 260.2328224 | Q168: 247.6893756 | S168: 243.8687757 | T168: 242.9687034 | U168: 239.7587323 | V168: 245.6724174 | Y168: 252.0485125 | Z168: 243.0020593 | AB168: 248.7468127 | AC168: 241.9658732 | AD168: 241.8534314 | AE168: 256.2669627 | AF168: =IF(AF159=0,"",AF166-AF167) -> 250.0059993
B169: Impuestos | D169: USD/ha | F169: =IF(F159=0,"",F141) -> 95.74831631 | H169: 95.62847509 | J169: 95.70916978 | K169: 98.50010115 | M169: 98.07189096 | N169: 100.8899607 | Q169: 97.15703097 | S169: 96.02002044 | T169: 95.75215891 | U169: 94.79687153 | V169: 96.5567842 | Y169: 98.45431012 | Z169: 95.76208564 | AB169: 97.47172424 | AC169: 95.45371666 | AD169: 95.42025399 | AE169: 99.70972089 | AF169: =IF(AF159=0,"",AF141) -> 97.84645819
B170: Margen Neto | D170: USD/ha | F170: =IF(F159=0,"",F168-F169) -> 147.2074751 | H170: 146.924624 | J170: 147.1150809 | K170: 153.7022791 | M170: 152.691611 | N170: 159.3428616 | Q170: 150.5323446 | S170: 147.8487553 | T170: 147.2165445 | U170: 144.9618608 | V170: 149.1156332 | Y170: 153.5942024 | Z170: 147.2399737 | AB170: 151.2750884 | AC170: 146.5121566 | AD170: 146.4331774 | AE170: 156.5572418 | AF170: =IF(AF159=0,"",AF168-AF169) -> 152.1595411
B171: Intereses sobre el Capital Invertido | D171: USD/ha | F171: =IF(F159=0,"",$E$155*(F127+F40-F39)) -> 1.627147873 | G171: =IF(G159=0,"",$E$155*(G127+G40-G39)) ->  | H171: 1.669147873 | J171: 1.723879691 | K171: 1.7506706 | M171: 1.7429206 | N171: 1.788329691 | Q171: 1.703879691 | S171: 1.728556964 | T171: 1.673602419 | U171: 1.719929691 | V171: 1.683238782 | Y171: 1.717102419 | Z171: 1.719579691 | AB171: 1.706125146 | AC171: 1.702125146 | AD171: 1.717679691 | AE171: 1.775329691 | AF171: 1.729164428
B172: Resultado Económico | D172: USD/ha | F172: =IF(F159=0,"",F170-F171) -> 145.5803272 | H172: 145.2554762 | J172: 145.3912012 | K172: 151.9516085 | M172: 150.9486904 | N172: 157.5545319 | Q172: 148.8284649 | S172: 146.1201983 | T172: 145.542942 | U172: 143.2419311 | V172: 147.4323944 | Y172: 151.8771 | Z172: 145.520394 | AB172: 149.5689633 | AC172: 144.8100314 | AD172: 144.7154978 | AE172: 154.7819121 | AF172: =IF(AF159=0,"",AF170-AF171) -> 150.4303767
B173: Inversión inicial | D173: USD/ha | F173: =IF(F159=0,"",F127+F51-F44) -> 691.6657713 | G173: =IF(G159=0,"",G127+G51-G44) ->  | H173: 691.6657713 | J173: 691.6657713 | K173: 691.6657713 | M173: 691.6657713 | N173: 691.6657713 | Q173: 691.6657713 | S173: 691.6657713 | T173: 691.6657713 | U173: 691.6657713 | V173: 691.6657713 | Y173: 691.6657713 | Z173: 691.6657713 | AB173: 691.6657713 | AC173: 691.6657713 | AD173: 691.6657713 | AE173: 691.6657713 | AF173: 691.6657713
B174: Rentabilidad de la Actividad | D174: % | F174: =IF(F159=0,"",F172/F173) -> 0.210477854 | H174: 0.2100081892 | J174: 0.2102044184 | K174: 0.2196893569 | M174: 0.2182393529 | N174: 0.2277899796 | Q174: 0.2151739628 | S174: 0.2112583915 | T174: 0.2104238031 | U174: 0.2070970359 | V174: 0.2131555449 | Y174: 0.2195816336 | Z174: 0.2103912034 | AB174: 0.2162445642 | AC174: 0.2093641719 | AD174: 0.2092274965 | AE174: 0.2237813675 | AF174: =IF(AF159=0,"",AF172/AF173) -> 0.2174899828
E175: =+COUNTIF($F$174:$AF$174,"<"&0) -> 0
F179: Santa María | G179: -0.3669071657
F180: Calamuchita | G180: -0.3371217238
F181: Río Cuarto | G181: -0.3176450905
F182: Río Seco | G182: -0.2540205393
F183: Tulumba | G183: -0.1973714661
F184: Tercero Arriba | G184: -0.1963853966
F185: Río Primero | G185: -0.1720387207
F186: Colón | G186: -0.1712084063
F187: Río Segundo | G187: -0.1587345479
F188: Totoral | G188: -0.1294765428
F189: Gral. Roca | G189: -0.1235690033
F190: San Justo | G190: -0.1129158654
F191: Pte. R. Sáenz Peña | G191: -0.06734077169
F192: Gral. San Martín | G192: -0.0664917053
F193: Juárez Celman | G193: -0.04620611813
F194: Unión | G194: 0.03178184107
F195: Marcos Juárez | G195: 0.03285328866

Sheet Maíz temprano (hidden)
B2: Planteo Tecnico (Por Ha) | C2: Unidad de medida | D2: Mes de actualiz. | E2: Cantidades | F2: Calamuchita | G2: Capital | H2: Colón | I2: Cruz del Eje | J2: Gral. Roca | K2: Gral. San Martín | L2: Ischilin | M2: Juárez Celman | N2: Marcos Juárez | O2: Minas | P2: Pocho | Q2: Pte. R. Sáenz Peña | R2: Punilla | S2: Río Cuarto | T2: Río Primero | U2: Río Seco | V2: Río Segundo | W2: San Alberto | X2: San Javier | Y2: San Justo | Z2: Santa María | AA2: Sobremonte | AB2: Tercero Arriba | AC2: Totoral | AD2: Tulumba | AE2: Unión | AF2: PROVINCIA
B3: Rendimiento | C3: qq/ha | D3: Noviembre | E3: - | F3: =+'Calculadora BCCBA'!$M$8 -> 76.8430233 | H3: =+'Calculadora BCCBA'!$M$8 -> 76.8430233 | J3: =+'Calculadora BCCBA'!$M$8 -> 76.8430233 | K3: =+'Calculadora BCCBA'!$M$8 -> 76.8430233 | M3: =+'Calculadora BCCBA'!$M$8 -> 76.8430233 | N3: =+'Calculadora BCCBA'!$M$8 -> 76.8430233 | Q3: =+'Calculadora BCCBA'!$M$8 -> 76.8430233 | S3: =+'Calculadora BCCBA'!$M$8 -> 76.8430233 | T3: =+'Calculadora BCCBA'!$M$8 -> 76.8430233 | U3: =+'Calculadora BCCBA'!$M$8 -> 76.8430233 | V3: =+'Calculadora BCCBA'!$M$8 -> 76.8430233 | Y3: =+'Calculadora BCCBA'!$M$8 -> 76.8430233 | Z3: =+'Calculadora BCCBA'!$M$8 -> 76.8430233 | AB3: =+'Calculadora BCCBA'!$M$8 -> 76.8430233 | AC3: =+'Calculadora BCCBA'!$M$8 -> 76.8430233 | AD3: =+'Calculadora BCCBA'!$M$8 -> 76.8430233 | AE3: =+'Calculadora BCCBA'!$M$8 -> 76.8430233 | AF3: =+'Calculadora BCCBA'!$M$8 -> 76.8430233
B4: Participación Provincial | C4: Porcentaje | D4: Noviembre | E4: - | F4: 1 | AF4: -
B5: Pulverización terrestre | C5: Cantidad | D5: Septiembre | E5: 2 | F5: =$E5 -> 2 | H5: 2 | J5: 2 | K5: 2 | M5: 2 | N5: 2 | Q5: 2 | S5: 2 | T5: 2 | U5: 2 | V5: =$E5 -> 2 | Y5: 2 | Z5: 2 | AB5: 2 | AC5: 2 | AD5: 2 | AE5: 2 | AF5: =SUMPRODUCT(F5:AE5,$F$4:$AE$4) -> 2
B6: Fertilización | C6: Cantidad | D6: =D5 -> Septiembre | E6: 1 | F6: 1 | H6: 1 | J6: 1 | K6: 1 | M6: 1 | N6: 1 | Q6: 1 | S6: 1 | T6: 1 | U6: 1 | V6: 1 | Y6: 1 | Z6: 1 | AB6: 1 | AC6: 1 | AD6: 1 | AE6: 1 | AF6: =SUMPRODUCT(F6:AE6,$F$4:$AE$4) -> 1
B7: Glifosato | C7: lt/ha | D7: =D6 -> Septiembre | E7: 5 | F7: 5 | H7: 5 | J7: 5 | K7: 5 | M7: 5 | N7: 5 | Q7: 5 | S7: 5 | T7: 5 | U7: 5 | V7: 5 | Y7: 5 | Z7: 5 | AB7: 5 | AC7: 5 | AD7: 5 | AE7: 5 | AF7: =+AVERAGE(F7:AE7) -> 5
B8: Atrazina 90% | C8: kg/ha | D8: Septiembre | E8: 2 | F8: 2 | H8: 2 | J8: 2 | K8: 2 | M8: 2 | N8: 2 | Q8: 2 | S8: 2 | T8: 2 | U8: 2 | V8: 2 | Y8: 2 | Z8: 2 | AB8: 2 | AC8: 2 | AD8: 2 | AE8: 2 | AF8: =+AVERAGE(F8:AE8) -> 2
B9: 2 4 D 100% | C9: lt/ha | D9: Septiembre | E9: 0.5 | F9: 0.5 | H9: 0.5 | J9: 0.5 | K9: 0.5 | M9: 0.5 | N9: 0.5 | Q9: 0.5 | S9: 0.5 | T9: 0.5 | U9: 0.5 | V9: 0.5 | Y9: 0.5 | Z9: 0.5 | AB9: 0.5 | AC9: 0.5 | AD9: 0.5 | AE9: 0.5 | AF9: 0.5
B10: ACETOCHLOR | C10: lt/ha | D10: Septiembre | E10: 0 | F10: 0 | H10: 0 | J10: 0 | K10: 0 | M10: 0 | N10: 0 | Q10: 0 | S10: 0 | T10: 0 | U10: 0 | V10: 0 | Y10: 0 | Z10: 0 | AB10: 0 | AC10: 0 | AD10: 0 | AE10: 0 | AF10: 0
B11: SEMILLA MG | C11: bls/ha | D11: Septiembre | E11: 0.9 | F11: 0.9 | H11: 0.9 | J11: 0.9 | K11: 0.9 | M11: 0.9 | N11: 0.9 | Q11: 0.9 | S11: 0.9 | T11: 0.9 | U11: 0.9 | V11: 0.9 | Y11: 0.9 | Z11: 0.9 | AB11: 0.9 | AC11: 0.9 | AD11: 0.9 | AE11: 0.9 | AF11: =SUMPRODUCT(F11:AE11,$F$4:$AE$4) -> 0.9
B12: SEMILLA MG RR | C12: bls/ha | D12: Septiembre | E12: 0 | F12: 0 | H12: 0 | J12: 0 | K12: 0 | M12: 0 | N12: 0 | Q12: 0 | S12: 0 | T12: 0 | U12: 0 | V12: 0 | Y12: 0 | Z12: 0 | AB12: 0 | AC12: 0 | AD12: 0 | AE12: 0 | AF12: =SUMPRODUCT(F12:AE12,$F$4:$AE$4) -> 0
B13: UREA | C13: kg/ha | D13: Septiembre | E13: 160 | F13: 160 | H13: 160 | J13: 160 | K13: 160 | M13: 160 | N13: 160 | Q13: 160 | S13: 160 | T13: 160 | U13: 160 | V13: 160 | Y13: 160 | Z13: 160 | AB13: 160 | AC13: 160 | AD13: 160 | AE13: 160 | AF13: 160
B14: FOSFATO DIAMONICO | C14: kg/ha | D14: Septiembre | E14: 0 | F14: 0 | H14: 0 | J14: 0 | K14: 0 | M14: 0 | N14: 0 | Q14: 0 | S14: 0 | T14: 0 | U14: 0 | V14: 0 | Y14: 0 | Z14: 0 | AB14: 0 | AC14: 0 | AD14: 0 | AE14: 0 | AF14: 0
B15: FOSFATO MONOAMONICO | C15: kg/ha | D15: Septiembre | E15: 70 | F15: 70 | H15: 70 | J15: 70 | K15: 70 | M15: 70 | N15: 70 | Q15: 70 | S15: 70 | T15: 70 | U15: 70 | V15: 70 | Y15: 70 | Z15: 70 | AB15: 70 | AC15: 70 | AD15: 70 | AE15: 70 | AF15: 70
B16: GUARDIAN | C16: lt/ha | D16: Septiembre | E16: 1 | F16: 1 | H16: 1 | J16: 1 | K16: 1 | M16: 1 | N16: 1 | Q16: 1 | S16: 1 | T16: 1 | U16: 1 | V16: 1 | Y16: 1 | Z16: 1 | AB16: 1 | AC16: 1 | AD16: 1 | AE16: 1 | AF16: 1
B17: KARATE ZEON 25% | C17: lt/ha | D17: Septiembre | E17: 0.025 | F17: 0.025 | H17: 0.025 | J17: 0.025 | K17: 0.025 | M17: 0.025 | N17: 0.025 | Q17: 0.025 | S17: 0.025 | T17: 0.025 | U17: 0.025 | V17: 0.025 | Y17: 0.025 | Z17: 0.025 | AB17: 0.025 | AC17: 0.025 | AD17: 0.025 | AE17: 0.025 | AF17: 0.025
B18: ROUNDUP CONTROL MALEZA | C18: kg/ha | D18: Septiembre | E18: 0 | F18: 0 | H18: 0 | J18: 0 | K18: 0 | M18: 0 | N18: 0 | Q18: 0 | S18: 0 | T18: 0 | U18: 0 | V18: 0 | Y18: 0 | Z18: 0 | AB18: 0 | AC18: 0 | AD18: 0 | AE18: 0 | AF18: 0
B19: Riego | C19: mm/ha | D19: - | E19: - | F19: 0 | H19: =+$F$19 -> 0 | J19: =+$F$19 -> 0 | K19: 0 | M19: 0 | N19: 0 | Q19: 0 | S19: 0 | T19: 0 | U19: 0 | V19: =+$F$19 -> 0 | Y19: =+$F$19 -> 0 | Z19: 0 | AB19: 0 | AC19: =+$F$19 -> 0 | AD19: =+$F$19 -> 0 | AE19: =+$F$19 -> 0 | AF19: 0
B21: Costos Directos (Por Ha) | C21: Unidad de medida | D21: Mes de actualiz. | E21: Precio | F21: =F$2 -> Calamuchita | H21: =H$2 -> Colón | J21: Gral. Roca | K21: Gral. San Martín | M21: Juárez Celman | N21: Marcos Juárez | Q21: Pte. R. Sáenz Peña | S21: Río Cuarto | T21: Río Primero | U21: Río Seco | V21: Río Segundo | Y21: San Justo | Z21: Santa María | AB21: Tercero Arriba | AC21: Totoral | AD21: Tulumba | AE21: Unión | AF21: PROVINCIA
A22: L | B22: Pulverización terrestre | C22: Cantidad | D22: Septiembre | E22: 4.2 | F22: =$E22*F5 -> 8.4 | H22: 8.4 | J22: 8.4 | K22: 8.4 | M22: 8.4 | N22: 8.4 | Q22: 8.4 | S22: 8.4 | T22: 8.4 | U22: 8.4 | V22: 8.4 | Y22: 8.4 | Z22: 8.4 | AB22: 8.4 | AC22: 8.4 | AD22: 8.4 | AE22: 8.4 | AF22: 8.4
A23: L | B23: Fertilización | C23: Cantidad | D23: =D22 -> Septiembre | E23: 7 | F23: 7 | H23: 7 | J23: 7 | K23: 7 | M23: 7 | N23: 7 | Q23: 7 | S23: 7 | T23: 7 | U23: 7 | V23: 7 | Y23: 7 | Z23: 7 | AB23: 7 | AC23: 7 | AD23: 7 | AE23: 7 | AF23: 7
A24: H | B24: Glifosato | C24: lt/ha | D24: =D23 -> Septiembre | E24: 3.3 | F24: 16.5 | H24: 16.5 | J24: 16.5 | K24: 16.5 | M24: 16.5 | N24: 16.5 | Q24: 16.5 | S24: 16.5 | T24: 16.5 | U24: 16.5 | V24: 16.5 | Y24: 16.5 | Z24: 16.5 | AB24: 16.5 | AC24: 16.5 | AD24: 16.5 | AE24: 16.5 | AF24: 16.5
A25: H | B25: Atrazina 90% | C25: kg/ha | D25: Septiembre | E25: 6.5 | F25: 13 | H25: 13 | J25: 13 | K25: 13 | M25: 13 | N25: 13 | Q25: 13 | S25: 13 | T25: 13 | U25: 13 | V25: 13 | Y25: 13 | Z25: 13 | AB25: 13 | AC25: 13 | AD25: 13 | AE25: 13 | AF25: 13
A26: H | B26: 2 4 D 100% | C26: lt/ha | D26: Septiembre | E26: 5.9 | F26: 2.95 | H26: 2.95 | J26: 2.95 | K26: 2.95 | M26: 2.95 | N26: 2.95 | Q26: 2.95 | S26: 2.95 | T26: 2.95 | U26: 2.95 | V26: 2.95 | Y26: 2.95 | Z26: 2.95 | AB26: 2.95 | AC26: 2.95 | AD26: 2.95 | AE26: 2.95 | AF26: 2.95
A27: H | B27: ACETOCHLOR | C27: lt/ha | D27: Septiembre | E27: 6.3 | F27: 0 | H27: 0 | J27: 0 | K27: 0 | M27: 0 | N27: 0 | Q27: 0 | S27: 0 | T27: 0 | U27: 0 | V27: 0 | Y27: 0 | Z27: 0 | AB27: 0 | AC27: 0 | AD27: 0 | AE27: 0 | AF27: 0
A28: S | B28: SEMILLA MG | C28: bls/ha | D28: Septiembre | E28: 135 | F28: 121.5 | H28: 121.5 | J28: 121.5 | K28: 121.5 | M28: 121.5 | N28: 121.5 | Q28: 121.5 | S28: 121.5 | T28: 121.5 | U28: 121.5 | V28: 121.5 | Y28: 121.5 | Z28: 121.5 | AB28: 121.5 | AC28: 121.5 | AD28: 121.5 | AE28: 121.5 | AF28: 121.5
A29: S | B29: SEMILLA MG RR | C29: bls/ha | D29: Septiembre | E29: 162 | F29: 0 | H29: 0 | J29: 0 | K29: 0 | M29: 0 | N29: 0 | Q29: 0 | S29: 0 | T29: 0 | U29: 0 | V29: 0 | Y29: 0 | Z29: 0 | AB29: 0 | AC29: 0 | AD29: 0 | AE29: 0 | AF29: 0
A30: F | B30: UREA | C30: kg/ha | D30: Septiembre | E30: 0.42 | F30: 67.2 | H30: 67.2 | J30: 67.2 | K30: 67.2 | M30: 67.2 | N30: 67.2 | Q30: 67.2 | S30: 67.2 | T30: 67.2 | U30: 67.2 | V30: 67.2 | Y30: 67.2 | Z30: 67.2 | AB30: 67.2 | AC30: 67.2 | AD30: 67.2 | AE30: 67.2 | AF30: 67.2
A31: F | B31: FOSFATO DIAMONICO | C31: kg/ha | D31: Septiembre | E31: 0.47 | F31: 0 | H31: 0 | J31: 0 | K31: 0 | M31: 0 | N31: 0 | Q31: 0 | S31: 0 | T31: 0 | U31: 0 | V31: 0 | Y31: 0 | Z31: 0 | AB31: 0 | AC31: 0 | AD31: 0 | AE31: 0 | AF31: 0
A32: F | B32: FOSFATO MONOAMONICO | C32: kg/ha | D32: Septiembre | E32: 0.47 | F32: 32.9 | H32: 32.9 | J32: 32.9 | K32: 32.9 | M32: 32.9 | N32: 32.9 | Q32: 32.9 | S32: 32.9 | T32: 32.9 | U32: 32.9 | V32: 32.9 | Y32: 32.9 | Z32: 32.9 | AB32: 32.9 | AC32: 32.9 | AD32: 32.9 | AE32: 32.9 | AF32: 32.9
A33: H | B33: GUARDIAN | C33: lt/ha | D33: Septiembre | E33: 6.75 | F33: 6.75 | H33: 6.75 | J33: 6.75 | K33: 6.75 | M33: 6.75 | N33: 6.75 | Q33: 6.75 | S33: 6.75 | T33: 6.75 | U33: 6.75 | V33: 6.75 | Y33: 6.75 | Z33: 6.75 | AB33: 6.75 | AC33: 6.75 | AD33: 6.75 | AE33: 6.75 | AF33: 6.75
A34: INS | B34: KARATE ZEON 25% | C34: lt/ha | D34: Septiembre | E34: 45.8 | F34: 1.145 | H34: 1.145 | J34: 1.145 | K34: 1.145 | M34: 1.145 | N34: 1.145 | Q34: 1.145 | S34: 1.145 | T34: 1.145 | U34: 1.145 | V34: 1.145 | Y34: 1.145 | Z34: 1.145 | AB34: 1.145 | AC34: 1.145 | AD34: 1.145 | AE34: 1.145 | AF34: 1.145
A35: H | B35: ROUNDUP CONTROL MALEZA | C35: kg/ha | D35: Septiembre | E35: 6.74 | F35: 0 | H35: 0 | J35: 0 | K35: 0 | M35: 0 | N35: 0 | Q35: 0 | S35: 0 | T35: 0 | U35: 0 | V35: 0 | Y35: 0 | Z35: 0 | AB35: 0 | AC35: 0 | AD35: 0 | AE35: 0 | AF35: 0
B36: Riego | C36: =+"USD/"&LEFT(C19,2) -> USD/mm | D36: Septiembre | E36: 1 | F36: 0 | H36: 0 | J36: 0 | K36: =$E36*K19 -> 0 | M36: 0 | N36: 0 | Q36: 0 | S36: 0 | T36: 0 | U36: 0 | V36: 0 | Y36: 0 | Z36: 0 | AB36: 0 | AC36: 0 | AD36: 0 | AE36: 0 | AF36: 0
A37: L | B37: Siembra | C37: USD/Unidad | D37: Septiembre | E37: 30.8 | F37: =$E$37 -> 30.8 | H37: =$E$37 -> 30.8 | J37: 30.8 | K37: 30.8 | M37: 30.8 | N37: 30.8 | Q37: 30.8 | S37: 30.8 | T37: 30.8 | U37: 30.8 | V37: 30.8 | Y37: 30.8 | Z37: 30.8 | AB37: 30.8 | AC37: 30.8 | AD37: 30.8 | AE37: 30.8 | AF37: =$E$37 -> 30.8
B38: Cosecha | C38: $/Unidad | D38: Febrero | E38: - | F38: =+Listas!$AC$10 -> 10222.90698 | H38: =+Listas!$AC$10 -> 10222.90698 | J38: =+Listas!$AC$10 -> 10222.90698 | K38: =+Listas!$AC$10 -> 10222.90698 | M38: =+Listas!$AC$10 -> 10222.90698 | N38: =+Listas!$AC$10 -> 10222.90698 | Q38: =+Listas!$AC$10 -> 10222.90698 | S38: =+Listas!$AC$10 -> 10222.90698 | T38: =+Listas!$AC$10 -> 10222.90698 | U38: =+Listas!$AC$10 -> 10222.90698 | V38: =+Listas!$AC$10 -> 10222.90698 | Y38: =+Listas!$AC$10 -> 10222.90698 | Z38: =+Listas!$AC$10 -> 10222.90698 | AB38: =+Listas!$AC$10 -> 10222.90698 | AC38: =+Listas!$AC$10 -> 10222.90698 | AD38: =+Listas!$AC$10 -> 10222.90698 | AE38: =+Listas!$AC$10 -> 10222.90698 | AF38: =+Listas!$AC$10 -> 10222.90698
A39: C | B39: Cosecha en USD | C39: USD/Unidad | D39: =D38 -> Febrero | E39: - | F39: =+F38*(1+$E$96)/$E$94 -> 114.4881037 | H39: =+H38*(1+$E$96)/$E$94 -> 114.4881037 | J39: =+J38*(1+$E$96)/$E$94 -> 114.4881037 | K39: =+K38*(1+$E$96)/$E$94 -> 114.4881037 | M39: =+M38*(1+$E$96)/$E$94 -> 114.4881037 | N39: =+N38*(1+$E$96)/$E$94 -> 114.4881037 | Q39: =+Q38*(1+$E$96)/$E$94 -> 114.4881037 | S39: =+S38*(1+$E$96)/$E$94 -> 114.4881037 | T39: =+T38*(1+$E$96)/$E$94 -> 114.4881037 | U39: =+U38*(1+$E$96)/$E$94 -> 114.4881037 | V39: =+V38*(1+$E$96)/$E$94 -> 114.4881037 | Y39: =+Y38*(1+$E$96)/$E$94 -> 114.4881037 | Z39: =+Z38*(1+$E$96)/$E$94 -> 114.4881037 | AB39: =+AB38*(1+$E$96)/$E$94 -> 114.4881037 | AC39: =+AC38*(1+$E$96)/$E$94 -> 114.4881037 | AD39: =+AD38*(1+$E$96)/$E$94 -> 114.4881037 | AE39: =+AE38*(1+$E$96)/$E$94 -> 114.4881037 | AF39: =+AF38*(1+$E$96)/$E$94 -> 114.4881037
B40: Costos directos | C40: USD/ha | F40: =+SUM(F39,F22:F37) -> 422.6331037 | H40: 422.6331037 | J40: 422.6331037 | K40: 422.6331037 | M40: 422.6331037 | N40: 422.6331037 | Q40: 422.6331037 | S40: 422.6331037 | T40: 422.6331037 | U40: 422.6331037 | V40: 422.6331037 | Y40: 422.6331037 | Z40: 422.6331037 | AB40: 422.6331037 | AC40: 422.6331037 | AD40: 422.6331037 | AE40: 422.6331037 | AF40: =+SUM(AF39,AF22:AF37) -> 422.6331037
B42: Opciones avanzadas (completado por el usuario) | C42: Unidad de medida | D42: Mes de actualiz. | E42: - | F42: Calamuchita | G42: Capital | H42: Colón | I42: Cruz del Eje | J42: Gral. Roca | K42: Gral. San Martín | L42: Ischilin | M42: Juárez Celman | N42: Marcos Juárez | O42: Minas | P42: Pocho | Q42: Pte. R. Sáenz Peña | R42: Punilla | S42: Río Cuarto | T42: Río Primero | U42: Río Seco | V42: Río Segundo | W42: San Alberto | X42: San Javier | Y42: San Justo | Z42: Santa María | AA42: Sobremonte | AB42: Tercero Arriba | AC42: Totoral | AD42: Tulumba | AE42: Unión | AF42: PROVINCIA
B43: Servicios de labranza | C43: USD/ha | D43: Estos datos son los ingresados en opciones avanzadas | E43: - | F43: =+'Opciones Avanzadas'!$F13 -> 46.2 | G43: =+'Opciones Avanzadas'!$F13 -> 46.2 | H43: =+'Opciones Avanzadas'!$F13 -> 46.2 | I43: =+'Opciones Avanzadas'!$F13 -> 46.2 | J43: =+'Opciones Avanzadas'!$F13 -> 46.2 | K43: =+'Opciones Avanzadas'!$F13 -> 46.2 | L43: =+'Opciones Avanzadas'!$F13 -> 46.2 | M43: =+'Opciones Avanzadas'!$F13 -> 46.2 | N43: =+'Opciones Avanzadas'!$F13 -> 46.2 | O43: =+'Opciones Avanzadas'!$F13 -> 46.2 | P43: =+'Opciones Avanzadas'!$F13 -> 46.2 | Q43: =+'Opciones Avanzadas'!$F13 -> 46.2 | R43: =+'Opciones Avanzadas'!$F13 -> 46.2 | S43: =+'Opciones Avanzadas'!$F13 -> 46.2 | T43: =+'Opciones Avanzadas'!$F13 -> 46.2 | U43: =+'Opciones Avanzadas'!$F13 -> 46.2 | V43: =+'Opciones Avanzadas'!$F13 -> 46.2 | W43: =+'Opciones Avanzadas'!$F13 -> 46.2 | X43: =+'Opciones Avanzadas'!$F13 -> 46.2 | Y43: =+'Opciones Avanzadas'!$F13 -> 46.2 | Z43: =+'Opciones Avanzadas'!$F13 -> 46.2 | AA43: =+'Opciones Avanzadas'!$F13 -> 46.2 | AB43: =+'Opciones Avanzadas'!$F13 -> 46.2 | AC43: =+'Opciones Avanzadas'!$F13 -> 46.2 | AD43: =+'Opciones Avanzadas'!$F13 -> 46.2 | AE43: =+'Opciones Avanzadas'!$F13 -> 46.2 | AF43: =+'Opciones Avanzadas'!$F13 -> 46.2
B44: Cosecha | C44: USD/ha | E44: - | F44: =+'Opciones Avanzadas'!$F14 -> 114.4881037 | G44: =+'Opciones Avanzadas'!$F14 -> 114.4881037 | H44: =+'Opciones Avanzadas'!$F14 -> 114.4881037 | I44: =+'Opciones Avanzadas'!$F14 -> 114.4881037 | J44: =+'Opciones Avanzadas'!$F14 -> 114.4881037 | K44: =+'Opciones Avanzadas'!$F14 -> 114.4881037 | L44: =+'Opciones Avanzadas'!$F14 -> 114.4881037 | M44: =+'Opciones Avanzadas'!$F14 -> 114.4881037 | N44: =+'Opciones Avanzadas'!$F14 -> 114.4881037 | O44: =+'Opciones Avanzadas'!$F14 -> 114.4881037 | P44: =+'Opciones Avanzadas'!$F14 -> 114.4881037 | Q44: =+'Opciones Avanzadas'!$F14 -> 114.4881037 | R44: =+'Opciones Avanzadas'!$F14 -> 114.4881037 | S44: =+'Opciones Avanzadas'!$F14 -> 114.4881037 | T44: =+'Opciones Avanzadas'!$F14 -> 114.4881037 | U44: =+'Opciones Avanzadas'!$F14 -> 114.4881037 | V44: =+'Opciones Avanzadas'!$F14 -> 114.4881037 | W44: =+'Opciones Avanzadas'!$F14 -> 114.4881037 | X44: =+'Opciones Avanzadas'!$F14 -> 114.4881037 | Y44: =+'Opciones Avanzadas'!$F14 -> 114.4881037 | Z44: =+'Opciones Avanzadas'!$F14 -> 114.4881037 | AA44: =+'Opciones Avanzadas'!$F14 -> 114.4881037 | AB44: =+'Opciones Avanzadas'!$F14 -> 114.4881037 | AC44: =+'Opciones Avanzadas'!$F14 -> 114.4881037 | AD44: =+'Opciones Avanzadas'!$F14 -> 114.4881037 | AE44: =+'Opciones Avanzadas'!$F14 -> 114.4881037 | AF44: =+'Opciones Avanzadas'!$F14 -> 114.4881037
B45: Herbicida | C45: USD/ha | E45: - | F45: =+'Opciones Avanzadas'!$F15 -> 39.2 | G45: =+'Opciones Avanzadas'!$F15 -> 39.2 | H45: =+'Opciones Avanzadas'!$F15 -> 39.2 | I45: =+'Opciones Avanzadas'!$F15 -> 39.2 | J45: =+'Opciones Avanzadas'!$F15 -> 39.2 | K45: =+'Opciones Avanzadas'!$F15 -> 39.2 | L45: =+'Opciones Avanzadas'!$F15 -> 39.2 | M45: =+'Opciones Avanzadas'!$F15 -> 39.2 | N45: =+'Opciones Avanzadas'!$F15 -> 39.2 | O45: =+'Opciones Avanzadas'!$F15 -> 39.2 | P45: =+'Opciones Avanzadas'!$F15 -> 39.2 | Q45: =+'Opciones Avanzadas'!$F15 -> 39.2 | R45: =+'Opciones Avanzadas'!$F15 -> 39.2 | S45: =+'Opciones Avanzadas'!$F15 -> 39.2 | T45: =+'Opciones Avanzadas'!$F15 -> 39.2 | U45: =+'Opciones Avanzadas'!$F15 -> 39.2 | V45: =+'Opciones Avanzadas'!$F15 -> 39.2 | W45: =+'Opciones Avanzadas'!$F15 -> 39.2 | X45: =+'Opciones Avanzadas'!$F15 -> 39.2 | Y45: =+'Opciones Avanzadas'!$F15 -> 39.2 | Z45: =+'Opciones Avanzadas'!$F15 -> 39.2 | AA45: =+'Opciones Avanzadas'!$F15 -> 39.2 | AB45: =+'Opciones Avanzadas'!$F15 -> 39.2 | AC45: =+'Opciones Avanzadas'!$F15 -> 39.2 | AD45: =+'Opciones Avanzadas'!$F15 -> 39.2 | AE45: =+'Opciones Avanzadas'!$F15 -> 39.2 | AF45: =+'Opciones Avanzadas'!$F15 -> 39.2
B46: Fertilizantes | C46: USD/ha | E46: - | F46: =+'Opciones Avanzadas'!$F16 -> 100.1 | G46: =+'Opciones Avanzadas'!$F16 -> 100.1 | H46: =+'Opciones Avanzadas'!$F16 -> 100.1 | I46: =+'Opciones Avanzadas'!$F16 -> 100.1 | J46: =+'Opciones Avanzadas'!$F16 -> 100.1 | K46: =+'Opciones Avanzadas'!$F16 -> 100.1 | L46: =+'Opciones Avanzadas'!$F16 -> 100.1 | M46: =+'Opciones Avanzadas'!$F16 -> 100.1 | N46: =+'Opciones Avanzadas'!$F16 -> 100.1 | O46: =+'Opciones Avanzadas'!$F16 -> 100.1 | P46: =+'Opciones Avanzadas'!$F16 -> 100.1 | Q46: =+'Opciones Avanzadas'!$F16 -> 100.1 | R46: =+'Opciones Avanzadas'!$F16 -> 100.1 | S46: =+'Opciones Avanzadas'!$F16 -> 100.1 | T46: =+'Opciones Avanzadas'!$F16 -> 100.1 | U46: =+'Opciones Avanzadas'!$F16 -> 100.1 | V46: =+'Opciones Avanzadas'!$F16 -> 100.1 | W46: =+'Opciones Avanzadas'!$F16 -> 100.1 | X46: =+'Opciones Avanzadas'!$F16 -> 100.1 | Y46: =+'Opciones Avanzadas'!$F16 -> 100.1 | Z46: =+'Opciones Avanzadas'!$F16 -> 100.1 | AA46: =+'Opciones Avanzadas'!$F16 -> 100.1 | AB46: =+'Opciones Avanzadas'!$F16 -> 100.1 | AC46: =+'Opciones Avanzadas'!$F16 -> 100.1 | AD46: =+'Opciones Avanzadas'!$F16 -> 100.1 | AE46: =+'Opciones Avanzadas'!$F16 -> 100.1 | AF46: =+'Opciones Avanzadas'!$F16 -> 100.1
B47: Insecticidas | C47: USD/ha | E47: - | F47: =+'Opciones Avanzadas'!$F17 -> 1.145 | G47: =+'Opciones Avanzadas'!$F17 -> 1.145 | H47: =+'Opciones Avanzadas'!$F17 -> 1.145 | I47: =+'Opciones Avanzadas'!$F17 -> 1.145 | J47: =+'Opciones Avanzadas'!$F17 -> 1.145 | K47: =+'Opciones Avanzadas'!$F17 -> 1.145 | L47: =+'Opciones Avanzadas'!$F17 -> 1.145 | M47: =+'Opciones Avanzadas'!$F17 -> 1.145 | N47: =+'Opciones Avanzadas'!$F17 -> 1.145 | O47: =+'Opciones Avanzadas'!$F17 -> 1.145 | P47: =+'Opciones Avanzadas'!$F17 -> 1.145 | Q47: =+'Opciones Avanzadas'!$F17 -> 1.145 | R47: =+'Opciones Avanzadas'!$F17 -> 1.145 | S47: =+'Opciones Avanzadas'!$F17 -> 1.145 | T47: =+'Opciones Avanzadas'!$F17 -> 1.145 | U47: =+'Opciones Avanzadas'!$F17 -> 1.145 | V47: =+'Opciones Avanzadas'!$F17 -> 1.145 | W47: =+'Opciones Avanzadas'!$F17 -> 1.145 | X47: =+'Opciones Avanzadas'!$F17 -> 1.145 | Y47: =+'Opciones Avanzadas'!$F17 -> 1.145 | Z47: =+'Opciones Avanzadas'!$F17 -> 1.145 | AA47: =+'Opciones Avanzadas'!$F17 -> 1.145 | AB47: =+'Opciones Avanzadas'!$F17 -> 1.145 | AC47: =+'Opciones Avanzadas'!$F17 -> 1.145 | AD47: =+'Opciones Avanzadas'!$F17 -> 1.145 | AE47: =+'Opciones Avanzadas'!$F17 -> 1.145 | AF47: =+'Opciones Avanzadas'!$F17 -> 1.145
B48: Fungicidas | C48: USD/ha | E48: - | F48: =+'Opciones Avanzadas'!$F18 -> 0 | G48: =+'Opciones Avanzadas'!$F18 -> 0 | H48: =+'Opciones Avanzadas'!$F18 -> 0 | I48: =+'Opciones Avanzadas'!$F18 -> 0 | J48: =+'Opciones Avanzadas'!$F18 -> 0 | K48: =+'Opciones Avanzadas'!$F18 -> 0 | L48: =+'Opciones Avanzadas'!$F18 -> 0 | M48: =+'Opciones Avanzadas'!$F18 -> 0 | N48: =+'Opciones Avanzadas'!$F18 -> 0 | O48: =+'Opciones Avanzadas'!$F18 -> 0 | P48: =+'Opciones Avanzadas'!$F18 -> 0 | Q48: =+'Opciones Avanzadas'!$F18 -> 0 | R48: =+'Opciones Avanzadas'!$F18 -> 0 | S48: =+'Opciones Avanzadas'!$F18 -> 0 | T48: =+'Opciones Avanzadas'!$F18 -> 0 | U48: =+'Opciones Avanzadas'!$F18 -> 0 | V48: =+'Opciones Avanzadas'!$F18 -> 0 | W48: =+'Opciones Avanzadas'!$F18 -> 0 | X48: =+'Opciones Avanzadas'!$F18 -> 0 | Y48: =+'Opciones Avanzadas'!$F18 -> 0 | Z48: =+'Opciones Avanzadas'!$F18 -> 0 | AA48: =+'Opciones Avanzadas'!$F18 -> 0 | AB48: =+'Opciones Avanzadas'!$F18 -> 0 | AC48: =+'Opciones Avanzadas'!$F18 -> 0 | AD48: =+'Opciones Avanzadas'!$F18 -> 0 | AE48: =+'Opciones Avanzadas'!$F18 -> 0 | AF48: =+'Opciones Avanzadas'!$F18 -> 0
B49: Curasemillas | C49: USD/ha | E49: - | F49: =+'Opciones Avanzadas'!$F19 -> 0 | G49: =+'Opciones Avanzadas'!$F19 -> 0 | H49: =+'Opciones Avanzadas'!$F19 -> 0 | I49: =+'Opciones Avanzadas'!$F19 -> 0 | J49: =+'Opciones Avanzadas'!$F19 -> 0 | K49: =+'Opciones Avanzadas'!$F19 -> 0 | L49: =+'Opciones Avanzadas'!$F19 -> 0 | M49: =+'Opciones Avanzadas'!$F19 -> 0 | N49: =+'Opciones Avanzadas'!$F19 -> 0 | O49: =+'Opciones Avanzadas'!$F19 -> 0 | P49: =+'Opciones Avanzadas'!$F19 -> 0 | Q49: =+'Opciones Avanzadas'!$F19 -> 0 | R49: =+'Opciones Avanzadas'!$F19 -> 0 | S49: =+'Opciones Avanzadas'!$F19 -> 0 | T49: =+'Opciones Avanzadas'!$F19 -> 0 | U49: =+'Opciones Avanzadas'!$F19 -> 0 | V49: =+'Opciones Avanzadas'!$F19 -> 0 | W49: =+'Opciones Avanzadas'!$F19 -> 0 | X49: =+'Opciones Avanzadas'!$F19 -> 0 | Y49: =+'Opciones Avanzadas'!$F19 -> 0 | Z49: =+'Opciones Avanzadas'!$F19 -> 0 | AA49: =+'Opciones Avanzadas'!$F19 -> 0 | AB49: =+'Opciones Avanzadas'!$F19 -> 0 | AC49: =+'Opciones Avanzadas'!$F19 -> 0 | AD49: =+'Opciones Avanzadas'!$F19 -> 0 | AE49: =+'Opciones Avanzadas'!$F19 -> 0 | AF49: =+'Opciones Avanzadas'!$F19 -> 0
B50: Semillas | C50: USD/ha | E50: - | F50: =+'Opciones Avanzadas'!$F20 -> 121.5 | G50: =+'Opciones Avanzadas'!$F20 -> 121.5 | H50: =+'Opciones Avanzadas'!$F20 -> 121.5 | I50: =+'Opciones Avanzadas'!$F20 -> 121.5 | J50: =+'Opciones Avanzadas'!$F20 -> 121.5 | K50: =+'Opciones Avanzadas'!$F20 -> 121.5 | L50: =+'Opciones Avanzadas'!$F20 -> 121.5 | M50: =+'Opciones Avanzadas'!$F20 -> 121.5 | N50: =+'Opciones Avanzadas'!$F20 -> 121.5 | O50: =+'Opciones Avanzadas'!$F20 -> 121.5 | P50: =+'Opciones Avanzadas'!$F20 -> 121.5 | Q50: =+'Opciones Avanzadas'!$F20 -> 121.5 | R50: =+'Opciones Avanzadas'!$F20 -> 121.5 | S50: =+'Opciones Avanzadas'!$F20 -> 121.5 | T50: =+'Opciones Avanzadas'!$F20 -> 121.5 | U50: =+'Opciones Avanzadas'!$F20 -> 121.5 | V50: =+'Opciones Avanzadas'!$F20 -> 121.5 | W50: =+'Opciones Avanzadas'!$F20 -> 121.5 | X50: =+'Opciones Avanzadas'!$F20 -> 121.5 | Y50: =+'Opciones Avanzadas'!$F20 -> 121.5 | Z50: =+'Opciones Avanzadas'!$F20 -> 121.5 | AA50: =+'Opciones Avanzadas'!$F20 -> 121.5 | AB50: =+'Opciones Avanzadas'!$F20 -> 121.5 | AC50: =+'Opciones Avanzadas'!$F20 -> 121.5 | AD50: =+'Opciones Avanzadas'!$F20 -> 121.5 | AE50: =+'Opciones Avanzadas'!$F20 -> 121.5 | AF50: =+'Opciones Avanzadas'!$F20 -> 121.5
B51: Total | C51: USD/ha | E51: - | F51: =+'Opciones Avanzadas'!$F21 -> 422.6331037 | G51: =+'Opciones Avanzadas'!$F21 -> 422.6331037 | H51: =+'Opciones Avanzadas'!$F21 -> 422.6331037 | I51: =+'Opciones Avanzadas'!$F21 -> 422.6331037 | J51: =+'Opciones Avanzadas'!$F21 -> 422.6331037 | K51: =+'Opciones Avanzadas'!$F21 -> 422.6331037 | L51: =+'Opciones Avanzadas'!$F21 -> 422.6331037 | M51: =+'Opciones Avanzadas'!$F21 -> 422.6331037 | N51: =+'Opciones Avanzadas'!$F21 -> 422.6331037 | O51: =+'Opciones Avanzadas'!$F21 -> 422.6331037 | P51: =+'Opciones Avanzadas'!$F21 -> 422.6331037 | Q51: =+'Opciones Avanzadas'!$F21 -> 422.6331037 | R51: =+'Opciones Avanzadas'!$F21 -> 422.6331037 | S51: =+'Opciones Avanzadas'!$F21 -> 422.6331037 | T51: =+'Opciones Avanzadas'!$F21 -> 422.6331037 | U51: =+'Opciones Avanzadas'!$F21 -> 422.6331037 | V51: =+'Opciones Avanzadas'!$F21 -> 422.6331037 | W51: =+'Opciones Avanzadas'!$F21 -> 422.6331037 | X51: =+'Opciones Avanzadas'!$F21 -> 422.6331037 | Y51: =+'Opciones Avanzadas'!$F21 -> 422.6331037 | Z51: =+'Opciones Avanzadas'!$F21 -> 422.6331037 | AA51: =+'Opciones Avanzadas'!$F21 -> 422.6331037 | AB51: =+'Opciones Avanzadas'!$F21 -> 422.6331037 | AC51: =+'Opciones Avanzadas'!$F21 -> 422.6331037 | AD51: =+'Opciones Avanzadas'!$F21 -> 422.6331037 | AE51: =+'Opciones Avanzadas'!$F21 -> 422.6331037 | AF51: =+'Opciones Avanzadas'!$F21 -> 422.6331037
B53: Gastos Comerciales (Por Tn) | C53: Unidad de medida | D53: Mes de actualiz. | E53: Costo | F53: =F$2 -> Calamuchita | H53: Colón | J53: Gral. Roca | K53: Gral. San Martín | M53: Juárez Celman | N53: Marcos Juárez | Q53: Pte. R. Sáenz Peña | S53: Río Cuarto | T53: Río Primero | U53: Río Seco | V53: Río Segundo | Y53: San Justo | Z53: Santa María | AB53: Tercero Arriba | AC53: Totoral | AD53: Tulumba | AE53: Unión | AF53: PROVINCIA
